Workbook

Sheet Introduction

Sheet Contents
C1: Go to Charts by Pressing Shift and Enter on Menu Item
B3: Contents | C3: Sheet Tab | D3: Description | E3: Author
B4: 1 | C4: Introduction
B5: 2 | C5: Contents
B6: 3 | C6: Financial Model
B7: 4 | C7: Valuation Summary
B8: 5 | C8: Acquisition Assumptions
B9: 6 | C9: Acquistion Model
B10: 7 | C10: Sensitivity
B11: 8 | C11: Scenario Output
B13: File Name: | D13: =File_name() -> C:\Users\stormy daniels\Documents\Valuation and Acquisition Model Complete.xlsm
B15: Last Save Date | D15: =lastsaved() -> 04/05/2019 06:48:29
B16: Last Save By | D16: =last_save_by() -> stormy daniels
B18: Colour Codes

Sheet Financial Model
A1: Contents
B2: Quarter | I2: 2004-01-01 | J2: =EDATE(I2,3) -> 2004-04-01 | K2: =EDATE(J2,3) -> 2004-07-01 | L2: 2004-10-01 | M2: 2005-01-01 | N2: 2005-04-01 | O2: 2005-07-01 | P2: 2005-10-01 | Q2: 2006-01-01 | R2: 2006-04-01 | S2: 2006-07-01 | T2: 2006-10-01 | U2: 2007-01-01 | V2: 2007-04-01 | W2: 2007-07-01 | X2: 2007-10-01 | Y2: 2008-01-01 | Z2: 2008-04-01 | AA2: 2008-07-01 | AB2: 2008-10-01 | AC2: 2009-01-01 | AD2: 2009-04-01 | AE2: 2009-07-01 | AF2: 2009-10-01 | AG2: 2010-01-01 | AH2: 2010-04-01 | AI2: 2010-07-01 | AJ2: 2010-10-01 | AK2: 2011-01-01 | AL2: 2011-04-01 | AM2: 2011-07-01 | AN2: 2011-10-01 | AO2: 2012-01-01 | AP2: 2012-04-01 | AQ2: 2012-07-01 | AR2: 2012-10-01 | AS2: 2013-01-01 | AT2: 2013-04-01 | AU2: 2013-07-01 | AV2: 2013-10-01 | AW2: 2014-01-01 | AX2: 2014-04-01 | AY2: 2014-07-01 | AZ2: 2014-10-01 | BA2: 2015-01-01 | BB2: 2015-04-01 | BC2: 2015-07-01 | BD2: 2015-10-01 | BE2: 2016-01-01 | BF2: 2016-04-01 | BG2: 2016-07-01 | BH2: 2016-10-01 | BI2: 2017-01-01 | BJ2: 2017-04-01 | BK2: 2017-07-01 | BL2: 2017-10-01 | BM2: 2018-01-01 | BN2: 2018-04-01 | BO2: 2018-07-01 | BP2: 2018-10-01 | BQ2: 2019-01-01 | BR2: 2019-04-01 | BS2: 2019-07-01 | BT2: 2019-10-01 | BU2: 2020-01-01 | BV2: 2020-04-01 | BW2: =EDATE(BV2,3) -> 2020-07-01 | BX2: 2020-10-01 | BY2: 2021-01-01 | BZ2: 2021-04-01 | CA2: 2021-07-01 | CB2: 2021-10-01 | CC2: 2022-01-01 | CD2: 2022-04-01 | CE2: 2022-07-01 | CF2: 2022-10-01 | CG2: 2023-01-01 | CH2: 2023-04-01 | CI2: 2023-07-01 | CJ2: 2023-10-01 | CK2: 2024-01-01 | CL2: 2024-04-01 | CM2: 2024-07-01 | CN2: 2024-10-01 | CO2: 2025-01-01 | CP2: =EDATE(CO2,3) -> 2025-04-01 | CQ2: =EDATE(CP2,3) -> 2025-07-01 | CR2: =EDATE(CQ2,3) -> 2025-10-01 | CS2: =EDATE(CR2,3) -> 2026-01-01 | CT2: =EDATE(CS2,3) -> 2026-04-01 | CU2: =EDATE(CT2,3) -> 2026-07-01 | CV2: =EDATE(CU2,3) -> 2026-10-01 | CW2: =EDATE(CV2,3) -> 2027-01-01 | CX2: =EDATE(CW2,3) -> 2027-04-01 | CY2: =EDATE(CX2,3) -> 2027-07-01 | CZ2: =EDATE(CY2,3) -> 2027-10-01 | DA2: =EDATE(CZ2,3) -> 2028-01-01 | DB2: =EDATE(DA2,3) -> 2028-04-01 | DC2: =EDATE(DB2,3) -> 2028-07-01 | DD2: =EDATE(DC2,3) -> 2028-10-01 | DE2: =EDATE(DD2,3) -> 2029-01-01 | DF2: =EDATE(DE2,3) -> 2029-04-01 | DG2: =EDATE(DF2,3) -> 2029-07-01 | DH2: =EDATE(DG2,3) -> 2029-10-01 | DI2: =EDATE(DH2,3) -> 2030-01-01 | DJ2: =EDATE(DI2,3) -> 2030-04-01 | DK2: =EDATE(DJ2,3) -> 2030-07-01 | DL2: =EDATE(DK2,3) -> 2030-10-01 | DM2: =EDATE(DL2,3) -> 2031-01-01 | DN2: =EDATE(DM2,3) -> 2031-04-01 | DO2: =EDATE(DN2,3) -> 2031-07-01 | DP2: =EDATE(DO2,3) -> 2031-10-01 | DQ2: =EDATE(DP2,3) -> 2032-01-01 | DR2: =EDATE(DQ2,3) -> 2032-04-01 | DS2: =EDATE(DR2,3) -> 2032-07-01 | DT2: =EDATE(DS2,3) -> 2032-10-01 | DU2: =EDATE(DT2,3) -> 2033-01-01 | DV2: =EDATE(DU2,3) -> 2033-04-01 | DW2: =EDATE(DV2,3) -> 2033-07-01 | DX2: =EDATE(DW2,3) -> 2033-10-01 | DY2: =EDATE(DX2,3) -> 2034-01-01 | DZ2: =EDATE(DY2,3) -> 2034-04-01 | EA2: =EDATE(DZ2,3) -> 2034-07-01
B3: History | E3: Switch | G3: 2019-04-01 | I3: =I2<=$G$3 -> TRUE | J3: =J2<=$G$3 -> TRUE | K3: TRUE | L3: TRUE | M3: TRUE | N3: TRUE | O3: TRUE | P3: TRUE | Q3: TRUE | R3: TRUE | S3: TRUE | T3: TRUE | U3: TRUE | V3: TRUE | W3: TRUE | X3: TRUE | Y3: TRUE | Z3: TRUE | AA3: TRUE | AB3: TRUE | AC3: TRUE | AD3: TRUE | AE3: TRUE | AF3: TRUE | AG3: TRUE | AH3: TRUE | AI3: TRUE | AJ3: TRUE | AK3: TRUE | AL3: TRUE | AM3: TRUE | AN3: TRUE | AO3: TRUE | AP3: TRUE | AQ3: TRUE | AR3: TRUE | AS3: TRUE | AT3: TRUE | AU3: TRUE | AV3: TRUE | AW3: TRUE | AX3: TRUE | AY3: TRUE | AZ3: TRUE | BA3: TRUE | BB3: TRUE | BC3: TRUE | BD3: TRUE | BE3: TRUE | BF3: TRUE | BG3: TRUE | BH3: TRUE | BI3: TRUE | BJ3: TRUE | BK3: TRUE | BL3: TRUE | BM3: TRUE | BN3: TRUE | BO3: TRUE | BP3: TRUE | BQ3: TRUE | BR3: TRUE | BS3: FALSE | BT3: FALSE | BU3: FALSE | BV3: =BV2<=$G$3 -> FALSE | BW3: FALSE | BX3: FALSE | BY3: FALSE | BZ3: FALSE | CA3: FALSE | CB3: FALSE | CC3: FALSE | CD3: FALSE | CE3: FALSE | CF3: FALSE | CG3: FALSE | CH3: FALSE | CI3: FALSE | CJ3: FALSE | CK3: FALSE | CL3: FALSE | CM3: FALSE | CN3: FALSE | CO3: FALSE | CP3: =CP2<=$G$3 -> FALSE | CQ3: FALSE | CR3: FALSE | CS3: FALSE | CT3: FALSE | CU3: FALSE | CV3: FALSE | CW3: FALSE | CX3: FALSE | CY3: FALSE | CZ3: FALSE | DA3: FALSE | DB3: FALSE | DC3: FALSE | DD3: FALSE | DE3: FALSE | DF3: FALSE | DG3: FALSE | DH3: FALSE | DI3: FALSE | DJ3: FALSE | DK3: FALSE | DL3: FALSE | DM3: FALSE | DN3: FALSE | DO3: FALSE | DP3: FALSE | DQ3: FALSE | DR3: FALSE | DS3: FALSE | DT3: FALSE | DU3: FALSE | DV3: FALSE | DW3: FALSE | DX3: FALSE | DY3: FALSE | DZ3: FALSE | EA3: FALSE
B4: History Evaluation Period | E4: Switch | G4: 2014-01-01 | I4: =AND(I2>=$G$4,I2<=$G$3) -> FALSE | J4: =AND(J2>=$G$4,J2<=$G$3) -> FALSE | K4: FALSE | L4: FALSE | M4: FALSE | N4: FALSE | O4: FALSE | P4: FALSE | Q4: FALSE | R4: FALSE | S4: FALSE | T4: FALSE | U4: FALSE | V4: FALSE | W4: FALSE | X4: FALSE | Y4: FALSE | Z4: FALSE | AA4: FALSE | AB4: FALSE | AC4: FALSE | AD4: FALSE | AE4: FALSE | AF4: FALSE | AG4: FALSE | AH4: FALSE | AI4: FALSE | AJ4: FALSE | AK4: FALSE | AL4: FALSE | AM4: FALSE | AN4: FALSE | AO4: FALSE | AP4: FALSE | AQ4: FALSE | AR4: FALSE | AS4: FALSE | AT4: FALSE | AU4: FALSE | AV4: FALSE | AW4: TRUE | AX4: TRUE | AY4: TRUE | AZ4: TRUE | BA4: TRUE | BB4: TRUE | BC4: TRUE | BD4: TRUE | BE4: TRUE | BF4: TRUE | BG4: TRUE | BH4: TRUE | BI4: TRUE | BJ4: TRUE | BK4: TRUE | BL4: TRUE | BM4: TRUE | BN4: TRUE | BO4: TRUE | BP4: TRUE | BQ4: TRUE | BR4: TRUE | BS4: FALSE | BT4: FALSE | BU4: FALSE | BV4: =AND(BV2>=$G$4,BV2<=$G$3) -> FALSE | BW4: FALSE | BX4: FALSE | BY4: FALSE | BZ4: FALSE | CA4: FALSE | CB4: FALSE | CC4: FALSE | CD4: FALSE | CE4: FALSE | CF4: FALSE | CG4: FALSE | CH4: FALSE | CI4: FALSE | CJ4: FALSE | CK4: FALSE | CL4: FALSE | CM4: FALSE | CN4: FALSE | CO4: FALSE | CP4: =AND(CP2>=$G$4,CP2<=$G$3) -> FALSE | CQ4: FALSE | CR4: FALSE | CS4: FALSE | CT4: FALSE | CU4: FALSE | CV4: FALSE | CW4: FALSE | CX4: FALSE | CY4: FALSE | CZ4: FALSE | DA4: FALSE | DB4: FALSE | DC4: FALSE | DD4: FALSE | DE4: FALSE | DF4: FALSE | DG4: FALSE | DH4: FALSE | DI4: FALSE | DJ4: FALSE | DK4: FALSE | DL4: FALSE | DM4: FALSE | DN4: FALSE | DO4: FALSE | DP4: FALSE | DQ4: FALSE | DR4: FALSE | DS4: FALSE | DT4: FALSE | DU4: FALSE | DV4: FALSE | DW4: FALSE | DX4: FALSE | DY4: FALSE | DZ4: FALSE | EA4: FALSE
B5: Explicit Valuation | E5: Switch | G5: =G9 -> 2019-10-01 | H5: =G11 -> 2024-10-01 | I5: =AND(I2>=$G$5,I2<=$H$5) -> FALSE | J5: =AND(J2>=$G$5,J2<=$H$5) -> FALSE | K5: FALSE | L5: FALSE | M5: FALSE | N5: FALSE | O5: FALSE | P5: FALSE | Q5: FALSE | R5: FALSE | S5: FALSE | T5: FALSE | U5: FALSE | V5: FALSE | W5: FALSE | X5: FALSE | Y5: FALSE | Z5: FALSE | AA5: FALSE | AB5: FALSE | AC5: FALSE | AD5: FALSE | AE5: FALSE | AF5: FALSE | AG5: FALSE | AH5: FALSE | AI5: FALSE | AJ5: FALSE | AK5: FALSE | AL5: FALSE | AM5: FALSE | AN5: FALSE | AO5: FALSE | AP5: FALSE | AQ5: FALSE | AR5: FALSE | AS5: FALSE | AT5: FALSE | AU5: FALSE | AV5: FALSE | AW5: FALSE | AX5: FALSE | AY5: FALSE | AZ5: FALSE | BA5: FALSE | BB5: FALSE | BC5: FALSE | BD5: FALSE | BE5: FALSE | BF5: FALSE | BG5: FALSE | BH5: FALSE | BI5: FALSE | BJ5: FALSE | BK5: FALSE | BL5: FALSE | BM5: FALSE | BN5: FALSE | BO5: FALSE | BP5: FALSE | BQ5: FALSE | BR5: FALSE | BS5: FALSE | BT5: TRUE | BU5: TRUE | BV5: =AND(BV2>=$G$5,BV2<=$H$5) -> TRUE | BW5: TRUE | BX5: TRUE | BY5: TRUE | BZ5: TRUE | CA5: TRUE | CB5: TRUE | CC5: TRUE | CD5: TRUE | CE5: TRUE | CF5: TRUE | CG5: TRUE | CH5: TRUE | CI5: TRUE | CJ5: TRUE | CK5: TRUE | CL5: TRUE | CM5: TRUE | CN5: TRUE | CO5: FALSE | CP5: =AND(CP2>=$G$5,CP2<=$H$5) -> FALSE | CQ5: FALSE | CR5: FALSE | CS5: FALSE | CT5: FALSE | CU5: FALSE | CV5: FALSE | CW5: FALSE | CX5: FALSE | CY5: FALSE | CZ5: FALSE | DA5: FALSE | DB5: FALSE | DC5: FALSE | DD5: FALSE | DE5: FALSE | DF5: FALSE | DG5: FALSE | DH5: FALSE | DI5: FALSE | DJ5: FALSE | DK5: FALSE | DL5: FALSE | DM5: FALSE | DN5: FALSE | DO5: FALSE | DP5: FALSE | DQ5: FALSE | DR5: FALSE | DS5: FALSE | DT5: FALSE | DU5: FALSE | DV5: FALSE | DW5: FALSE | DX5: FALSE | DY5: FALSE | DZ5: FALSE | EA5: FALSE
B6: Terminal Period | E6: Switch | G6: =G11 -> 2024-10-01 | I6: =I2=$G$6 -> FALSE | J6: =J2=$G$6 -> FALSE | K6: FALSE | L6: FALSE | M6: FALSE | N6: FALSE | O6: FALSE | P6: FALSE | Q6: FALSE | R6: FALSE | S6: FALSE | T6: FALSE | U6: FALSE | V6: FALSE | W6: FALSE | X6: FALSE | Y6: FALSE | Z6: FALSE | AA6: FALSE | AB6: FALSE | AC6: FALSE | AD6: FALSE | AE6: FALSE | AF6: FALSE | AG6: FALSE | AH6: FALSE | AI6: FALSE | AJ6: FALSE | AK6: FALSE | AL6: FALSE | AM6: FALSE | AN6: FALSE | AO6: FALSE | AP6: FALSE | AQ6: FALSE | AR6: FALSE | AS6: FALSE | AT6: FALSE | AU6: FALSE | AV6: FALSE | AW6: FALSE | AX6: FALSE | AY6: FALSE | AZ6: FALSE | BA6: FALSE | BB6: FALSE | BC6: FALSE | BD6: FALSE | BE6: FALSE | BF6: FALSE | BG6: FALSE | BH6: FALSE | BI6: FALSE | BJ6: FALSE | BK6: FALSE | BL6: FALSE | BM6: FALSE | BN6: FALSE | BO6: FALSE | BP6: FALSE | BQ6: FALSE | BR6: FALSE | BS6: FALSE | BT6: FALSE | BU6: FALSE | BV6: =BV2=$G$6 -> FALSE | BW6: FALSE | BX6: FALSE | BY6: FALSE | BZ6: FALSE | CA6: FALSE | CB6: FALSE | CC6: FALSE | CD6: FALSE | CE6: FALSE | CF6: FALSE | CG6: FALSE | CH6: FALSE | CI6: FALSE | CJ6: FALSE | CK6: FALSE | CL6: FALSE | CM6: FALSE | CN6: TRUE | CO6: FALSE | CP6: =CP2=$G$6 -> FALSE | CQ6: FALSE | CR6: FALSE | CS6: FALSE | CT6: FALSE | CU6: FALSE | CV6: FALSE | CW6: FALSE | CX6: FALSE | CY6: FALSE | CZ6: FALSE | DA6: FALSE | DB6: FALSE | DC6: FALSE | DD6: FALSE | DE6: FALSE | DF6: FALSE | DG6: FALSE | DH6: FALSE | DI6: FALSE | DJ6: FALSE | DK6: FALSE | DL6: FALSE | DM6: FALSE | DN6: FALSE | DO6: FALSE | DP6: FALSE | DQ6: FALSE | DR6: FALSE | DS6: FALSE | DT6: FALSE | DU6: FALSE | DV6: FALSE | DW6: FALSE | DX6: FALSE | DY6: FALSE | DZ6: FALSE | EA6: FALSE
A8: Valuation Assumptions
B9: Start of Valuation | E9: Date | G9: 2019-10-01
B10: Holding Period | E10: Years | G10: 5
B11: Terminal Period | E11: Date | G11: =EDATE(G9,G10*12) -> 2024-10-01
F12: Annual | G12: Quarterly
B13: WACC | E13: % p.a./p.q | F13: =H13/100 -> 0.1 | G13: =(1+F13)^(1/4)-1 -> 0.02411368908 | H13: 10
B14: Terminal Growth | E14: % p.a./p.q | F14: =H14/100 -> 0.06 | G14: =(1+F14)^(1/4)-1 -> 0.01467384617 | H14: 6
B15: Terminal EV/EBITDA | E15: x | F15: =H15 -> 7 | G15: =F15 -> 7 | H15: 7
B16: ROIC/WACC Differential | E16: % p.a./p.q | F16: =H16/100 -> 0.04 | G16: =(1+F16)^(1/4)-1 -> 0.009853406549 | H16: 4
B18: ROIC | E18: % p.a./p.q | F18: =F16+F13 -> 0.14 | G18: =(1+F18)^(1/4)-1 -> 0.03329948476
A20: History -- Don't Mix History and Forecast
B21: Balance Sheet
C22: Assets
D23: Cash | I23: 103.1167145 | J23: 117.7974748 | K23: 50.8462471 | L23: 91.96360396 | M23: 21.08598289 | N23: 121.1765938 | O23: 108.6727575 | P23: 136.0202369 | Q23: 62.18301984 | R23: 43.75186833 | S23: 135.2460974 | T23: 184.5768451 | U23: 72.39539969 | V23: 156.4781006 | W23: 111.6896631 | X23: 154.5274606 | Y23: 140.6985101 | Z23: 207.2789926 | AA23: 138.277348 | AB23: 72.17672239 | AC23: 205.5415494 | AD23: 60.95469748 | AE23: 174.3516086 | AF23: 138.7903515 | AG23: 245.444754 | AH23: 160.8875282 | AI23: 87.47430471 | AJ23: 228.5272496 | AK23: 160.693798 | AL23: 153.5964646 | AM23: 316.7223732 | AN23: 387.945725 | AO23: 208.0702627 | AP23: 205.6102403 | AQ23: 314.9543706 | AR23: 415.0919743 | AS23: 201.7401627 | AT23: 250.3822666 | AU23: 241.0153701 | AV23: 267.5054019 | AW23: 333.0715592 | AX23: 202.9395823 | AY23: 285.9874703 | AZ23: 196.0600265 | BA23: 310.4419081 | BB23: 303.5476167 | BC23: 387.7829669 | BD23: 402.7861998 | BE23: 472.9575647 | BF23: 410.7769915 | BG23: 242.110947 | BH23: 414.7380107 | BI23: 381.5708673 | BJ23: 209.5921178 | BK23: 523.6205965 | BL23: 609.3795685 | BM23: 476.321419 | BN23: 486.4892428 | BO23: 400.490207 | BP23: 758.7072418 | BQ23: 683.6012916 | BR23: 446.5583378
D24: Stocks | I24: 3807.660588 | J24: 2746.213626 | K24: 2758.617589 | L24: 3734.120093 | M24: 2888.405158 | N24: 4130.158246 | O24: 2943.366724 | P24: 3967.620315 | Q24: 3645.169143 | R24: 2986.214881 | S24: 3144.90581 | T24: 2742.020676 | U24: 3394.067644 | V24: 2906.16603 | W24: 4057.668694 | X24: 4389.228879 | Y24: 4028.677104 | Z24: 2940.083233 | AA24: 4115.702686 | AB24: 5330.322632 | AC24: 4478.360941 | AD24: 5506.161143 | AE24: 4192.649287 | AF24: 4505.400805 | AG24: 4501.731527 | AH24: 5353.555721 | AI24: 5129.15125 | AJ24: 4878.730805 | AK24: 5191.753855 | AL24: 4920.055179 | AM24: 4652.405088 | AN24: 6711.378266 | AO24: 7103.235121 | AP24: 5636.056588 | AQ24: 6994.867084 | AR24: 6994.336287 | AS24: 8036.450678 | AT24: 8626.904696 | AU24: 7350.150029 | AV24: 7814.830179 | AW24: 6661.74782 | AX24: 5056.39822 | AY24: 8875.889016 | AZ24: 6811.752128 | BA24: 7329.168272 | BB24: 7467.146152 | BC24: 7329.743203 | BD24: 7455.725092 | BE24: 10224.92169 | BF24: 7996.570229 | BG24: 10327.70407 | BH24: 9144.253666 | BI24: 10495.32412 | BJ24: 8620.639331 | BK24: 10355.36693 | BL24: 10482.11666 | BM24: 10957.88335 | BN24: 10322.56802 | BO24: 10634.62579 | BP24: 12880.97971 | BQ24: 12799.69976 | BR24: 13417.78088
D25: Net Block | H25: 5000 | I25: 8115.153134 | J25: 11039.60571 | K25: 13944.89281 | L25: 16838.19812 | M25: 19869.30369 | N25: 22648.24828 | O25: 25222.74027 | P25: 28174.06431 | Q25: 30861.38875 | R25: 33754.20691 | S25: 36532.69686 | T25: 39434.66531 | U25: 40840.01197 | V25: 42194.80495 | W25: 43568.46762 | X25: 45244.12088 | Y25: 46683.25595 | Z25: 48566.60957 | AA25: 49878.40779 | AB25: 51482.48948 | AC25: 51275.25401 | AD25: 50918.0833 | AE25: 50611.85421 | AF25: 50239.19318 | AG25: 49816.93286 | AH25: 49348.39356 | AI25: 49498.24927 | AJ25: 49559.69168 | AK25: 49616.80959 | AL25: 49407.12262 | AM25: 49648.0022 | AN25: 49736.51745 | AO25: 49981.81151 | AP25: 50540.23093 | AQ25: 51285.66864 | AR25: 51749.24681 | AS25: 52055.0775 | AT25: 52265.60657 | AU25: 52941.68879 | AV25: 54049.08611 | AW25: 55023.06681 | AX25: 55760.04399 | AY25: 56550.6882 | AZ25: 56833.9017 | BA25: 57725.65078 | BB25: 58387.99048 | BC25: 59815.21613 | BD25: 61061.92992 | BE25: 62110.28107 | BF25: 63423.21336 | BG25: 64341.93649 | BH25: 65501.51001 | BI25: 67201.68643 | BJ25: 68164.09242 | BK25: 69635.14314 | BL25: 71849.9107 | BM25: 73147.40817 | BN25: 74911.59042 | BO25: 77097.9822 | BP25: 78669.79646 | BQ25: 80159.44788 | BR25: 82417.86593
D26: Total | I26: 12025.93044 | J26: 13903.61681 | K26: 16754.35664 | L26: 20664.28182 | M26: 22778.79483 | N26: 26899.58312 | O26: 28274.77975 | P26: 32277.70486 | Q26: 34568.74091 | R26: 36784.17366 | S26: 39812.84877 | T26: 42361.26283 | U26: 44306.47502 | V26: 45257.44908 | W26: 47737.82597 | X26: 49787.87721 | Y26: 50852.63157 | Z26: 51713.9718 | AA26: 54132.38783 | AB26: 56884.98884 | AC26: 55959.1565 | AD26: 56485.19914 | AE26: 54978.85511 | AF26: 54883.38433 | AG26: 54564.10914 | AH26: 54862.83681 | AI26: 54714.87483 | AJ26: 54666.94973 | AK26: 54969.25724 | AL26: 54480.77426 | AM26: 54617.12966 | AN26: 56835.84144 | AO26: 57293.11689 | AP26: 56381.89776 | AQ26: 58595.49009 | AR26: 59158.67507 | AS26: 60293.26834 | AT26: 61142.89354 | AU26: 60532.85419 | AV26: 62131.42169 | AW26: 62017.88619 | AX26: 61019.38179 | AY26: 65712.56468 | AZ26: 63841.71385 | BA26: 65365.26096 | BB26: 66158.68425 | BC26: 67532.7423 | BD26: 68920.44121 | BE26: 72808.16032 | BF26: 71830.56058 | BG26: 74911.75151 | BH26: 75060.50168 | BI26: 78078.58142 | BJ26: 76994.32387 | BK26: 80514.13067 | BL26: 82941.40693 | BM26: 84581.61294 | BN26: 85720.64769 | BO26: 88133.0982 | BP26: 92309.48342 | BQ26: 93642.74893 | BR26: 96282.20514
C28: Liabilities
D29: Current Liabilities | I29: 435.9262111 | J29: 448.9328546 | K29: 310.2740905 | L29: 433.8741369 | M29: 392.4787209 | N29: 417.9865121 | O29: 580.5899558 | P29: 468.1252938 | Q29: 503.5871236 | R29: 553.4766922 | S29: 582.8077971 | T29: 485.3353462 | U29: 517.2592186 | V29: 521.3745195 | W29: 476.1956285 | X29: 586.4060087 | Y29: 519.6568688 | Z29: 687.3699215 | AA29: 612.7050477 | AB29: 626.916355 | AC29: 668.156577 | AD29: 603.1942394 | AE29: 709.2984991 | AF29: 495.011204 | AG29: 640.0842304 | AH29: 663.1295248 | AI29: 603.4943673 | AJ29: 689.4055177 | AK29: 621.7409259 | AL29: 888.6139308 | AM29: 762.204434 | AN29: 977.6116286 | AO29: 910.8529377 | AP29: 882.9329157 | AQ29: 771.9569177 | AR29: 745.5729501 | AS29: 677.1538624 | AT29: 1345.764556 | AU29: 1154.278989 | AV29: 834.2133986 | AW29: 775.4047002 | AX29: 814.7466821 | AY29: 944.4964576 | AZ29: 1307.277785 | BA29: 1199.38435 | BB29: 874.256079 | BC29: 973.9571272 | BD29: 1168.558679 | BE29: 1716.536296 | BF29: 940.1868633 | BG29: 1910.365857 | BH29: 1760.379236 | BI29: 1298.471315 | BJ29: 1245.930526 | BK29: 1653.945524 | BL29: 1325.798519 | BM29: 1521.108643 | BN29: 1377.873893 | BO29: 1518.865765 | BP29: 2224.18897 | BQ29: 1977.44611 | BR29: 1450.733575
D30: Debt | I30: 6614.26174 | J30: 7646.989246 | K30: 9214.896154 | L30: 11365.355 | M30: 12528.33716 | N30: 14794.77071 | O30: 15551.12886 | P30: 17752.73767 | Q30: 19012.8075 | R30: 20231.29551 | S30: 21897.06682 | T30: 23298.69456 | U30: 24368.56126 | V30: 24891.59699 | W30: 26255.80429 | X30: 27383.33247 | Y30: 27968.94736 | Z30: 28442.68449 | AA30: 29772.8133 | AB30: 31286.74386 | AC30: 30777.53608 | AD30: 31066.85953 | AE30: 30238.37031 | AF30: 30185.86138 | AG30: 30010.26003 | AH30: 30174.56025 | AI30: 30093.18116 | AJ30: 30066.82235 | AK30: 30233.09148 | AL30: 29964.42584 | AM30: 30039.42132 | AN30: 31259.71279 | AO30: 31511.21429 | AP30: 31010.04377 | AQ30: 32227.51955 | AR30: 32537.27129 | AS30: 33161.29759 | AT30: 33628.59144 | AU30: 33293.0698 | AV30: 34172.28193 | AW30: 34109.8374 | AX30: 33560.65998 | AY30: 36141.91057 | AZ30: 35112.94262 | BA30: 35950.89353 | BB30: 36387.27634 | BC30: 37143.00826 | BD30: 37906.24267 | BE30: 40044.48818 | BF30: 39506.80832 | BG30: 41201.46333 | BH30: 41283.27593 | BI30: 42943.21978 | BJ30: 42346.87813 | BK30: 44282.77187 | BL30: 45617.77381 | BM30: 46519.88712 | BN30: 47146.35623 | BO30: 48473.20401 | BP30: 50770.21588 | BQ30: 51503.51191 | BR30: 52955.21283
D31: Provisisions | I31: 282.7203058 | J31: 276.9933013 | K31: 248.7225421 | L31: 267.9190369 | M31: 274.0589733 | N31: 246.0686578 | O31: 255.0293177 | P31: 300.1926636 | Q31: 292.9553706 | R31: 274.1492488 | S31: 282.7943432 | T31: 359.7784186 | U31: 332.0970033 | V31: 287.1614225 | W31: 322.6301501 | X31: 336.6448255 | Y31: 373.3552343 | Z31: 363.1423143 | AA31: 379.7564342 | AB31: 336.3171366 | AC31: 453.0585016 | AD31: 372.6828496 | AE31: 392.5295398 | AF31: 473.7083719 | AG31: 329.8549166 | AH31: 444.7556234 | AI31: 360.1008491 | AJ31: 409.2691776 | AK31: 438.1860731 | AL31: 423.9443085 | AM31: 483.807557 | AN31: 477.8502459 | AO31: 475.2605885 | AP31: 484.3772829 | AQ31: 569.0586202 | AR31: 498.504382 | AS31: 660.8845217 | AT31: 536.9319156 | AU31: 681.5300821 | AV31: 573.0192749 | AW31: 736.0924845 | AX31: 526.2638968 | AY31: 610.4325494 | AZ31: 651.0339152 | BA31: 548.7396513 | BB31: 741.1433483 | BC31: 713.6020529 | BD31: 772.6715631 | BE31: 770.0391474 | BF31: 901.4346987 | BG31: 878.3202895 | BH31: 957.1575897 | BI31: 960.2820146 | BJ31: 905.428208 | BK31: 914.62892 | BL31: 1026.602364 | BM31: 1082.605261 | BN31: 1044.387611 | BO31: 1100.382703 | BP31: 1158.99303 | BQ31: 1073.482357 | BR31: 1216.451635
D32: Equity | I32: 4693.02218 | J32: 5530.701409 | K32: 6980.463857 | L32: 8597.133645 | M32: 9583.919981 | N32: 11440.75723 | O32: 11888.03161 | P32: 13756.64923 | Q32: 14759.39092 | R32: 15725.25221 | S32: 17050.17981 | T32: 18217.45451 | U32: 19088.55754 | V32: 19557.31614 | W32: 20683.19591 | X32: 21481.49391 | Y32: 21990.6721 | Z32: 22220.77507 | AA32: 23367.11304 | AB32: 24635.01149 | AC32: 24060.40535 | AD32: 24442.46252 | AE32: 23638.65676 | AF32: 23728.80337 | AG32: 23583.90997 | AH32: 23580.39142 | AI32: 23658.09846 | AJ32: 23501.45268 | AK32: 23676.23876 | AL32: 23203.79018 | AM32: 23331.69636 | AN32: 24120.66677 | AO32: 24395.78908 | AP32: 24004.5438 | AQ32: 25026.955 | AR32: 25377.32645 | AS32: 25793.93237 | AT32: 25631.60562 | AU32: 25403.97531 | AV32: 26551.90709 | AW32: 26396.5516 | AX32: 26117.71123 | AY32: 28015.7251 | AZ32: 26770.45953 | BA32: 27666.24343 | BB32: 28156.00848 | BC32: 28702.17485 | BD32: 29072.9683 | BE32: 30277.0967 | BF32: 30482.1307 | BG32: 30921.60203 | BH32: 31059.68893 | BI32: 32876.60831 | BJ32: 32496.08701 | BK32: 33662.78436 | BL32: 34971.23224 | BM32: 35458.01192 | BN32: 36152.02996 | BO32: 37040.64572 | BP32: 38156.08554 | BQ32: 39088.30855 | BR32: 40659.8071
D33: Total | I33: 12025.93044 | J33: 13903.61681 | K33: 16754.35664 | L33: 20664.28182 | M33: 22778.79483 | N33: 26899.58312 | O33: 28274.77975 | P33: 32277.70486 | Q33: 34568.74091 | R33: 36784.17366 | S33: 39812.84877 | T33: 42361.26283 | U33: 44306.47502 | V33: 45257.44908 | W33: 47737.82597 | X33: 49787.87721 | Y33: 50852.63157 | Z33: 51713.9718 | AA33: 54132.38783 | AB33: 56884.98884 | AC33: 55959.1565 | AD33: 56485.19914 | AE33: 54978.85511 | AF33: 54883.38433 | AG33: 54564.10914 | AH33: 54862.83681 | AI33: 54714.87483 | AJ33: 54666.94973 | AK33: 54969.25724 | AL33: 54480.77426 | AM33: 54617.12966 | AN33: 56835.84144 | AO33: 57293.11689 | AP33: 56381.89776 | AQ33: 58595.49009 | AR33: 59158.67507 | AS33: 60293.26834 | AT33: 61142.89354 | AU33: 60532.85419 | AV33: 62131.42169 | AW33: 62017.88619 | AX33: 61019.38179 | AY33: 65712.56468 | AZ33: 63841.71385 | BA33: 65365.26096 | BB33: 66158.68425 | BC33: 67532.7423 | BD33: 68920.44121 | BE33: 72808.16032 | BF33: 71830.56058 | BG33: 74911.75151 | BH33: 75060.50168 | BI33: 78078.58142 | BJ33: 76994.32387 | BK33: 80514.13067 | BL33: 82941.40693 | BM33: 84581.61294 | BN33: 85720.64769 | BO33: 88133.0982 | BP33: 92309.48342 | BQ33: 93642.74893 | BR33: 96282.20514
B35: Profit and Loss
D36: Revenues | I36: 5000 | J36: 5102.150768 | K36: 5186.345187 | L36: 5283.146581 | M36: 5387.45136 | N36: 5519.251586 | O36: 5648.068344 | P36: 5787.988069 | Q36: 5886.77088 | R36: 5952.353422 | S36: 6057.076161 | T36: 6242.626001 | U36: 6342.723623 | V36: 6538.536025 | W36: 6657.753755 | X36: 6834.904916 | Y36: 6997.539322 | Z36: 7141.291474 | AA36: 7283.999885 | AB36: 7434.407212 | AC36: 7543.522901 | AD36: 7682.223836 | AE36: 8007.23169 | AF36: 8288.044259 | AG36: 8656.061939 | AH36: 9028.133886 | AI36: 9385.953937 | AJ36: 9653.208252 | AK36: 10108.40131 | AL36: 10483.95857 | AM36: 11075.4527 | AN36: 11439.37842 | AO36: 11857.77934 | AP36: 12321.06302 | AQ36: 12833.13012 | AR36: 13318.15188 | AS36: 13869.75713 | AT36: 14344.15847 | AU36: 15116.53113 | AV36: 15271.48416 | AW36: 15458.77632 | AX36: 15650.10692 | AY36: 15817.09124 | AZ36: 16002.12422 | BA36: 16653.04543 | BB36: 17316.0686 | BC36: 17763.98816 | BD36: 18592.45339 | BE36: 19416.20834 | BF36: 20244.71371 | BG36: 20929.68989 | BH36: 21721.41018 | BI36: 22326.0208 | BJ36: 23226.42631 | BK36: 24054.09911 | BL36: 24616.50688 | BM36: 25339.91163 | BN36: 26329.09454 | BO36: 27257.29431 | BP36: 28304.91409 | BQ36: 29128.49519 | BR36: 30029.92464
D37: COGS | I37: 3887.672226 | J37: 3103.727865 | K37: 3391.426735 | L37: 4137.513753 | M37: 3721.56244 | N37: 4534.680972 | O37: 3597.433025 | P37: 4120.51728 | Q37: 3530.178354 | R37: 3365.027691 | S37: 3704.622041 | T37: 3191.316174 | U37: 3615.341861 | V37: 3127.496979 | W37: 4634.950298 | X37: 4415.069911 | Y37: 4533.667485 | Z37: 3509.158962 | AA37: 3897.126334 | AB37: 4655.009208 | AC37: 4479.111053 | AD37: 4546.761425 | AE37: 4252.494776 | AF37: 4331.003617 | AG37: 4814.214748 | AH37: 5729.508684 | AI37: 4671.548993 | AJ37: 4895.235347 | AK37: 5335.361474 | AL37: 5572.924937 | AM37: 5550.13805 | AN37: 6086.35444 | AO37: 6827.776444 | AP37: 5611.591708 | AQ37: 6807.573663 | AR37: 7460.934519 | AS37: 7635.058789 | AT37: 7485.87547 | AU37: 7317.503013 | AV37: 8083.34808 | AW37: 7978.773184 | AX37: 7196.926502 | AY37: 9857.141978 | AZ37: 7941.466664 | BA37: 8755.854521 | BB37: 10696.94745 | BC37: 9405.191159 | BD37: 9050.796574 | BE37: 10731.12806 | BF37: 9724.896252 | BG37: 12445.41793 | BH37: 12577.66347 | BI37: 12100.50176 | BJ37: 11557.59202 | BK37: 13441.09349 | BL37: 13501.29921 | BM37: 12733.90522 | BN37: 13047.46826 | BO37: 12989.54128 | BP37: 14901.05377 | BQ37: 16049.01591 | BR37: 15909.47014
D38: Margin | I38: 1112.327774 | J38: 1998.422902 | K38: 1794.918451 | L38: 1145.632828 | M38: 1665.88892 | N38: 984.5706138 | O38: 2050.635319 | P38: 1667.470789 | Q38: 2356.592526 | R38: 2587.325731 | S38: 2352.45412 | T38: 3051.309828 | U38: 2727.381763 | V38: 3411.039047 | W38: 2022.803456 | X38: 2419.835005 | Y38: 2463.871837 | Z38: 3632.132513 | AA38: 3386.873551 | AB38: 2779.398004 | AC38: 3064.411848 | AD38: 3135.462411 | AE38: 3754.736914 | AF38: 3957.040641 | AG38: 3841.847191 | AH38: 3298.625202 | AI38: 4714.404944 | AJ38: 4757.972904 | AK38: 4773.039838 | AL38: 4911.033634 | AM38: 5525.314652 | AN38: 5353.023976 | AO38: 5030.002896 | AP38: 6709.471314 | AQ38: 6025.556453 | AR38: 5857.217359 | AS38: 6234.698338 | AT38: 6858.283 | AU38: 7799.028113 | AV38: 7188.136085 | AW38: 7480.003137 | AX38: 8453.180417 | AY38: 5959.949264 | AZ38: 8060.657559 | BA38: 7897.190911 | BB38: 6619.121149 | BC38: 8358.796997 | BD38: 9541.656817 | BE38: 8685.080273 | BF38: 10519.81746 | BG38: 8484.271963 | BH38: 9143.746714 | BI38: 10225.51904 | BJ38: 11668.83429 | BK38: 10613.00563 | BL38: 11115.20766 | BM38: 12606.00642 | BN38: 13281.62628 | BO38: 14267.75303 | BP38: 13403.86032 | BQ38: 13079.47928 | BR38: 14120.4545
D39: Fixed Employee Cost | I39: 1000 | J39: 1010.43611 | K39: 1021.245263 | L39: 1026.47279 | M39: 1034.165234 | N39: 1048.745048 | O39: 1057.047695 | P39: 1069.183832 | Q39: 1078.493141 | R39: 1086.352207 | S39: 1102.563893 | T39: 1115.028485 | U39: 1124.010038 | V39: 1130.410108 | W39: 1146.359068 | X39: 1151.686904 | Y39: 1163.256674 | Z39: 1177.860477 | AA39: 1186.979019 | AB39: 1201.708681 | AC39: 1233.621557 | AD39: 1269.803482 | AE39: 1290.139068 | AF39: 1313.732058 | AG39: 1333.318255 | AH39: 1358.465489 | AI39: 1387.268124 | AJ39: 1398.52884 | AK39: 1428.224214 | AL39: 1453.182249 | AM39: 1478.741505 | AN39: 1501.97094 | AO39: 1529.00396 | AP39: 1566.206911 | AQ39: 1597.730756 | AR39: 1629.774322 | AS39: 1653.080586 | AT39: 1689.551884 | AU39: 1737.060549 | AV39: 1768.852475 | AW39: 1831.645499 | AX39: 1891.968117 | AY39: 1932.903623 | AZ39: 1971.573572 | BA39: 2019.698066 | BB39: 2072.984163 | BC39: 2132.259002 | BD39: 2158.59285 | BE39: 2242.806546 | BF39: 2334.750689 | BG39: 2381.409432 | BH39: 2424.22559 | BI39: 2510.393965 | BJ39: 2600.109318 | BK39: 2664.261258 | BL39: 2746.285846 | BM39: 2816.02174 | BN39: 2878.723535 | BO39: 2937.336255 | BP39: 2955.184372 | BQ39: 2993.397411 | BR39: 3089.307888
D40: Variable Employee and Other Cost | I40: 467.2531687 | J40: 483.7865034 | K40: 294.036507 | L40: 371.9328443 | M40: 332.8282353 | N40: 481.552734 | O40: 547.1539503 | P40: 444.6597828 | Q40: 414.3588513 | R40: 781.7850654 | S40: 762.1887506 | T40: 363.3276418 | U40: 643.9639217 | V40: 788.8241771 | W40: 508.7660396 | X40: 796.5633174 | Y40: 539.7037375 | Z40: 1184.481213 | AA40: 845.8975354 | AB40: 895.4366695 | AC40: 1029.186657 | AD40: 592.710901 | AE40: 852.4819359 | AF40: 565.2577172 | AG40: 972.3172705 | AH40: 1327.338496 | AI40: 794.3856813 | AJ40: 860.3732325 | AK40: 479.916036 | AL40: 1306.433743 | AM40: 1002.648833 | AN40: 1603.898978 | AO40: 1247.105954 | AP40: 999.9703683 | AQ40: 986.0094465 | AR40: 1156.600455 | AS40: 491.9382126 | AT40: 2214.937883 | AU40: 1507.717505 | AV40: 1395.006936 | AW40: 1178.33872 | AX40: 1154.388289 | AY40: 1561.146261 | AZ40: 2355.903985 | BA40: 1931.128126 | BB40: 943.6597294 | BC40: 1725.773085 | BD40: 2331.432839 | BE40: 3534.45766 | BF40: 1672.186903 | BG40: 3214.776191 | BH40: 3087.526458 | BI40: 2010.778676 | BJ40: 2268.259179 | BK40: 2706.997207 | BL40: 1212.989998 | BM40: 1544.053081 | BN40: 2408.40135 | BO40: 1556.592583 | BP40: 4728.10294 | BQ40: 2862.396757 | BR40: 2682.614226
D41: EBITDA | I41: -354.9253947 | J41: 504.2002894 | K41: 479.6366818 | L41: -252.7728066 | M41: 298.8954504 | N41: -545.7271677 | O41: 446.4336738 | P41: 153.6271741 | Q41: 863.7405337 | R41: 719.1884588 | S41: 487.7014765 | T41: 1572.953701 | U41: 959.4078031 | V41: 1491.804761 | W41: 367.6783487 | X41: 471.584784 | Y41: 760.9114263 | Z41: 1269.790823 | AA41: 1353.996997 | AB41: 682.2526532 | AC41: 801.6036342 | AD41: 1272.948028 | AE41: 1612.11591 | AF41: 2078.050866 | AG41: 1536.211666 | AH41: 612.8212165 | AI41: 2532.751139 | AJ41: 2499.070832 | AK41: 2864.899588 | AL41: 2151.417642 | AM41: 3043.924314 | AN41: 2247.154058 | AO41: 2253.892983 | AP41: 4143.294034 | AQ41: 3441.81625 | AR41: 3070.842582 | AS41: 4089.679539 | AT41: 2953.793233 | AU41: 4554.250059 | AV41: 4024.276674 | AW41: 4470.018918 | AX41: 5406.824011 | AY41: 2465.899381 | AZ41: 3733.180002 | BA41: 3946.364719 | BB41: 3602.477256 | BC41: 4500.76491 | BD41: 5051.631128 | BE41: 2907.816066 | BF41: 6512.879866 | BG41: 2888.08634 | BH41: 3631.994666 | BI41: 5704.346397 | BJ41: 6800.465795 | BK41: 5241.747161 | BL41: 7155.931816 | BM41: 8245.931597 | BN41: 7994.501396 | BO41: 9773.824194 | BP41: 5720.573007 | BQ41: 7223.685112 | BR41: 8348.532385
D42: Depreciation | I42: 150 | J42: 243.454594 | K42: 331.1881713 | L42: 418.3467842 | M42: 505.1459437 | N42: 596.0791108 | O42: 679.4474483 | P42: 756.6822081 | Q42: 845.2219292 | R42: 925.8416625 | S42: 1012.626207 | T42: 1095.980906 | U42: 1183.039959 | V42: 1225.200359 | W42: 1265.844148 | X42: 1307.054028 | Y42: 1357.323626 | Z42: 1400.497679 | AA42: 1456.998287 | AB42: 1496.352234 | AC42: 1544.474685 | AD42: 1538.25762 | AE42: 1527.542499 | AF42: 1518.355626 | AG42: 1507.175795 | AH42: 1494.507986 | AI42: 1480.451807 | AJ42: 1484.947478 | AK42: 1486.79075 | AL42: 1488.504288 | AM42: 1482.213678 | AN42: 1489.440066 | AO42: 1492.095523 | AP42: 1499.454345 | AQ42: 1516.206928 | AR42: 1538.570059 | AS42: 1552.477404 | AT42: 1561.652325 | AU42: 1567.968197 | AV42: 1588.250664 | AW42: 1621.472583 | AX42: 1650.692004 | AY42: 1672.80132 | AZ42: 1696.520646 | BA42: 1705.017051 | BB42: 1731.769523 | BC42: 1751.639714 | BD42: 1794.456484 | BE42: 1831.857898 | BF42: 1863.308432 | BG42: 1902.696401 | BH42: 1930.258095 | BI42: 1965.0453 | BJ42: 2016.050593 | BK42: 2044.922773 | BL42: 2089.054294 | BM42: 2155.497321 | BN42: 2194.422245 | BO42: 2247.347713 | BP42: 2312.939466 | BQ42: 2360.093894 | BR42: 2404.783436
D43: EBIT | I43: -504.9253947 | J43: 260.7456954 | K43: 148.4485105 | L43: -671.1195908 | M43: -206.2504933 | N43: -1141.806278 | O43: -233.0137745 | P43: -603.055034 | Q43: 18.51860455 | R43: -206.6532037 | S43: -524.9247308 | T43: 476.9727949 | U43: -223.6321562 | V43: 266.604402 | W43: -898.1657998 | X43: -835.4692445 | Y43: -596.4122 | Z43: -130.7068553 | AA43: -103.0012903 | AB43: -814.0995806 | AC43: -742.8710503 | AD43: -265.309592 | AE43: 84.57341108 | AF43: 559.69524 | AG43: 29.03587041 | AH43: -881.6867694 | AI43: 1052.299332 | AJ43: 1014.123354 | AK43: 1378.108838 | AL43: 662.9133545 | AM43: 1561.710636 | AN43: 757.7139918 | AO43: 761.7974593 | AP43: 2643.839689 | AQ43: 1925.609322 | AR43: 1532.272523 | AS43: 2537.202135 | AT43: 1392.140908 | AU43: 2986.281862 | AV43: 2436.02601 | AW43: 2848.546334 | AX43: 3756.132007 | AY43: 793.0980615 | AZ43: 2036.659356 | BA43: 2241.347668 | BB43: 1870.707732 | BC43: 2749.125196 | BD43: 3257.174644 | BE43: 1075.958169 | BF43: 4649.571434 | BG43: 985.3899391 | BH43: 1701.736571 | BI43: 3739.301097 | BJ43: 4784.415202 | BK43: 3196.824388 | BL43: 5066.877522 | BM43: 6090.434276 | BN43: 5800.079151 | BO43: 7526.476481 | BP43: 3407.633541 | BQ43: 4863.591219 | BR43: 5943.748949
D44: Interest Expense | I44: 94.14565848 | J44: 136.411622 | K44: 150.2203509 | L44: 164.9901784 | M44: 228.4714916 | N44: 232.1788746 | O44: 238.1089001 | P44: 349.7085812 | Q44: 310.7956915 | R44: 246.0773898 | S44: 265.2686966 | T44: 455.1279013 | U44: 435.4245215 | V44: 290.2776403 | W44: 468.9485658 | X44: 346.8965142 | Y44: 415.01426 | Z44: 383.6057399 | AA44: 514.8881971 | AB44: 608.2599334 | AC44: 440.9774611 | AD44: 381.6595041 | AE44: 510.4657097 | AF44: 401.6097533 | AG44: 384.1156367 | AH44: 481.9561392 | AI44: 493.1675407 | AJ44: 507.00285 | AK44: 276.7407468 | AL44: 594.4112582 | AM44: 422.2051604 | AN44: 557.040704 | AO44: 443.5483774 | AP44: 373.3837866 | AQ44: 316.203064 | AR44: 601.0929178 | AS44: 503.9870157 | AT44: 639.6944228 | AU44: 633.7557518 | AV44: 486.4164017 | AW44: 451.1044524 | AX44: 601.2744076 | AY44: 398.9131453 | AZ44: 513.1648841 | BA44: 602.3661063 | BB44: 276.7738655 | BC44: 648.9714574 | BD44: 415.0637921 | BE44: 666.6039197 | BF44: 582.1926737 | BG44: 538.257102 | BH44: 879.7623231 | BI44: 682.4305227 | BJ44: 552.6562071 | BK44: 610.9818379 | BL44: 740.5111298 | BM44: 772.091596 | BN44: 678.6437238 | BO44: 891.7762879 | BP44: 614.3356465 | BQ44: 729.0905081 | BR44: 799.0534778
D45: Interest Income | I45: 0.393676974 | J45: 0.2370040217 | K45: 0.210592841 | L45: 0.1251238765 | M45: 0.05475923457 | N45: 0.3103480881 | O45: 0.3607112743 | P45: 0.4291257597 | Q45: 0.2247460082 | R45: 0.1357897845 | S45: 0.3356067095 | T45: 0.7339798641 | U45: 0.1328610453 | V45: 0.484614073 | W45: 0.2709273454 | X45: 0.5341357291 | Y45: 0.5156814903 | Z45: 0.6424816033 | AA45: 0.42481958 | AB45: 0.1945289285 | AC45: 0.6872641279 | AD45: 0.2142025747 | AE45: 0.5588928393 | AF45: 0.3531244213 | AG45: 0.5727214045 | AH45: 0.4933185365 | AI45: 0.1796055779 | AJ45: 0.705135965 | AK45: 0.5291485376 | AL45: 0.5379751882 | AM45: 0.8096309216 | AN45: 1.517579509 | AO45: 0.4159613026 | AP45: 0.5065151834 | AQ45: 0.8053107443 | AR45: 1.231289259 | AS45: 0.665260905 | AT45: 0.7810529047 | AU45: 0.5909801905 | AV45: 0.403865524 | AW45: 1.322868924 | AX45: 0.561713634 | AY45: 0.7594619776 | AZ45: 0.6526715658 | BA45: 0.9937825824 | BB45: 1.051357728 | BC45: 0.8498793635 | BD45: 1.178650056 | BE45: 1.688777696 | BF45: 1.36465854 | BG45: 0.8651387076 | BH45: 1.455936708 | BI45: 1.170299486 | BJ45: 0.843425578 | BK45: 2.015417119 | BL45: 1.445362759 | BM45: 1.692778248 | BN45: 1.989791922 | BO45: 1.11126772 | BP45: 2.924030632 | BQ45: 2.657621913 | BR45: 1.320387647
D46: EBT | I46: -598.6773762 | J46: 124.5710774 | K46: -1.561247563 | L46: -835.9846453 | M46: -434.6672257 | N46: -1373.674805 | O46: -470.7619633 | P46: -952.3344895 | Q46: -292.0523409 | R46: -452.5948038 | S46: -789.8578208 | T46: 22.57887342 | U46: -658.9238166 | V46: -23.18862422 | W46: -1366.843438 | X46: -1181.831623 | Y46: -1010.910779 | Z46: -513.6701136 | AA46: -617.4646678 | AB46: -1422.164985 | AC46: -1183.161247 | AD46: -646.7548936 | AE46: -425.3334058 | AF46: 158.4386111 | AG46: -354.5070449 | AH46: -1363.14959 | AI46: 559.3113968 | AJ46: 507.82564 | AK46: 1101.89724 | AL46: 69.04007153 | AM46: 1140.315106 | AN46: 202.1908673 | AO46: 318.6650431 | AP46: 2270.962417 | AQ46: 1610.211569 | AR46: 932.4108941 | AS46: 2033.88038 | AT46: 753.2275381 | AU46: 2353.11709 | AV46: 1950.013474 | AW46: 2398.764751 | AX46: 3155.419313 | AY46: 394.9443782 | AZ46: 1524.147144 | BA46: 1639.975344 | BB46: 1594.985225 | BC46: 2101.003618 | BD46: 2843.289502 | BE46: 411.0430268 | BF46: 4068.743419 | BG46: 447.9979758 | BH46: 823.430185 | BI46: 3058.040874 | BJ46: 4232.602421 | BK46: 2587.857968 | BL46: 4327.811755 | BM46: 5320.035458 | BN46: 5123.425219 | BO46: 6635.811461 | BP46: 2796.221925 | BQ46: 4137.158332 | BR46: 5146.015858
D47: Taxes | I47: -206.5436948 | J47: 42.9770217 | K47: -0.5386304091 | L47: -288.4147026 | M47: -149.9601929 | N47: -473.9178077 | O47: -162.4128773 | P47: -328.5553989 | Q47: -100.7580576 | R47: -156.1452073 | S47: -272.5009482 | T47: 7.78971133 | U47: -227.3287167 | V47: -8.000075357 | W47: -471.5609862 | X47: -407.7319099 | Y47: -348.7642186 | Z47: -177.2161892 | AA47: -213.0253104 | AB47: -490.6469198 | AC47: -408.1906303 | AD47: -223.1304383 | AE47: -146.740025 | AF47: 54.66132082 | AG47: -122.3049305 | AH47: -470.2866086 | AI47: 192.9624319 | AJ47: 175.1998458 | AK47: 380.1545477 | AL47: 23.81882468 | AM47: 393.4087117 | AN47: 69.75584922 | AO47: 109.9394399 | AP47: 783.482034 | AQ47: 555.5229913 | AR47: 321.6817585 | AS47: 701.6887311 | AT47: 259.8635006 | AU47: 811.8253962 | AV47: 672.7546485 | AW47: 827.573839 | AX47: 1088.619663 | AY47: 136.2558105 | AZ47: 525.8307645 | BA47: 565.7914937 | BB47: 550.2699025 | BC47: 724.8462481 | BD47: 980.9348783 | BE47: 141.8098443 | BF47: 1403.716479 | BG47: 154.5593016 | BH47: 284.0834138 | BI47: 1055.024101 | BJ47: 1460.247835 | BK47: 892.8109989 | BL47: 1493.095055 | BM47: 1835.412233 | BN47: 1767.5817 | BO47: 2289.354954 | BP47: 964.6965642 | BQ47: 1427.319625 | BR47: 1775.375471
D48: Earnings | I48: -392.1336814 | J48: 81.59405568 | K48: -1.022617153 | L48: -547.5699427 | M48: -284.7070328 | N48: -899.7569972 | O48: -308.3490859 | P48: -623.7790906 | Q48: -191.2942833 | R48: -296.4495965 | S48: -517.3568726 | T48: 14.78916209 | U48: -431.5950999 | V48: -15.18854887 | W48: -895.2824521 | X48: -774.0997131 | Y48: -662.1465599 | Z48: -336.4539244 | AA48: -404.4393574 | AB48: -931.5180652 | AC48: -774.9706169 | AD48: -423.6244553 | AE48: -278.5933808 | AF48: 103.7772903 | AG48: -232.2021144 | AH48: -892.8629815 | AI48: 366.3489649 | AJ48: 332.6257942 | AK48: 721.7426919 | AL48: 45.22124685 | AM48: 746.9063946 | AN48: 132.4350181 | AO48: 208.7256033 | AP48: 1487.480383 | AQ48: 1054.688578 | AR48: 610.7291357 | AS48: 1332.191649 | AT48: 493.3640375 | AU48: 1541.291694 | AV48: 1277.258825 | AW48: 1571.190912 | AX48: 2066.79965 | AY48: 258.6885677 | AZ48: 998.3163791 | BA48: 1074.18385 | BB48: 1044.715322 | BC48: 1376.157369 | BD48: 1862.354624 | BE48: 269.2331826 | BF48: 2665.026939 | BG48: 293.4386741 | BH48: 539.3467712 | BI48: 2003.016772 | BJ48: 2772.354586 | BK48: 1695.046969 | BL48: 2834.716699 | BM48: 3484.623225 | BN48: 3355.843518 | BO48: 4346.456507 | BP48: 1831.525361 | BQ48: 2709.838708 | BR48: 3370.640387
B50: Cash Flow Elements
D51: Capital Expenditures | I51: 2595.684133 | J51: 2651.398492 | K51: 3206.516796 | L51: 3497.262976 | M51: 3322.567251 | N51: 3186.608764 | O51: 3237.807228 | P51: 3396.133099 | Q51: 3780.41822 | R51: 3731.257844 | S51: 3262.418219 | T51: 3367.489394 | U51: 2930.426112 | V51: 2566.774879 | W51: 2606.885538 | X51: 2341.325798 | Y51: 3065.961013 | Z51: 2855.072113 | AA51: 3106.974285 | AB51: 3547.268146 | AC51: 1194.532869 | AD51: 1051.400907 | AE51: 1441.827915 | AF51: 1395.023786 | AG51: 1249.225753 | AH51: 1233.84664 | AI51: 1359.977202 | AJ51: 1404.18949 | AK51: 1620.406551 | AL51: 1648.74169 | AM51: 1610.511785 | AN51: 1949.523487 | AO51: 1458.234095 | AP51: 1867.542463 | AQ51: 1805.085277 | AR51: 2033.706404 | AS51: 1972.331878 | AT51: 2132.607368 | AU51: 2256.784033 | AV51: 2278.312534 | AW51: 2033.659382 | AX51: 2145.696821 | AY51: 2479.272722 | AZ51: 2120.615435 | BA51: 2357.16629 | BB51: 2353.864608 | BC51: 2465.978315 | BD51: 2604.274203 | BE51: 2746.097411 | BF51: 3100.988882 | BG51: 3149.135631 | BH51: 3964.456285 | BI51: 2994.210266 | BJ51: 3596.543068 | BK51: 3727.742021 | BL51: 4384.021942 | BM51: 3356.91265 | BN51: 4131.77413 | BO51: 4189.464046 | BP51: 3660.677934 | BQ51: 4221.32589 | BR51: 5011.481328
D52: Dividends
A54: Assumptions
D55: Revenues | I55: =IF(I3,I36,H55*(1+I56)) -> 5000 | J55: 5102.150768 | K55: 5186.345187 | L55: 5283.146581 | M55: 5387.45136 | N55: 5519.251586 | O55: 5648.068344 | P55: 5787.988069 | Q55: 5886.77088 | R55: 5952.353422 | S55: 6057.076161 | T55: 6242.626001 | U55: 6342.723623 | V55: 6538.536025 | W55: 6657.753755 | X55: 6834.904916 | Y55: 6997.539322 | Z55: 7141.291474 | AA55: 7283.999885 | AB55: 7434.407212 | AC55: 7543.522901 | AD55: 7682.223836 | AE55: 8007.23169 | AF55: 8288.044259 | AG55: 8656.061939 | AH55: 9028.133886 | AI55: 9385.953937 | AJ55: 9653.208252 | AK55: 10108.40131 | AL55: 10483.95857 | AM55: 11075.4527 | AN55: 11439.37842 | AO55: =IF(AO3,AO36,AN55*(1+AO56)) -> 11857.77934 | AP55: 12321.06302 | AQ55: 12833.13012 | AR55: 13318.15188 | AS55: 13869.75713 | AT55: 14344.15847 | AU55: 15116.53113 | AV55: 15271.48416 | AW55: 15458.77632 | AX55: 15650.10692 | AY55: 15817.09124 | AZ55: 16002.12422 | BA55: 16653.04543 | BB55: 17316.0686 | BC55: 17763.98816 | BD55: 18592.45339 | BE55: 19416.20834 | BF55: 20244.71371 | BG55: 20929.68989 | BH55: 21721.41018 | BI55: 22326.0208 | BJ55: 23226.42631 | BK55: 24054.09911 | BL55: 24616.50688 | BM55: 25339.91163 | BN55: 26329.09454 | BO55: 27257.29431 | BP55: 28304.91409 | BQ55: 29128.49519 | BR55: 30029.92464 | BS55: 30930.82238 | BT55: 31858.74705 | BU55: =IF(BU3,BU36,BT55*(1+BU56)) -> 32814.50946 | BV55: 33798.94474 | BW55: 34812.91308 | BX55: 35857.30048 | BY55: 36933.01949 | BZ55: 38041.01008 | CA55: 39182.24038 | CB55: 40357.70759 | CC55: 41568.43882 | CD55: 42815.49198 | CE55: 44099.95674 | CF55: 45422.95544 | CG55: 46785.64411 | CH55: 48189.21343 | CI55: 49634.88983 | CJ55: 51123.93653 | CK55: 52657.65462 | CL55: 54237.38426 | CM55: 55864.50579 | CN55: 57540.44096 | CO55: 59266.65419 | CP55: =IF(CP3,CP36,CO55*(1+CP56)) -> 61044.65382 | CQ55: =IF(CQ3,CQ36,CP55*(1+CQ56)) -> 62875.99343 | CR55: =IF(CR3,CR36,CQ55*(1+CR56)) -> 64762.27324 | CS55: =IF(CS3,CS36,CR55*(1+CS56)) -> 66705.14143 | CT55: =IF(CT3,CT36,CS55*(1+CT56)) -> 68706.29568 | CU55: =IF(CU3,CU36,CT55*(1+CU56)) -> 70767.48455 | CV55: =IF(CV3,CV36,CU55*(1+CV56)) -> 72890.50908 | CW55: =IF(CW3,CW36,CV55*(1+CW56)) -> 75077.22436 | CX55: =IF(CX3,CX36,CW55*(1+CX56)) -> 77329.54109 | CY55: =IF(CY3,CY36,CX55*(1+CY56)) -> 79649.42732 | CZ55: =IF(CZ3,CZ36,CY55*(1+CZ56)) -> 82038.91014 | DA55: =IF(DA3,DA36,CZ55*(1+DA56)) -> 84500.07744 | DB55: =IF(DB3,DB36,DA55*(1+DB56)) -> 87035.07977 | DC55: =IF(DC3,DC36,DB55*(1+DC56)) -> 89646.13216 | DD55: =IF(DD3,DD36,DC55*(1+DD56)) -> 92335.51612 | DE55: =IF(DE3,DE36,DD55*(1+DE56)) -> 95105.58161 | DF55: =IF(DF3,DF36,DE55*(1+DF56)) -> 97958.74906 | DG55: =IF(DG3,DG36,DF55*(1+DG56)) -> 100897.5115 | DH55: =IF(DH3,DH36,DG55*(1+DH56)) -> 103924.4369 | DI55: =IF(DI3,DI36,DH55*(1+DI56)) -> 107042.17 | DJ55: =IF(DJ3,DJ36,DI55*(1+DJ56)) -> 110253.4351 | DK55: =IF(DK3,DK36,DJ55*(1+DK56)) -> 113561.0381 | DL55: =IF(DL3,DL36,DK55*(1+DL56)) -> 116967.8693 | DM55: =IF(DM3,DM36,DL55*(1+DM56)) -> 120476.9054 | DN55: =IF(DN3,DN36,DM55*(1+DN56)) -> 124091.2125 | DO55: =IF(DO3,DO36,DN55*(1+DO56)) -> 127813.9489 | DP55: =IF(DP3,DP36,DO55*(1+DP56)) -> 131648.3674 | DQ55: =IF(DQ3,DQ36,DP55*(1+DQ56)) -> 135597.8184 | DR55: =IF(DR3,DR36,DQ55*(1+DR56)) -> 139665.7529 | DS55: =IF(DS3,DS36,DR55*(1+DS56)) -> 143855.7255 | DT55: =IF(DT3,DT36,DS55*(1+DT56)) -> 148171.3973 | DU55: =IF(DU3,DU36,DT55*(1+DU56)) -> 152616.5392 | DV55: =IF(DV3,DV36,DU55*(1+DV56)) -> 157195.0354 | DW55: =IF(DW3,DW36,DV55*(1+DW56)) -> 161910.8864 | DX55: =IF(DX3,DX36,DW55*(1+DX56)) -> 166768.213 | DY55: =IF(DY3,DY36,DX55*(1+DY56)) -> 171771.2594 | DZ55: =IF(DZ3,DZ36,DY55*(1+DZ56)) -> 176924.3972 | EA55: =IF(EA3,EA36,DZ55*(1+EA56)) -> 182232.1291
D56: Sales Growth | E56: =AVERAGEIF($4:$4,TRUE,56:56) -> 0.03127180644 | F56: =LOOKUP($G$3,$2:$2,56:56) -> 0.03094665344 | H56: =Sensitivity!E12 -> 0.03 | J56: =IF(J3,J36/I36-1,$H$56) -> 0.02043015353 | K56: 0.01650175053 | L56: 0.01866466472 | M56: 0.01974292744 | N56: 0.02446429983 | O56: 0.02333953372 | P56: 0.02477302263 | Q56: 0.01706686504 | R56: 0.0111406649 | S56: 0.01759350149 | T56: 0.03063356567 | U56: 0.01603453774 | V56: 0.03087197448 | W56: 0.0182330921 | X56: 0.02660824778 | Y56: 0.02379468442 | Z56: 0.02054324326 | AA56: 0.01998355776 | AB56: 0.02064900177 | AC56: 0.01467712028 | AD56: 0.01838675869 | AE56: 0.04230648061 | AF56: 0.03506986935 | AG56: 0.0444034405 | AH56: 0.04298397469 | AI56: 0.03963388844 | AJ56: 0.02847385743 | AK56: 0.04715458823 | AL56: 0.03715298271 | AM56: 0.05641896877 | AN56: 0.03285876652 | AO56: 0.03657549463 | AP56: =IF(AP3,AP36/AO36-1,$H$56) -> 0.03907002044 | AQ56: 0.0415603015 | AR56: 0.037794502 | AS56: 0.04141755206 | AT56: 0.03420401234 | AU56: 0.05384579778 | AV56: 0.01025056851 | AW56: 0.01226417515 | AX56: 0.0123768268 | AY56: 0.01066985199 | AZ56: 0.01169829379 | BA56: 0.04067717506 | BB56: 0.03981392894 | BC56: 0.02586727784 | BD56: 0.04663734447 | BE56: 0.04430587662 | BF56: 0.04267081188 | BG56: 0.03383481676 | BH56: 0.03782761699 | BI56: 0.02783477725 | BJ56: 0.04032987012 | BK56: 0.03563496103 | BL56: 0.02338095313 | BM56: 0.02938697851 | BN56: 0.03903655718 | BO56: 0.03525376709 | BP56: 0.03843447442 | BQ56: 0.0290967532 | BR56: 0.03094665344 | BS56: 0.03 | BT56: 0.03 | BU56: 0.03 | BV56: =IF(BV3,BV36/BU36-1,$H$56) -> 0.03 | BW56: 0.03 | BX56: 0.03 | BY56: 0.03 | BZ56: 0.03 | CA56: 0.03 | CB56: 0.03 | CC56: 0.03 | CD56: 0.03 | CE56: 0.03 | CF56: 0.03 | CG56: 0.03 | CH56: 0.03 | CI56: 0.03 | CJ56: 0.03 | CK56: 0.03 | CL56: 0.03 | CM56: 0.03 | CN56: 0.03 | CO56: 0.03 | CP56: =IF(CP3,CP36/CO36-1,$H$56) -> 0.03 | CQ56: 0.03 | CR56: 0.03 | CS56: 0.03 | CT56: 0.03 | CU56: 0.03 | CV56: 0.03 | CW56: 0.03 | CX56: 0.03 | CY56: 0.03 | CZ56: 0.03 | DA56: 0.03 | DB56: 0.03 | DC56: 0.03 | DD56: 0.03 | DE56: 0.03 | DF56: 0.03 | DG56: 0.03 | DH56: 0.03 | DI56: 0.03 | DJ56: 0.03 | DK56: 0.03 | DL56: 0.03 | DM56: 0.03 | DN56: 0.03 | DO56: 0.03 | DP56: 0.03 | DQ56: 0.03 | DR56: 0.03 | DS56: 0.03 | DT56: 0.03 | DU56: 0.03 | DV56: 0.03 | DW56: 0.03 | DX56: 0.03 | DY56: 0.03 | DZ56: 0.03 | EA56: 0.03
D58: COGS | I58: =IF(I3,I37,I55*I59) -> 3887.672226 | J58: 3103.727865 | K58: 3391.426735 | L58: 4137.513753 | M58: 3721.56244 | N58: 4534.680972 | O58: 3597.433025 | P58: 4120.51728 | Q58: 3530.178354 | R58: 3365.027691 | S58: 3704.622041 | T58: 3191.316174 | U58: 3615.341861 | V58: 3127.496979 | W58: 4634.950298 | X58: 4415.069911 | Y58: 4533.667485 | Z58: 3509.158962 | AA58: 3897.126334 | AB58: 4655.009208 | AC58: 4479.111053 | AD58: 4546.761425 | AE58: 4252.494776 | AF58: 4331.003617 | AG58: 4814.214748 | AH58: 5729.508684 | AI58: 4671.548993 | AJ58: 4895.235347 | AK58: 5335.361474 | AL58: 5572.924937 | AM58: 5550.13805 | AN58: 6086.35444 | AO58: =IF(AO3,AO37,AO55*AO59) -> 6827.776444 | AP58: 5611.591708 | AQ58: 6807.573663 | AR58: 7460.934519 | AS58: 7635.058789 | AT58: 7485.87547 | AU58: 7317.503013 | AV58: 8083.34808 | AW58: 7978.773184 | AX58: 7196.926502 | AY58: 9857.141978 | AZ58: 7941.466664 | BA58: 8755.854521 | BB58: 10696.94745 | BC58: 9405.191159 | BD58: 9050.796574 | BE58: 10731.12806 | BF58: 9724.896252 | BG58: 12445.41793 | BH58: 12577.66347 | BI58: 12100.50176 | BJ58: 11557.59202 | BK58: 13441.09349 | BL58: 13501.29921 | BM58: 12733.90522 | BN58: 13047.46826 | BO58: 12989.54128 | BP58: 14901.05377 | BQ58: 16049.01591 | BR58: 15909.47014 | BS58: 16393.33586 | BT58: 16885.13593 | BU58: =IF(BU3,BU37,BU55*BU59) -> 17391.69001 | BV58: 17913.44071 | BW58: 18450.84393 | BX58: 19004.36925 | BY58: 19574.50033 | BZ58: 20161.73534 | CA58: 20766.5874 | CB58: 21389.58502 | CC58: 22031.27257 | CD58: 22692.21075 | CE58: 23372.97707 | CF58: 24074.16639 | CG58: 24796.39138 | CH58: 25540.28312 | CI58: 26306.49161 | CJ58: 27095.68636 | CK58: 27908.55695 | CL58: 28745.81366 | CM58: 29608.18807 | CN58: 30496.43371 | CO58: 31411.32672 | CP58: =IF(CP3,CP37,CP55*CP59) -> 32353.66652 | CQ58: =IF(CQ3,CQ37,CQ55*CQ59) -> 33324.27652 | CR58: =IF(CR3,CR37,CR55*CR59) -> 34324.00482 | CS58: =IF(CS3,CS37,CS55*CS59) -> 35353.72496 | CT58: =IF(CT3,CT37,CT55*CT59) -> 36414.33671 | CU58: =IF(CU3,CU37,CU55*CU59) -> 37506.76681 | CV58: =IF(CV3,CV37,CV55*CV59) -> 38631.96981 | CW58: =IF(CW3,CW37,CW55*CW59) -> 39790.92891 | CX58: =IF(CX3,CX37,CX55*CX59) -> 40984.65678 | CY58: =IF(CY3,CY37,CY55*CY59) -> 42214.19648 | CZ58: =IF(CZ3,CZ37,CZ55*CZ59) -> 43480.62237 | DA58: =IF(DA3,DA37,DA55*DA59) -> 44785.04104 | DB58: =IF(DB3,DB37,DB55*DB59) -> 46128.59228 | DC58: =IF(DC3,DC37,DC55*DC59) -> 47512.45004 | DD58: =IF(DD3,DD37,DD55*DD59) -> 48937.82355 | DE58: =IF(DE3,DE37,DE55*DE59) -> 50405.95825 | DF58: =IF(DF3,DF37,DF55*DF59) -> 51918.137 | DG58: =IF(DG3,DG37,DG55*DG59) -> 53475.68111 | DH58: =IF(DH3,DH37,DH55*DH59) -> 55079.95154 | DI58: =IF(DI3,DI37,DI55*DI59) -> 56732.35009 | DJ58: =IF(DJ3,DJ37,DJ55*DJ59) -> 58434.32059 | DK58: =IF(DK3,DK37,DK55*DK59) -> 60187.35021 | DL58: =IF(DL3,DL37,DL55*DL59) -> 61992.97072 | DM58: =IF(DM3,DM37,DM55*DM59) -> 63852.75984 | DN58: =IF(DN3,DN37,DN55*DN59) -> 65768.34263 | DO58: =IF(DO3,DO37,DO55*DO59) -> 67741.39291 | DP58: =IF(DP3,DP37,DP55*DP59) -> 69773.6347 | DQ58: =IF(DQ3,DQ37,DQ55*DQ59) -> 71866.84374 | DR58: =IF(DR3,DR37,DR55*DR59) -> 74022.84905 | DS58: =IF(DS3,DS37,DS55*DS59) -> 76243.53452 | DT58: =IF(DT3,DT37,DT55*DT59) -> 78530.84056 | DU58: =IF(DU3,DU37,DU55*DU59) -> 80886.76578 | DV58: =IF(DV3,DV37,DV55*DV59) -> 83313.36875 | DW58: =IF(DW3,DW37,DW55*DW59) -> 85812.76981 | DX58: =IF(DX3,DX37,DX55*DX59) -> 88387.15291 | DY58: =IF(DY3,DY37,DY55*DY59) -> 91038.76749 | DZ58: =IF(DZ3,DZ37,DZ55*DZ59) -> 93769.93052 | EA58: =IF(EA3,EA37,EA55*EA59) -> 96583.02843
D59: COGS Percent of Sales | E59: =AVERAGEIF($4:$4,TRUE,59:59) -> 0.5313938123 | F59: =LOOKUP($G$3,$2:$2,59:59) -> 0.5297872149 | H59: =Sensitivity!F12 -> 0.53 | I59: =IF(I3,I37/I36,$H$59) -> 0.7775344452 | J59: 0.6083175521 | K59: 0.6539145801 | L59: 0.783153314 | M59: 0.6907834877 | N59: 0.8216115721 | O59: 0.6369315677 | P59: 0.7119083921 | Q59: 0.5996799308 | R59: 0.5653272668 | S59: 0.611618864 | T59: 0.5112137381 | U59: 0.5699983281 | V59: 0.4783176183 | W59: 0.6961732844 | X59: 0.6459592291 | Y59: 0.6478945349 | Z59: 0.4913899641 | AA59: 0.5350255897 | AB59: 0.6261439648 | AC59: 0.593769133 | AD59: 0.5918548486 | AE59: 0.5310817697 | AF59: 0.5225603872 | AG59: 0.5561668553 | AH59: 0.6346282362 | AI59: 0.4977170168 | AJ59: 0.50710968 | AK59: 0.5278145682 | AL59: 0.5315668599 | AM59: 0.5011206494 | AN59: 0.5320528982 | AO59: =IF(AO3,AO37/AO36,$H$59) -> 0.5758056587 | AP59: 0.4554470421 | AQ59: 0.5304686854 | AR59: 0.5602079468 | AS59: 0.5504825152 | AT59: 0.5218762387 | AU59: 0.4840728969 | AV59: 0.5293099212 | AW59: 0.5161322616 | AX59: 0.4598643664 | AY59: 0.6231956197 | AZ59: 0.496275779 | BA59: 0.5257809784 | BB59: 0.6177468857 | BC59: 0.5294526813 | BD59: 0.4867994763 | BE59: 0.5526891697 | BF59: 0.4803671907 | BG59: 0.5946298293 | BH59: 0.579044517 | BI59: 0.5419909741 | BJ59: 0.4976052651 | BK59: 0.5587859858 | BL59: 0.5484652751 | BM59: 0.5025236631 | BN59: 0.4955532459 | BO59: 0.4765528497 | BP59: 0.5264475887 | BQ59: 0.5509730525 | BR59: 0.5297872149 | BS59: 0.53 | BT59: 0.53 | BU59: =IF(BU3,BU37/BU36,$H$59) -> 0.53 | BV59: 0.53 | BW59: 0.53 | BX59: 0.53 | BY59: 0.53 | BZ59: 0.53 | CA59: 0.53 | CB59: 0.53 | CC59: 0.53 | CD59: 0.53 | CE59: 0.53 | CF59: 0.53 | CG59: 0.53 | CH59: 0.53 | CI59: 0.53 | CJ59: 0.53 | CK59: 0.53 | CL59: 0.53 | CM59: 0.53 | CN59: 0.53 | CO59: 0.53 | CP59: =IF(CP3,CP37/CP36,$H$59) -> 0.53 | CQ59: 0.53 | CR59: 0.53 | CS59: 0.53 | CT59: 0.53 | CU59: 0.53 | CV59: 0.53 | CW59: 0.53 | CX59: 0.53 | CY59: 0.53 | CZ59: 0.53 | DA59: 0.53 | DB59: 0.53 | DC59: 0.53 | DD59: 0.53 | DE59: 0.53 | DF59: 0.53 | DG59: 0.53 | DH59: 0.53 | DI59: 0.53 | DJ59: 0.53 | DK59: 0.53 | DL59: 0.53 | DM59: 0.53 | DN59: 0.53 | DO59: 0.53 | DP59: 0.53 | DQ59: 0.53 | DR59: 0.53 | DS59: 0.53 | DT59: 0.53 | DU59: 0.53 | DV59: 0.53 | DW59: 0.53 | DX59: 0.53 | DY59: 0.53 | DZ59: 0.53 | EA59: 0.53
D61: Fixed Employee Expense | I61: =IF(I3,I39,H61*(1+I62)) -> 1000 | J61: 1010.43611 | K61: 1021.245263 | L61: 1026.47279 | M61: 1034.165234 | N61: 1048.745048 | O61: 1057.047695 | P61: 1069.183832 | Q61: 1078.493141 | R61: 1086.352207 | S61: 1102.563893 | T61: 1115.028485 | U61: 1124.010038 | V61: 1130.410108 | W61: 1146.359068 | X61: 1151.686904 | Y61: 1163.256674 | Z61: 1177.860477 | AA61: 1186.979019 | AB61: 1201.708681 | AC61: 1233.621557 | AD61: 1269.803482 | AE61: 1290.139068 | AF61: 1313.732058 | AG61: 1333.318255 | AH61: 1358.465489 | AI61: 1387.268124 | AJ61: 1398.52884 | AK61: 1428.224214 | AL61: 1453.182249 | AM61: 1478.741505 | AN61: 1501.97094 | AO61: =IF(AO3,AO39,AN61*(1+AO62)) -> 1529.00396 | AP61: 1566.206911 | AQ61: 1597.730756 | AR61: 1629.774322 | AS61: 1653.080586 | AT61: 1689.551884 | AU61: 1737.060549 | AV61: 1768.852475 | AW61: 1831.645499 | AX61: 1891.968117 | AY61: 1932.903623 | AZ61: 1971.573572 | BA61: 2019.698066 | BB61: 2072.984163 | BC61: 2132.259002 | BD61: 2158.59285 | BE61: 2242.806546 | BF61: 2334.750689 | BG61: 2381.409432 | BH61: 2424.22559 | BI61: 2510.393965 | BJ61: 2600.109318 | BK61: 2664.261258 | BL61: 2746.285846 | BM61: 2816.02174 | BN61: 2878.723535 | BO61: 2937.336255 | BP61: 2955.184372 | BQ61: 2993.397411 | BR61: 3089.307888 | BS61: 3174.263855 | BT61: 3261.556111 | BU61: =IF(BU3,BU39,BT61*(1+BU62)) -> 3351.248904 | BV61: 3443.408249 | BW61: 3538.101976 | BX61: 3635.39978 | BY61: 3735.373274 | BZ61: 3838.096039 | CA61: 3943.64368 | CB61: 4052.093881 | CC61: 4163.526463 | CD61: 4278.023441 | CE61: 4395.669085 | CF61: 4516.549985 | CG61: 4640.75511 | CH61: 4768.375875 | CI61: 4899.506212 | CJ61: 5034.242633 | CK61: 5172.684305 | CL61: 5314.933124 | CM61: 5461.093784 | CN61: 5611.273864 | CO61: 5765.583895 | CP61: =IF(CP3,CP39,CO61*(1+CP62)) -> 5924.137452 | CQ61: =IF(CQ3,CQ39,CP61*(1+CQ62)) -> 6087.051232 | CR61: =IF(CR3,CR39,CQ61*(1+CR62)) -> 6254.445141 | CS61: =IF(CS3,CS39,CR61*(1+CS62)) -> 6426.442382 | CT61: =IF(CT3,CT39,CS61*(1+CT62)) -> 6603.169548 | CU61: =IF(CU3,CU39,CT61*(1+CU62)) -> 6784.75671 | CV61: =IF(CV3,CV39,CU61*(1+CV62)) -> 6971.33752 | CW61: =IF(CW3,CW39,CV61*(1+CW62)) -> 7163.049301 | CX61: =IF(CX3,CX39,CW61*(1+CX62)) -> 7360.033157 | CY61: =IF(CY3,CY39,CX61*(1+CY62)) -> 7562.434069 | CZ61: =IF(CZ3,CZ39,CY61*(1+CZ62)) -> 7770.401006 | DA61: =IF(DA3,DA39,CZ61*(1+DA62)) -> 7984.087034 | DB61: =IF(DB3,DB39,DA61*(1+DB62)) -> 8203.649427 | DC61: =IF(DC3,DC39,DB61*(1+DC62)) -> 8429.249786 | DD61: =IF(DD3,DD39,DC61*(1+DD62)) -> 8661.054155 | DE61: =IF(DE3,DE39,DD61*(1+DE62)) -> 8899.233145 | DF61: =IF(DF3,DF39,DE61*(1+DF62)) -> 9143.962056 | DG61: =IF(DG3,DG39,DF61*(1+DG62)) -> 9395.421013 | DH61: =IF(DH3,DH39,DG61*(1+DH62)) -> 9653.795091 | DI61: =IF(DI3,DI39,DH61*(1+DI62)) -> 9919.274456 | DJ61: =IF(DJ3,DJ39,DI61*(1+DJ62)) -> 10192.0545 | DK61: =IF(DK3,DK39,DJ61*(1+DK62)) -> 10472.336 | DL61: =IF(DL3,DL39,DK61*(1+DL62)) -> 10760.32524 | DM61: =IF(DM3,DM39,DL61*(1+DM62)) -> 11056.23419 | DN61: =IF(DN3,DN39,DM61*(1+DN62)) -> 11360.28063 | DO61: =IF(DO3,DO39,DN61*(1+DO62)) -> 11672.68834 | DP61: =IF(DP3,DP39,DO61*(1+DP62)) -> 11993.68727 | DQ61: =IF(DQ3,DQ39,DP61*(1+DQ62)) -> 12323.51367 | DR61: =IF(DR3,DR39,DQ61*(1+DR62)) -> 12662.4103 | DS61: =IF(DS3,DS39,DR61*(1+DS62)) -> 13010.62658 | DT61: =IF(DT3,DT39,DS61*(1+DT62)) -> 13368.41881 | DU61: =IF(DU3,DU39,DT61*(1+DU62)) -> 13736.05033 | DV61: =IF(DV3,DV39,DU61*(1+DV62)) -> 14113.79171 | DW61: =IF(DW3,DW39,DV61*(1+DW62)) -> 14501.92099 | DX61: =IF(DX3,DX39,DW61*(1+DX62)) -> 14900.72381 | DY61: =IF(DY3,DY39,DX61*(1+DY62)) -> 15310.49372 | DZ61: =IF(DZ3,DZ39,DY61*(1+DZ62)) -> 15731.5323 | EA61: =IF(EA3,EA39,DZ61*(1+EA62)) -> 16164.14943
D62: Fixed Employee Growth | E62: =AVERAGEIF($4:$4,TRUE,62:62) -> 0.02570880048 | F62: =LOOKUP($G$3,$2:$2,62:62) -> 0.03204067616 | H62: =Sensitivity!G12 -> 0.0275 | J62: =IF(J3,J61/I61-1,$H$62) -> 0.01043610954 | K62: 0.0106975127 | L62: 0.005118777637 | M62: 0.00749405569 | N62: 0.01409814673 | O62: 0.007916745418 | P62: 0.01148116342 | Q62: 0.008706929967 | R62: 0.007287079773 | S62: 0.01492304811 | T62: 0.01130509736 | U62: 0.008054998558 | V62: 0.005693961771 | W62: 0.01410900344 | X62: 0.00464761523 | Y62: 0.01004593302 | Z62: 0.01255423955 | AA62: 0.007741614766 | AB62: 0.01240937063 | AC62: 0.02655624955 | AD62: 0.02932984149 | AE62: 0.01601475068 | AF62: 0.01828716831 | AG62: 0.01490882179 | AH62: 0.01886063893 | AI62: 0.02120233106 | AJ62: 0.008117187436 | AK62: 0.02123329397 | AL62: 0.0174748721 | AM62: 0.01758847211 | AN62: 0.01570892262 | AO62: 0.0179983638 | AP62: =IF(AP3,AP61/AO61-1,$H$62) -> 0.02433149443 | AQ62: 0.02012750995 | AR62: 0.02005567297 | AS62: 0.01430030135 | AT62: 0.0220626258 | AU62: 0.02811909203 | AV62: 0.0183021404 | AW62: 0.03549929968 | AX62: 0.03293356573 | AY62: 0.02163646714 | AZ62: 0.02000614429 | BA62: 0.02440918018 | BB62: 0.02638319961 | BC62: 0.02859396585 | BD62: 0.01235021081 | BE62: 0.03901323796 | BF62: 0.04099512873 | BG62: 0.01998446454 | BH62: 0.01797933506 | BI62: 0.03554470138 | BJ62: 0.03573755944 | BK62: 0.02467278554 | BL62: 0.03078699132 | BM62: 0.02539280247 | BN62: 0.02226609046 | BO62: 0.020360663 | BP62: 0.006076293761 | BQ62: 0.01293084752 | BR62: 0.03204067616 | BS62: 0.0275 | BT62: 0.0275 | BU62: 0.0275 | BV62: =IF(BV3,BV61/BU61-1,$H$62) -> 0.0275 | BW62: 0.0275 | BX62: 0.0275 | BY62: 0.0275 | BZ62: 0.0275 | CA62: 0.0275 | CB62: 0.0275 | CC62: 0.0275 | CD62: 0.0275 | CE62: 0.0275 | CF62: 0.0275 | CG62: 0.0275 | CH62: 0.0275 | CI62: 0.0275 | CJ62: 0.0275 | CK62: 0.0275 | CL62: 0.0275 | CM62: 0.0275 | CN62: 0.0275 | CO62: 0.0275 | CP62: =IF(CP3,CP61/CO61-1,$H$62) -> 0.0275 | CQ62: =IF(CQ3,CQ61/CP61-1,$H$62) -> 0.0275 | CR62: =IF(CR3,CR61/CQ61-1,$H$62) -> 0.0275 | CS62: =IF(CS3,CS61/CR61-1,$H$62) -> 0.0275 | CT62: =IF(CT3,CT61/CS61-1,$H$62) -> 0.0275 | CU62: =IF(CU3,CU61/CT61-1,$H$62) -> 0.0275 | CV62: =IF(CV3,CV61/CU61-1,$H$62) -> 0.0275 | CW62: =IF(CW3,CW61/CV61-1,$H$62) -> 0.0275 | CX62: =IF(CX3,CX61/CW61-1,$H$62) -> 0.0275 | CY62: =IF(CY3,CY61/CX61-1,$H$62) -> 0.0275 | CZ62: =IF(CZ3,CZ61/CY61-1,$H$62) -> 0.0275 | DA62: =IF(DA3,DA61/CZ61-1,$H$62) -> 0.0275 | DB62: =IF(DB3,DB61/DA61-1,$H$62) -> 0.0275 | DC62: =IF(DC3,DC61/DB61-1,$H$62) -> 0.0275 | DD62: =IF(DD3,DD61/DC61-1,$H$62) -> 0.0275 | DE62: =IF(DE3,DE61/DD61-1,$H$62) -> 0.0275 | DF62: =IF(DF3,DF61/DE61-1,$H$62) -> 0.0275 | DG62: =IF(DG3,DG61/DF61-1,$H$62) -> 0.0275 | DH62: =IF(DH3,DH61/DG61-1,$H$62) -> 0.0275 | DI62: =IF(DI3,DI61/DH61-1,$H$62) -> 0.0275 | DJ62: =IF(DJ3,DJ61/DI61-1,$H$62) -> 0.0275 | DK62: =IF(DK3,DK61/DJ61-1,$H$62) -> 0.0275 | DL62: =IF(DL3,DL61/DK61-1,$H$62) -> 0.0275 | DM62: =IF(DM3,DM61/DL61-1,$H$62) -> 0.0275 | DN62: =IF(DN3,DN61/DM61-1,$H$62) -> 0.0275 | DO62: =IF(DO3,DO61/DN61-1,$H$62) -> 0.0275 | DP62: =IF(DP3,DP61/DO61-1,$H$62) -> 0.0275 | DQ62: =IF(DQ3,DQ61/DP61-1,$H$62) -> 0.0275 | DR62: =IF(DR3,DR61/DQ61-1,$H$62) -> 0.0275 | DS62: =IF(DS3,DS61/DR61-1,$H$62) -> 0.0275 | DT62: =IF(DT3,DT61/DS61-1,$H$62) -> 0.0275 | DU62: =IF(DU3,DU61/DT61-1,$H$62) -> 0.0275 | DV62: =IF(DV3,DV61/DU61-1,$H$62) -> 0.0275 | DW62: =IF(DW3,DW61/DV61-1,$H$62) -> 0.0275 | DX62: =IF(DX3,DX61/DW61-1,$H$62) -> 0.0275 | DY62: =IF(DY3,DY61/DX61-1,$H$62) -> 0.0275 | DZ62: =IF(DZ3,DZ61/DY61-1,$H$62) -> 0.0275 | EA62: =IF(EA3,EA61/DZ61-1,$H$62) -> 0.0275
D64: Variable Expeses | I64: =IF(I3,I40,I55*I65) -> 467.2531687 | J64: 483.7865034 | K64: 294.036507 | L64: 371.9328443 | M64: 332.8282353 | N64: 481.552734 | O64: 547.1539503 | P64: 444.6597828 | Q64: 414.3588513 | R64: 781.7850654 | S64: 762.1887506 | T64: 363.3276418 | U64: 643.9639217 | V64: 788.8241771 | W64: 508.7660396 | X64: 796.5633174 | Y64: 539.7037375 | Z64: 1184.481213 | AA64: 845.8975354 | AB64: 895.4366695 | AC64: 1029.186657 | AD64: 592.710901 | AE64: 852.4819359 | AF64: 565.2577172 | AG64: 972.3172705 | AH64: 1327.338496 | AI64: 794.3856813 | AJ64: 860.3732325 | AK64: 479.916036 | AL64: 1306.433743 | AM64: 1002.648833 | AN64: 1603.898978 | AO64: =IF(AO3,AO40,AO55*AO65) -> 1247.105954 | AP64: 999.9703683 | AQ64: 986.0094465 | AR64: 1156.600455 | AS64: 491.9382126 | AT64: 2214.937883 | AU64: 1507.717505 | AV64: 1395.006936 | AW64: 1178.33872 | AX64: 1154.388289 | AY64: 1561.146261 | AZ64: 2355.903985 | BA64: 1931.128126 | BB64: 943.6597294 | BC64: 1725.773085 | BD64: 2331.432839 | BE64: 3534.45766 | BF64: 1672.186903 | BG64: 3214.776191 | BH64: 3087.526458 | BI64: 2010.778676 | BJ64: 2268.259179 | BK64: 2706.997207 | BL64: 1212.989998 | BM64: 1544.053081 | BN64: 2408.40135 | BO64: 1556.592583 | BP64: 4728.10294 | BQ64: 2862.396757 | BR64: 2682.614226 | BS64: 2783.774014 | BT64: 2867.287234 | BU64: =IF(BU3,BU40,BU55*BU65) -> 2953.305851 | BV64: 3041.905027 | BW64: 3133.162178 | BX64: 3227.157043 | BY64: 3323.971754 | BZ64: 3423.690907 | CA64: 3526.401634 | CB64: 3632.193683 | CC64: 3741.159494 | CD64: 3853.394278 | CE64: 3968.996107 | CF64: 4088.06599 | CG64: 4210.70797 | CH64: 4337.029209 | CI64: 4467.140085 | CJ64: 4601.154288 | CK64: 4739.188916 | CL64: 4881.364584 | CM64: 5027.805521 | CN64: 5178.639687 | CO64: 5333.998877 | CP64: =IF(CP3,CP40,CP55*CP65) -> 5494.018844 | CQ64: =IF(CQ3,CQ40,CQ55*CQ65) -> 5658.839409 | CR64: =IF(CR3,CR40,CR55*CR65) -> 5828.604591 | CS64: =IF(CS3,CS40,CS55*CS65) -> 6003.462729 | CT64: =IF(CT3,CT40,CT55*CT65) -> 6183.566611 | CU64: =IF(CU3,CU40,CU55*CU65) -> 6369.073609 | CV64: =IF(CV3,CV40,CV55*CV65) -> 6560.145818 | CW64: =IF(CW3,CW40,CW55*CW65) -> 6756.950192 | CX64: =IF(CX3,CX40,CX55*CX65) -> 6959.658698 | CY64: =IF(CY3,CY40,CY55*CY65) -> 7168.448459 | CZ64: =IF(CZ3,CZ40,CZ55*CZ65) -> 7383.501912 | DA64: =IF(DA3,DA40,DA55*DA65) -> 7605.00697 | DB64: =IF(DB3,DB40,DB55*DB65) -> 7833.157179 | DC64: =IF(DC3,DC40,DC55*DC65) -> 8068.151894 | DD64: =IF(DD3,DD40,DD55*DD65) -> 8310.196451 | DE64: =IF(DE3,DE40,DE55*DE65) -> 8559.502345 | DF64: =IF(DF3,DF40,DF55*DF65) -> 8816.287415 | DG64: =IF(DG3,DG40,DG55*DG65) -> 9080.776037 | DH64: =IF(DH3,DH40,DH55*DH65) -> 9353.199319 | DI64: =IF(DI3,DI40,DI55*DI65) -> 9633.795298 | DJ64: =IF(DJ3,DJ40,DJ55*DJ65) -> 9922.809157 | DK64: =IF(DK3,DK40,DK55*DK65) -> 10220.49343 | DL64: =IF(DL3,DL40,DL55*DL65) -> 10527.10823 | DM64: =IF(DM3,DM40,DM55*DM65) -> 10842.92148 | DN64: =IF(DN3,DN40,DN55*DN65) -> 11168.20913 | DO64: =IF(DO3,DO40,DO55*DO65) -> 11503.2554 | DP64: =IF(DP3,DP40,DP55*DP65) -> 11848.35306 | DQ64: =IF(DQ3,DQ40,DQ55*DQ65) -> 12203.80365 | DR64: =IF(DR3,DR40,DR55*DR65) -> 12569.91776 | DS64: =IF(DS3,DS40,DS55*DS65) -> 12947.0153 | DT64: =IF(DT3,DT40,DT55*DT65) -> 13335.42576 | DU64: =IF(DU3,DU40,DU55*DU65) -> 13735.48853 | DV64: =IF(DV3,DV40,DV55*DV65) -> 14147.55318 | DW64: =IF(DW3,DW40,DW55*DW65) -> 14571.97978 | DX64: =IF(DX3,DX40,DX55*DX65) -> 15009.13917 | DY64: =IF(DY3,DY40,DY55*DY65) -> 15459.41335 | DZ64: =IF(DZ3,DZ40,DZ55*DZ65) -> 15923.19575 | EA64: =IF(EA3,EA40,EA55*EA65) -> 16400.89162
D65: Variable Expense as Percent of Revenues | E65: =AVERAGEIF($4:$4,TRUE,65:65) -> 0.102862918 | F65: =LOOKUP($G$3,$2:$2,65:65) -> 0.08933136726 | H65: =Sensitivity!H12 -> 0.09 | I65: =IF(I3,I64/I55,$H$65) -> 0.09345063374 | J65: 0.09482011126 | K65: 0.05669435728 | L65: 0.07039987223 | M65: 0.06177842046 | N65: 0.08724964363 | O65: 0.09687452718 | P65: 0.07682458524 | Q65: 0.07038813973 | R65: 0.1313404985 | S65: 0.125834434 | T65: 0.05820109066 | U65: 0.1015279807 | V65: 0.1206423233 | W65: 0.07641707073 | X65: 0.116543438 | Y65: 0.07712764625 | Z65: 0.1658637261 | AA65: 0.11613091 | AB65: 0.1204449318 | AC65: 0.1364331587 | AD65: 0.07715355784 | AE65: 0.1064640027 | AF65: 0.06820158044 | AG65: 0.1123279012 | AH65: 0.1470224647 | AI65: 0.08463558276 | AJ65: 0.08912821624 | AK65: 0.04747694727 | AL65: 0.1246126388 | AM65: 0.09052892556 | AN65: 0.1402085777 | AO65: =IF(AO3,AO64/AO55,$H$65) -> 0.105171965 | AP65: 0.08115942322 | AQ65: 0.07683312158 | AR65: 0.08684391539 | AS65: 0.03546840858 | AT65: 0.1544139301 | AU65: 0.09973964875 | AV65: 0.09134717497 | AW65: 0.07622457923 | AX65: 0.07376232601 | AY65: 0.09869995921 | AZ65: 0.147224453 | BA65: 0.1159624607 | BB65: 0.05449618798 | BC65: 0.0971500921 | BD65: 0.125396729 | BE65: 0.1820364511 | BF65: 0.0825986935 | BG65: 0.1535988449 | BH65: 0.1421420816 | BI65: 0.09006435559 | BJ65: 0.09765855272 | BK65: 0.1125378753 | BL65: 0.04927547212 | BM65: 0.0609336411 | BN65: 0.09147300322 | BO65: 0.05710737703 | BP65: 0.1670417697 | BQ65: 0.09826792417 | BR65: 0.08933136726 | BS65: 0.09 | BT65: 0.09 | BU65: =IF(BU3,BU64/BU55,$H$65) -> 0.09 | BV65: 0.09 | BW65: 0.09 | BX65: 0.09 | BY65: 0.09 | BZ65: 0.09 | CA65: 0.09 | CB65: 0.09 | CC65: 0.09 | CD65: 0.09 | CE65: 0.09 | CF65: 0.09 | CG65: 0.09 | CH65: 0.09 | CI65: 0.09 | CJ65: 0.09 | CK65: 0.09 | CL65: 0.09 | CM65: 0.09 | CN65: 0.09 | CO65: 0.09 | CP65: =IF(CP3,CP64/CP55,$H$65) -> 0.09 | CQ65: =IF(CQ3,CQ64/CQ55,$H$65) -> 0.09 | CR65: =IF(CR3,CR64/CR55,$H$65) -> 0.09 | CS65: =IF(CS3,CS64/CS55,$H$65) -> 0.09 | CT65: =IF(CT3,CT64/CT55,$H$65) -> 0.09 | CU65: =IF(CU3,CU64/CU55,$H$65) -> 0.09 | CV65: =IF(CV3,CV64/CV55,$H$65) -> 0.09 | CW65: =IF(CW3,CW64/CW55,$H$65) -> 0.09 | CX65: =IF(CX3,CX64/CX55,$H$65) -> 0.09 | CY65: =IF(CY3,CY64/CY55,$H$65) -> 0.09 | CZ65: =IF(CZ3,CZ64/CZ55,$H$65) -> 0.09 | DA65: =IF(DA3,DA64/DA55,$H$65) -> 0.09 | DB65: =IF(DB3,DB64/DB55,$H$65) -> 0.09 | DC65: =IF(DC3,DC64/DC55,$H$65) -> 0.09 | DD65: =IF(DD3,DD64/DD55,$H$65) -> 0.09 | DE65: =IF(DE3,DE64/DE55,$H$65) -> 0.09 | DF65: =IF(DF3,DF64/DF55,$H$65) -> 0.09 | DG65: =IF(DG3,DG64/DG55,$H$65) -> 0.09 | DH65: =IF(DH3,DH64/DH55,$H$65) -> 0.09 | DI65: =IF(DI3,DI64/DI55,$H$65) -> 0.09 | DJ65: =IF(DJ3,DJ64/DJ55,$H$65) -> 0.09 | DK65: =IF(DK3,DK64/DK55,$H$65) -> 0.09 | DL65: =IF(DL3,DL64/DL55,$H$65) -> 0.09 | DM65: =IF(DM3,DM64/DM55,$H$65) -> 0.09 | DN65: =IF(DN3,DN64/DN55,$H$65) -> 0.09 | DO65: =IF(DO3,DO64/DO55,$H$65) -> 0.09 | DP65: =IF(DP3,DP64/DP55,$H$65) -> 0.09 | DQ65: =IF(DQ3,DQ64/DQ55,$H$65) -> 0.09 | DR65: =IF(DR3,DR64/DR55,$H$65) -> 0.09 | DS65: =IF(DS3,DS64/DS55,$H$65) -> 0.09 | DT65: =IF(DT3,DT64/DT55,$H$65) -> 0.09 | DU65: =IF(DU3,DU64/DU55,$H$65) -> 0.09 | DV65: =IF(DV3,DV64/DV55,$H$65) -> 0.09 | DW65: =IF(DW3,DW64/DW55,$H$65) -> 0.09 | DX65: =IF(DX3,DX64/DX55,$H$65) -> 0.09 | DY65: =IF(DY3,DY64/DY55,$H$65) -> 0.09 | DZ65: =IF(DZ3,DZ64/DZ55,$H$65) -> 0.09 | EA65: =IF(EA3,EA64/EA55,$H$65) -> 0.09
D67: Stocks | I67: =IF(I3,I24,I58*I68) -> 3807.660588 | J67: 2746.213626 | K67: 2758.617589 | L67: 3734.120093 | M67: 2888.405158 | N67: 4130.158246 | O67: 2943.366724 | P67: 3967.620315 | Q67: 3645.169143 | R67: 2986.214881 | S67: 3144.90581 | T67: 2742.020676 | U67: 3394.067644 | V67: 2906.16603 | W67: 4057.668694 | X67: 4389.228879 | Y67: 4028.677104 | Z67: 2940.083233 | AA67: 4115.702686 | AB67: 5330.322632 | AC67: 4478.360941 | AD67: 5506.161143 | AE67: 4192.649287 | AF67: 4505.400805 | AG67: 4501.731527 | AH67: 5353.555721 | AI67: 5129.15125 | AJ67: 4878.730805 | AK67: 5191.753855 | AL67: 4920.055179 | AM67: 4652.405088 | AN67: 6711.378266 | AO67: =IF(AO3,AO24,AO58*AO68) -> 7103.235121 | AP67: 5636.056588 | AQ67: 6994.867084 | AR67: 6994.336287 | AS67: 8036.450678 | AT67: 8626.904696 | AU67: 7350.150029 | AV67: 7814.830179 | AW67: 6661.74782 | AX67: 5056.39822 | AY67: 8875.889016 | AZ67: 6811.752128 | BA67: 7329.168272 | BB67: 7467.146152 | BC67: 7329.743203 | BD67: 7455.725092 | BE67: 10224.92169 | BF67: 7996.570229 | BG67: 10327.70407 | BH67: 9144.253666 | BI67: 10495.32412 | BJ67: 8620.639331 | BK67: 10355.36693 | BL67: 10482.11666 | BM67: 10957.88335 | BN67: 10322.56802 | BO67: 10634.62579 | BP67: 12880.97971 | BQ67: 12799.69976 | BR67: 13417.78088 | BS67: 13606.46876 | BT67: 14014.66283 | BU67: =IF(BU3,BU24,BU58*BU68) -> 14435.10271 | BV67: 14868.15579 | BW67: 15314.20047 | BX67: 15773.62648 | BY67: 16246.83527 | BZ67: 16734.24033 | CA67: 17236.26754 | CB67: 17753.35557 | CC67: 18285.95624 | CD67: 18834.53492 | CE67: 19399.57097 | CF67: 19981.5581 | CG67: 20581.00484 | CH67: 21198.43499 | CI67: 21834.38804 | CJ67: 22489.41968 | CK67: 23164.10227 | CL67: 23859.02534 | CM67: 24574.7961 | CN67: 25312.03998 | CO67: 26071.40118 | CP67: =IF(CP3,CP24,CP58*CP68) -> 26853.54321 | CQ67: =IF(CQ3,CQ24,CQ58*CQ68) -> 27659.14951 | CR67: =IF(CR3,CR24,CR58*CR68) -> 28488.924 | CS67: =IF(CS3,CS24,CS58*CS68) -> 29343.59172 | CT67: =IF(CT3,CT24,CT58*CT68) -> 30223.89947 | CU67: =IF(CU3,CU24,CU58*CU68) -> 31130.61645 | CV67: =IF(CV3,CV24,CV58*CV68) -> 32064.53495 | CW67: =IF(CW3,CW24,CW58*CW68) -> 33026.47099 | CX67: =IF(CX3,CX24,CX58*CX68) -> 34017.26512 | CY67: =IF(CY3,CY24,CY58*CY68) -> 35037.78308 | CZ67: =IF(CZ3,CZ24,CZ58*CZ68) -> 36088.91657 | DA67: =IF(DA3,DA24,DA58*DA68) -> 37171.58407 | DB67: =IF(DB3,DB24,DB58*DB68) -> 38286.73159 | DC67: =IF(DC3,DC24,DC58*DC68) -> 39435.33354 | DD67: =IF(DD3,DD24,DD58*DD68) -> 40618.39354 | DE67: =IF(DE3,DE24,DE58*DE68) -> 41836.94535 | DF67: =IF(DF3,DF24,DF58*DF68) -> 43092.05371 | DG67: =IF(DG3,DG24,DG58*DG68) -> 44384.81532 | DH67: =IF(DH3,DH24,DH58*DH68) -> 45716.35978 | DI67: =IF(DI3,DI24,DI58*DI68) -> 47087.85057 | DJ67: =IF(DJ3,DJ24,DJ58*DJ68) -> 48500.48609 | DK67: =IF(DK3,DK24,DK58*DK68) -> 49955.50067 | DL67: =IF(DL3,DL24,DL58*DL68) -> 51454.16569 | DM67: =IF(DM3,DM24,DM58*DM68) -> 52997.79067 | DN67: =IF(DN3,DN24,DN58*DN68) -> 54587.72439 | DO67: =IF(DO3,DO24,DO58*DO68) -> 56225.35612 | DP67: =IF(DP3,DP24,DP58*DP68) -> 57912.1168 | DQ67: =IF(DQ3,DQ24,DQ58*DQ68) -> 59649.4803 | DR67: =IF(DR3,DR24,DR58*DR68) -> 61438.96471 | DS67: =IF(DS3,DS24,DS58*DS68) -> 63282.13365 | DT67: =IF(DT3,DT24,DT58*DT68) -> 65180.59766 | DU67: =IF(DU3,DU24,DU58*DU68) -> 67136.01559 | DV67: =IF(DV3,DV24,DV58*DV68) -> 69150.09606 | DW67: =IF(DW3,DW24,DW58*DW68) -> 71224.59894 | DX67: =IF(DX3,DX24,DX58*DX68) -> 73361.33691 | DY67: =IF(DY3,DY24,DY58*DY68) -> 75562.17702 | DZ67: =IF(DZ3,DZ24,DZ58*DZ68) -> 77829.04233 | EA67: =IF(EA3,EA24,EA58*EA68) -> 80163.9136
D68: Stocks as Percent of COGS | E68: =AVERAGEIF($4:$4,TRUE,68:68) -> 0.8137125382 | F68: =LOOKUP($G$3,$2:$2,68:68) -> 0.8433832655 | H68: =Sensitivity!K12 -> 0.83 | I68: =IF(I3,I67/I58,$H$68) -> 0.97941914 | J68: 0.8848113446 | K68: 0.8134091649 | L68: 0.9025033671 | M68: 0.7761270178 | N68: 0.9107935644 | O68: 0.8181852736 | P68: 0.962893745 | Q68: 1.032573648 | R68: 0.8874265401 | S68: 0.8489140796 | T68: 0.8592131041 | U68: 0.9387957694 | V68: 0.9292306435 | W68: 0.875450314 | X68: 0.9941470842 | Y68: 0.8886132734 | Z68: 0.8378313052 | AA68: 1.056086545 | AB68: 1.145072414 | AC68: 0.9998325312 | AD68: 1.21100727 | AE68: 0.9859269695 | AF68: 1.040267153 | AG68: 0.9350915493 | AH68: 0.9343830363 | AI68: 1.097955145 | AJ68: 0.9966284477 | AK68: 0.9730838071 | AL68: 0.8828497126 | AM68: 0.8382503364 | AN68: 1.102692643 | AO68: =IF(AO3,AO67/AO58,$H$68) -> 1.040343834 | AP68: 1.004359704 | AQ68: 1.027512507 | AR68: 0.9374611543 | AS68: 1.052572207 | AT68: 1.152424286 | AU68: 1.004461497 | AV68: 0.9667813513 | AW68: 0.8349338509 | AX68: 0.7025774431 | AY68: 0.9004525891 | AZ68: 0.8577448494 | BA68: 0.8370591648 | BB68: 0.6980632733 | BC68: 0.7793295298 | BD68: 0.8237645196 | BE68: 0.9528282232 | BF68: 0.8222782044 | BG68: 0.8298398762 | BH68: 0.7270232415 | BI68: 0.867346192 | BJ68: 0.7458854158 | BK68: 0.7704259288 | BL68: 0.7763783687 | BM68: 0.8605281068 | BN68: 0.7911548672 | BO68: 0.8187068016 | BP68: 0.8644341474 | BQ68: 0.7975379818 | BR68: 0.8433832655 | BS68: 0.83 | BT68: 0.83 | BU68: =IF(BU3,BU67/BU58,$H$68) -> 0.83 | BV68: 0.83 | BW68: 0.83 | BX68: 0.83 | BY68: 0.83 | BZ68: 0.83 | CA68: 0.83 | CB68: 0.83 | CC68: 0.83 | CD68: 0.83 | CE68: 0.83 | CF68: 0.83 | CG68: 0.83 | CH68: 0.83 | CI68: 0.83 | CJ68: 0.83 | CK68: 0.83 | CL68: 0.83 | CM68: 0.83 | CN68: 0.83 | CO68: 0.83 | CP68: =IF(CP3,CP67/CP58,$H$68) -> 0.83 | CQ68: =IF(CQ3,CQ67/CQ58,$H$68) -> 0.83 | CR68: =IF(CR3,CR67/CR58,$H$68) -> 0.83 | CS68: =IF(CS3,CS67/CS58,$H$68) -> 0.83 | CT68: =IF(CT3,CT67/CT58,$H$68) -> 0.83 | CU68: =IF(CU3,CU67/CU58,$H$68) -> 0.83 | CV68: =IF(CV3,CV67/CV58,$H$68) -> 0.83 | CW68: =IF(CW3,CW67/CW58,$H$68) -> 0.83 | CX68: =IF(CX3,CX67/CX58,$H$68) -> 0.83 | CY68: =IF(CY3,CY67/CY58,$H$68) -> 0.83 | CZ68: =IF(CZ3,CZ67/CZ58,$H$68) -> 0.83 | DA68: =IF(DA3,DA67/DA58,$H$68) -> 0.83 | DB68: =IF(DB3,DB67/DB58,$H$68) -> 0.83 | DC68: =IF(DC3,DC67/DC58,$H$68) -> 0.83 | DD68: =IF(DD3,DD67/DD58,$H$68) -> 0.83 | DE68: =IF(DE3,DE67/DE58,$H$68) -> 0.83 | DF68: =IF(DF3,DF67/DF58,$H$68) -> 0.83 | DG68: =IF(DG3,DG67/DG58,$H$68) -> 0.83 | DH68: =IF(DH3,DH67/DH58,$H$68) -> 0.83 | DI68: =IF(DI3,DI67/DI58,$H$68) -> 0.83 | DJ68: =IF(DJ3,DJ67/DJ58,$H$68) -> 0.83 | DK68: =IF(DK3,DK67/DK58,$H$68) -> 0.83 | DL68: =IF(DL3,DL67/DL58,$H$68) -> 0.83 | DM68: =IF(DM3,DM67/DM58,$H$68) -> 0.83 | DN68: =IF(DN3,DN67/DN58,$H$68) -> 0.83 | DO68: =IF(DO3,DO67/DO58,$H$68) -> 0.83 | DP68: =IF(DP3,DP67/DP58,$H$68) -> 0.83 | DQ68: =IF(DQ3,DQ67/DQ58,$H$68) -> 0.83 | DR68: =IF(DR3,DR67/DR58,$H$68) -> 0.83 | DS68: =IF(DS3,DS67/DS58,$H$68) -> 0.83 | DT68: =IF(DT3,DT67/DT58,$H$68) -> 0.83 | DU68: =IF(DU3,DU67/DU58,$H$68) -> 0.83 | DV68: =IF(DV3,DV67/DV58,$H$68) -> 0.83 | DW68: =IF(DW3,DW67/DW58,$H$68) -> 0.83 | DX68: =IF(DX3,DX67/DX58,$H$68) -> 0.83 | DY68: =IF(DY3,DY67/DY58,$H$68) -> 0.83 | DZ68: =IF(DZ3,DZ67/DZ58,$H$68) -> 0.83 | EA68: =IF(EA3,EA67/EA58,$H$68) -> 0.83
D70: Total Expense | I70: =I64+I61 -> 1467.253169 | J70: =J64+J61 -> 1494.222613 | K70: 1315.28177 | L70: 1398.405634 | M70: 1366.99347 | N70: 1530.297782 | O70: 1604.201645 | P70: 1513.843615 | Q70: 1492.851992 | R70: 1868.137272 | S70: 1864.752644 | T70: 1478.356127 | U70: 1767.97396 | V70: 1919.234285 | W70: 1655.125108 | X70: 1948.250221 | Y70: 1702.960411 | Z70: 2362.34169 | AA70: 2032.876554 | AB70: 2097.145351 | AC70: 2262.808214 | AD70: 1862.514383 | AE70: 2142.621004 | AF70: 1878.989775 | AG70: 2305.635526 | AH70: 2685.803985 | AI70: 2181.653806 | AJ70: 2258.902072 | AK70: 1908.14025 | AL70: 2759.615992 | AM70: 2481.390338 | AN70: 3105.869919 | AO70: 2776.109914 | AP70: 2566.177279 | AQ70: 2583.740203 | AR70: 2786.374777 | AS70: 2145.018798 | AT70: 3904.489767 | AU70: 3244.778054 | AV70: 3163.859411 | AW70: 3009.98422 | AX70: 3046.356405 | AY70: 3494.049883 | AZ70: 4327.477557 | BA70: 3950.826192 | BB70: 3016.643893 | BC70: 3858.032087 | BD70: 4490.025688 | BE70: 5777.264207 | BF70: 4006.937592 | BG70: 5596.185623 | BH70: 5511.752048 | BI70: 4521.172641 | BJ70: 4868.368497 | BK70: 5371.258465 | BL70: 3959.275844 | BM70: 4360.074821 | BN70: 5287.124885 | BO70: 4493.928837 | BP70: 7683.287312 | BQ70: 5855.794168 | BR70: 5771.922114 | BS70: 5958.037869 | BT70: 6128.843345 | BU70: 6304.554755 | BV70: =BV64+BV61 -> 6485.313276 | BW70: 6671.264153 | BX70: 6862.556823 | BY70: 7059.345028 | BZ70: 7261.786946 | CA70: 7470.045314 | CB70: 7684.287564 | CC70: 7904.685957 | CD70: 8131.417719 | CE70: 8364.665192 | CF70: 8604.615975 | CG70: 8851.463079 | CH70: 9105.405084 | CI70: 9366.646297 | CJ70: 9635.39692 | CK70: 9911.873221 | CL70: 10196.29771 | CM70: 10488.89931 | CN70: 10789.91355 | CO70: 11099.58277 | CP70: =CP64+CP61 -> 11418.1563 | CQ70: 11745.89064 | CR70: 12083.04973 | CS70: 12429.90511 | CT70: 12786.73616 | CU70: 13153.83032 | CV70: 13531.48334 | CW70: 13919.99949 | CX70: 14319.69186 | CY70: 14730.88253 | CZ70: 15153.90292 | DA70: 15589.094 | DB70: 16036.80661 | DC70: 16497.40168 | DD70: 16971.25061 | DE70: 17458.73549 | DF70: 17960.24947 | DG70: 18476.19705 | DH70: 19006.99441 | DI70: 19553.06975 | DJ70: 20114.86366 | DK70: 20692.82943 | DL70: 21287.43348 | DM70: 21899.15567 | DN70: 22528.48975 | DO70: 23175.94374 | DP70: 23842.04033 | DQ70: 24527.31733 | DR70: 25232.32806 | DS70: 25957.64188 | DT70: 26703.84457 | DU70: 27471.53886 | DV70: 28261.3449 | DW70: 29073.90077 | DX70: 29909.86299 | DY70: 30769.90707 | DZ70: 31654.72804 | EA70: 32565.04105
D71: Current Liabilities | I71: =IF(I3,I29,I72*I70) -> 435.9262111 | J71: 448.9328546 | K71: 310.2740905 | L71: 433.8741369 | M71: 392.4787209 | N71: 417.9865121 | O71: 580.5899558 | P71: 468.1252938 | Q71: 503.5871236 | R71: 553.4766922 | S71: 582.8077971 | T71: 485.3353462 | U71: 517.2592186 | V71: 521.3745195 | W71: 476.1956285 | X71: 586.4060087 | Y71: 519.6568688 | Z71: 687.3699215 | AA71: 612.7050477 | AB71: 626.916355 | AC71: 668.156577 | AD71: 603.1942394 | AE71: 709.2984991 | AF71: 495.011204 | AG71: 640.0842304 | AH71: 663.1295248 | AI71: 603.4943673 | AJ71: 689.4055177 | AK71: 621.7409259 | AL71: 888.6139308 | AM71: 762.204434 | AN71: 977.6116286 | AO71: =IF(AO3,AO29,AO72*AO70) -> 910.8529377 | AP71: 882.9329157 | AQ71: 771.9569177 | AR71: 745.5729501 | AS71: 677.1538624 | AT71: 1345.764556 | AU71: 1154.278989 | AV71: 834.2133986 | AW71: 775.4047002 | AX71: 814.7466821 | AY71: 944.4964576 | AZ71: 1307.277785 | BA71: 1199.38435 | BB71: 874.256079 | BC71: 973.9571272 | BD71: 1168.558679 | BE71: 1716.536296 | BF71: 940.1868633 | BG71: 1910.365857 | BH71: 1760.379236 | BI71: 1298.471315 | BJ71: 1245.930526 | BK71: 1653.945524 | BL71: 1325.798519 | BM71: 1521.108643 | BN71: 1377.873893 | BO71: 1518.865765 | BP71: 2224.18897 | BQ71: 1977.44611 | BR71: 1450.733575 | BS71: 1489.509467 | BT71: 1532.210836 | BU71: =IF(BU3,BU29,BU72*BU70) -> 1576.138689 | BV71: 1621.328319 | BW71: 1667.816038 | BX71: 1715.639206 | BY71: 1764.836257 | BZ71: 1815.446736 | CA71: 1867.511329 | CB71: 1921.071891 | CC71: 1976.171489 | CD71: 2032.85443 | CE71: 2091.166298 | CF71: 2151.153994 | CG71: 2212.86577 | CH71: 2276.351271 | CI71: 2341.661574 | CJ71: 2408.84923 | CK71: 2477.968305 | CL71: 2549.074427 | CM71: 2622.224826 | CN71: 2697.478388 | CO71: 2774.895693 | CP71: =IF(CP3,CP29,CP72*CP70) -> 2854.539074 | CQ71: =IF(CQ3,CQ29,CQ72*CQ70) -> 2936.47266 | CR71: =IF(CR3,CR29,CR72*CR70) -> 3020.762433 | CS71: =IF(CS3,CS29,CS72*CS70) -> 3107.476278 | CT71: =IF(CT3,CT29,CT72*CT70) -> 3196.68404 | CU71: =IF(CU3,CU29,CU72*CU70) -> 3288.45758 | CV71: =IF(CV3,CV29,CV72*CV70) -> 3382.870834 | CW71: =IF(CW3,CW29,CW72*CW70) -> 3479.999873 | CX71: =IF(CX3,CX29,CX72*CX70) -> 3579.922964 | CY71: =IF(CY3,CY29,CY72*CY70) -> 3682.720632 | CZ71: =IF(CZ3,CZ29,CZ72*CZ70) -> 3788.47573 | DA71: =IF(DA3,DA29,DA72*DA70) -> 3897.273501 | DB71: =IF(DB3,DB29,DB72*DB70) -> 4009.201651 | DC71: =IF(DC3,DC29,DC72*DC70) -> 4124.35042 | DD71: =IF(DD3,DD29,DD72*DD70) -> 4242.812652 | DE71: =IF(DE3,DE29,DE72*DE70) -> 4364.683872 | DF71: =IF(DF3,DF29,DF72*DF70) -> 4490.062368 | DG71: =IF(DG3,DG29,DG72*DG70) -> 4619.049263 | DH71: =IF(DH3,DH29,DH72*DH70) -> 4751.748602 | DI71: =IF(DI3,DI29,DI72*DI70) -> 4888.267438 | DJ71: =IF(DJ3,DJ29,DJ72*DJ70) -> 5028.715915 | DK71: =IF(DK3,DK29,DK72*DK70) -> 5173.207358 | DL71: =IF(DL3,DL29,DL72*DL70) -> 5321.858369 | DM71: =IF(DM3,DM29,DM72*DM70) -> 5474.788917 | DN71: =IF(DN3,DN29,DN72*DN70) -> 5632.122438 | DO71: =IF(DO3,DO29,DO72*DO70) -> 5793.985936 | DP71: =IF(DP3,DP29,DP72*DP70) -> 5960.510084 | DQ71: =IF(DQ3,DQ29,DQ72*DQ70) -> 6131.829332 | DR71: =IF(DR3,DR29,DR72*DR70) -> 6308.082016 | DS71: =IF(DS3,DS29,DS72*DS70) -> 6489.41047 | DT71: =IF(DT3,DT29,DT72*DT70) -> 6675.961142 | DU71: =IF(DU3,DU29,DU72*DU70) -> 6867.884715 | DV71: =IF(DV3,DV29,DV72*DV70) -> 7065.336225 | DW71: =IF(DW3,DW29,DW72*DW70) -> 7268.475192 | DX71: =IF(DX3,DX29,DX72*DX70) -> 7477.465747 | DY71: =IF(DY3,DY29,DY72*DY70) -> 7692.476767 | DZ71: =IF(DZ3,DZ29,DZ72*DZ70) -> 7913.682011 | EA71: =IF(EA3,EA29,EA72*EA70) -> 8141.260264
D72: Current Liabilities as Percent of Expense | E72: =AVERAGEIF($4:$4,TRUE,72:72) -> 0.2912708983 | F72: =LOOKUP($G$3,$2:$2,72:72) -> 0.2513432348 | H72: =Sensitivity!L12 -> 0.25 | I72: =IF(I3,I71/I70,$H$72) -> 0.2971036086 | J72: 0.300445764 | K72: 0.2358993317 | L72: 0.3102634359 | M72: 0.2871108967 | N72: 0.2731406378 | O72: 0.3619183146 | P72: 0.3092296252 | Q72: 0.3373322514 | R72: 0.2962719605 | S72: 0.3125389307 | T72: 0.3282939322 | U72: 0.2925717405 | V72: 0.2716575686 | W72: 0.2877097485 | X72: 0.3009911161 | Y72: 0.3051491188 | Z72: 0.2909697291 | AA72: 0.3013980591 | AB72: 0.298937961 | AC72: 0.2952775993 | AD72: 0.3238601779 | AE72: 0.3310424466 | AF72: 0.2634453953 | AG72: 0.2776172657 | AH72: 0.2469016833 | AI72: 0.2766224255 | AJ72: 0.3051949556 | AK72: 0.3258360731 | AL72: 0.322006371 | AM72: 0.3071682929 | AN72: 0.31476258 | AO72: =IF(AO3,AO71/AO70,$H$72) -> 0.3281040615 | AP72: 0.3440654404 | AQ72: 0.2987749762 | AR72: 0.2675781292 | AS72: 0.3156866797 | AT72: 0.3446710418 | AU72: 0.3557343429 | AV72: 0.2636695536 | AW72: 0.2576108855 | AX72: 0.2674495606 | AY72: 0.2703156764 | AZ72: 0.30208771 | BA72: 0.3035781104 | BB72: 0.2898108329 | BC72: 0.2524492034 | BD72: 0.2602565687 | BE72: 0.2971192305 | BF72: 0.2346397571 | BG72: 0.34136928 | BH72: 0.3193865074 | BI72: 0.287197906 | BJ72: 0.2559236275 | BK72: 0.3079251417 | BL72: 0.3348588406 | BM72: 0.3488721421 | BN72: 0.2606092958 | BO72: 0.3379817126 | BP72: 0.2894840294 | BQ72: 0.3376905084 | BR72: 0.2513432348 | BS72: 0.25 | BT72: 0.25 | BU72: =IF(BU3,BU71/BU70,$H$72) -> 0.25 | BV72: 0.25 | BW72: 0.25 | BX72: 0.25 | BY72: 0.25 | BZ72: 0.25 | CA72: 0.25 | CB72: 0.25 | CC72: 0.25 | CD72: 0.25 | CE72: 0.25 | CF72: 0.25 | CG72: 0.25 | CH72: 0.25 | CI72: 0.25 | CJ72: 0.25 | CK72: 0.25 | CL72: 0.25 | CM72: 0.25 | CN72: 0.25 | CO72: 0.25 | CP72: =IF(CP3,CP71/CP70,$H$72) -> 0.25 | CQ72: =IF(CQ3,CQ71/CQ70,$H$72) -> 0.25 | CR72: =IF(CR3,CR71/CR70,$H$72) -> 0.25 | CS72: =IF(CS3,CS71/CS70,$H$72) -> 0.25 | CT72: =IF(CT3,CT71/CT70,$H$72) -> 0.25 | CU72: =IF(CU3,CU71/CU70,$H$72) -> 0.25 | CV72: =IF(CV3,CV71/CV70,$H$72) -> 0.25 | CW72: =IF(CW3,CW71/CW70,$H$72) -> 0.25 | CX72: =IF(CX3,CX71/CX70,$H$72) -> 0.25 | CY72: =IF(CY3,CY71/CY70,$H$72) -> 0.25 | CZ72: =IF(CZ3,CZ71/CZ70,$H$72) -> 0.25 | DA72: =IF(DA3,DA71/DA70,$H$72) -> 0.25 | DB72: =IF(DB3,DB71/DB70,$H$72) -> 0.25 | DC72: =IF(DC3,DC71/DC70,$H$72) -> 0.25 | DD72: =IF(DD3,DD71/DD70,$H$72) -> 0.25 | DE72: =IF(DE3,DE71/DE70,$H$72) -> 0.25 | DF72: =IF(DF3,DF71/DF70,$H$72) -> 0.25 | DG72: =IF(DG3,DG71/DG70,$H$72) -> 0.25 | DH72: =IF(DH3,DH71/DH70,$H$72) -> 0.25 | DI72: =IF(DI3,DI71/DI70,$H$72) -> 0.25 | DJ72: =IF(DJ3,DJ71/DJ70,$H$72) -> 0.25 | DK72: =IF(DK3,DK71/DK70,$H$72) -> 0.25 | DL72: =IF(DL3,DL71/DL70,$H$72) -> 0.25 | DM72: =IF(DM3,DM71/DM70,$H$72) -> 0.25 | DN72: =IF(DN3,DN71/DN70,$H$72) -> 0.25 | DO72: =IF(DO3,DO71/DO70,$H$72) -> 0.25 | DP72: =IF(DP3,DP71/DP70,$H$72) -> 0.25 | DQ72: =IF(DQ3,DQ71/DQ70,$H$72) -> 0.25 | DR72: =IF(DR3,DR71/DR70,$H$72) -> 0.25 | DS72: =IF(DS3,DS71/DS70,$H$72) -> 0.25 | DT72: =IF(DT3,DT71/DT70,$H$72) -> 0.25 | DU72: =IF(DU3,DU71/DU70,$H$72) -> 0.25 | DV72: =IF(DV3,DV71/DV70,$H$72) -> 0.25 | DW72: =IF(DW3,DW71/DW70,$H$72) -> 0.25 | DX72: =IF(DX3,DX71/DX70,$H$72) -> 0.25 | DY72: =IF(DY3,DY71/DY70,$H$72) -> 0.25 | DZ72: =IF(DZ3,DZ71/DZ70,$H$72) -> 0.25 | EA72: =IF(EA3,EA71/EA70,$H$72) -> 0.25
D74: Total Provisisons | I74: =IF(I3,I31,I55*I75) -> 282.7203058 | J74: 276.9933013 | K74: 248.7225421 | L74: 267.9190369 | M74: 274.0589733 | N74: 246.0686578 | O74: 255.0293177 | P74: 300.1926636 | Q74: 292.9553706 | R74: 274.1492488 | S74: 282.7943432 | T74: 359.7784186 | U74: 332.0970033 | V74: 287.1614225 | W74: 322.6301501 | X74: 336.6448255 | Y74: 373.3552343 | Z74: 363.1423143 | AA74: 379.7564342 | AB74: 336.3171366 | AC74: 453.0585016 | AD74: 372.6828496 | AE74: 392.5295398 | AF74: 473.7083719 | AG74: 329.8549166 | AH74: 444.7556234 | AI74: 360.1008491 | AJ74: 409.2691776 | AK74: 438.1860731 | AL74: 423.9443085 | AM74: 483.807557 | AN74: 477.8502459 | AO74: =IF(AO3,AO31,AO55*AO75) -> 475.2605885 | AP74: 484.3772829 | AQ74: 569.0586202 | AR74: 498.504382 | AS74: 660.8845217 | AT74: 536.9319156 | AU74: 681.5300821 | AV74: 573.0192749 | AW74: 736.0924845 | AX74: 526.2638968 | AY74: 610.4325494 | AZ74: 651.0339152 | BA74: 548.7396513 | BB74: 741.1433483 | BC74: 713.6020529 | BD74: 772.6715631 | BE74: 770.0391474 | BF74: 901.4346987 | BG74: 878.3202895 | BH74: 957.1575897 | BI74: 960.2820146 | BJ74: 905.428208 | BK74: 914.62892 | BL74: 1026.602364 | BM74: 1082.605261 | BN74: 1044.387611 | BO74: 1100.382703 | BP74: 1158.99303 | BQ74: 1073.482357 | BR74: 1216.451635 | BS74: 1237.232895 | BT74: 1274.349882 | BU74: =IF(BU3,BU31,BU55*BU75) -> 1312.580378 | BV74: 1351.95779 | BW74: 1392.516523 | BX74: 1434.292019 | BY74: 1477.32078 | BZ74: 1521.640403 | CA74: 1567.289615 | CB74: 1614.308304 | CC74: 1662.737553 | CD74: 1712.619679 | CE74: 1763.99827 | CF74: 1816.918218 | CG74: 1871.425764 | CH74: 1927.568537 | CI74: 1985.395593 | CJ74: 2044.957461 | CK74: 2106.306185 | CL74: 2169.495371 | CM74: 2234.580232 | CN74: 2301.617639 | CO74: 2370.666168 | CP74: =IF(CP3,CP31,CP55*CP75) -> 2441.786153 | CQ74: =IF(CQ3,CQ31,CQ55*CQ75) -> 2515.039737 | CR74: =IF(CR3,CR31,CR55*CR75) -> 2590.490929 | CS74: =IF(CS3,CS31,CS55*CS75) -> 2668.205657 | CT74: =IF(CT3,CT31,CT55*CT75) -> 2748.251827 | CU74: =IF(CU3,CU31,CU55*CU75) -> 2830.699382 | CV74: =IF(CV3,CV31,CV55*CV75) -> 2915.620363 | CW74: =IF(CW3,CW31,CW55*CW75) -> 3003.088974 | CX74: =IF(CX3,CX31,CX55*CX75) -> 3093.181643 | CY74: =IF(CY3,CY31,CY55*CY75) -> 3185.977093 | CZ74: =IF(CZ3,CZ31,CZ55*CZ75) -> 3281.556406 | DA74: =IF(DA3,DA31,DA55*DA75) -> 3380.003098 | DB74: =IF(DB3,DB31,DB55*DB75) -> 3481.403191 | DC74: =IF(DC3,DC31,DC55*DC75) -> 3585.845286 | DD74: =IF(DD3,DD31,DD55*DD75) -> 3693.420645 | DE74: =IF(DE3,DE31,DE55*DE75) -> 3804.223264 | DF74: =IF(DF3,DF31,DF55*DF75) -> 3918.349962 | DG74: =IF(DG3,DG31,DG55*DG75) -> 4035.900461 | DH74: =IF(DH3,DH31,DH55*DH75) -> 4156.977475 | DI74: =IF(DI3,DI31,DI55*DI75) -> 4281.686799 | DJ74: =IF(DJ3,DJ31,DJ55*DJ75) -> 4410.137403 | DK74: =IF(DK3,DK31,DK55*DK75) -> 4542.441525 | DL74: =IF(DL3,DL31,DL55*DL75) -> 4678.714771 | DM74: =IF(DM3,DM31,DM55*DM75) -> 4819.076214 | DN74: =IF(DN3,DN31,DN55*DN75) -> 4963.648501 | DO74: =IF(DO3,DO31,DO55*DO75) -> 5112.557956 | DP74: =IF(DP3,DP31,DP55*DP75) -> 5265.934694 | DQ74: =IF(DQ3,DQ31,DQ55*DQ75) -> 5423.912735 | DR74: =IF(DR3,DR31,DR55*DR75) -> 5586.630117 | DS74: =IF(DS3,DS31,DS55*DS75) -> 5754.229021 | DT74: =IF(DT3,DT31,DT55*DT75) -> 5926.855891 | DU74: =IF(DU3,DU31,DU55*DU75) -> 6104.661568 | DV74: =IF(DV3,DV31,DV55*DV75) -> 6287.801415 | DW74: =IF(DW3,DW31,DW55*DW75) -> 6476.435457 | DX74: =IF(DX3,DX31,DX55*DX75) -> 6670.728521 | DY74: =IF(DY3,DY31,DY55*DY75) -> 6870.850377 | DZ74: =IF(DZ3,DZ31,DZ55*DZ75) -> 7076.975888 | EA74: =IF(EA3,EA31,EA55*EA75) -> 7289.285165
D75: Provisisons to Revenues | E75: =AVERAGEIF($4:$4,TRUE,75:75) -> 0.04050045097 | F75: =LOOKUP($G$3,$2:$2,75:75) -> 0.04050798163 | H75: 0.04 | I75: =IF(I3,I74/I55,$H$75) -> 0.05654406116 | J75: 0.0542895171 | K75: 0.0479571901 | L75: 0.05071202035 | M75: 0.05086987426 | N75: 0.04458370016 | O75: 0.04515336965 | P75: 0.05186476889 | Q75: 0.04976503699 | R75: 0.04605728682 | S75: 0.04668825943 | T75: 0.05763254415 | U75: 0.05235873783 | V75: 0.04391830547 | W75: 0.04845930955 | X75: 0.04925376864 | Y75: 0.05335521776 | Z75: 0.05085107023 | AA75: 0.05213570018 | AB75: 0.04523792241 | AC75: 0.06005927304 | AD75: 0.04851236537 | AE75: 0.0490218786 | AF75: 0.05715562769 | AG75: 0.03810681103 | AH75: 0.04926329505 | AI75: 0.03836592971 | AJ75: 0.0423972183 | AK75: 0.04334870169 | AL75: 0.04043742692 | AM75: 0.04368286968 | AN75: 0.04177239606 | AO75: =IF(AO3,AO74/AO55,$H$75) -> 0.04008006683 | AP75: 0.03931294581 | AQ75: 0.04434293232 | AR75: 0.0374304473 | AS75: 0.04764932188 | AT75: 0.03743209591 | AU75: 0.04508508443 | AV75: 0.03752217327 | AW75: 0.04761647812 | AX75: 0.03362685633 | AY75: 0.03859322426 | AZ75: 0.0406842183 | BA75: 0.03295130933 | BB75: 0.04280090161 | BC75: 0.04017127498 | BD75: 0.04155834342 | BE75: 0.0396596047 | BF75: 0.04452691758 | BG75: 0.04196527967 | BH75: 0.04406516804 | BI75: 0.04301178537 | BJ75: 0.03898267412 | BK75: 0.0380238277 | BL75: 0.04170381969 | BM75: 0.04272332426 | BN75: 0.03966667403 | BO75: 0.04037021027 | BP75: 0.04094670722 | BQ75: 0.03685334068 | BR75: 0.04050798163 | BS75: 0.04 | BT75: 0.04 | BU75: =IF(BU3,BU74/BU55,$H$75) -> 0.04 | BV75: 0.04 | BW75: 0.04 | BX75: 0.04 | BY75: 0.04 | BZ75: 0.04 | CA75: 0.04 | CB75: 0.04 | CC75: 0.04 | CD75: 0.04 | CE75: 0.04 | CF75: 0.04 | CG75: 0.04 | CH75: 0.04 | CI75: 0.04 | CJ75: 0.04 | CK75: 0.04 | CL75: 0.04 | CM75: 0.04 | CN75: 0.04 | CO75: 0.04 | CP75: =IF(CP3,CP74/CP55,$H$75) -> 0.04 | CQ75: =IF(CQ3,CQ74/CQ55,$H$75) -> 0.04 | CR75: =IF(CR3,CR74/CR55,$H$75) -> 0.04 | CS75: =IF(CS3,CS74/CS55,$H$75) -> 0.04 | CT75: =IF(CT3,CT74/CT55,$H$75) -> 0.04 | CU75: =IF(CU3,CU74/CU55,$H$75) -> 0.04 | CV75: =IF(CV3,CV74/CV55,$H$75) -> 0.04 | CW75: =IF(CW3,CW74/CW55,$H$75) -> 0.04 | CX75: =IF(CX3,CX74/CX55,$H$75) -> 0.04 | CY75: =IF(CY3,CY74/CY55,$H$75) -> 0.04 | CZ75: =IF(CZ3,CZ74/CZ55,$H$75) -> 0.04 | DA75: =IF(DA3,DA74/DA55,$H$75) -> 0.04 | DB75: =IF(DB3,DB74/DB55,$H$75) -> 0.04 | DC75: =IF(DC3,DC74/DC55,$H$75) -> 0.04 | DD75: =IF(DD3,DD74/DD55,$H$75) -> 0.04 | DE75: =IF(DE3,DE74/DE55,$H$75) -> 0.04 | DF75: =IF(DF3,DF74/DF55,$H$75) -> 0.04 | DG75: =IF(DG3,DG74/DG55,$H$75) -> 0.04 | DH75: =IF(DH3,DH74/DH55,$H$75) -> 0.04 | DI75: =IF(DI3,DI74/DI55,$H$75) -> 0.04 | DJ75: =IF(DJ3,DJ74/DJ55,$H$75) -> 0.04 | DK75: =IF(DK3,DK74/DK55,$H$75) -> 0.04 | DL75: =IF(DL3,DL74/DL55,$H$75) -> 0.04 | DM75: =IF(DM3,DM74/DM55,$H$75) -> 0.04 | DN75: =IF(DN3,DN74/DN55,$H$75) -> 0.04 | DO75: =IF(DO3,DO74/DO55,$H$75) -> 0.04 | DP75: =IF(DP3,DP74/DP55,$H$75) -> 0.04 | DQ75: =IF(DQ3,DQ74/DQ55,$H$75) -> 0.04 | DR75: =IF(DR3,DR74/DR55,$H$75) -> 0.04 | DS75: =IF(DS3,DS74/DS55,$H$75) -> 0.04 | DT75: =IF(DT3,DT74/DT55,$H$75) -> 0.04 | DU75: =IF(DU3,DU74/DU55,$H$75) -> 0.04 | DV75: =IF(DV3,DV74/DV55,$H$75) -> 0.04 | DW75: =IF(DW3,DW74/DW55,$H$75) -> 0.04 | DX75: =IF(DX3,DX74/DX55,$H$75) -> 0.04 | DY75: =IF(DY3,DY74/DY55,$H$75) -> 0.04 | DZ75: =IF(DZ3,DZ74/DZ55,$H$75) -> 0.04 | EA75: =IF(EA3,EA74/EA55,$H$75) -> 0.04
D77: Capital Expenditures | I77: =IF(I3,I51,I78*I55) -> 2595.684133 | J77: 2651.398492 | K77: 3206.516796 | L77: 3497.262976 | M77: 3322.567251 | N77: 3186.608764 | O77: 3237.807228 | P77: 3396.133099 | Q77: 3780.41822 | R77: 3731.257844 | S77: 3262.418219 | T77: 3367.489394 | U77: 2930.426112 | V77: 2566.774879 | W77: 2606.885538 | X77: 2341.325798 | Y77: 3065.961013 | Z77: 2855.072113 | AA77: 3106.974285 | AB77: 3547.268146 | AC77: 1194.532869 | AD77: 1051.400907 | AE77: 1441.827915 | AF77: 1395.023786 | AG77: 1249.225753 | AH77: 1233.84664 | AI77: 1359.977202 | AJ77: 1404.18949 | AK77: 1620.406551 | AL77: 1648.74169 | AM77: 1610.511785 | AN77: 1949.523487 | AO77: =IF(AO3,AO51,AO78*AO55) -> 1458.234095 | AP77: 1867.542463 | AQ77: 1805.085277 | AR77: 2033.706404 | AS77: 1972.331878 | AT77: 2132.607368 | AU77: 2256.784033 | AV77: 2278.312534 | AW77: 2033.659382 | AX77: 2145.696821 | AY77: 2479.272722 | AZ77: 2120.615435 | BA77: 2357.16629 | BB77: 2353.864608 | BC77: 2465.978315 | BD77: 2604.274203 | BE77: 2746.097411 | BF77: 3100.988882 | BG77: 3149.135631 | BH77: 3964.456285 | BI77: 2994.210266 | BJ77: 3596.543068 | BK77: 3727.742021 | BL77: 4384.021942 | BM77: 3356.91265 | BN77: 4131.77413 | BO77: 4189.464046 | BP77: 3660.677934 | BQ77: 4221.32589 | BR77: 5011.481328 | BS77: 4948.93158 | BT77: 5097.399528 | BU77: =IF(BU3,BU51,BU78*BU55) -> 5250.321513 | BV77: 5407.831159 | BW77: 5570.066094 | BX77: 5737.168076 | BY77: 5909.283119 | BZ77: 6086.561612 | CA77: 6269.158461 | CB77: 6457.233214 | CC77: 6650.950211 | CD77: 6850.478717 | CE77: 7055.993079 | CF77: 7267.672871 | CG77: 7485.703057 | CH77: 7710.274149 | CI77: 7941.582373 | CJ77: 8179.829845 | CK77: 8425.22474 | CL77: 8677.981482 | CM77: 8938.320926 | CN77: 9206.470554 | CO77: 9482.664671 | CP77: =IF(CP3,CP51,CP78*CP55) -> 9767.144611 | CQ77: =IF(CQ3,CQ51,CQ78*CQ55) -> 10060.15895 | CR77: =IF(CR3,CR51,CR78*CR55) -> 10361.96372 | CS77: =IF(CS3,CS51,CS78*CS55) -> 10672.82263 | CT77: =IF(CT3,CT51,CT78*CT55) -> 10993.00731 | CU77: =IF(CU3,CU51,CU78*CU55) -> 11322.79753 | CV77: =IF(CV3,CV51,CV78*CV55) -> 11662.48145 | CW77: =IF(CW3,CW51,CW78*CW55) -> 12012.3559 | CX77: =IF(CX3,CX51,CX78*CX55) -> 12372.72657 | CY77: =IF(CY3,CY51,CY78*CY55) -> 12743.90837 | CZ77: =IF(CZ3,CZ51,CZ78*CZ55) -> 13126.22562 | DA77: =IF(DA3,DA51,DA78*DA55) -> 13520.01239 | DB77: =IF(DB3,DB51,DB78*DB55) -> 13925.61276 | DC77: =IF(DC3,DC51,DC78*DC55) -> 14343.38115 | DD77: =IF(DD3,DD51,DD78*DD55) -> 14773.68258 | DE77: =IF(DE3,DE51,DE78*DE55) -> 15216.89306 | DF77: =IF(DF3,DF51,DF78*DF55) -> 15673.39985 | DG77: =IF(DG3,DG51,DG78*DG55) -> 16143.60184 | DH77: =IF(DH3,DH51,DH78*DH55) -> 16627.9099 | DI77: =IF(DI3,DI51,DI78*DI55) -> 17126.7472 | DJ77: =IF(DJ3,DJ51,DJ78*DJ55) -> 17640.54961 | DK77: =IF(DK3,DK51,DK78*DK55) -> 18169.7661 | DL77: =IF(DL3,DL51,DL78*DL55) -> 18714.85908 | DM77: =IF(DM3,DM51,DM78*DM55) -> 19276.30486 | DN77: =IF(DN3,DN51,DN78*DN55) -> 19854.594 | DO77: =IF(DO3,DO51,DO78*DO55) -> 20450.23182 | DP77: =IF(DP3,DP51,DP78*DP55) -> 21063.73878 | DQ77: =IF(DQ3,DQ51,DQ78*DQ55) -> 21695.65094 | DR77: =IF(DR3,DR51,DR78*DR55) -> 22346.52047 | DS77: =IF(DS3,DS51,DS78*DS55) -> 23016.91608 | DT77: =IF(DT3,DT51,DT78*DT55) -> 23707.42357 | DU77: =IF(DU3,DU51,DU78*DU55) -> 24418.64627 | DV77: =IF(DV3,DV51,DV78*DV55) -> 25151.20566 | DW77: =IF(DW3,DW51,DW78*DW55) -> 25905.74183 | DX77: =IF(DX3,DX51,DX78*DX55) -> 26682.91408 | DY77: =IF(DY3,DY51,DY78*DY55) -> 27483.40151 | DZ77: =IF(DZ3,DZ51,DZ78*DZ55) -> 28307.90355 | EA77: =IF(EA3,EA51,EA78*EA55) -> 29157.14066
D78: Capital Expenditures % of Revenues | E78: =AVERAGEIF($4:$4,TRUE,78:78) -> 0.1476429831 | F78: =LOOKUP($G$3,$2:$2,78:78) -> 0.1668829139 | H78: 0.16 | I78: =IF(I3,I77/I55,$H$78) -> 0.5191368267 | J78: 0.5196629055 | K78: 0.6182613537 | L78: 0.661965918 | M78: 0.6167233871 | N78: 0.5773624764 | O78: 0.5732592155 | P78: 0.5867553731 | Q78: 0.6421887817 | R78: 0.626854217 | S78: 0.5386127122 | T78: 0.5394347497 | U78: 0.4620138424 | V78: 0.3925610976 | W78: 0.3915563167 | X78: 0.3425542604 | Y78: 0.4381484507 | Z78: 0.3997977289 | AA78: 0.4265478218 | AB78: 0.4771420297 | AC78: 0.1583521233 | AD78: 0.1368615299 | AE78: 0.180065717 | AF78: 0.1683176082 | AG78: 0.1443180239 | AH78: 0.1366668523 | AI78: 0.1448949368 | AJ78: 0.1454635033 | AK78: 0.1603029501 | AL78: 0.1572632778 | AM78: 0.1454127274 | AN78: 0.1704221519 | AO78: =IF(AO3,AO77/AO55,$H$78) -> 0.1229769971 | AP78: 0.1515731605 | AQ78: 0.140658223 | AR78: 0.1527018481 | AS78: 0.1422037791 | AT78: 0.1486742755 | AU78: 0.1492924544 | AV78: 0.1491873684 | AW78: 0.1315537103 | AX78: 0.1371042915 | AY78: 0.1567464387 | AZ78: 0.1325208707 | BA78: 0.141545659 | BB78: 0.1359352786 | BC78: 0.1388189574 | BD78: 0.1400715736 | BE78: 0.1414332481 | BF78: 0.15317524 | BG78: 0.1504626035 | BH78: 0.1825137619 | BI78: 0.1341130286 | BJ78: 0.1548470272 | BK78: 0.1549732544 | BL78: 0.1780927718 | BM78: 0.13247531 | BN78: 0.1569280753 | BO78: 0.1537006571 | BP78: 0.1293301199 | BQ78: 0.1449208365 | BR78: 0.1668829139 | BS78: 0.16 | BT78: 0.16 | BU78: =IF(BU3,BU77/BU55,$H$78) -> 0.16 | BV78: 0.16 | BW78: 0.16 | BX78: 0.16 | BY78: 0.16 | BZ78: 0.16 | CA78: 0.16 | CB78: 0.16 | CC78: 0.16 | CD78: 0.16 | CE78: 0.16 | CF78: 0.16 | CG78: 0.16 | CH78: 0.16 | CI78: 0.16 | CJ78: 0.16 | CK78: 0.16 | CL78: 0.16 | CM78: 0.16 | CN78: 0.16 | CO78: 0.16 | CP78: =IF(CP3,CP77/CP55,$H$78) -> 0.16 | CQ78: =IF(CQ3,CQ77/CQ55,$H$78) -> 0.16 | CR78: =IF(CR3,CR77/CR55,$H$78) -> 0.16 | CS78: =IF(CS3,CS77/CS55,$H$78) -> 0.16 | CT78: =IF(CT3,CT77/CT55,$H$78) -> 0.16 | CU78: =IF(CU3,CU77/CU55,$H$78) -> 0.16 | CV78: =IF(CV3,CV77/CV55,$H$78) -> 0.16 | CW78: =IF(CW3,CW77/CW55,$H$78) -> 0.16 | CX78: =IF(CX3,CX77/CX55,$H$78) -> 0.16 | CY78: =IF(CY3,CY77/CY55,$H$78) -> 0.16 | CZ78: =IF(CZ3,CZ77/CZ55,$H$78) -> 0.16 | DA78: =IF(DA3,DA77/DA55,$H$78) -> 0.16 | DB78: =IF(DB3,DB77/DB55,$H$78) -> 0.16 | DC78: =IF(DC3,DC77/DC55,$H$78) -> 0.16 | DD78: =IF(DD3,DD77/DD55,$H$78) -> 0.16 | DE78: =IF(DE3,DE77/DE55,$H$78) -> 0.16 | DF78: =IF(DF3,DF77/DF55,$H$78) -> 0.16 | DG78: =IF(DG3,DG77/DG55,$H$78) -> 0.16 | DH78: =IF(DH3,DH77/DH55,$H$78) -> 0.16 | DI78: =IF(DI3,DI77/DI55,$H$78) -> 0.16 | DJ78: =IF(DJ3,DJ77/DJ55,$H$78) -> 0.16 | DK78: =IF(DK3,DK77/DK55,$H$78) -> 0.16 | DL78: =IF(DL3,DL77/DL55,$H$78) -> 0.16 | DM78: =IF(DM3,DM77/DM55,$H$78) -> 0.16 | DN78: =IF(DN3,DN77/DN55,$H$78) -> 0.16 | DO78: =IF(DO3,DO77/DO55,$H$78) -> 0.16 | DP78: =IF(DP3,DP77/DP55,$H$78) -> 0.16 | DQ78: =IF(DQ3,DQ77/DQ55,$H$78) -> 0.16 | DR78: =IF(DR3,DR77/DR55,$H$78) -> 0.16 | DS78: =IF(DS3,DS77/DS55,$H$78) -> 0.16 | DT78: =IF(DT3,DT77/DT55,$H$78) -> 0.16 | DU78: =IF(DU3,DU77/DU55,$H$78) -> 0.16 | DV78: =IF(DV3,DV77/DV55,$H$78) -> 0.16 | DW78: =IF(DW3,DW77/DW55,$H$78) -> 0.16 | DX78: =IF(DX3,DX77/DX55,$H$78) -> 0.16 | DY78: =IF(DY3,DY77/DY55,$H$78) -> 0.16 | DZ78: =IF(DZ3,DZ77/DZ55,$H$78) -> 0.16 | EA78: =IF(EA3,EA77/EA55,$H$78) -> 0.16
D80: Depreciation Expense | I80: =IF(I3,I42,H25*I81) -> 150 | J80: 243.454594 | K80: 331.1881713 | L80: 418.3467842 | M80: 505.1459437 | N80: 596.0791108 | O80: 679.4474483 | P80: 756.6822081 | Q80: 845.2219292 | R80: 925.8416625 | S80: 1012.626207 | T80: 1095.980906 | U80: 1183.039959 | V80: 1225.200359 | W80: 1265.844148 | X80: 1307.054028 | Y80: 1357.323626 | Z80: 1400.497679 | AA80: 1456.998287 | AB80: 1496.352234 | AC80: 1544.474685 | AD80: 1538.25762 | AE80: 1527.542499 | AF80: 1518.355626 | AG80: 1507.175795 | AH80: 1494.507986 | AI80: 1480.451807 | AJ80: 1484.947478 | AK80: 1486.79075 | AL80: 1488.504288 | AM80: 1482.213678 | AN80: 1489.440066 | AO80: =IF(AO3,AO42,AN25*AO81) -> 1492.095523 | AP80: 1499.454345 | AQ80: 1516.206928 | AR80: 1538.570059 | AS80: 1552.477404 | AT80: 1561.652325 | AU80: 1567.968197 | AV80: 1588.250664 | AW80: 1621.472583 | AX80: 1650.692004 | AY80: 1672.80132 | AZ80: 1696.520646 | BA80: 1705.017051 | BB80: 1731.769523 | BC80: 1751.639714 | BD80: 1794.456484 | BE80: 1831.857898 | BF80: 1863.308432 | BG80: 1902.696401 | BH80: 1930.258095 | BI80: 1965.0453 | BJ80: 2016.050593 | BK80: 2044.922773 | BL80: 2089.054294 | BM80: 2155.497321 | BN80: 2194.422245 | BO80: 2247.347713 | BP80: 2312.939466 | BQ80: 2360.093894 | BR80: 2404.783436 | BS80: 2472.535978 | BT80: 0 | BU80: =IF(BU3,BU42,BT25*BU81) -> 0 | BV80: 0 | BW80: 0 | BX80: 0 | BY80: 0 | BZ80: 0 | CA80: 0 | CB80: 0 | CC80: 0 | CD80: 0 | CE80: 0 | CF80: 0 | CG80: 0 | CH80: 0 | CI80: 0 | CJ80: 0 | CK80: 0 | CL80: 0 | CM80: 0 | CN80: 0 | CO80: 0 | CP80: =IF(CP3,CP42,CO25*CP81) -> 0 | CQ80: =IF(CQ3,CQ42,CP25*CQ81) -> 0 | CR80: =IF(CR3,CR42,CQ25*CR81) -> 0 | CS80: =IF(CS3,CS42,CR25*CS81) -> 0 | CT80: =IF(CT3,CT42,CS25*CT81) -> 0 | CU80: =IF(CU3,CU42,CT25*CU81) -> 0 | CV80: =IF(CV3,CV42,CU25*CV81) -> 0 | CW80: =IF(CW3,CW42,CV25*CW81) -> 0 | CX80: =IF(CX3,CX42,CW25*CX81) -> 0 | CY80: =IF(CY3,CY42,CX25*CY81) -> 0 | CZ80: =IF(CZ3,CZ42,CY25*CZ81) -> 0 | DA80: =IF(DA3,DA42,CZ25*DA81) -> 0 | DB80: =IF(DB3,DB42,DA25*DB81) -> 0 | DC80: =IF(DC3,DC42,DB25*DC81) -> 0 | DD80: =IF(DD3,DD42,DC25*DD81) -> 0 | DE80: =IF(DE3,DE42,DD25*DE81) -> 0 | DF80: =IF(DF3,DF42,DE25*DF81) -> 0 | DG80: =IF(DG3,DG42,DF25*DG81) -> 0 | DH80: =IF(DH3,DH42,DG25*DH81) -> 0 | DI80: =IF(DI3,DI42,DH25*DI81) -> 0 | DJ80: =IF(DJ3,DJ42,DI25*DJ81) -> 0 | DK80: =IF(DK3,DK42,DJ25*DK81) -> 0 | DL80: =IF(DL3,DL42,DK25*DL81) -> 0 | DM80: =IF(DM3,DM42,DL25*DM81) -> 0 | DN80: =IF(DN3,DN42,DM25*DN81) -> 0 | DO80: =IF(DO3,DO42,DN25*DO81) -> 0 | DP80: =IF(DP3,DP42,DO25*DP81) -> 0 | DQ80: =IF(DQ3,DQ42,DP25*DQ81) -> 0 | DR80: =IF(DR3,DR42,DQ25*DR81) -> 0 | DS80: =IF(DS3,DS42,DR25*DS81) -> 0 | DT80: =IF(DT3,DT42,DS25*DT81) -> 0 | DU80: =IF(DU3,DU42,DT25*DU81) -> 0 | DV80: =IF(DV3,DV42,DU25*DV81) -> 0 | DW80: =IF(DW3,DW42,DV25*DW81) -> 0 | DX80: =IF(DX3,DX42,DW25*DX81) -> 0 | DY80: =IF(DY3,DY42,DX25*DY81) -> 0 | DZ80: =IF(DZ3,DZ42,DY25*DZ81) -> 0 | EA80: =IF(EA3,EA42,DZ25*EA81) -> 0
D81: Depreciation Rate on Net Block | E81: =AVERAGEIF($4:$4,TRUE,81:81) -> 0.03 | F81: =LOOKUP($G$3,$2:$2,81:81) -> 0.03 | H81: 0.03 | I81: =IF(I3,I80/H25,$H$81) -> 0.03 | J81: 0.03 | K81: 0.03 | L81: 0.03 | M81: 0.03 | N81: 0.03 | O81: 0.03 | P81: 0.03 | Q81: 0.03 | R81: 0.03 | S81: 0.03 | T81: 0.03 | U81: 0.03 | V81: 0.03 | W81: 0.03 | X81: 0.03 | Y81: 0.03 | Z81: 0.03 | AA81: 0.03 | AB81: 0.03 | AC81: 0.03 | AD81: 0.03 | AE81: 0.03 | AF81: 0.03 | AG81: 0.03 | AH81: 0.03 | AI81: 0.03 | AJ81: 0.03 | AK81: 0.03 | AL81: 0.03 | AM81: 0.03 | AN81: 0.03 | AO81: =IF(AO3,AO80/AN25,$H$81) -> 0.03 | AP81: 0.03 | AQ81: 0.03 | AR81: 0.03 | AS81: 0.03 | AT81: 0.03 | AU81: 0.03 | AV81: 0.03 | AW81: 0.03 | AX81: 0.03 | AY81: 0.03 | AZ81: 0.03 | BA81: 0.03 | BB81: 0.03 | BC81: 0.03 | BD81: 0.03 | BE81: 0.03 | BF81: 0.03 | BG81: 0.03 | BH81: 0.03 | BI81: 0.03 | BJ81: 0.03 | BK81: 0.03 | BL81: 0.03 | BM81: 0.03 | BN81: 0.03 | BO81: 0.03 | BP81: 0.03 | BQ81: 0.03 | BR81: 0.03 | BS81: 0.03 | BT81: 0.03 | BU81: =IF(BU3,BU80/BT25,$H$81) -> 0.03 | BV81: 0.03 | BW81: 0.03 | BX81: 0.03 | BY81: 0.03 | BZ81: 0.03 | CA81: 0.03 | CB81: 0.03 | CC81: 0.03 | CD81: 0.03 | CE81: 0.03 | CF81: 0.03 | CG81: 0.03 | CH81: 0.03 | CI81: 0.03 | CJ81: 0.03 | CK81: 0.03 | CL81: 0.03 | CM81: 0.03 | CN81: 0.03 | CO81: 0.03 | CP81: =IF(CP3,CP80/CO25,$H$81) -> 0.03 | CQ81: =IF(CQ3,CQ80/CP25,$H$81) -> 0.03 | CR81: =IF(CR3,CR80/CQ25,$H$81) -> 0.03 | CS81: =IF(CS3,CS80/CR25,$H$81) -> 0.03 | CT81: =IF(CT3,CT80/CS25,$H$81) -> 0.03 | CU81: =IF(CU3,CU80/CT25,$H$81) -> 0.03 | CV81: =IF(CV3,CV80/CU25,$H$81) -> 0.03 | CW81: =IF(CW3,CW80/CV25,$H$81) -> 0.03 | CX81: =IF(CX3,CX80/CW25,$H$81) -> 0.03 | CY81: =IF(CY3,CY80/CX25,$H$81) -> 0.03 | CZ81: =IF(CZ3,CZ80/CY25,$H$81) -> 0.03 | DA81: =IF(DA3,DA80/CZ25,$H$81) -> 0.03 | DB81: =IF(DB3,DB80/DA25,$H$81) -> 0.03 | DC81: =IF(DC3,DC80/DB25,$H$81) -> 0.03 | DD81: =IF(DD3,DD80/DC25,$H$81) -> 0.03 | DE81: =IF(DE3,DE80/DD25,$H$81) -> 0.03 | DF81: =IF(DF3,DF80/DE25,$H$81) -> 0.03 | DG81: =IF(DG3,DG80/DF25,$H$81) -> 0.03 | DH81: =IF(DH3,DH80/DG25,$H$81) -> 0.03 | DI81: =IF(DI3,DI80/DH25,$H$81) -> 0.03 | DJ81: =IF(DJ3,DJ80/DI25,$H$81) -> 0.03 | DK81: =IF(DK3,DK80/DJ25,$H$81) -> 0.03 | DL81: =IF(DL3,DL80/DK25,$H$81) -> 0.03 | DM81: =IF(DM3,DM80/DL25,$H$81) -> 0.03 | DN81: =IF(DN3,DN80/DM25,$H$81) -> 0.03 | DO81: =IF(DO3,DO80/DN25,$H$81) -> 0.03 | DP81: =IF(DP3,DP80/DO25,$H$81) -> 0.03 | DQ81: =IF(DQ3,DQ80/DP25,$H$81) -> 0.03 | DR81: =IF(DR3,DR80/DQ25,$H$81) -> 0.03 | DS81: =IF(DS3,DS80/DR25,$H$81) -> 0.03 | DT81: =IF(DT3,DT80/DS25,$H$81) -> 0.03 | DU81: =IF(DU3,DU80/DT25,$H$81) -> 0.03 | DV81: =IF(DV3,DV80/DU25,$H$81) -> 0.03 | DW81: =IF(DW3,DW80/DV25,$H$81) -> 0.03 | DX81: =IF(DX3,DX80/DW25,$H$81) -> 0.03 | DY81: =IF(DY3,DY80/DX25,$H$81) -> 0.03 | DZ81: =IF(DZ3,DZ80/DY25,$H$81) -> 0.03 | EA81: =IF(EA3,EA80/DZ25,$H$81) -> 0.03
D83: Cash Balance | I83: =IF(I3,I23) -> 103.1167145 | J83: 117.7974748 | K83: 50.8462471 | L83: 91.96360396 | M83: 21.08598289 | N83: 121.1765938 | O83: 108.6727575 | P83: 136.0202369 | Q83: 62.18301984 | R83: 43.75186833 | S83: 135.2460974 | T83: 184.5768451 | U83: 72.39539969 | V83: 156.4781006 | W83: 111.6896631 | X83: 154.5274606 | Y83: 140.6985101 | Z83: 207.2789926 | AA83: 138.277348 | AB83: 72.17672239 | AC83: 205.5415494 | AD83: 60.95469748 | AE83: 174.3516086 | AF83: 138.7903515 | AG83: 245.444754 | AH83: 160.8875282 | AI83: 87.47430471 | AJ83: 228.5272496 | AK83: 160.693798 | AL83: 153.5964646 | AM83: 316.7223732 | AN83: 387.945725 | AO83: =IF(AO3,AO23) -> 208.0702627 | AP83: 205.6102403 | AQ83: 314.9543706 | AR83: 415.0919743 | AS83: 201.7401627 | AT83: 250.3822666 | AU83: 241.0153701 | AV83: 267.5054019 | AW83: 333.0715592 | AX83: 202.9395823 | AY83: 285.9874703 | AZ83: 196.0600265 | BA83: 310.4419081 | BB83: 303.5476167 | BC83: 387.7829669 | BD83: 402.7861998 | BE83: 472.9575647 | BF83: 410.7769915 | BG83: 242.110947 | BH83: 414.7380107 | BI83: 381.5708673 | BJ83: 209.5921178 | BK83: 523.6205965 | BL83: 609.3795685 | BM83: 476.321419 | BN83: 486.4892428 | BO83: 400.490207 | BP83: 758.7072418 | BQ83: 683.6012916 | BR83: 446.5583378 | BS83: FALSE | BT83: FALSE | BU83: =IF(BU3,BU23) -> FALSE | BV83: FALSE | BW83: FALSE | BX83: FALSE | BY83: FALSE | BZ83: FALSE | CA83: FALSE | CB83: FALSE | CC83: FALSE | CD83: FALSE | CE83: FALSE | CF83: FALSE | CG83: FALSE | CH83: FALSE | CI83: FALSE | CJ83: FALSE | CK83: FALSE | CL83: FALSE | CM83: FALSE | CN83: FALSE | CO83: FALSE | CP83: =IF(CP3,CP23) -> FALSE | CQ83: FALSE | CR83: FALSE | CS83: FALSE | CT83: FALSE | CU83: FALSE | CV83: FALSE | CW83: FALSE | CX83: FALSE | CY83: FALSE | CZ83: FALSE | DA83: FALSE | DB83: FALSE | DC83: FALSE | DD83: FALSE | DE83: FALSE | DF83: FALSE | DG83: FALSE | DH83: FALSE | DI83: FALSE | DJ83: FALSE | DK83: FALSE | DL83: FALSE | DM83: FALSE | DN83: FALSE | DO83: FALSE | DP83: FALSE | DQ83: FALSE | DR83: FALSE | DS83: FALSE | DT83: FALSE | DU83: FALSE | DV83: FALSE | DW83: FALSE | DX83: FALSE | DY83: FALSE | DZ83: FALSE | EA83: FALSE
D84: Cash to Revenues | E84: =AVERAGEIF($4:$4,TRUE,84:84) -> 0.01861688601 | F84: =LOOKUP($G$3,$2:$2,84:84) -> 0.01487044484 | H84: 0.02 | I84: =IF(I3,I83/I55,$H$84) -> 0.02062334291 | J84: 0.02308780752 | K84: 0.009803868672 | L84: 0.01740697566 | M84: 0.00391390687 | N84: 0.02195525823 | O84: 0.01924069449 | P84: 0.02350043491 | Q84: 0.0105631799 | R84: 0.007350347875 | S84: 0.022328611 | T84: 0.02956717975 | U84: 0.01141392941 | V84: 0.02393167217 | W84: 0.01677587775 | X84: 0.02260857503 | Y84: 0.02010685523 | Z84: 0.02902542115 | AA84: 0.01898371089 | AB84: 0.009708470405 | AC84: 0.02724742168 | AD84: 0.007934512035 | AE84: 0.02177426799 | AF84: 0.01674585067 | AG84: 0.02835524466 | AH84: 0.01782068479 | AI84: 0.009319703175 | AJ84: 0.02367370967 | AK84: 0.01589705365 | AL84: 0.01465061728 | AM84: 0.02859678803 | AN84: 0.03391318225 | AO84: =IF(AO3,AO83/AO55,$H$84) -> 0.01754715253 | AP84: 0.016687703 | AQ84: 0.02454228764 | AR84: 0.03116738554 | AS84: 0.01454532772 | AT84: 0.01745534721 | AU84: 0.01594382786 | AV84: 0.0175166604 | AW84: 0.02154579071 | AX84: 0.01296729686 | AY84: 0.01808091424 | AZ84: 0.01225212501 | BA84: 0.01864174991 | BB84: 0.01752982295 | BC84: 0.02182972447 | BD84: 0.02166396179 | BE84: 0.02435890451 | BF84: 0.02029058041 | BG84: 0.01156782295 | BH84: 0.01909351222 | BI84: 0.01709085873 | BJ84: 0.009023864238 | BK84: 0.02176845593 | BL84: 0.02475491635 | BM84: 0.01879728019 | BN84: 0.01847724927 | BO84: 0.0146929553 | BP84: 0.02680478872 | BQ84: 0.02346847261 | BR84: 0.01487044484 | BS84: 0.02 | BT84: 0.02 | BU84: =IF(BU3,BU83/BU55,$H$84) -> 0.02 | BV84: 0.02 | BW84: 0.02 | BX84: 0.02 | BY84: 0.02 | BZ84: 0.02 | CA84: 0.02 | CB84: 0.02 | CC84: 0.02 | CD84: 0.02 | CE84: 0.02 | CF84: 0.02 | CG84: 0.02 | CH84: 0.02 | CI84: 0.02 | CJ84: 0.02 | CK84: 0.02 | CL84: 0.02 | CM84: 0.02 | CN84: 0.02 | CO84: 0.02 | CP84: =IF(CP3,CP83/CP55,$H$84) -> 0.02 | CQ84: =IF(CQ3,CQ83/CQ55,$H$84) -> 0.02 | CR84: =IF(CR3,CR83/CR55,$H$84) -> 0.02 | CS84: =IF(CS3,CS83/CS55,$H$84) -> 0.02 | CT84: =IF(CT3,CT83/CT55,$H$84) -> 0.02 | CU84: =IF(CU3,CU83/CU55,$H$84) -> 0.02 | CV84: =IF(CV3,CV83/CV55,$H$84) -> 0.02 | CW84: =IF(CW3,CW83/CW55,$H$84) -> 0.02 | CX84: =IF(CX3,CX83/CX55,$H$84) -> 0.02 | CY84: =IF(CY3,CY83/CY55,$H$84) -> 0.02 | CZ84: =IF(CZ3,CZ83/CZ55,$H$84) -> 0.02 | DA84: =IF(DA3,DA83/DA55,$H$84) -> 0.02 | DB84: =IF(DB3,DB83/DB55,$H$84) -> 0.02 | DC84: =IF(DC3,DC83/DC55,$H$84) -> 0.02 | DD84: =IF(DD3,DD83/DD55,$H$84) -> 0.02 | DE84: =IF(DE3,DE83/DE55,$H$84) -> 0.02 | DF84: =IF(DF3,DF83/DF55,$H$84) -> 0.02 | DG84: =IF(DG3,DG83/DG55,$H$84) -> 0.02 | DH84: =IF(DH3,DH83/DH55,$H$84) -> 0.02 | DI84: =IF(DI3,DI83/DI55,$H$84) -> 0.02 | DJ84: =IF(DJ3,DJ83/DJ55,$H$84) -> 0.02 | DK84: =IF(DK3,DK83/DK55,$H$84) -> 0.02 | DL84: =IF(DL3,DL83/DL55,$H$84) -> 0.02 | DM84: =IF(DM3,DM83/DM55,$H$84) -> 0.02 | DN84: =IF(DN3,DN83/DN55,$H$84) -> 0.02 | DO84: =IF(DO3,DO83/DO55,$H$84) -> 0.02 | DP84: =IF(DP3,DP83/DP55,$H$84) -> 0.02 | DQ84: =IF(DQ3,DQ83/DQ55,$H$84) -> 0.02 | DR84: =IF(DR3,DR83/DR55,$H$84) -> 0.02 | DS84: =IF(DS3,DS83/DS55,$H$84) -> 0.02 | DT84: =IF(DT3,DT83/DT55,$H$84) -> 0.02 | DU84: =IF(DU3,DU83/DU55,$H$84) -> 0.02 | DV84: =IF(DV3,DV83/DV55,$H$84) -> 0.02 | DW84: =IF(DW3,DW83/DW55,$H$84) -> 0.02 | DX84: =IF(DX3,DX83/DX55,$H$84) -> 0.02 | DY84: =IF(DY3,DY83/DY55,$H$84) -> 0.02 | DZ84: =IF(DZ3,DZ83/DZ55,$H$84) -> 0.02 | EA84: =IF(EA3,EA83/EA55,$H$84) -> 0.02
D86: Interest Expense | I86: =IF(I3,I44) -> 94.14565848 | J86: 136.411622 | K86: 150.2203509 | L86: 164.9901784 | M86: 228.4714916 | N86: 232.1788746 | O86: 238.1089001 | P86: 349.7085812 | Q86: 310.7956915 | R86: 246.0773898 | S86: 265.2686966 | T86: 455.1279013 | U86: 435.4245215 | V86: 290.2776403 | W86: 468.9485658 | X86: 346.8965142 | Y86: 415.01426 | Z86: 383.6057399 | AA86: 514.8881971 | AB86: 608.2599334 | AC86: 440.9774611 | AD86: 381.6595041 | AE86: 510.4657097 | AF86: 401.6097533 | AG86: 384.1156367 | AH86: 481.9561392 | AI86: 493.1675407 | AJ86: 507.00285 | AK86: 276.7407468 | AL86: 594.4112582 | AM86: 422.2051604 | AN86: 557.040704 | AO86: =IF(AO3,AO44) -> 443.5483774 | AP86: 373.3837866 | AQ86: 316.203064 | AR86: 601.0929178 | AS86: 503.9870157 | AT86: 639.6944228 | AU86: 633.7557518 | AV86: 486.4164017 | AW86: 451.1044524 | AX86: 601.2744076 | AY86: 398.9131453 | AZ86: 513.1648841 | BA86: 602.3661063 | BB86: 276.7738655 | BC86: 648.9714574 | BD86: 415.0637921 | BE86: 666.6039197 | BF86: 582.1926737 | BG86: 538.257102 | BH86: 879.7623231 | BI86: 682.4305227 | BJ86: 552.6562071 | BK86: 610.9818379 | BL86: 740.5111298 | BM86: 772.091596 | BN86: 678.6437238 | BO86: 891.7762879 | BP86: 614.3356465 | BQ86: 729.0905081 | BR86: 799.0534778 | BS86: FALSE | BT86: FALSE | BU86: =IF(BU3,BU44) -> FALSE | BV86: FALSE | BW86: FALSE | BX86: FALSE | BY86: FALSE | BZ86: FALSE | CA86: FALSE | CB86: FALSE | CC86: FALSE | CD86: FALSE | CE86: FALSE | CF86: FALSE | CG86: FALSE | CH86: FALSE | CI86: FALSE | CJ86: FALSE | CK86: FALSE | CL86: FALSE | CM86: FALSE | CN86: FALSE | CO86: FALSE | CP86: =IF(CP3,CP44) -> FALSE | CQ86: FALSE | CR86: FALSE | CS86: FALSE | CT86: FALSE | CU86: FALSE | CV86: FALSE | CW86: FALSE | CX86: FALSE | CY86: FALSE | CZ86: FALSE | DA86: FALSE | DB86: FALSE | DC86: FALSE | DD86: FALSE | DE86: FALSE | DF86: FALSE | DG86: FALSE | DH86: FALSE | DI86: FALSE | DJ86: FALSE | DK86: FALSE | DL86: FALSE | DM86: FALSE | DN86: FALSE | DO86: FALSE | DP86: FALSE | DQ86: FALSE | DR86: FALSE | DS86: FALSE | DT86: FALSE | DU86: FALSE | DV86: FALSE | DW86: FALSE | DX86: FALSE | DY86: FALSE | DZ86: FALSE | EA86: FALSE
D87: Interest Expense to Debt | E87: =AVERAGEIF($4:$4,TRUE,87:87) -> 0.01506391238 | F87: =LOOKUP($G$3,$2:$2,87:87) -> 0.01551454354 | H87: 0.018 | J87: =IF(J3,J86/I30,$H$87) -> 0.0206238621 | K87: 0.01964437847 | L87: 0.01790472466 | M87: 0.02010245097 | N87: 0.01853229775 | O87: 0.01609412573 | P87: 0.02248766532 | Q87: 0.01750691624 | R87: 0.01294271716 | S87: 0.01311179981 | T87: 0.02078487978 | U87: 0.01868879479 | V87: 0.01191197286 | W87: 0.01883963355 | X87: 0.01321218388 | Y87: 0.01515572513 | Z87: 0.0137154157 | AA87: 0.01810265825 | AB87: 0.0204300456 | AC87: 0.01409470615 | AD87: 0.01240058669 | AE87: 0.01643119767 | AF87: 0.01328146157 | AG87: 0.01272501824 | AH87: 0.0160597122 | AI87: 0.01634381866 | AJ87: 0.01684776519 | AK87: 0.009204190039 | AL87: 0.01966094862 | AM87: 0.0140902136 | AN87: 0.01854365629 | AO87: 0.01418913796 | AP87: =IF(AP3,AP86/AO30,$H$87) -> 0.01184923511 | AQ87: 0.01019679515 | AR87: 0.01865154148 | AS87: 0.01548952926 | AT87: 0.01929039179 | AU87: 0.01884574181 | AV87: 0.01461013973 | AW87: 0.01320088759 | AX87: 0.01762759524 | AY87: 0.01188633196 | AZ87: 0.01419860976 | BA87: 0.01715510183 | BB87: 0.007698664439 | BC87: 0.01783512048 | BD87: 0.01117474894 | BE87: 0.01758559733 | BF87: 0.01453864689 | BG87: 0.01362441374 | BH87: 0.02135269605 | BI87: 0.01653043532 | BJ87: 0.01286946368 | BK87: 0.01442802551 | BL87: 0.01672233012 | BM87: 0.01692523618 | BN87: 0.01458824958 | BO87: 0.01891506278 | BP87: 0.01267371652 | BQ87: 0.014360595 | BR87: 0.01551454354 | BS87: 0.018 | BT87: 0.018 | BU87: 0.018 | BV87: =IF(BV3,BV86/BU30,$H$87) -> 0.018 | BW87: 0.018 | BX87: 0.018 | BY87: 0.018 | BZ87: 0.018 | CA87: 0.018 | CB87: 0.018 | CC87: 0.018 | CD87: 0.018 | CE87: 0.018 | CF87: 0.018 | CG87: 0.018 | CH87: 0.018 | CI87: 0.018 | CJ87: 0.018 | CK87: 0.018 | CL87: 0.018 | CM87: 0.018 | CN87: 0.018 | CO87: 0.018 | CP87: =IF(CP3,CP86/CO30,$H$87) -> 0.018 | CQ87: =IF(CQ3,CQ86/CP30,$H$87) -> 0.018 | CR87: =IF(CR3,CR86/CQ30,$H$87) -> 0.018 | CS87: =IF(CS3,CS86/CR30,$H$87) -> 0.018 | CT87: =IF(CT3,CT86/CS30,$H$87) -> 0.018 | CU87: =IF(CU3,CU86/CT30,$H$87) -> 0.018 | CV87: =IF(CV3,CV86/CU30,$H$87) -> 0.018 | CW87: =IF(CW3,CW86/CV30,$H$87) -> 0.018 | CX87: =IF(CX3,CX86/CW30,$H$87) -> 0.018 | CY87: =IF(CY3,CY86/CX30,$H$87) -> 0.018 | CZ87: =IF(CZ3,CZ86/CY30,$H$87) -> 0.018 | DA87: =IF(DA3,DA86/CZ30,$H$87) -> 0.018 | DB87: =IF(DB3,DB86/DA30,$H$87) -> 0.018 | DC87: =IF(DC3,DC86/DB30,$H$87) -> 0.018 | DD87: =IF(DD3,DD86/DC30,$H$87) -> 0.018 | DE87: =IF(DE3,DE86/DD30,$H$87) -> 0.018 | DF87: =IF(DF3,DF86/DE30,$H$87) -> 0.018 | DG87: =IF(DG3,DG86/DF30,$H$87) -> 0.018 | DH87: =IF(DH3,DH86/DG30,$H$87) -> 0.018 | DI87: =IF(DI3,DI86/DH30,$H$87) -> 0.018 | DJ87: =IF(DJ3,DJ86/DI30,$H$87) -> 0.018 | DK87: =IF(DK3,DK86/DJ30,$H$87) -> 0.018 | DL87: =IF(DL3,DL86/DK30,$H$87) -> 0.018 | DM87: =IF(DM3,DM86/DL30,$H$87) -> 0.018 | DN87: =IF(DN3,DN86/DM30,$H$87) -> 0.018 | DO87: =IF(DO3,DO86/DN30,$H$87) -> 0.018 | DP87: =IF(DP3,DP86/DO30,$H$87) -> 0.018 | DQ87: =IF(DQ3,DQ86/DP30,$H$87) -> 0.018 | DR87: =IF(DR3,DR86/DQ30,$H$87) -> 0.018 | DS87: =IF(DS3,DS86/DR30,$H$87) -> 0.018 | DT87: =IF(DT3,DT86/DS30,$H$87) -> 0.018 | DU87: =IF(DU3,DU86/DT30,$H$87) -> 0.018 | DV87: =IF(DV3,DV86/DU30,$H$87) -> 0.018 | DW87: =IF(DW3,DW86/DV30,$H$87) -> 0.018 | DX87: =IF(DX3,DX86/DW30,$H$87) -> 0.018 | DY87: =IF(DY3,DY86/DX30,$H$87) -> 0.018 | DZ87: =IF(DZ3,DZ86/DY30,$H$87) -> 0.018 | EA87: =IF(EA3,EA86/DZ30,$H$87) -> 0.018
D89: Interest Income | I89: =IF(I3,I45) -> 0.393676974 | J89: 0.2370040217 | K89: 0.210592841 | L89: 0.1251238765 | M89: 0.05475923457 | N89: 0.3103480881 | O89: 0.3607112743 | P89: 0.4291257597 | Q89: 0.2247460082 | R89: 0.1357897845 | S89: 0.3356067095 | T89: 0.7339798641 | U89: 0.1328610453 | V89: 0.484614073 | W89: 0.2709273454 | X89: 0.5341357291 | Y89: 0.5156814903 | Z89: 0.6424816033 | AA89: 0.42481958 | AB89: 0.1945289285 | AC89: 0.6872641279 | AD89: 0.2142025747 | AE89: 0.5588928393 | AF89: 0.3531244213 | AG89: 0.5727214045 | AH89: 0.4933185365 | AI89: 0.1796055779 | AJ89: 0.705135965 | AK89: 0.5291485376 | AL89: 0.5379751882 | AM89: 0.8096309216 | AN89: 1.517579509 | AO89: =IF(AO3,AO45) -> 0.4159613026 | AP89: 0.5065151834 | AQ89: 0.8053107443 | AR89: 1.231289259 | AS89: 0.665260905 | AT89: 0.7810529047 | AU89: 0.5909801905 | AV89: 0.403865524 | AW89: 1.322868924 | AX89: 0.561713634 | AY89: 0.7594619776 | AZ89: 0.6526715658 | BA89: 0.9937825824 | BB89: 1.051357728 | BC89: 0.8498793635 | BD89: 1.178650056 | BE89: 1.688777696 | BF89: 1.36465854 | BG89: 0.8651387076 | BH89: 1.455936708 | BI89: 1.170299486 | BJ89: 0.843425578 | BK89: 2.015417119 | BL89: 1.445362759 | BM89: 1.692778248 | BN89: 1.989791922 | BO89: 1.11126772 | BP89: 2.924030632 | BQ89: 2.657621913 | BR89: 1.320387647 | BS89: FALSE | BT89: FALSE | BU89: =IF(BU3,BU45) -> FALSE | BV89: FALSE | BW89: FALSE | BX89: FALSE | BY89: FALSE | BZ89: FALSE | CA89: FALSE | CB89: FALSE | CC89: FALSE | CD89: FALSE | CE89: FALSE | CF89: FALSE | CG89: FALSE | CH89: FALSE | CI89: FALSE | CJ89: FALSE | CK89: FALSE | CL89: FALSE | CM89: FALSE | CN89: FALSE | CO89: FALSE | CP89: =IF(CP3,CP45) -> FALSE | CQ89: FALSE | CR89: FALSE | CS89: FALSE | CT89: FALSE | CU89: FALSE | CV89: FALSE | CW89: FALSE | CX89: FALSE | CY89: FALSE | CZ89: FALSE | DA89: FALSE | DB89: FALSE | DC89: FALSE | DD89: FALSE | DE89: FALSE | DF89: FALSE | DG89: FALSE | DH89: FALSE | DI89: FALSE | DJ89: FALSE | DK89: FALSE | DL89: FALSE | DM89: FALSE | DN89: FALSE | DO89: FALSE | DP89: FALSE | DQ89: FALSE | DR89: FALSE | DS89: FALSE | DT89: FALSE | DU89: FALSE | DV89: FALSE | DW89: FALSE | DX89: FALSE | DY89: FALSE | DZ89: FALSE | EA89: FALSE
D90: Interest Income to Cash | E90: =AVERAGEIF($4:$4,TRUE,90:90) -> 0.003705999811 | F90: =LOOKUP($G$3,$2:$2,90:90) -> 0.001931517191 | H90: 0.002 | J90: =IF(J3,J89/I23,$H$90) -> 0.002298405479 | K90: 0.001787753441 | L90: 0.002460828157 | M90: 0.0005954446348 | N90: 0.01471821777 | O90: 0.002976740499 | P90: 0.003948788727 | Q90: 0.001652298315 | R90: 0.002183711645 | S90: 0.007670682929 | T90: 0.005426994777 | U90: 0.0007198142607 | V90: 0.006693989882 | W90: 0.001731407426 | X90: 0.004782320176 | Y90: 0.003337151134 | Z90: 0.00456637105 | AA90: 0.002049506198 | AB90: 0.00140680257 | AC90: 0.009521963662 | AD90: 0.001042137589 | AE90: 0.009168987173 | AF90: 0.002025357977 | AG90: 0.004126521753 | AH90: 0.002009896436 | AI90: 0.001116342453 | AJ90: 0.008061063958 | AK90: 0.002315472394 | AL90: 0.003347827949 | AM90: 0.005271155972 | AN90: 0.004791513442 | AO90: 0.001072215199 | AP90: =IF(AP3,AP89/AO23,$H$90) -> 0.002434346825 | AQ90: 0.003916685974 | AR90: 0.003909421091 | AS90: 0.001602683131 | AT90: 0.003871578639 | AU90: 0.002360311689 | AV90: 0.001675683687 | AW90: 0.004945204524 | AX90: 0.001686465321 | AY90: 0.003742305808 | AZ90: 0.002282168394 | BA90: 0.00506876695 | BB90: 0.003386648838 | BC90: 0.002799822225 | BD90: 0.003039458039 | BE90: 0.004192739714 | BF90: 0.002885372054 | BG90: 0.00210610313 | BH90: 0.006013510441 | BI90: 0.00282178015 | BJ90: 0.002210403493 | BK90: 0.009615901307 | BL90: 0.002760324495 | BM90: 0.002777871684 | BN90: 0.004177414332 | BO90: 0.002284259593 | BP90: 0.00730112892 | BQ90: 0.003502829242 | BR90: 0.001931517191 | BS90: 0.002 | BT90: 0.002 | BU90: 0.002 | BV90: =IF(BV3,BV89/BU23,$H$90) -> 0.002 | BW90: 0.002 | BX90: 0.002 | BY90: 0.002 | BZ90: 0.002 | CA90: 0.002 | CB90: 0.002 | CC90: 0.002 | CD90: 0.002 | CE90: 0.002 | CF90: 0.002 | CG90: 0.002 | CH90: 0.002 | CI90: 0.002 | CJ90: 0.002 | CK90: 0.002 | CL90: 0.002 | CM90: 0.002 | CN90: 0.002 | CO90: 0.002 | CP90: =IF(CP3,CP89/CO23,$H$90) -> 0.002 | CQ90: =IF(CQ3,CQ89/CP23,$H$90) -> 0.002 | CR90: =IF(CR3,CR89/CQ23,$H$90) -> 0.002 | CS90: =IF(CS3,CS89/CR23,$H$90) -> 0.002 | CT90: =IF(CT3,CT89/CS23,$H$90) -> 0.002 | CU90: =IF(CU3,CU89/CT23,$H$90) -> 0.002 | CV90: =IF(CV3,CV89/CU23,$H$90) -> 0.002 | CW90: =IF(CW3,CW89/CV23,$H$90) -> 0.002 | CX90: =IF(CX3,CX89/CW23,$H$90) -> 0.002 | CY90: =IF(CY3,CY89/CX23,$H$90) -> 0.002 | CZ90: =IF(CZ3,CZ89/CY23,$H$90) -> 0.002 | DA90: =IF(DA3,DA89/CZ23,$H$90) -> 0.002 | DB90: =IF(DB3,DB89/DA23,$H$90) -> 0.002 | DC90: =IF(DC3,DC89/DB23,$H$90) -> 0.002 | DD90: =IF(DD3,DD89/DC23,$H$90) -> 0.002 | DE90: =IF(DE3,DE89/DD23,$H$90) -> 0.002 | DF90: =IF(DF3,DF89/DE23,$H$90) -> 0.002 | DG90: =IF(DG3,DG89/DF23,$H$90) -> 0.002 | DH90: =IF(DH3,DH89/DG23,$H$90) -> 0.002 | DI90: =IF(DI3,DI89/DH23,$H$90) -> 0.002 | DJ90: =IF(DJ3,DJ89/DI23,$H$90) -> 0.002 | DK90: =IF(DK3,DK89/DJ23,$H$90) -> 0.002 | DL90: =IF(DL3,DL89/DK23,$H$90) -> 0.002 | DM90: =IF(DM3,DM89/DL23,$H$90) -> 0.002 | DN90: =IF(DN3,DN89/DM23,$H$90) -> 0.002 | DO90: =IF(DO3,DO89/DN23,$H$90) -> 0.002 | DP90: =IF(DP3,DP89/DO23,$H$90) -> 0.002 | DQ90: =IF(DQ3,DQ89/DP23,$H$90) -> 0.002 | DR90: =IF(DR3,DR89/DQ23,$H$90) -> 0.002 | DS90: =IF(DS3,DS89/DR23,$H$90) -> 0.002 | DT90: =IF(DT3,DT89/DS23,$H$90) -> 0.002 | DU90: =IF(DU3,DU89/DT23,$H$90) -> 0.002 | DV90: =IF(DV3,DV89/DU23,$H$90) -> 0.002 | DW90: =IF(DW3,DW89/DV23,$H$90) -> 0.002 | DX90: =IF(DX3,DX89/DW23,$H$90) -> 0.002 | DY90: =IF(DY3,DY89/DX23,$H$90) -> 0.002 | DZ90: =IF(DZ3,DZ89/DY23,$H$90) -> 0.002 | EA90: =IF(EA3,EA89/DZ23,$H$90) -> 0.002
D92: Tax Rate | E92: =AVERAGEIF($4:$4,TRUE,92:92) -> 0.345 | F92: =LOOKUP($G$3,$2:$2,92:92) -> 0.345 | H92: 0.345 | I92: =IF(I3,I47/I46,$H$92) -> 0.345 | J92: 0.345 | K92: 0.345 | L92: 0.345 | M92: 0.345 | N92: 0.345 | O92: 0.345 | P92: 0.345 | Q92: 0.345 | R92: 0.345 | S92: 0.345 | T92: 0.345 | U92: 0.345 | V92: 0.345 | W92: 0.345 | X92: 0.345 | Y92: 0.345 | Z92: 0.345 | AA92: 0.345 | AB92: 0.345 | AC92: 0.345 | AD92: 0.345 | AE92: 0.345 | AF92: 0.345 | AG92: 0.345 | AH92: 0.345 | AI92: 0.345 | AJ92: 0.345 | AK92: 0.345 | AL92: 0.345 | AM92: 0.345 | AN92: 0.345 | AO92: =IF(AO3,AO47/AO46,$H$92) -> 0.345 | AP92: 0.345 | AQ92: 0.345 | AR92: 0.345 | AS92: 0.345 | AT92: 0.345 | AU92: 0.345 | AV92: 0.345 | AW92: 0.345 | AX92: 0.345 | AY92: 0.345 | AZ92: 0.345 | BA92: 0.345 | BB92: 0.345 | BC92: 0.345 | BD92: 0.345 | BE92: 0.345 | BF92: 0.345 | BG92: 0.345 | BH92: 0.345 | BI92: 0.345 | BJ92: 0.345 | BK92: 0.345 | BL92: 0.345 | BM92: 0.345 | BN92: 0.345 | BO92: 0.345 | BP92: 0.345 | BQ92: 0.345 | BR92: 0.345 | BS92: 0.345 | BT92: 0.345 | BU92: =IF(BU3,BU47/BU46,$H$92) -> 0.345 | BV92: 0.345 | BW92: 0.345 | BX92: 0.345 | BY92: 0.345 | BZ92: 0.345 | CA92: 0.345 | CB92: 0.345 | CC92: 0.345 | CD92: 0.345 | CE92: 0.345 | CF92: 0.345 | CG92: 0.345 | CH92: 0.345 | CI92: 0.345 | CJ92: 0.345 | CK92: 0.345 | CL92: 0.345 | CM92: 0.345 | CN92: 0.345 | CO92: 0.345 | CP92: =IF(CP3,CP47/CP46,$H$92) -> 0.345 | CQ92: 0.345 | CR92: 0.345 | CS92: 0.345 | CT92: 0.345 | CU92: 0.345 | CV92: 0.345 | CW92: 0.345 | CX92: 0.345 | CY92: 0.345 | CZ92: 0.345 | DA92: 0.345 | DB92: 0.345 | DC92: 0.345 | DD92: 0.345 | DE92: 0.345 | DF92: 0.345 | DG92: 0.345 | DH92: 0.345 | DI92: 0.345 | DJ92: 0.345 | DK92: 0.345 | DL92: 0.345 | DM92: 0.345 | DN92: 0.345 | DO92: 0.345 | DP92: 0.345 | DQ92: 0.345 | DR92: 0.345 | DS92: 0.345 | DT92: 0.345 | DU92: 0.345 | DV92: 0.345 | DW92: 0.345 | DX92: 0.345 | DY92: 0.345 | DZ92: 0.345 | EA92: 0.345
A94: Pre-tax Cash Flow
D95: Revenues | I95: =I55 -> 5000 | J95: 5102.150768 | K95: 5186.345187 | L95: 5283.146581 | M95: 5387.45136 | N95: 5519.251586 | O95: 5648.068344 | P95: 5787.988069 | Q95: 5886.77088 | R95: 5952.353422 | S95: 6057.076161 | T95: 6242.626001 | U95: 6342.723623 | V95: 6538.536025 | W95: 6657.753755 | X95: 6834.904916 | Y95: 6997.539322 | Z95: 7141.291474 | AA95: 7283.999885 | AB95: 7434.407212 | AC95: 7543.522901 | AD95: 7682.223836 | AE95: 8007.23169 | AF95: 8288.044259 | AG95: 8656.061939 | AH95: 9028.133886 | AI95: 9385.953937 | AJ95: 9653.208252 | AK95: 10108.40131 | AL95: 10483.95857 | AM95: 11075.4527 | AN95: 11439.37842 | AO95: =AO55 -> 11857.77934 | AP95: 12321.06302 | AQ95: 12833.13012 | AR95: 13318.15188 | AS95: 13869.75713 | AT95: 14344.15847 | AU95: 15116.53113 | AV95: 15271.48416 | AW95: 15458.77632 | AX95: 15650.10692 | AY95: 15817.09124 | AZ95: 16002.12422 | BA95: 16653.04543 | BB95: 17316.0686 | BC95: 17763.98816 | BD95: 18592.45339 | BE95: 19416.20834 | BF95: 20244.71371 | BG95: 20929.68989 | BH95: 21721.41018 | BI95: 22326.0208 | BJ95: 23226.42631 | BK95: 24054.09911 | BL95: 24616.50688 | BM95: 25339.91163 | BN95: 26329.09454 | BO95: 27257.29431 | BP95: 28304.91409 | BQ95: 29128.49519 | BR95: 30029.92464 | BS95: =BS55 -> 30930.82238 | BT95: 31858.74705 | BU95: 32814.50946 | BV95: 33798.94474 | BW95: 34812.91308 | BX95: 35857.30048 | BY95: 36933.01949 | BZ95: 38041.01008 | CA95: 39182.24038 | CB95: 40357.70759 | CC95: 41568.43882 | CD95: 42815.49198 | CE95: 44099.95674 | CF95: 45422.95544 | CG95: 46785.64411 | CH95: 48189.21343 | CI95: 49634.88983 | CJ95: 51123.93653 | CK95: 52657.65462 | CL95: 54237.38426 | CM95: 55864.50579 | CN95: 57540.44096 | CO95: 59266.65419 | CP95: =CP55 -> 61044.65382 | CQ95: 62875.99343 | CR95: 64762.27324 | CS95: 66705.14143 | CT95: 68706.29568 | CU95: 70767.48455 | CV95: 72890.50908 | CW95: 75077.22436 | CX95: 77329.54109 | CY95: 79649.42732 | CZ95: 82038.91014 | DA95: 84500.07744 | DB95: 87035.07977 | DC95: 89646.13216 | DD95: 92335.51612 | DE95: 95105.58161 | DF95: 97958.74906 | DG95: 100897.5115 | DH95: 103924.4369 | DI95: 107042.17 | DJ95: 110253.4351 | DK95: 113561.0381 | DL95: 116967.8693 | DM95: 120476.9054 | DN95: 124091.2125 | DO95: 127813.9489 | DP95: 131648.3674 | DQ95: 135597.8184 | DR95: 139665.7529 | DS95: 143855.7255 | DT95: 148171.3973 | DU95: 152616.5392 | DV95: 157195.0354 | DW95: 161910.8864 | DX95: 166768.213 | DY95: 171771.2594 | DZ95: 176924.3972 | EA95: 182232.1291
D96: COGS | I96: =I58 -> 3887.672226 | J96: 3103.727865 | K96: 3391.426735 | L96: 4137.513753 | M96: 3721.56244 | N96: 4534.680972 | O96: 3597.433025 | P96: 4120.51728 | Q96: 3530.178354 | R96: 3365.027691 | S96: 3704.622041 | T96: 3191.316174 | U96: 3615.341861 | V96: 3127.496979 | W96: 4634.950298 | X96: 4415.069911 | Y96: 4533.667485 | Z96: 3509.158962 | AA96: 3897.126334 | AB96: 4655.009208 | AC96: 4479.111053 | AD96: 4546.761425 | AE96: 4252.494776 | AF96: 4331.003617 | AG96: 4814.214748 | AH96: 5729.508684 | AI96: 4671.548993 | AJ96: 4895.235347 | AK96: 5335.361474 | AL96: 5572.924937 | AM96: 5550.13805 | AN96: 6086.35444 | AO96: =AO58 -> 6827.776444 | AP96: 5611.591708 | AQ96: 6807.573663 | AR96: 7460.934519 | AS96: 7635.058789 | AT96: 7485.87547 | AU96: 7317.503013 | AV96: 8083.34808 | AW96: 7978.773184 | AX96: 7196.926502 | AY96: 9857.141978 | AZ96: 7941.466664 | BA96: 8755.854521 | BB96: 10696.94745 | BC96: 9405.191159 | BD96: 9050.796574 | BE96: 10731.12806 | BF96: 9724.896252 | BG96: 12445.41793 | BH96: 12577.66347 | BI96: 12100.50176 | BJ96: 11557.59202 | BK96: 13441.09349 | BL96: 13501.29921 | BM96: 12733.90522 | BN96: 13047.46826 | BO96: 12989.54128 | BP96: 14901.05377 | BQ96: 16049.01591 | BR96: 15909.47014 | BS96: =BS58 -> 16393.33586 | BT96: 16885.13593 | BU96: 17391.69001 | BV96: 17913.44071 | BW96: 18450.84393 | BX96: 19004.36925 | BY96: 19574.50033 | BZ96: 20161.73534 | CA96: 20766.5874 | CB96: 21389.58502 | CC96: 22031.27257 | CD96: 22692.21075 | CE96: 23372.97707 | CF96: 24074.16639 | CG96: 24796.39138 | CH96: 25540.28312 | CI96: 26306.49161 | CJ96: 27095.68636 | CK96: 27908.55695 | CL96: 28745.81366 | CM96: 29608.18807 | CN96: 30496.43371 | CO96: 31411.32672 | CP96: =CP58 -> 32353.66652 | CQ96: 33324.27652 | CR96: 34324.00482 | CS96: 35353.72496 | CT96: 36414.33671 | CU96: 37506.76681 | CV96: 38631.96981 | CW96: 39790.92891 | CX96: 40984.65678 | CY96: 42214.19648 | CZ96: 43480.62237 | DA96: 44785.04104 | DB96: 46128.59228 | DC96: 47512.45004 | DD96: 48937.82355 | DE96: 50405.95825 | DF96: 51918.137 | DG96: 53475.68111 | DH96: 55079.95154 | DI96: 56732.35009 | DJ96: 58434.32059 | DK96: 60187.35021 | DL96: 61992.97072 | DM96: 63852.75984 | DN96: 65768.34263 | DO96: 67741.39291 | DP96: 69773.6347 | DQ96: 71866.84374 | DR96: 74022.84905 | DS96: 76243.53452 | DT96: 78530.84056 | DU96: 80886.76578 | DV96: 83313.36875 | DW96: 85812.76981 | DX96: 88387.15291 | DY96: 91038.76749 | DZ96: 93769.93052 | EA96: 96583.02843
D97: Fixed Employee | I97: =I61 -> 1000 | J97: 1010.43611 | K97: 1021.245263 | L97: 1026.47279 | M97: 1034.165234 | N97: 1048.745048 | O97: 1057.047695 | P97: 1069.183832 | Q97: 1078.493141 | R97: 1086.352207 | S97: 1102.563893 | T97: 1115.028485 | U97: 1124.010038 | V97: 1130.410108 | W97: 1146.359068 | X97: 1151.686904 | Y97: 1163.256674 | Z97: 1177.860477 | AA97: 1186.979019 | AB97: 1201.708681 | AC97: 1233.621557 | AD97: 1269.803482 | AE97: 1290.139068 | AF97: 1313.732058 | AG97: 1333.318255 | AH97: 1358.465489 | AI97: 1387.268124 | AJ97: 1398.52884 | AK97: 1428.224214 | AL97: 1453.182249 | AM97: 1478.741505 | AN97: 1501.97094 | AO97: =AO61 -> 1529.00396 | AP97: 1566.206911 | AQ97: 1597.730756 | AR97: 1629.774322 | AS97: 1653.080586 | AT97: 1689.551884 | AU97: 1737.060549 | AV97: 1768.852475 | AW97: 1831.645499 | AX97: 1891.968117 | AY97: 1932.903623 | AZ97: 1971.573572 | BA97: 2019.698066 | BB97: 2072.984163 | BC97: 2132.259002 | BD97: 2158.59285 | BE97: 2242.806546 | BF97: 2334.750689 | BG97: 2381.409432 | BH97: 2424.22559 | BI97: 2510.393965 | BJ97: 2600.109318 | BK97: 2664.261258 | BL97: 2746.285846 | BM97: 2816.02174 | BN97: 2878.723535 | BO97: 2937.336255 | BP97: 2955.184372 | BQ97: 2993.397411 | BR97: 3089.307888 | BS97: =BS61 -> 3174.263855 | BT97: 3261.556111 | BU97: 3351.248904 | BV97: 3443.408249 | BW97: 3538.101976 | BX97: 3635.39978 | BY97: 3735.373274 | BZ97: 3838.096039 | CA97: 3943.64368 | CB97: 4052.093881 | CC97: 4163.526463 | CD97: 4278.023441 | CE97: 4395.669085 | CF97: 4516.549985 | CG97: 4640.75511 | CH97: 4768.375875 | CI97: 4899.506212 | CJ97: 5034.242633 | CK97: 5172.684305 | CL97: 5314.933124 | CM97: 5461.093784 | CN97: 5611.273864 | CO97: 5765.583895 | CP97: =CP61 -> 5924.137452 | CQ97: 6087.051232 | CR97: 6254.445141 | CS97: 6426.442382 | CT97: 6603.169548 | CU97: 6784.75671 | CV97: 6971.33752 | CW97: 7163.049301 | CX97: 7360.033157 | CY97: 7562.434069 | CZ97: 7770.401006 | DA97: 7984.087034 | DB97: 8203.649427 | DC97: 8429.249786 | DD97: 8661.054155 | DE97: 8899.233145 | DF97: 9143.962056 | DG97: 9395.421013 | DH97: 9653.795091 | DI97: 9919.274456 | DJ97: 10192.0545 | DK97: 10472.336 | DL97: 10760.32524 | DM97: 11056.23419 | DN97: 11360.28063 | DO97: 11672.68834 | DP97: 11993.68727 | DQ97: 12323.51367 | DR97: 12662.4103 | DS97: 13010.62658 | DT97: 13368.41881 | DU97: 13736.05033 | DV97: 14113.79171 | DW97: 14501.92099 | DX97: 14900.72381 | DY97: 15310.49372 | DZ97: 15731.5323 | EA97: 16164.14943
D98: Variable | I98: =I64 -> 467.2531687 | J98: 483.7865034 | K98: 294.036507 | L98: 371.9328443 | M98: 332.8282353 | N98: 481.552734 | O98: 547.1539503 | P98: 444.6597828 | Q98: 414.3588513 | R98: 781.7850654 | S98: 762.1887506 | T98: 363.3276418 | U98: 643.9639217 | V98: 788.8241771 | W98: 508.7660396 | X98: 796.5633174 | Y98: 539.7037375 | Z98: 1184.481213 | AA98: 845.8975354 | AB98: 895.4366695 | AC98: 1029.186657 | AD98: 592.710901 | AE98: 852.4819359 | AF98: 565.2577172 | AG98: 972.3172705 | AH98: 1327.338496 | AI98: 794.3856813 | AJ98: 860.3732325 | AK98: 479.916036 | AL98: 1306.433743 | AM98: 1002.648833 | AN98: 1603.898978 | AO98: =AO64 -> 1247.105954 | AP98: 999.9703683 | AQ98: 986.0094465 | AR98: 1156.600455 | AS98: 491.9382126 | AT98: 2214.937883 | AU98: 1507.717505 | AV98: 1395.006936 | AW98: 1178.33872 | AX98: 1154.388289 | AY98: 1561.146261 | AZ98: 2355.903985 | BA98: 1931.128126 | BB98: 943.6597294 | BC98: 1725.773085 | BD98: 2331.432839 | BE98: 3534.45766 | BF98: 1672.186903 | BG98: 3214.776191 | BH98: 3087.526458 | BI98: 2010.778676 | BJ98: 2268.259179 | BK98: 2706.997207 | BL98: 1212.989998 | BM98: 1544.053081 | BN98: 2408.40135 | BO98: 1556.592583 | BP98: 4728.10294 | BQ98: 2862.396757 | BR98: 2682.614226 | BS98: =BS64 -> 2783.774014 | BT98: 2867.287234 | BU98: 2953.305851 | BV98: 3041.905027 | BW98: 3133.162178 | BX98: 3227.157043 | BY98: 3323.971754 | BZ98: 3423.690907 | CA98: 3526.401634 | CB98: 3632.193683 | CC98: 3741.159494 | CD98: 3853.394278 | CE98: 3968.996107 | CF98: 4088.06599 | CG98: 4210.70797 | CH98: 4337.029209 | CI98: 4467.140085 | CJ98: 4601.154288 | CK98: 4739.188916 | CL98: 4881.364584 | CM98: 5027.805521 | CN98: 5178.639687 | CO98: 5333.998877 | CP98: =CP64 -> 5494.018844 | CQ98: 5658.839409 | CR98: 5828.604591 | CS98: 6003.462729 | CT98: 6183.566611 | CU98: 6369.073609 | CV98: 6560.145818 | CW98: 6756.950192 | CX98: 6959.658698 | CY98: 7168.448459 | CZ98: 7383.501912 | DA98: 7605.00697 | DB98: 7833.157179 | DC98: 8068.151894 | DD98: 8310.196451 | DE98: 8559.502345 | DF98: 8816.287415 | DG98: 9080.776037 | DH98: 9353.199319 | DI98: 9633.795298 | DJ98: 9922.809157 | DK98: 10220.49343 | DL98: 10527.10823 | DM98: 10842.92148 | DN98: 11168.20913 | DO98: 11503.2554 | DP98: 11848.35306 | DQ98: 12203.80365 | DR98: 12569.91776 | DS98: 12947.0153 | DT98: 13335.42576 | DU98: 13735.48853 | DV98: 14147.55318 | DW98: 14571.97978 | DX98: 15009.13917 | DY98: 15459.41335 | DZ98: 15923.19575 | EA98: 16400.89162
D99: EBITDA | I99: =I95-I96-I97-I98 -> -354.9253947 | J99: =J95-J96-J97-J98 -> 504.2002894 | K99: 479.6366818 | L99: -252.7728066 | M99: 298.8954504 | N99: -545.7271677 | O99: 446.4336738 | P99: 153.6271741 | Q99: 863.7405337 | R99: 719.1884588 | S99: 487.7014765 | T99: 1572.953701 | U99: 959.4078031 | V99: 1491.804761 | W99: 367.6783487 | X99: 471.584784 | Y99: 760.9114263 | Z99: 1269.790823 | AA99: 1353.996997 | AB99: 682.2526532 | AC99: 801.6036342 | AD99: 1272.948028 | AE99: 1612.11591 | AF99: 2078.050866 | AG99: 1536.211666 | AH99: 612.8212165 | AI99: 2532.751139 | AJ99: 2499.070832 | AK99: 2864.899588 | AL99: 2151.417642 | AM99: 3043.924314 | AN99: 2247.154058 | AO99: 2253.892983 | AP99: 4143.294034 | AQ99: 3441.81625 | AR99: 3070.842582 | AS99: 4089.679539 | AT99: 2953.793233 | AU99: 4554.250059 | AV99: 4024.276674 | AW99: 4470.018918 | AX99: 5406.824011 | AY99: 2465.899381 | AZ99: 3733.180002 | BA99: 3946.364719 | BB99: 3602.477256 | BC99: 4500.76491 | BD99: 5051.631128 | BE99: 2907.816066 | BF99: 6512.879866 | BG99: 2888.08634 | BH99: 3631.994666 | BI99: 5704.346397 | BJ99: 6800.465795 | BK99: 5241.747161 | BL99: 7155.931816 | BM99: 8245.931597 | BN99: 7994.501396 | BO99: 9773.824194 | BP99: 5720.573007 | BQ99: 7223.685112 | BR99: 8348.532385 | BS99: =BS95-BS96-BS97-BS98 -> 8579.448648 | BT99: =BT95-BT96-BT97-BT98 -> 8844.767767 | BU99: =BU95-BU96-BU97-BU98 -> 9118.26469 | BV99: =BV95-BV96-BV97-BV98 -> 9400.190753 | BW99: =BW95-BW96-BW97-BW98 -> 9690.804996 | BX99: =BX95-BX96-BX97-BX98 -> 9990.374401 | BY99: =BY95-BY96-BY97-BY98 -> 10299.17413 | BZ99: =BZ95-BZ96-BZ97-BZ98 -> 10617.48779 | CA99: =CA95-CA96-CA97-CA98 -> 10945.60766 | CB99: =CB95-CB96-CB97-CB98 -> 11283.835 | CC99: =CC95-CC96-CC97-CC98 -> 11632.48029 | CD99: =CD95-CD96-CD97-CD98 -> 11991.86351 | CE99: =CE95-CE96-CE97-CE98 -> 12362.31448 | CF99: =CF95-CF96-CF97-CF98 -> 12744.17308 | CG99: =CG95-CG96-CG97-CG98 -> 13137.78965 | CH99: =CH95-CH96-CH97-CH98 -> 13543.52523 | CI99: =CI95-CI96-CI97-CI98 -> 13961.75192 | CJ99: =CJ95-CJ96-CJ97-CJ98 -> 14392.85325 | CK99: =CK95-CK96-CK97-CK98 -> 14837.22445 | CL99: =CL95-CL96-CL97-CL98 -> 15295.2729 | CM99: =CM95-CM96-CM97-CM98 -> 15767.41842 | CN99: =CN95-CN96-CN97-CN98 -> 16254.0937 | CO99: =CO95-CO96-CO97-CO98 -> 16755.7447 | CP99: 17272.831 | CQ99: 17805.82627 | CR99: 18355.21869 | CS99: 18921.51136 | CT99: 19505.22281 | CU99: 20106.88742 | CV99: 20727.05593 | CW99: 21366.29595 | CX99: 22025.19246 | CY99: 22704.34831 | CZ99: 23404.38485 | DA99: 24125.94239 | DB99: 24869.68088 | DC99: 25636.28043 | DD99: 26426.44197 | DE99: 27240.88787 | DF99: 28080.36259 | DG99: 28945.63337 | DH99: 29837.49092 | DI99: 30756.75014 | DJ99: 31704.25083 | DK99: 32680.85849 | DL99: 33687.46508 | DM99: 34724.98985 | DN99: 35794.38013 | DO99: 36896.61223 | DP99: 38032.69232 | DQ99: 39203.65731 | DR99: 40410.57581 | DS99: 41654.54911 | DT99: 42936.71215 | DU99: 44258.23457 | DV99: 45620.32173 | DW99: 47024.21586 | DX99: 48471.19714 | DY99: 49962.58486 | DZ99: 51499.73864 | EA99: 53084.05963
D101: Capital Expenditures | I101: =I77 -> 2595.684133 | J101: 2651.398492 | K101: 3206.516796 | L101: 3497.262976 | M101: 3322.567251 | N101: 3186.608764 | O101: 3237.807228 | P101: 3396.133099 | Q101: 3780.41822 | R101: 3731.257844 | S101: 3262.418219 | T101: 3367.489394 | U101: 2930.426112 | V101: 2566.774879 | W101: 2606.885538 | X101: 2341.325798 | Y101: 3065.961013 | Z101: 2855.072113 | AA101: 3106.974285 | AB101: 3547.268146 | AC101: 1194.532869 | AD101: 1051.400907 | AE101: 1441.827915 | AF101: 1395.023786 | AG101: 1249.225753 | AH101: 1233.84664 | AI101: 1359.977202 | AJ101: 1404.18949 | AK101: 1620.406551 | AL101: 1648.74169 | AM101: 1610.511785 | AN101: 1949.523487 | AO101: =AO77 -> 1458.234095 | AP101: 1867.542463 | AQ101: 1805.085277 | AR101: 2033.706404 | AS101: 1972.331878 | AT101: 2132.607368 | AU101: 2256.784033 | AV101: 2278.312534 | AW101: 2033.659382 | AX101: 2145.696821 | AY101: 2479.272722 | AZ101: 2120.615435 | BA101: 2357.16629 | BB101: 2353.864608 | BC101: 2465.978315 | BD101: 2604.274203 | BE101: 2746.097411 | BF101: 3100.988882 | BG101: 3149.135631 | BH101: 3964.456285 | BI101: 2994.210266 | BJ101: 3596.543068 | BK101: 3727.742021 | BL101: 4384.021942 | BM101: 3356.91265 | BN101: 4131.77413 | BO101: 4189.464046 | BP101: 3660.677934 | BQ101: 4221.32589 | BR101: 5011.481328 | BS101: =BS77 -> 4948.93158 | BT101: 5097.399528 | BU101: 5250.321513 | BV101: 5407.831159 | BW101: 5570.066094 | BX101: 5737.168076 | BY101: 5909.283119 | BZ101: 6086.561612 | CA101: 6269.158461 | CB101: 6457.233214 | CC101: 6650.950211 | CD101: 6850.478717 | CE101: 7055.993079 | CF101: 7267.672871 | CG101: 7485.703057 | CH101: 7710.274149 | CI101: 7941.582373 | CJ101: 8179.829845 | CK101: 8425.22474 | CL101: 8677.981482 | CM101: 8938.320926 | CN101: 9206.470554 | CO101: 9482.664671 | CP101: =CP77 -> 9767.144611 | CQ101: 10060.15895 | CR101: 10361.96372 | CS101: 10672.82263 | CT101: 10993.00731 | CU101: 11322.79753 | CV101: 11662.48145 | CW101: 12012.3559 | CX101: 12372.72657 | CY101: 12743.90837 | CZ101: 13126.22562 | DA101: 13520.01239 | DB101: 13925.61276 | DC101: 14343.38115 | DD101: 14773.68258 | DE101: 15216.89306 | DF101: 15673.39985 | DG101: 16143.60184 | DH101: 16627.9099 | DI101: 17126.7472 | DJ101: 17640.54961 | DK101: 18169.7661 | DL101: 18714.85908 | DM101: 19276.30486 | DN101: 19854.594 | DO101: 20450.23182 | DP101: 21063.73878 | DQ101: 21695.65094 | DR101: 22346.52047 | DS101: 23016.91608 | DT101: 23707.42357 | DU101: 24418.64627 | DV101: 25151.20566 | DW101: 25905.74183 | DX101: 26682.91408 | DY101: 27483.40151 | DZ101: 28307.90355 | EA101: 29157.14066
D103: Stocks | I103: =I67 -> 3807.660588 | J103: 2746.213626 | K103: 2758.617589 | L103: 3734.120093 | M103: 2888.405158 | N103: 4130.158246 | O103: 2943.366724 | P103: 3967.620315 | Q103: 3645.169143 | R103: 2986.214881 | S103: 3144.90581 | T103: 2742.020676 | U103: 3394.067644 | V103: 2906.16603 | W103: 4057.668694 | X103: 4389.228879 | Y103: 4028.677104 | Z103: 2940.083233 | AA103: 4115.702686 | AB103: 5330.322632 | AC103: 4478.360941 | AD103: 5506.161143 | AE103: 4192.649287 | AF103: 4505.400805 | AG103: 4501.731527 | AH103: 5353.555721 | AI103: 5129.15125 | AJ103: 4878.730805 | AK103: 5191.753855 | AL103: 4920.055179 | AM103: 4652.405088 | AN103: 6711.378266 | AO103: =AO67 -> 7103.235121 | AP103: 5636.056588 | AQ103: 6994.867084 | AR103: 6994.336287 | AS103: 8036.450678 | AT103: 8626.904696 | AU103: 7350.150029 | AV103: 7814.830179 | AW103: 6661.74782 | AX103: 5056.39822 | AY103: 8875.889016 | AZ103: 6811.752128 | BA103: 7329.168272 | BB103: 7467.146152 | BC103: 7329.743203 | BD103: 7455.725092 | BE103: 10224.92169 | BF103: 7996.570229 | BG103: 10327.70407 | BH103: 9144.253666 | BI103: 10495.32412 | BJ103: 8620.639331 | BK103: 10355.36693 | BL103: 10482.11666 | BM103: 10957.88335 | BN103: 10322.56802 | BO103: 10634.62579 | BP103: 12880.97971 | BQ103: 12799.69976 | BR103: 13417.78088 | BS103: =BS67 -> 13606.46876 | BT103: 14014.66283 | BU103: 14435.10271 | BV103: 14868.15579 | BW103: 15314.20047 | BX103: 15773.62648 | BY103: 16246.83527 | BZ103: 16734.24033 | CA103: 17236.26754 | CB103: 17753.35557 | CC103: 18285.95624 | CD103: 18834.53492 | CE103: 19399.57097 | CF103: 19981.5581 | CG103: 20581.00484 | CH103: 21198.43499 | CI103: 21834.38804 | CJ103: 22489.41968 | CK103: 23164.10227 | CL103: 23859.02534 | CM103: 24574.7961 | CN103: 25312.03998 | CO103: 26071.40118 | CP103: =CP67 -> 26853.54321 | CQ103: 27659.14951 | CR103: 28488.924 | CS103: 29343.59172 | CT103: 30223.89947 | CU103: 31130.61645 | CV103: 32064.53495 | CW103: 33026.47099 | CX103: 34017.26512 | CY103: 35037.78308 | CZ103: 36088.91657 | DA103: 37171.58407 | DB103: 38286.73159 | DC103: 39435.33354 | DD103: 40618.39354 | DE103: 41836.94535 | DF103: 43092.05371 | DG103: 44384.81532 | DH103: 45716.35978 | DI103: 47087.85057 | DJ103: 48500.48609 | DK103: 49955.50067 | DL103: 51454.16569 | DM103: 52997.79067 | DN103: 54587.72439 | DO103: 56225.35612 | DP103: 57912.1168 | DQ103: 59649.4803 | DR103: 61438.96471 | DS103: 63282.13365 | DT103: 65180.59766 | DU103: 67136.01559 | DV103: 69150.09606 | DW103: 71224.59894 | DX103: 73361.33691 | DY103: 75562.17702 | DZ103: 77829.04233 | EA103: 80163.9136
D104: Current Liabilities | I104: =I71 -> 435.9262111 | J104: 448.9328546 | K104: 310.2740905 | L104: 433.8741369 | M104: 392.4787209 | N104: 417.9865121 | O104: 580.5899558 | P104: 468.1252938 | Q104: 503.5871236 | R104: 553.4766922 | S104: 582.8077971 | T104: 485.3353462 | U104: 517.2592186 | V104: 521.3745195 | W104: 476.1956285 | X104: 586.4060087 | Y104: 519.6568688 | Z104: 687.3699215 | AA104: 612.7050477 | AB104: 626.916355 | AC104: 668.156577 | AD104: 603.1942394 | AE104: 709.2984991 | AF104: 495.011204 | AG104: 640.0842304 | AH104: 663.1295248 | AI104: 603.4943673 | AJ104: 689.4055177 | AK104: 621.7409259 | AL104: 888.6139308 | AM104: 762.204434 | AN104: 977.6116286 | AO104: =AO71 -> 910.8529377 | AP104: 882.9329157 | AQ104: 771.9569177 | AR104: 745.5729501 | AS104: 677.1538624 | AT104: 1345.764556 | AU104: 1154.278989 | AV104: 834.2133986 | AW104: 775.4047002 | AX104: 814.7466821 | AY104: 944.4964576 | AZ104: 1307.277785 | BA104: 1199.38435 | BB104: 874.256079 | BC104: 973.9571272 | BD104: 1168.558679 | BE104: 1716.536296 | BF104: 940.1868633 | BG104: 1910.365857 | BH104: 1760.379236 | BI104: 1298.471315 | BJ104: 1245.930526 | BK104: 1653.945524 | BL104: 1325.798519 | BM104: 1521.108643 | BN104: 1377.873893 | BO104: 1518.865765 | BP104: 2224.18897 | BQ104: 1977.44611 | BR104: 1450.733575 | BS104: =BS71 -> 1489.509467 | BT104: 1532.210836 | BU104: 1576.138689 | BV104: 1621.328319 | BW104: 1667.816038 | BX104: 1715.639206 | BY104: 1764.836257 | BZ104: 1815.446736 | CA104: 1867.511329 | CB104: 1921.071891 | CC104: 1976.171489 | CD104: 2032.85443 | CE104: 2091.166298 | CF104: 2151.153994 | CG104: 2212.86577 | CH104: 2276.351271 | CI104: 2341.661574 | CJ104: 2408.84923 | CK104: 2477.968305 | CL104: 2549.074427 | CM104: 2622.224826 | CN104: 2697.478388 | CO104: 2774.895693 | CP104: =CP71 -> 2854.539074 | CQ104: 2936.47266 | CR104: 3020.762433 | CS104: 3107.476278 | CT104: 3196.68404 | CU104: 3288.45758 | CV104: 3382.870834 | CW104: 3479.999873 | CX104: 3579.922964 | CY104: 3682.720632 | CZ104: 3788.47573 | DA104: 3897.273501 | DB104: 4009.201651 | DC104: 4124.35042 | DD104: 4242.812652 | DE104: 4364.683872 | DF104: 4490.062368 | DG104: 4619.049263 | DH104: 4751.748602 | DI104: 4888.267438 | DJ104: 5028.715915 | DK104: 5173.207358 | DL104: 5321.858369 | DM104: 5474.788917 | DN104: 5632.122438 | DO104: 5793.985936 | DP104: 5960.510084 | DQ104: 6131.829332 | DR104: 6308.082016 | DS104: 6489.41047 | DT104: 6675.961142 | DU104: 6867.884715 | DV104: 7065.336225 | DW104: 7268.475192 | DX104: 7477.465747 | DY104: 7692.476767 | DZ104: 7913.682011 | EA104: 8141.260264
D105: Working Capital | I105: =I103-I104 -> 3371.734377 | J105: =J103-J104 -> 2297.280771 | K105: 2448.343498 | L105: 3300.245957 | M105: 2495.926437 | N105: 3712.171734 | O105: 2362.776768 | P105: 3499.495021 | Q105: 3141.582019 | R105: 2432.738189 | S105: 2562.098013 | T105: 2256.68533 | U105: 2876.808425 | V105: 2384.791511 | W105: 3581.473066 | X105: 3802.82287 | Y105: 3509.020235 | Z105: 2252.713311 | AA105: 3502.997638 | AB105: 4703.406277 | AC105: 3810.204364 | AD105: 4902.966903 | AE105: 3483.350788 | AF105: 4010.389601 | AG105: 3861.647296 | AH105: 4690.426196 | AI105: 4525.656883 | AJ105: 4189.325288 | AK105: 4570.01293 | AL105: 4031.441248 | AM105: 3890.200654 | AN105: 5733.766638 | AO105: 6192.382184 | AP105: 4753.123673 | AQ105: 6222.910166 | AR105: 6248.763336 | AS105: 7359.296816 | AT105: 7281.14014 | AU105: 6195.87104 | AV105: 6980.61678 | AW105: 5886.34312 | AX105: 4241.651538 | AY105: 7931.392558 | AZ105: 5504.474343 | BA105: 6129.783922 | BB105: 6592.890073 | BC105: 6355.786076 | BD105: 6287.166413 | BE105: 8508.385391 | BF105: 7056.383366 | BG105: 8417.338214 | BH105: 7383.87443 | BI105: 9196.852807 | BJ105: 7374.708806 | BK105: 8701.421408 | BL105: 9156.318142 | BM105: 9436.774705 | BN105: 8944.694128 | BO105: 9115.760029 | BP105: 10656.79074 | BQ105: 10822.25365 | BR105: 11967.0473 | BS105: =BS103-BS104 -> 12116.9593 | BT105: =BT103-BT104 -> 12482.45199 | BU105: =BU103-BU104 -> 12858.96402 | BV105: =BV103-BV104 -> 13246.82747 | BW105: =BW103-BW104 -> 13646.38443 | BX105: =BX103-BX104 -> 14057.98727 | BY105: =BY103-BY104 -> 14481.99902 | BZ105: =BZ103-BZ104 -> 14918.7936 | CA105: =CA103-CA104 -> 15368.75621 | CB105: =CB103-CB104 -> 15832.28368 | CC105: =CC103-CC104 -> 16309.78475 | CD105: =CD103-CD104 -> 16801.68049 | CE105: =CE103-CE104 -> 17308.40467 | CF105: =CF103-CF104 -> 17830.40411 | CG105: =CG103-CG104 -> 18368.13907 | CH105: =CH103-CH104 -> 18922.08372 | CI105: =CI103-CI104 -> 19492.72646 | CJ105: =CJ103-CJ104 -> 20080.57045 | CK105: =CK103-CK104 -> 20686.13396 | CL105: =CL103-CL104 -> 21309.95091 | CM105: =CM103-CM104 -> 21952.57127 | CN105: =CN103-CN104 -> 22614.56159 | CO105: =CO103-CO104 -> 23296.50549 | CP105: 23999.00414 | CQ105: 24722.67685 | CR105: 25468.16156 | CS105: 26236.11544 | CT105: 27027.21543 | CU105: 27842.15887 | CV105: 28681.66411 | CW105: 29546.47112 | CX105: 30437.34216 | CY105: 31355.06245 | CZ105: 32300.44084 | DA105: 33274.31057 | DB105: 34277.52994 | DC105: 35310.98312 | DD105: 36375.58089 | DE105: 37472.26148 | DF105: 38601.99134 | DG105: 39765.76606 | DH105: 40964.61118 | DI105: 42199.58314 | DJ105: 43471.77018 | DK105: 44782.29332 | DL105: 46132.30733 | DM105: 47523.00175 | DN105: 48955.60195 | DO105: 50431.37018 | DP105: 51951.60672 | DQ105: 53517.65097 | DR105: 55130.8827 | DS105: 56792.72318 | DT105: 58504.63652 | DU105: 60268.13088 | DV105: 62084.75984 | DW105: 63956.12375 | DX105: 65883.87117 | DY105: 67869.70025 | DZ105: 69915.36032 | EA105: 72022.65334
D106: Change in Working Capital | I106: =I105-H105 -> 3371.734377 | J106: =J105-I105 -> -1074.453606 | K106: 151.0627269 | L106: 851.9024584 | M106: -804.3195191 | N106: 1216.245296 | O106: -1349.394965 | P106: 1136.718253 | Q106: -357.9130021 | R106: -708.8438301 | S106: 129.3598239 | T106: -305.4126834 | U106: 620.1230955 | V106: -492.0169144 | W106: 1196.681555 | X106: 221.3498043 | Y106: -293.8026347 | Z106: -1256.306924 | AA106: 1250.284327 | AB106: 1200.408639 | AC106: -893.2019128 | AD106: 1092.762539 | AE106: -1419.616115 | AF106: 527.0388125 | AG106: -148.7423043 | AH106: 828.7788998 | AI106: -164.7693133 | AJ106: -336.3315951 | AK106: 380.6876418 | AL106: -538.5716816 | AM106: -141.2405943 | AN106: 1843.565984 | AO106: 458.6155458 | AP106: -1439.258511 | AQ106: 1469.786493 | AR106: 25.85317037 | AS106: 1110.533479 | AT106: -78.15667605 | AU106: -1085.2691 | AV106: 784.7457406 | AW106: -1094.273661 | AX106: -1644.691582 | AY106: 3689.74102 | AZ106: -2426.918215 | BA106: 625.3095795 | BB106: 463.1061504 | BC106: -237.1039965 | BD106: -68.61966283 | BE106: 2221.218977 | BF106: -1452.002025 | BG106: 1360.954848 | BH106: -1033.463784 | BI106: 1812.978377 | BJ106: -1822.144001 | BK106: 1326.712602 | BL106: 454.8967339 | BM106: 280.4565636 | BN106: -492.080577 | BO106: 171.0659009 | BP106: 1541.030713 | BQ106: 165.4629079 | BR106: 1144.793652 | BS106: =BS105-BR105 -> 149.9119942 | BT106: =BT105-BS105 -> 365.4926938 | BU106: =BU105-BT105 -> 376.5120323 | BV106: =BV105-BU105 -> 387.8634512 | BW106: =BW105-BV105 -> 399.5569544 | BX106: =BX105-BW105 -> 411.6028466 | BY106: =BY105-BX105 -> 424.0117431 | BZ106: =BZ105-BY105 -> 436.7945788 | CA106: =CA105-BZ105 -> 449.9626179 | CB106: =CB105-CA105 -> 463.5274637 | CC106: =CC105-CB105 -> 477.501069 | CD106: =CD105-CC105 -> 491.8957464 | CE106: =CE105-CD105 -> 506.7241794 | CF106: =CF105-CE105 -> 521.9994334 | CG106: =CG105-CF105 -> 537.7349669 | CH106: =CH105-CG105 -> 553.9446441 | CI106: =CI105-CH105 -> 570.6427464 | CJ106: =CJ105-CI105 -> 587.8439853 | CK106: =CK105-CJ105 -> 605.5635151 | CL106: =CL105-CK105 -> 623.8169466 | CM106: =CM105-CL105 -> 642.6203605 | CN106: =CN105-CM105 -> 661.9903217 | CO106: =CO105-CN105 -> 681.9438939 | CP106: =CP105-CO105 -> 702.4986545 | CQ106: =CQ105-CP105 -> 723.6727101 | CR106: =CR105-CQ105 -> 745.4847126 | CS106: =CS105-CR105 -> 767.9538751 | CT106: =CT105-CS105 -> 791.0999897 | CU106: =CU105-CT105 -> 814.9434438 | CV106: =CV105-CU105 -> 839.5052391 | CW106: =CW105-CV105 -> 864.8070093 | CX106: =CX105-CW105 -> 890.8710394 | CY106: =CY105-CX105 -> 917.7202855 | CZ106: =CZ105-CY105 -> 945.3783947 | DA106: =DA105-CZ105 -> 973.8697258 | DB106: =DB105-DA105 -> 1003.219371 | DC106: =DC105-DB105 -> 1033.453179 | DD106: =DD105-DC105 -> 1064.597775 | DE106: =DE105-DD105 -> 1096.680586 | DF106: =DF105-DE105 -> 1129.729865 | DG106: =DG105-DF105 -> 1163.774717 | DH106: =DH105-DG105 -> 1198.84512 | DI106: =DI105-DH105 -> 1234.971957 | DJ106: =DJ105-DI105 -> 1272.187041 | DK106: =DK105-DJ105 -> 1310.523139 | DL106: =DL105-DK105 -> 1350.014009 | DM106: =DM105-DL105 -> 1390.694423 | DN106: =DN105-DM105 -> 1432.600199 | DO106: =DO105-DN105 -> 1475.768234 | DP106: =DP105-DO105 -> 1520.236536 | DQ106: =DQ105-DP105 -> 1566.044256 | DR106: =DR105-DQ105 -> 1613.231725 | DS106: =DS105-DR105 -> 1661.840487 | DT106: =DT105-DS105 -> 1711.913337 | DU106: =DU105-DT105 -> 1763.494357 | DV106: =DV105-DU105 -> 1816.628958 | DW106: =DW105-DV105 -> 1871.363915 | DX106: =DX105-DW105 -> 1927.747413 | DY106: =DY105-DX105 -> 1985.829087 | DZ106: =DZ105-DY105 -> 2045.660066 | EA106: =EA105-DZ105 -> 2107.293017
D108: Provisions | I108: =I74 -> 282.7203058 | J108: 276.9933013 | K108: 248.7225421 | L108: 267.9190369 | M108: 274.0589733 | N108: 246.0686578 | O108: 255.0293177 | P108: 300.1926636 | Q108: 292.9553706 | R108: 274.1492488 | S108: 282.7943432 | T108: 359.7784186 | U108: 332.0970033 | V108: 287.1614225 | W108: 322.6301501 | X108: 336.6448255 | Y108: 373.3552343 | Z108: 363.1423143 | AA108: 379.7564342 | AB108: 336.3171366 | AC108: 453.0585016 | AD108: 372.6828496 | AE108: 392.5295398 | AF108: 473.7083719 | AG108: 329.8549166 | AH108: 444.7556234 | AI108: 360.1008491 | AJ108: 409.2691776 | AK108: 438.1860731 | AL108: 423.9443085 | AM108: 483.807557 | AN108: 477.8502459 | AO108: =AO74 -> 475.2605885 | AP108: 484.3772829 | AQ108: 569.0586202 | AR108: 498.504382 | AS108: 660.8845217 | AT108: 536.9319156 | AU108: 681.5300821 | AV108: 573.0192749 | AW108: 736.0924845 | AX108: 526.2638968 | AY108: 610.4325494 | AZ108: 651.0339152 | BA108: 548.7396513 | BB108: 741.1433483 | BC108: 713.6020529 | BD108: 772.6715631 | BE108: 770.0391474 | BF108: 901.4346987 | BG108: 878.3202895 | BH108: 957.1575897 | BI108: 960.2820146 | BJ108: 905.428208 | BK108: 914.62892 | BL108: 1026.602364 | BM108: 1082.605261 | BN108: 1044.387611 | BO108: 1100.382703 | BP108: 1158.99303 | BQ108: 1073.482357 | BR108: 1216.451635 | BS108: =BS74 -> 1237.232895 | BT108: 1274.349882 | BU108: 1312.580378 | BV108: 1351.95779 | BW108: 1392.516523 | BX108: 1434.292019 | BY108: 1477.32078 | BZ108: 1521.640403 | CA108: 1567.289615 | CB108: 1614.308304 | CC108: 1662.737553 | CD108: 1712.619679 | CE108: 1763.99827 | CF108: 1816.918218 | CG108: 1871.425764 | CH108: 1927.568537 | CI108: 1985.395593 | CJ108: 2044.957461 | CK108: 2106.306185 | CL108: 2169.495371 | CM108: 2234.580232 | CN108: 2301.617639 | CO108: 2370.666168 | CP108: =CP74 -> 2441.786153 | CQ108: 2515.039737 | CR108: 2590.490929 | CS108: 2668.205657 | CT108: 2748.251827 | CU108: 2830.699382 | CV108: 2915.620363 | CW108: 3003.088974 | CX108: 3093.181643 | CY108: 3185.977093 | CZ108: 3281.556406 | DA108: 3380.003098 | DB108: 3481.403191 | DC108: 3585.845286 | DD108: 3693.420645 | DE108: 3804.223264 | DF108: 3918.349962 | DG108: 4035.900461 | DH108: 4156.977475 | DI108: 4281.686799 | DJ108: 4410.137403 | DK108: 4542.441525 | DL108: 4678.714771 | DM108: 4819.076214 | DN108: 4963.648501 | DO108: 5112.557956 | DP108: 5265.934694 | DQ108: 5423.912735 | DR108: 5586.630117 | DS108: 5754.229021 | DT108: 5926.855891 | DU108: 6104.661568 | DV108: 6287.801415 | DW108: 6476.435457 | DX108: 6670.728521 | DY108: 6870.850377 | DZ108: 7076.975888 | EA108: 7289.285165
D109: Changes in Provisions | I109: =I108-H108 -> 282.7203058 | J109: =J108-I108 -> -5.727004464 | K109: -28.27075929 | L109: 19.19649485 | M109: 6.139936374 | N109: -27.99031545 | O109: 8.960659929 | P109: 45.16334581 | Q109: -7.237292925 | R109: -18.80612184 | S109: 8.645094381 | T109: 76.98407547 | U109: -27.68141532 | V109: -44.93558083 | W109: 35.46872763 | X109: 14.01467533 | Y109: 36.71040885 | Z109: -10.21292003 | AA109: 16.61411987 | AB109: -43.43929754 | AC109: 116.741365 | AD109: -80.375652 | AE109: 19.84669019 | AF109: 81.17883213 | AG109: -143.8534553 | AH109: 114.9007068 | AI109: -84.65477432 | AJ109: 49.16832849 | AK109: 28.9168955 | AL109: -14.24176455 | AM109: 59.86324849 | AN109: -5.95731109 | AO109: -2.589657462 | AP109: 9.116694469 | AQ109: 84.6813373 | AR109: -70.5542382 | AS109: 162.3801397 | AT109: -123.9526061 | AU109: 144.5981665 | AV109: -108.5108072 | AW109: 163.0732096 | AX109: -209.8285877 | AY109: 84.16865259 | AZ109: 40.60136574 | BA109: -102.2942639 | BB109: 192.403697 | BC109: -27.5412954 | BD109: 59.06951019 | BE109: -2.632415727 | BF109: 131.3955514 | BG109: -23.11440923 | BH109: 78.83730015 | BI109: 3.124424979 | BJ109: -54.8538066 | BK109: 9.200712011 | BL109: 111.973444 | BM109: 56.00289725 | BN109: -38.21765055 | BO109: 55.99509193 | BP109: 58.61032752 | BQ109: -85.51067358 | BR109: 142.9692788 | BS109: =BS108-BR108 -> 20.78125961 | BT109: =BT108-BS108 -> 37.11698685 | BU109: =BU108-BT108 -> 38.23049646 | BV109: =BV108-BU108 -> 39.37741135 | BW109: =BW108-BV108 -> 40.55873369 | BX109: =BX108-BW108 -> 41.7754957 | BY109: =BY108-BX108 -> 43.02876057 | BZ109: =BZ108-BY108 -> 44.31962339 | CA109: =CA108-BZ108 -> 45.64921209 | CB109: =CB108-CA108 -> 47.01868845 | CC109: =CC108-CB108 -> 48.42924911 | CD109: =CD108-CC108 -> 49.88212658 | CE109: =CE108-CD108 -> 51.37859038 | CF109: =CF108-CE108 -> 52.91994809 | CG109: =CG108-CF108 -> 54.50754653 | CH109: =CH108-CG108 -> 56.14277293 | CI109: =CI108-CH108 -> 57.82705612 | CJ109: =CJ108-CI108 -> 59.5618678 | CK109: =CK108-CJ108 -> 61.34872383 | CL109: =CL108-CK108 -> 63.18918555 | CM109: =CM108-CL108 -> 65.08486112 | CN109: =CN108-CM108 -> 67.03740695 | CO109: =CO108-CN108 -> 69.04852916 | CP109: =CP108-CO108 -> 71.11998503 | CQ109: =CQ108-CP108 -> 73.25358458 | CR109: =CR108-CQ108 -> 75.45119212 | CS109: =CS108-CR108 -> 77.71472788 | CT109: =CT108-CS108 -> 80.04616972 | CU109: =CU108-CT108 -> 82.44755481 | CV109: =CV108-CU108 -> 84.92098146 | CW109: =CW108-CV108 -> 87.4686109 | CX109: =CX108-CW108 -> 90.09266923 | CY109: =CY108-CX108 -> 92.7954493 | CZ109: =CZ108-CY108 -> 95.57931278 | DA109: =DA108-CZ108 -> 98.44669217 | DB109: =DB108-DA108 -> 101.4000929 | DC109: =DC108-DB108 -> 104.4420957 | DD109: =DD108-DC108 -> 107.5753586 | DE109: =DE108-DD108 -> 110.8026193 | DF109: =DF108-DE108 -> 114.1266979 | DG109: =DG108-DF108 -> 117.5504989 | DH109: =DH108-DG108 -> 121.0770138 | DI109: =DI108-DH108 -> 124.7093242 | DJ109: =DJ108-DI108 -> 128.450604 | DK109: =DK108-DJ108 -> 132.3041221 | DL109: =DL108-DK108 -> 136.2732458 | DM109: =DM108-DL108 -> 140.3614431 | DN109: =DN108-DM108 -> 144.5722864 | DO109: =DO108-DN108 -> 148.909455 | DP109: =DP108-DO108 -> 153.3767387 | DQ109: =DQ108-DP108 -> 157.9780408 | DR109: =DR108-DQ108 -> 162.7173821 | DS109: =DS108-DR108 -> 167.5989035 | DT109: =DT108-DS108 -> 172.6268706 | DU109: =DU108-DT108 -> 177.8056767 | DV109: =DV108-DU108 -> 183.139847 | DW109: =DW108-DV108 -> 188.6340425 | DX109: =DX108-DW108 -> 194.2930637 | DY109: =DY108-DX108 -> 200.1218556 | DZ109: =DZ108-DY108 -> 206.1255113 | EA109: =EA108-DZ108 -> 212.3092766
D111: Pre-tax Cash Flow | I111: =I99-I101-I106+I109 -> -6039.6236 | J111: =J99-J101-J106+J109 -> -1078.471601 | K111: -2906.2136 | L111: -4582.741747 | M111: -2213.212345 | N111: -4976.571543 | O111: -1433.017929 | P111: -4334.060832 | Q111: -2566.001977 | R111: -2322.031677 | S111: -2895.431472 | T111: -1412.138935 | U111: -2618.82282 | V111: -627.888784 | W111: -3400.420017 | X111: -2077.076143 | Y111: -1974.536543 | Z111: -339.1872852 | AA111: -2986.647495 | AB111: -4108.863429 | AC111: 617.0140435 | AD111: -951.5910702 | AE111: 1609.7508 | AF111: 237.1670998 | AG111: 291.8747613 | AH111: -1334.903616 | AI111: 1252.888475 | AJ111: 1480.381265 | AK111: 892.722291 | AL111: 1027.00587 | AM111: 1634.516373 | AN111: -1551.892724 | AO111: 334.4536841 | AP111: 3724.126776 | AQ111: 251.6258172 | AR111: 940.7287689 | AS111: 1169.194321 | AT111: 775.3899355 | AU111: 3527.333292 | AV111: 852.7075917 | AW111: 3693.706405 | AX111: 4695.990185 | AY111: -3618.945709 | AZ111: 4080.084148 | BA111: 861.5945855 | BB111: 977.910194 | BC111: 2244.349296 | BD111: 2575.046098 | BE111: -2062.132738 | BF111: 4995.28856 | BG111: -1645.118549 | BH111: 779.8394655 | BI111: 900.2821792 | BJ111: 4971.212921 | BK111: 196.49325 | BL111: 2428.986584 | BM111: 4664.565281 | BN111: 4316.590192 | BO111: 5469.289339 | BP111: 577.4746877 | BQ111: 2751.385641 | BR111: 2335.226684 | BS111: 3501.386333 | BT111: 3418.992532 | BU111: 3529.661641 | BV111: =BV99-BV101-BV106+BV109 -> 3643.873555 | BW111: 3761.740682 | BX111: 3883.378974 | BY111: 4008.908032 | BZ111: 4138.451222 | CA111: 4272.135797 | CB111: 4410.093013 | CC111: 4552.458257 | CD111: 4699.371175 | CE111: 4850.975809 | CF111: 5007.420727 | CG111: 5168.859173 | CH111: 5335.449208 | CI111: 5507.353861 | CJ111: 5684.741286 | CK111: 5867.784921 | CL111: 6056.663653 | CM111: 6251.56199 | CN111: 6452.670234 | CO111: 6660.184663 | CP111: =CP99-CP101-CP106+CP109 -> 6874.307719 | CQ111: 7095.248198 | CR111: 7323.221451 | CS111: 7558.449586 | CT111: 7801.161681 | CU111: 8051.594001 | CV111: 8309.990221 | CW111: 8576.601658 | CX111: 8851.687512 | CY111: 9135.515105 | CZ111: 9428.360143 | DA111: 9730.50697 | DB111: 10042.24884 | DC111: 10363.88821 | DD111: 10695.73698 | DE111: 11038.11684 | DF111: 11391.35957 | DG111: 11755.80731 | DH111: 12131.81292 | DI111: 12519.74031 | DJ111: 12919.96478 | DK111: 13332.87337 | DL111: 13758.86523 | DM111: 14198.35201 | DN111: 14651.75821 | DO111: 15119.52163 | DP111: 15602.09375 | DQ111: 16099.94015 | DR111: 16613.541 | DS111: 17143.39145 | DT111: 17690.00212 | DU111: 18253.89961 | DV111: 18835.62696 | DW111: 19435.74416 | DX111: 20054.8287 | DY111: 20693.47612 | DZ111: 21352.30053 | EA111: 22031.93523
A113: After Tax Cash Flow
D114: Net Block
D115: Opening Balance | I115: =H118 -> 0 | J115: =I118 -> 8115.153134 | K115: 11039.60571 | L115: 13944.89281 | M115: 16838.19812 | N115: 19869.30369 | O115: 22648.24828 | P115: 25222.74027 | Q115: 28174.06431 | R115: 30861.38875 | S115: 33754.20691 | T115: 36532.69686 | U115: 39434.66531 | V115: 40840.01197 | W115: 42194.80495 | X115: 43568.46762 | Y115: 45244.12088 | Z115: 46683.25595 | AA115: 48566.60957 | AB115: 49878.40779 | AC115: 51482.48948 | AD115: 51275.25401 | AE115: 50918.0833 | AF115: 50611.85421 | AG115: 50239.19318 | AH115: 49816.93286 | AI115: 49348.39356 | AJ115: 49498.24927 | AK115: 49559.69168 | AL115: 49616.80959 | AM115: 49407.12262 | AN115: 49648.0022 | AO115: 49736.51745 | AP115: 49981.81151 | AQ115: 50540.23093 | AR115: 51285.66864 | AS115: 51749.24681 | AT115: 52055.0775 | AU115: 52265.60657 | AV115: 52941.68879 | AW115: 54049.08611 | AX115: 55023.06681 | AY115: 55760.04399 | AZ115: 56550.6882 | BA115: 56833.9017 | BB115: 57725.65078 | BC115: 58387.99048 | BD115: 59815.21613 | BE115: 61061.92992 | BF115: 62110.28107 | BG115: 63423.21336 | BH115: 64341.93649 | BI115: 65501.51001 | BJ115: 67201.68643 | BK115: 68164.09242 | BL115: 69635.14314 | BM115: 71849.9107 | BN115: 73147.40817 | BO115: 74911.59042 | BP115: 77097.9822 | BQ115: 78669.79646 | BR115: 80159.44788 | BS115: 82417.86593 | BT115: 84894.26153 | BU115: 87444.83321 | BV115: =BU118 -> 90071.80973 | BW115: 92777.4866 | BX115: 95564.22809 | BY115: 98434.46933 | BZ115: 101390.7184 | CA115: 104435.5584 | CB115: 107571.6501 | CC115: 110801.7338 | CD115: 114128.632 | CE115: 117555.2518 | CF115: 121084.5873 | CG115: 124719.7226 | CH115: 128463.834 | CI115: 132320.1931 | CJ115: 136292.1697 | CK115: 140383.2344 | CL115: 144596.9621 | CM115: 148937.0347 | CN115: 153407.2446 | CO115: 158011.4978 | CP115: =CO118 -> 162753.8176 | CQ115: =CP118 -> 167638.3477 | CR115: =CQ118 -> 172669.3562 | CS115: =CR118 -> 177851.2392 | CT115: =CS118 -> 183188.5247 | CU115: =CT118 -> 188685.8762 | CV115: =CU118 -> 194348.0975 | CW115: =CV118 -> 200180.136 | CX115: =CW118 -> 206187.0878 | CY115: =CX118 -> 212374.2018 | CZ115: =CY118 -> 218746.8841 | DA115: =CZ118 -> 225310.7032 | DB115: =DA118 -> 232071.3945 | DC115: =DB118 -> 239034.8654 | DD115: =DC118 -> 246207.2006 | DE115: =DD118 -> 253594.6671 | DF115: =DE118 -> 261203.7202 | DG115: =DF118 -> 269041.0084 | DH115: =DG118 -> 277113.38 | DI115: =DH118 -> 285427.8885 | DJ115: =DI118 -> 293991.7991 | DK115: =DJ118 -> 302812.5947 | DL115: =DK118 -> 311897.983 | DM115: =DL118 -> 321255.9026 | DN115: =DM118 -> 330894.5303 | DO115: =DN118 -> 340822.2884 | DP115: =DO118 -> 351047.8516 | DQ115: =DP118 -> 361580.1548 | DR115: =DQ118 -> 372428.4011 | DS115: =DR118 -> 383602.0696 | DT115: =DS118 -> 395110.9236 | DU115: =DT118 -> 406965.0194 | DV115: =DU118 -> 419174.7151 | DW115: =DV118 -> 431750.6793 | DX115: =DW118 -> 444703.9008 | DY115: =DX118 -> 458045.6978 | DZ115: =DY118 -> 471787.7284 | EA115: =DZ118 -> 485942.0001
D116: Add: Capital Expenditures | I116: =I101 -> 2595.684133 | J116: =J101 -> 2651.398492 | K116: 3206.516796 | L116: 3497.262976 | M116: 3322.567251 | N116: 3186.608764 | O116: 3237.807228 | P116: 3396.133099 | Q116: 3780.41822 | R116: 3731.257844 | S116: 3262.418219 | T116: 3367.489394 | U116: 2930.426112 | V116: 2566.774879 | W116: 2606.885538 | X116: 2341.325798 | Y116: 3065.961013 | Z116: 2855.072113 | AA116: 3106.974285 | AB116: 3547.268146 | AC116: 1194.532869 | AD116: 1051.400907 | AE116: 1441.827915 | AF116: 1395.023786 | AG116: 1249.225753 | AH116: 1233.84664 | AI116: 1359.977202 | AJ116: 1404.18949 | AK116: 1620.406551 | AL116: 1648.74169 | AM116: 1610.511785 | AN116: 1949.523487 | AO116: 1458.234095 | AP116: 1867.542463 | AQ116: 1805.085277 | AR116: 2033.706404 | AS116: 1972.331878 | AT116: 2132.607368 | AU116: 2256.784033 | AV116: 2278.312534 | AW116: 2033.659382 | AX116: 2145.696821 | AY116: 2479.272722 | AZ116: 2120.615435 | BA116: 2357.16629 | BB116: 2353.864608 | BC116: 2465.978315 | BD116: 2604.274203 | BE116: 2746.097411 | BF116: 3100.988882 | BG116: 3149.135631 | BH116: 3964.456285 | BI116: 2994.210266 | BJ116: 3596.543068 | BK116: 3727.742021 | BL116: 4384.021942 | BM116: 3356.91265 | BN116: 4131.77413 | BO116: 4189.464046 | BP116: 3660.677934 | BQ116: 4221.32589 | BR116: 5011.481328 | BS116: 4948.93158 | BT116: 5097.399528 | BU116: 5250.321513 | BV116: =BV101 -> 5407.831159 | BW116: 5570.066094 | BX116: 5737.168076 | BY116: 5909.283119 | BZ116: 6086.561612 | CA116: 6269.158461 | CB116: 6457.233214 | CC116: 6650.950211 | CD116: 6850.478717 | CE116: 7055.993079 | CF116: 7267.672871 | CG116: 7485.703057 | CH116: 7710.274149 | CI116: 7941.582373 | CJ116: 8179.829845 | CK116: 8425.22474 | CL116: 8677.981482 | CM116: 8938.320926 | CN116: 9206.470554 | CO116: 9482.664671 | CP116: =CP101 -> 9767.144611 | CQ116: 10060.15895 | CR116: 10361.96372 | CS116: 10672.82263 | CT116: 10993.00731 | CU116: 11322.79753 | CV116: 11662.48145 | CW116: 12012.3559 | CX116: 12372.72657 | CY116: 12743.90837 | CZ116: 13126.22562 | DA116: 13520.01239 | DB116: 13925.61276 | DC116: 14343.38115 | DD116: 14773.68258 | DE116: 15216.89306 | DF116: 15673.39985 | DG116: 16143.60184 | DH116: 16627.9099 | DI116: 17126.7472 | DJ116: 17640.54961 | DK116: 18169.7661 | DL116: 18714.85908 | DM116: 19276.30486 | DN116: 19854.594 | DO116: 20450.23182 | DP116: 21063.73878 | DQ116: 21695.65094 | DR116: 22346.52047 | DS116: 23016.91608 | DT116: 23707.42357 | DU116: 24418.64627 | DV116: 25151.20566 | DW116: 25905.74183 | DX116: 26682.91408 | DY116: 27483.40151 | DZ116: 28307.90355 | EA116: 29157.14066
D117: Less: Depreciation | I117: =I121 -> 150 | J117: =J121 -> 243.454594 | K117: 331.1881713 | L117: 418.3467842 | M117: 505.1459437 | N117: 596.0791108 | O117: 679.4474483 | P117: 756.6822081 | Q117: 845.2219292 | R117: 925.8416625 | S117: 1012.626207 | T117: 1095.980906 | U117: 1183.039959 | V117: 1225.200359 | W117: 1265.844148 | X117: 1307.054028 | Y117: 1357.323626 | Z117: 1400.497679 | AA117: 1456.998287 | AB117: 1496.352234 | AC117: 1544.474685 | AD117: 1538.25762 | AE117: 1527.542499 | AF117: 1518.355626 | AG117: 1507.175795 | AH117: 1494.507986 | AI117: 1480.451807 | AJ117: 1484.947478 | AK117: 1486.79075 | AL117: 1488.504288 | AM117: 1482.213678 | AN117: 1489.440066 | AO117: 1492.095523 | AP117: 1499.454345 | AQ117: 1516.206928 | AR117: 1538.570059 | AS117: 1552.477404 | AT117: 1561.652325 | AU117: 1567.968197 | AV117: 1588.250664 | AW117: 1621.472583 | AX117: 1650.692004 | AY117: 1672.80132 | AZ117: 1696.520646 | BA117: 1705.017051 | BB117: 1731.769523 | BC117: 1751.639714 | BD117: 1794.456484 | BE117: 1831.857898 | BF117: 1863.308432 | BG117: 1902.696401 | BH117: 1930.258095 | BI117: 1965.0453 | BJ117: 2016.050593 | BK117: 2044.922773 | BL117: 2089.054294 | BM117: 2155.497321 | BN117: 2194.422245 | BO117: 2247.347713 | BP117: 2312.939466 | BQ117: 2360.093894 | BR117: 2404.783436 | BS117: 2472.535978 | BT117: 2546.827846 | BU117: 2623.344996 | BV117: =BV121 -> 2702.154292 | BW117: 2783.324598 | BX117: 2866.926843 | BY117: 2953.03408 | BZ117: 3041.721551 | CA117: 3133.066753 | CB117: 3227.149504 | CC117: 3324.052015 | CD117: 3423.858961 | CE117: 3526.657554 | CF117: 3632.53762 | CG117: 3741.591677 | CH117: 3853.915019 | CI117: 3969.605792 | CJ117: 4088.76509 | CK117: 4211.497033 | CL117: 4337.908864 | CM117: 4468.111042 | CN117: 4602.217339 | CO117: 4740.344935 | CP117: =CP121 -> 4882.614527 | CQ117: 5029.15043 | CR117: 5180.080685 | CS117: 5335.537176 | CT117: 5495.65574 | CU117: 5660.576287 | CV117: 5830.442924 | CW117: 6005.40408 | CX117: 6185.612635 | CY117: 6371.226053 | CZ117: 6562.406522 | DA117: 6759.321095 | DB117: 6962.141834 | DC117: 7171.045962 | DD117: 7386.216018 | DE117: 7607.840014 | DF117: 7836.111606 | DG117: 8071.230253 | DH117: 8313.401401 | DI117: 8562.836656 | DJ117: 8819.753972 | DK117: 9084.377841 | DL117: 9356.939489 | DM117: 9637.677077 | DN117: 9926.83591 | DO117: 10224.66865 | DP117: 10531.43555 | DQ117: 10847.40464 | DR117: 11172.85203 | DS117: 11508.06209 | DT117: 11853.32771 | DU117: 12208.95058 | DV117: 12575.24145 | DW117: 12952.52038 | DX117: 13341.11702 | DY117: 13741.37093 | DZ117: 14153.63185 | EA117: 14578.26
D118: Closing Balance | I118: =IF(I3,I25,I115+I116-I117) -> 8115.153134 | J118: 11039.60571 | K118: 13944.89281 | L118: 16838.19812 | M118: 19869.30369 | N118: 22648.24828 | O118: 25222.74027 | P118: 28174.06431 | Q118: 30861.38875 | R118: 33754.20691 | S118: 36532.69686 | T118: 39434.66531 | U118: 40840.01197 | V118: 42194.80495 | W118: 43568.46762 | X118: 45244.12088 | Y118: 46683.25595 | Z118: 48566.60957 | AA118: 49878.40779 | AB118: 51482.48948 | AC118: 51275.25401 | AD118: 50918.0833 | AE118: 50611.85421 | AF118: 50239.19318 | AG118: 49816.93286 | AH118: 49348.39356 | AI118: 49498.24927 | AJ118: 49559.69168 | AK118: 49616.80959 | AL118: 49407.12262 | AM118: 49648.0022 | AN118: 49736.51745 | AO118: =IF(AO3,AO25,AO115+AO116-AO117) -> 49981.81151 | AP118: 50540.23093 | AQ118: 51285.66864 | AR118: 51749.24681 | AS118: 52055.0775 | AT118: 52265.60657 | AU118: 52941.68879 | AV118: 54049.08611 | AW118: 55023.06681 | AX118: 55760.04399 | AY118: 56550.6882 | AZ118: 56833.9017 | BA118: 57725.65078 | BB118: 58387.99048 | BC118: 59815.21613 | BD118: 61061.92992 | BE118: 62110.28107 | BF118: 63423.21336 | BG118: 64341.93649 | BH118: 65501.51001 | BI118: 67201.68643 | BJ118: 68164.09242 | BK118: 69635.14314 | BL118: 71849.9107 | BM118: 73147.40817 | BN118: 74911.59042 | BO118: 77097.9822 | BP118: 78669.79646 | BQ118: 80159.44788 | BR118: 82417.86593 | BS118: 84894.26153 | BT118: 87444.83321 | BU118: =IF(BU3,BU25,BU115+BU116-BU117) -> 90071.80973 | BV118: 92777.4866 | BW118: 95564.22809 | BX118: 98434.46933 | BY118: 101390.7184 | BZ118: 104435.5584 | CA118: 107571.6501 | CB118: 110801.7338 | CC118: 114128.632 | CD118: 117555.2518 | CE118: 121084.5873 | CF118: 124719.7226 | CG118: 128463.834 | CH118: 132320.1931 | CI118: 136292.1697 | CJ118: 140383.2344 | CK118: 144596.9621 | CL118: 148937.0347 | CM118: 153407.2446 | CN118: 158011.4978 | CO118: 162753.8176 | CP118: =IF(CP3,CP25,CP115+CP116-CP117) -> 167638.3477 | CQ118: =IF(CQ3,CQ25,CQ115+CQ116-CQ117) -> 172669.3562 | CR118: =IF(CR3,CR25,CR115+CR116-CR117) -> 177851.2392 | CS118: =IF(CS3,CS25,CS115+CS116-CS117) -> 183188.5247 | CT118: =IF(CT3,CT25,CT115+CT116-CT117) -> 188685.8762 | CU118: =IF(CU3,CU25,CU115+CU116-CU117) -> 194348.0975 | CV118: =IF(CV3,CV25,CV115+CV116-CV117) -> 200180.136 | CW118: =IF(CW3,CW25,CW115+CW116-CW117) -> 206187.0878 | CX118: =IF(CX3,CX25,CX115+CX116-CX117) -> 212374.2018 | CY118: =IF(CY3,CY25,CY115+CY116-CY117) -> 218746.8841 | CZ118: =IF(CZ3,CZ25,CZ115+CZ116-CZ117) -> 225310.7032 | DA118: =IF(DA3,DA25,DA115+DA116-DA117) -> 232071.3945 | DB118: =IF(DB3,DB25,DB115+DB116-DB117) -> 239034.8654 | DC118: =IF(DC3,DC25,DC115+DC116-DC117) -> 246207.2006 | DD118: =IF(DD3,DD25,DD115+DD116-DD117) -> 253594.6671 | DE118: =IF(DE3,DE25,DE115+DE116-DE117) -> 261203.7202 | DF118: =IF(DF3,DF25,DF115+DF116-DF117) -> 269041.0084 | DG118: =IF(DG3,DG25,DG115+DG116-DG117) -> 277113.38 | DH118: =IF(DH3,DH25,DH115+DH116-DH117) -> 285427.8885 | DI118: =IF(DI3,DI25,DI115+DI116-DI117) -> 293991.7991 | DJ118: =IF(DJ3,DJ25,DJ115+DJ116-DJ117) -> 302812.5947 | DK118: =IF(DK3,DK25,DK115+DK116-DK117) -> 311897.983 | DL118: =IF(DL3,DL25,DL115+DL116-DL117) -> 321255.9026 | DM118: =IF(DM3,DM25,DM115+DM116-DM117) -> 330894.5303 | DN118: =IF(DN3,DN25,DN115+DN116-DN117) -> 340822.2884 | DO118: =IF(DO3,DO25,DO115+DO116-DO117) -> 351047.8516 | DP118: =IF(DP3,DP25,DP115+DP116-DP117) -> 361580.1548 | DQ118: =IF(DQ3,DQ25,DQ115+DQ116-DQ117) -> 372428.4011 | DR118: =IF(DR3,DR25,DR115+DR116-DR117) -> 383602.0696 | DS118: =IF(DS3,DS25,DS115+DS116-DS117) -> 395110.9236 | DT118: =IF(DT3,DT25,DT115+DT116-DT117) -> 406965.0194 | DU118: =IF(DU3,DU25,DU115+DU116-DU117) -> 419174.7151 | DV118: =IF(DV3,DV25,DV115+DV116-DV117) -> 431750.6793 | DW118: =IF(DW3,DW25,DW115+DW116-DW117) -> 444703.9008 | DX118: =IF(DX3,DX25,DX115+DX116-DX117) -> 458045.6978 | DY118: =IF(DY3,DY25,DY115+DY116-DY117) -> 471787.7284 | DZ118: =IF(DZ3,DZ25,DZ115+DZ116-DZ117) -> 485942.0001 | EA118: =IF(EA3,EA25,EA115+EA116-EA117) -> 500520.8808
D120: Depreciation Rate (Opening Plant) | I120: =I81 -> 0.03 | J120: 0.03 | K120: 0.03 | L120: 0.03 | M120: 0.03 | N120: 0.03 | O120: 0.03 | P120: 0.03 | Q120: 0.03 | R120: 0.03 | S120: 0.03 | T120: 0.03 | U120: 0.03 | V120: 0.03 | W120: 0.03 | X120: 0.03 | Y120: 0.03 | Z120: 0.03 | AA120: 0.03 | AB120: 0.03 | AC120: 0.03 | AD120: 0.03 | AE120: 0.03 | AF120: 0.03 | AG120: 0.03 | AH120: 0.03 | AI120: 0.03 | AJ120: 0.03 | AK120: 0.03 | AL120: 0.03 | AM120: 0.03 | AN120: 0.03 | AO120: =AO81 -> 0.03 | AP120: 0.03 | AQ120: 0.03 | AR120: 0.03 | AS120: 0.03 | AT120: 0.03 | AU120: 0.03 | AV120: 0.03 | AW120: 0.03 | AX120: 0.03 | AY120: 0.03 | AZ120: 0.03 | BA120: 0.03 | BB120: 0.03 | BC120: 0.03 | BD120: 0.03 | BE120: 0.03 | BF120: 0.03 | BG120: 0.03 | BH120: 0.03 | BI120: 0.03 | BJ120: 0.03 | BK120: 0.03 | BL120: 0.03 | BM120: 0.03 | BN120: 0.03 | BO120: 0.03 | BP120: 0.03 | BQ120: 0.03 | BR120: 0.03 | BS120: =BS81 -> 0.03 | BT120: 0.03 | BU120: 0.03 | BV120: 0.03 | BW120: 0.03 | BX120: 0.03 | BY120: 0.03 | BZ120: 0.03 | CA120: 0.03 | CB120: 0.03 | CC120: 0.03 | CD120: 0.03 | CE120: 0.03 | CF120: 0.03 | CG120: 0.03 | CH120: 0.03 | CI120: 0.03 | CJ120: 0.03 | CK120: 0.03 | CL120: 0.03 | CM120: 0.03 | CN120: 0.03 | CO120: 0.03 | CP120: =CP81 -> 0.03 | CQ120: 0.03 | CR120: 0.03 | CS120: 0.03 | CT120: 0.03 | CU120: 0.03 | CV120: 0.03 | CW120: 0.03 | CX120: 0.03 | CY120: 0.03 | CZ120: 0.03 | DA120: 0.03 | DB120: 0.03 | DC120: 0.03 | DD120: 0.03 | DE120: 0.03 | DF120: 0.03 | DG120: 0.03 | DH120: 0.03 | DI120: 0.03 | DJ120: 0.03 | DK120: 0.03 | DL120: 0.03 | DM120: 0.03 | DN120: 0.03 | DO120: 0.03 | DP120: 0.03 | DQ120: 0.03 | DR120: 0.03 | DS120: 0.03 | DT120: 0.03 | DU120: 0.03 | DV120: 0.03 | DW120: 0.03 | DX120: 0.03 | DY120: 0.03 | DZ120: 0.03 | EA120: 0.03
D121: Depreciation Expense | I121: =IF(I3,I80,I120*I115) -> 150 | J121: =IF(J3,J80,J120*J115) -> 243.454594 | K121: 331.1881713 | L121: 418.3467842 | M121: 505.1459437 | N121: 596.0791108 | O121: 679.4474483 | P121: 756.6822081 | Q121: 845.2219292 | R121: 925.8416625 | S121: 1012.626207 | T121: 1095.980906 | U121: 1183.039959 | V121: 1225.200359 | W121: 1265.844148 | X121: 1307.054028 | Y121: 1357.323626 | Z121: 1400.497679 | AA121: 1456.998287 | AB121: 1496.352234 | AC121: 1544.474685 | AD121: 1538.25762 | AE121: 1527.542499 | AF121: 1518.355626 | AG121: 1507.175795 | AH121: 1494.507986 | AI121: 1480.451807 | AJ121: 1484.947478 | AK121: 1486.79075 | AL121: 1488.504288 | AM121: 1482.213678 | AN121: 1489.440066 | AO121: 1492.095523 | AP121: 1499.454345 | AQ121: 1516.206928 | AR121: 1538.570059 | AS121: 1552.477404 | AT121: 1561.652325 | AU121: 1567.968197 | AV121: 1588.250664 | AW121: 1621.472583 | AX121: 1650.692004 | AY121: 1672.80132 | AZ121: 1696.520646 | BA121: 1705.017051 | BB121: 1731.769523 | BC121: 1751.639714 | BD121: 1794.456484 | BE121: 1831.857898 | BF121: 1863.308432 | BG121: 1902.696401 | BH121: 1930.258095 | BI121: 1965.0453 | BJ121: 2016.050593 | BK121: 2044.922773 | BL121: 2089.054294 | BM121: 2155.497321 | BN121: 2194.422245 | BO121: 2247.347713 | BP121: 2312.939466 | BQ121: 2360.093894 | BR121: 2404.783436 | BS121: 2472.535978 | BT121: 2546.827846 | BU121: 2623.344996 | BV121: =IF(BV3,BV80,BV120*BV115) -> 2702.154292 | BW121: 2783.324598 | BX121: 2866.926843 | BY121: 2953.03408 | BZ121: 3041.721551 | CA121: 3133.066753 | CB121: 3227.149504 | CC121: 3324.052015 | CD121: 3423.858961 | CE121: 3526.657554 | CF121: 3632.53762 | CG121: 3741.591677 | CH121: 3853.915019 | CI121: 3969.605792 | CJ121: 4088.76509 | CK121: 4211.497033 | CL121: 4337.908864 | CM121: 4468.111042 | CN121: 4602.217339 | CO121: 4740.344935 | CP121: =IF(CP3,CP80,CP120*CP115) -> 4882.614527 | CQ121: 5029.15043 | CR121: 5180.080685 | CS121: 5335.537176 | CT121: 5495.65574 | CU121: 5660.576287 | CV121: 5830.442924 | CW121: 6005.40408 | CX121: 6185.612635 | CY121: 6371.226053 | CZ121: 6562.406522 | DA121: 6759.321095 | DB121: 6962.141834 | DC121: 7171.045962 | DD121: 7386.216018 | DE121: 7607.840014 | DF121: 7836.111606 | DG121: 8071.230253 | DH121: 8313.401401 | DI121: 8562.836656 | DJ121: 8819.753972 | DK121: 9084.377841 | DL121: 9356.939489 | DM121: 9637.677077 | DN121: 9926.83591 | DO121: 10224.66865 | DP121: 10531.43555 | DQ121: 10847.40464 | DR121: 11172.85203 | DS121: 11508.06209 | DT121: 11853.32771 | DU121: 12208.95058 | DV121: 12575.24145 | DW121: 12952.52038 | DX121: 13341.11702 | DY121: 13741.37093 | DZ121: 14153.63185 | EA121: 14578.26
D123: EBITDA | I123: =I99 -> -354.9253947 | J123: =J99 -> 504.2002894 | K123: 479.6366818 | L123: -252.7728066 | M123: 298.8954504 | N123: -545.7271677 | O123: 446.4336738 | P123: 153.6271741 | Q123: 863.7405337 | R123: 719.1884588 | S123: 487.7014765 | T123: 1572.953701 | U123: 959.4078031 | V123: 1491.804761 | W123: 367.6783487 | X123: 471.584784 | Y123: 760.9114263 | Z123: 1269.790823 | AA123: 1353.996997 | AB123: 682.2526532 | AC123: 801.6036342 | AD123: 1272.948028 | AE123: 1612.11591 | AF123: 2078.050866 | AG123: 1536.211666 | AH123: 612.8212165 | AI123: 2532.751139 | AJ123: 2499.070832 | AK123: 2864.899588 | AL123: 2151.417642 | AM123: 3043.924314 | AN123: 2247.154058 | AO123: 2253.892983 | AP123: 4143.294034 | AQ123: 3441.81625 | AR123: 3070.842582 | AS123: 4089.679539 | AT123: 2953.793233 | AU123: 4554.250059 | AV123: 4024.276674 | AW123: 4470.018918 | AX123: 5406.824011 | AY123: 2465.899381 | AZ123: 3733.180002 | BA123: 3946.364719 | BB123: 3602.477256 | BC123: 4500.76491 | BD123: 5051.631128 | BE123: 2907.816066 | BF123: 6512.879866 | BG123: 2888.08634 | BH123: 3631.994666 | BI123: 5704.346397 | BJ123: 6800.465795 | BK123: 5241.747161 | BL123: 7155.931816 | BM123: 8245.931597 | BN123: 7994.501396 | BO123: 9773.824194 | BP123: 5720.573007 | BQ123: 7223.685112 | BR123: 8348.532385 | BS123: 8579.448648 | BT123: 8844.767767 | BU123: 9118.26469 | BV123: =BV99 -> 9400.190753 | BW123: 9690.804996 | BX123: 9990.374401 | BY123: 10299.17413 | BZ123: 10617.48779 | CA123: 10945.60766 | CB123: 11283.835 | CC123: 11632.48029 | CD123: 11991.86351 | CE123: 12362.31448 | CF123: 12744.17308 | CG123: 13137.78965 | CH123: 13543.52523 | CI123: 13961.75192 | CJ123: 14392.85325 | CK123: 14837.22445 | CL123: 15295.2729 | CM123: 15767.41842 | CN123: 16254.0937 | CO123: 16755.7447 | CP123: =CP99 -> 17272.831 | CQ123: 17805.82627 | CR123: 18355.21869 | CS123: 18921.51136 | CT123: 19505.22281 | CU123: 20106.88742 | CV123: 20727.05593 | CW123: 21366.29595 | CX123: 22025.19246 | CY123: 22704.34831 | CZ123: 23404.38485 | DA123: 24125.94239 | DB123: 24869.68088 | DC123: 25636.28043 | DD123: 26426.44197 | DE123: 27240.88787 | DF123: 28080.36259 | DG123: 28945.63337 | DH123: 29837.49092 | DI123: 30756.75014 | DJ123: 31704.25083 | DK123: 32680.85849 | DL123: 33687.46508 | DM123: 34724.98985 | DN123: 35794.38013 | DO123: 36896.61223 | DP123: 38032.69232 | DQ123: 39203.65731 | DR123: 40410.57581 | DS123: 41654.54911 | DT123: 42936.71215 | DU123: 44258.23457 | DV123: 45620.32173 | DW123: 47024.21586 | DX123: 48471.19714 | DY123: 49962.58486 | DZ123: 51499.73864 | EA123: 53084.05963
D124: Less: Depreciation | I124: =I121 -> 150 | J124: =J121 -> 243.454594 | K124: 331.1881713 | L124: 418.3467842 | M124: 505.1459437 | N124: 596.0791108 | O124: 679.4474483 | P124: 756.6822081 | Q124: 845.2219292 | R124: 925.8416625 | S124: 1012.626207 | T124: 1095.980906 | U124: 1183.039959 | V124: 1225.200359 | W124: 1265.844148 | X124: 1307.054028 | Y124: 1357.323626 | Z124: 1400.497679 | AA124: 1456.998287 | AB124: 1496.352234 | AC124: 1544.474685 | AD124: 1538.25762 | AE124: 1527.542499 | AF124: 1518.355626 | AG124: 1507.175795 | AH124: 1494.507986 | AI124: 1480.451807 | AJ124: 1484.947478 | AK124: 1486.79075 | AL124: 1488.504288 | AM124: 1482.213678 | AN124: 1489.440066 | AO124: 1492.095523 | AP124: 1499.454345 | AQ124: 1516.206928 | AR124: 1538.570059 | AS124: 1552.477404 | AT124: 1561.652325 | AU124: 1567.968197 | AV124: 1588.250664 | AW124: 1621.472583 | AX124: 1650.692004 | AY124: 1672.80132 | AZ124: 1696.520646 | BA124: 1705.017051 | BB124: 1731.769523 | BC124: 1751.639714 | BD124: 1794.456484 | BE124: 1831.857898 | BF124: 1863.308432 | BG124: 1902.696401 | BH124: 1930.258095 | BI124: 1965.0453 | BJ124: 2016.050593 | BK124: 2044.922773 | BL124: 2089.054294 | BM124: 2155.497321 | BN124: 2194.422245 | BO124: 2247.347713 | BP124: 2312.939466 | BQ124: 2360.093894 | BR124: 2404.783436 | BS124: 2472.535978 | BT124: 2546.827846 | BU124: 2623.344996 | BV124: =BV121 -> 2702.154292 | BW124: 2783.324598 | BX124: 2866.926843 | BY124: 2953.03408 | BZ124: 3041.721551 | CA124: 3133.066753 | CB124: 3227.149504 | CC124: 3324.052015 | CD124: 3423.858961 | CE124: 3526.657554 | CF124: 3632.53762 | CG124: 3741.591677 | CH124: 3853.915019 | CI124: 3969.605792 | CJ124: 4088.76509 | CK124: 4211.497033 | CL124: 4337.908864 | CM124: 4468.111042 | CN124: 4602.217339 | CO124: 4740.344935 | CP124: =CP121 -> 4882.614527 | CQ124: 5029.15043 | CR124: 5180.080685 | CS124: 5335.537176 | CT124: 5495.65574 | CU124: 5660.576287 | CV124: 5830.442924 | CW124: 6005.40408 | CX124: 6185.612635 | CY124: 6371.226053 | CZ124: 6562.406522 | DA124: 6759.321095 | DB124: 6962.141834 | DC124: 7171.045962 | DD124: 7386.216018 | DE124: 7607.840014 | DF124: 7836.111606 | DG124: 8071.230253 | DH124: 8313.401401 | DI124: 8562.836656 | DJ124: 8819.753972 | DK124: 9084.377841 | DL124: 9356.939489 | DM124: 9637.677077 | DN124: 9926.83591 | DO124: 10224.66865 | DP124: 10531.43555 | DQ124: 10847.40464 | DR124: 11172.85203 | DS124: 11508.06209 | DT124: 11853.32771 | DU124: 12208.95058 | DV124: 12575.24145 | DW124: 12952.52038 | DX124: 13341.11702 | DY124: 13741.37093 | DZ124: 14153.63185 | EA124: 14578.26
D125: EBIT | I125: =I123-I124 -> -504.9253947 | J125: =J123-J124 -> 260.7456954 | K125: 148.4485105 | L125: -671.1195908 | M125: -206.2504933 | N125: -1141.806278 | O125: -233.0137745 | P125: -603.055034 | Q125: 18.51860455 | R125: -206.6532037 | S125: -524.9247308 | T125: 476.9727949 | U125: -223.6321562 | V125: 266.604402 | W125: -898.1657998 | X125: -835.4692445 | Y125: -596.4122 | Z125: -130.7068553 | AA125: -103.0012903 | AB125: -814.0995806 | AC125: -742.8710503 | AD125: -265.309592 | AE125: 84.57341108 | AF125: 559.69524 | AG125: 29.03587041 | AH125: -881.6867694 | AI125: 1052.299332 | AJ125: 1014.123354 | AK125: 1378.108838 | AL125: 662.9133545 | AM125: 1561.710636 | AN125: 757.7139918 | AO125: 761.7974593 | AP125: 2643.839689 | AQ125: 1925.609322 | AR125: 1532.272523 | AS125: 2537.202135 | AT125: 1392.140908 | AU125: 2986.281862 | AV125: 2436.02601 | AW125: 2848.546334 | AX125: 3756.132007 | AY125: 793.0980615 | AZ125: 2036.659356 | BA125: 2241.347668 | BB125: 1870.707732 | BC125: 2749.125196 | BD125: 3257.174644 | BE125: 1075.958169 | BF125: 4649.571434 | BG125: 985.3899391 | BH125: 1701.736571 | BI125: 3739.301097 | BJ125: 4784.415202 | BK125: 3196.824388 | BL125: 5066.877522 | BM125: 6090.434276 | BN125: 5800.079151 | BO125: 7526.476481 | BP125: 3407.633541 | BQ125: 4863.591219 | BR125: 5943.748949 | BS125: =BS123-BS124 -> 6106.91267 | BT125: =BT123-BT124 -> 6297.939921 | BU125: =BU123-BU124 -> 6494.919694 | BV125: =BV123-BV124 -> 6698.036461 | BW125: =BW123-BW124 -> 6907.480399 | BX125: =BX123-BX124 -> 7123.447558 | BY125: =BY123-BY124 -> 7346.140053 | BZ125: =BZ123-BZ124 -> 7575.766239 | CA125: =CA123-CA124 -> 7812.540911 | CB125: =CB123-CB124 -> 8056.685499 | CC125: =CC123-CC124 -> 8308.428272 | CD125: =CD123-CD124 -> 8568.004551 | CE125: =CE123-CE124 -> 8835.656922 | CF125: =CF123-CF124 -> 9111.635464 | CG125: =CG123-CG124 -> 9396.197974 | CH125: =CH123-CH124 -> 9689.61021 | CI125: =CI123-CI124 -> 9992.146132 | CJ125: =CJ123-CJ124 -> 10304.08816 | CK125: =CK123-CK124 -> 10625.72742 | CL125: =CL123-CL124 -> 10957.36403 | CM125: =CM123-CM124 -> 11299.30737 | CN125: =CN123-CN124 -> 11651.87636 | CO125: =CO123-CO124 -> 12015.39976 | CP125: 12390.21647 | CQ125: 12776.67584 | CR125: 13175.138 | CS125: 13585.97419 | CT125: 14009.56707 | CU125: 14446.31113 | CV125: 14896.61301 | CW125: 15360.89187 | CX125: 15839.57982 | CY125: 16333.12226 | CZ125: 16841.97832 | DA125: 17366.6213 | DB125: 17907.53905 | DC125: 18465.23447 | DD125: 19040.22595 | DE125: 19633.04785 | DF125: 20244.25098 | DG125: 20874.40311 | DH125: 21524.08952 | DI125: 22193.91348 | DJ125: 22884.49686 | DK125: 23596.48065 | DL125: 24330.52559 | DM125: 25087.31277 | DN125: 25867.54422 | DO125: 26671.94358 | DP125: 27501.25677 | DQ125: 28356.25267 | DR125: 29237.72378 | DS125: 30146.48703 | DT125: 31083.38445 | DU125: 32049.28398 | DV125: 33045.08028 | DW125: 34071.69548 | DX125: 35130.08011 | DY125: 36221.21393 | DZ125: 37346.10679 | EA125: 38505.79963
D126: Tax Rate | I126: =I92 -> 0.345 | J126: =J92 -> 0.345 | K126: 0.345 | L126: 0.345 | M126: 0.345 | N126: 0.345 | O126: 0.345 | P126: 0.345 | Q126: 0.345 | R126: 0.345 | S126: 0.345 | T126: 0.345 | U126: 0.345 | V126: 0.345 | W126: 0.345 | X126: 0.345 | Y126: 0.345 | Z126: 0.345 | AA126: 0.345 | AB126: 0.345 | AC126: 0.345 | AD126: 0.345 | AE126: 0.345 | AF126: 0.345 | AG126: 0.345 | AH126: 0.345 | AI126: 0.345 | AJ126: 0.345 | AK126: 0.345 | AL126: 0.345 | AM126: 0.345 | AN126: 0.345 | AO126: 0.345 | AP126: 0.345 | AQ126: 0.345 | AR126: 0.345 | AS126: 0.345 | AT126: 0.345 | AU126: 0.345 | AV126: 0.345 | AW126: 0.345 | AX126: 0.345 | AY126: 0.345 | AZ126: 0.345 | BA126: 0.345 | BB126: 0.345 | BC126: 0.345 | BD126: 0.345 | BE126: 0.345 | BF126: 0.345 | BG126: 0.345 | BH126: 0.345 | BI126: 0.345 | BJ126: 0.345 | BK126: 0.345 | BL126: 0.345 | BM126: 0.345 | BN126: 0.345 | BO126: 0.345 | BP126: 0.345 | BQ126: 0.345 | BR126: 0.345 | BS126: 0.345 | BT126: 0.345 | BU126: 0.345 | BV126: =BV92 -> 0.345 | BW126: 0.345 | BX126: 0.345 | BY126: 0.345 | BZ126: 0.345 | CA126: 0.345 | CB126: 0.345 | CC126: 0.345 | CD126: 0.345 | CE126: 0.345 | CF126: 0.345 | CG126: 0.345 | CH126: 0.345 | CI126: 0.345 | CJ126: 0.345 | CK126: 0.345 | CL126: 0.345 | CM126: 0.345 | CN126: 0.345 | CO126: 0.345 | CP126: =CP92 -> 0.345 | CQ126: 0.345 | CR126: 0.345 | CS126: 0.345 | CT126: 0.345 | CU126: 0.345 | CV126: 0.345 | CW126: 0.345 | CX126: 0.345 | CY126: 0.345 | CZ126: 0.345 | DA126: 0.345 | DB126: 0.345 | DC126: 0.345 | DD126: 0.345 | DE126: 0.345 | DF126: 0.345 | DG126: 0.345 | DH126: 0.345 | DI126: 0.345 | DJ126: 0.345 | DK126: 0.345 | DL126: 0.345 | DM126: 0.345 | DN126: 0.345 | DO126: 0.345 | DP126: 0.345 | DQ126: 0.345 | DR126: 0.345 | DS126: 0.345 | DT126: 0.345 | DU126: 0.345 | DV126: 0.345 | DW126: 0.345 | DX126: 0.345 | DY126: 0.345 | DZ126: 0.345 | EA126: 0.345
D127: Taxes on Operations | I127: =I125*I126 -> -174.1992612 | J127: =J125*J126 -> 89.9572649 | K127: 51.21473613 | L127: -231.5362588 | M127: -71.15642018 | N127: -393.9231661 | O127: -80.3897522 | P127: -208.0539867 | Q127: 6.38891857 | R127: -71.29535528 | S127: -181.0990321 | T127: 164.5556142 | U127: -77.15309388 | V127: 91.97851871 | W127: -309.8672009 | X127: -288.2368893 | Y127: -205.762209 | Z127: -45.09386507 | AA127: -35.53544515 | AB127: -280.8643553 | AC127: -256.2905123 | AD127: -91.53180924 | AE127: 29.17782682 | AF127: 193.0948578 | AG127: 10.01737529 | AH127: -304.1819354 | AI127: 363.0432695 | AJ127: 349.8725571 | AK127: 475.4475491 | AL127: 228.7051073 | AM127: 538.7901694 | AN127: 261.4113272 | AO127: 262.8201234 | AP127: 912.1246926 | AQ127: 664.3352162 | AR127: 528.6340203 | AS127: 875.3347365 | AT127: 480.2886133 | AU127: 1030.267242 | AV127: 840.4289735 | AW127: 982.7484853 | AX127: 1295.865542 | AY127: 273.6188312 | AZ127: 702.6474778 | BA127: 773.2649454 | BB127: 645.3941677 | BC127: 948.4481925 | BD127: 1123.725252 | BE127: 371.2055683 | BF127: 1604.102145 | BG127: 339.959529 | BH127: 587.0991171 | BI127: 1290.058878 | BJ127: 1650.623245 | BK127: 1102.904414 | BL127: 1748.072745 | BM127: 2101.199825 | BN127: 2001.027307 | BO127: 2596.634386 | BP127: 1175.633572 | BQ127: 1677.93897 | BR127: 2050.593387 | BS127: =BS125*BS126 -> 2106.884871 | BT127: =BT125*BT126 -> 2172.789273 | BU127: =BU125*BU126 -> 2240.747294 | BV127: =BV125*BV126 -> 2310.822579 | BW127: =BW125*BW126 -> 2383.080737 | BX127: =BX125*BX126 -> 2457.589408 | BY127: =BY125*BY126 -> 2534.418318 | BZ127: =BZ125*BZ126 -> 2613.639352 | CA127: =CA125*CA126 -> 2695.326614 | CB127: =CB125*CB126 -> 2779.556497 | CC127: =CC125*CC126 -> 2866.407754 | CD127: =CD125*CD126 -> 2955.96157 | CE127: =CE125*CE126 -> 3048.301638 | CF127: =CF125*CF126 -> 3143.514235 | CG127: =CG125*CG126 -> 3241.688301 | CH127: =CH125*CH126 -> 3342.915522 | CI127: =CI125*CI126 -> 3447.290416 | CJ127: =CJ125*CJ126 -> 3554.910415 | CK127: =CK125*CK126 -> 3665.87596 | CL127: =CL125*CL126 -> 3780.290591 | CM127: =CM125*CM126 -> 3898.261044 | CN127: =CN125*CN126 -> 4019.897346 | CO127: =CO125*CO126 -> 4145.312918 | CP127: 4274.624683 | CQ127: 4407.953166 | CR127: 4545.422611 | CS127: 4687.161094 | CT127: 4833.300639 | CU127: 4983.97734 | CV127: 5139.331488 | CW127: 5299.507696 | CX127: 5464.655038 | CY127: 5634.92718 | CZ127: 5810.482522 | DA127: 5991.484348 | DB127: 6178.100972 | DC127: 6370.505893 | DD127: 6568.877954 | DE127: 6773.401509 | DF127: 6984.266588 | DG127: 7201.669075 | DH127: 7425.810885 | DI127: 7656.900151 | DJ127: 7895.151415 | DK127: 8140.785823 | DL127: 8394.03133 | DM127: 8655.122906 | DN127: 8924.302756 | DO127: 9201.820536 | DP127: 9487.933587 | DQ127: 9782.90717 | DR127: 10087.0147 | DS127: 10400.53802 | DT127: 10723.76763 | DU127: 11057.00297 | DV127: 11400.55269 | DW127: 11754.73494 | DX127: 12119.87764 | DY127: 12496.3188 | DZ127: 12884.40684 | EA127: 13284.50087
D128: NOPAT | I128: =I125-I127 -> -330.7261335 | J128: =J125-J127 -> 170.7884305 | K128: 97.23377439 | L128: -439.583332 | M128: -135.0940731 | N128: -747.8831124 | O128: -152.6240223 | P128: -395.0010473 | Q128: 12.12968598 | R128: -135.3578484 | S128: -343.8256987 | T128: 312.4171807 | U128: -146.4790623 | V128: 174.6258833 | W128: -588.2985989 | X128: -547.2323551 | Y128: -390.649991 | Z128: -85.61299021 | AA128: -67.46584513 | AB128: -533.2352253 | AC128: -486.5805379 | AD128: -173.7777828 | AE128: 55.39558426 | AF128: 366.6003822 | AG128: 19.01849512 | AH128: -577.5048339 | AI128: 689.2560624 | AJ128: 664.2507969 | AK128: 902.6612888 | AL128: 434.2082472 | AM128: 1022.920466 | AN128: 496.3026646 | AO128: 498.9773358 | AP128: 1731.714996 | AQ128: 1261.274106 | AR128: 1003.638502 | AS128: 1661.867398 | AT128: 911.8522948 | AU128: 1956.01462 | AV128: 1595.597037 | AW128: 1865.797849 | AX128: 2460.266465 | AY128: 519.4792303 | AZ128: 1334.011878 | BA128: 1468.082722 | BB128: 1225.313565 | BC128: 1800.677003 | BD128: 2133.449392 | BE128: 704.7526006 | BF128: 3045.469289 | BG128: 645.4304101 | BH128: 1114.637454 | BI128: 2449.242219 | BJ128: 3133.791958 | BK128: 2093.919974 | BL128: 3318.804777 | BM128: 3989.234451 | BN128: 3799.051844 | BO128: 4929.842095 | BP128: 2231.999969 | BQ128: 3185.652248 | BR128: 3893.155561 | BS128: =BS125-BS127 -> 4000.027799 | BT128: =BT125-BT127 -> 4125.150648 | BU128: =BU125-BU127 -> 4254.172399 | BV128: =BV125-BV127 -> 4387.213882 | BW128: =BW125-BW127 -> 4524.399661 | BX128: =BX125-BX127 -> 4665.858151 | BY128: =BY125-BY127 -> 4811.721735 | BZ128: =BZ125-BZ127 -> 4962.126887 | CA128: =CA125-CA127 -> 5117.214297 | CB128: =CB125-CB127 -> 5277.129002 | CC128: =CC125-CC127 -> 5442.020518 | CD128: =CD125-CD127 -> 5612.042981 | CE128: =CE125-CE127 -> 5787.355284 | CF128: =CF125-CF127 -> 5968.121229 | CG128: =CG125-CG127 -> 6154.509673 | CH128: =CH125-CH127 -> 6346.694687 | CI128: =CI125-CI127 -> 6544.855717 | CJ128: =CJ125-CJ127 -> 6749.177744 | CK128: =CK125-CK127 -> 6959.85146 | CL128: =CL125-CL127 -> 7177.073441 | CM128: =CM125-CM127 -> 7401.04633 | CN128: =CN125-CN127 -> 7631.979018 | CO128: =CO125-CO127 -> 7870.086845 | CP128: 8115.591789 | CQ128: 8368.722677 | CR128: 8629.715392 | CS128: 8898.813092 | CT128: 9176.266431 | CU128: 9462.333791 | CV128: 9757.28152 | CW128: 10061.38418 | CX128: 10374.92478 | CY128: 10698.19508 | CZ128: 11031.4958 | DA128: 11375.13695 | DB128: 11729.43808 | DC128: 12094.72858 | DD128: 12471.348 | DE128: 12859.64634 | DF128: 13259.98439 | DG128: 13672.73404 | DH128: 14098.27864 | DI128: 14537.01333 | DJ128: 14989.34544 | DK128: 15455.69482 | DL128: 15936.49426 | DM128: 16432.18987 | DN128: 16943.24146 | DO128: 17470.12305 | DP128: 18013.32319 | DQ128: 18573.3455 | DR128: 19150.70908 | DS128: 19745.949 | DT128: 20359.61681 | DU128: 20992.28101 | DV128: 21644.52758 | DW128: 22316.96054 | DX128: 23010.20248 | DY128: 23724.89512 | DZ128: 24461.69995 | EA128: 25221.29876
D129: NOPAT Rolling Annual | I129: =SUM(F128:I128) -> -330.7261335 | J129: =SUM(G128:J128) -> -159.9377031 | K129: -62.70392866 | L129: -502.2872607 | M129: -306.6552002 | N129: -1225.326743 | O129: -1475.18454 | P129: -1430.602255 | Q129: -1283.378496 | R129: -670.853232 | S129: -862.0549084 | T129: -154.6366805 | U129: -313.2454288 | V129: -3.261697002 | W129: -247.7345972 | X129: -1107.384133 | Y129: -1351.555062 | Z129: -1611.793935 | AA129: -1090.961181 | AB129: -1076.964052 | AC129: -1172.894599 | AD129: -1261.059391 | AE129: -1138.197962 | AF129: -238.3623542 | AG129: 267.2366788 | AH129: -136.4903724 | AI129: 497.3701058 | AJ129: 795.0205205 | AK129: 1678.663314 | AL129: 2690.376395 | AM129: 3024.040799 | AN129: 2856.092667 | AO129: 2452.408714 | AP129: 3749.915463 | AQ129: 3988.269103 | AR129: 4495.604941 | AS129: 5658.495003 | AT129: 4838.632302 | AU129: 5533.372815 | AV129: 6125.331349 | AW129: 6329.2618 | AX129: 7877.67597 | AY129: 6441.14058 | AZ129: 6179.555422 | BA129: 5781.840295 | BB129: 4546.887396 | BC129: 5828.085168 | BD129: 6627.522682 | BE129: 5864.19256 | BF129: 7684.348285 | BG129: 6529.101692 | BH129: 5510.289754 | BI129: 7254.779372 | BJ129: 7343.10204 | BK129: 8791.591605 | BL129: 10995.75893 | BM129: 12535.75116 | BN129: 13201.01105 | BO129: 16036.93317 | BP129: 14950.12836 | BQ129: 14146.54616 | BR129: 14240.64987 | BS129: =SUM(BP128:BS128) -> 13310.83558 | BT129: =SUM(BQ128:BT128) -> 15203.98626 | BU129: =SUM(BR128:BU128) -> 16272.50641 | BV129: =SUM(BS128:BV128) -> 16766.56473 | BW129: =SUM(BT128:BW128) -> 17290.93659 | BX129: =SUM(BU128:BX128) -> 17831.64409 | BY129: =SUM(BV128:BY128) -> 18389.19343 | BZ129: =SUM(BW128:BZ128) -> 18964.10643 | CA129: =SUM(BX128:CA128) -> 19556.92107 | CB129: =SUM(BY128:CB128) -> 20168.19192 | CC129: =SUM(BZ128:CC128) -> 20798.4907 | CD129: =SUM(CA128:CD128) -> 21448.4068 | CE129: =SUM(CB128:CE128) -> 22118.54779 | CF129: =SUM(CC128:CF128) -> 22809.54001 | CG129: =SUM(CD128:CG128) -> 23522.02917 | CH129: =SUM(CE128:CH128) -> 24256.68087 | CI129: =SUM(CF128:CI128) -> 25014.18131 | CJ129: =SUM(CG128:CJ128) -> 25795.23782 | CK129: =SUM(CH128:CK128) -> 26600.57961 | CL129: =SUM(CI128:CL128) -> 27430.95836 | CM129: =SUM(CJ128:CM128) -> 28287.14897 | CN129: =SUM(CK128:CN128) -> 29169.95025 | CO129: =SUM(CL128:CO128) -> 30080.18563 | CP129: =SUM(CM128:CP128) -> 31018.70398 | CQ129: =SUM(CN128:CQ128) -> 31986.38033 | CR129: =SUM(CO128:CR128) -> 32984.1167 | CS129: =SUM(CP128:CS128) -> 34012.84295 | CT129: =SUM(CQ128:CT128) -> 35073.51759 | CU129: =SUM(CR128:CU128) -> 36167.12871 | CV129: =SUM(CS128:CV128) -> 37294.69483 | CW129: =SUM(CT128:CW128) -> 38457.26592 | CX129: =SUM(CU128:CX128) -> 39655.92427 | CY129: =SUM(CV128:CY128) -> 40891.78556 | CZ129: =SUM(CW128:CZ128) -> 42165.99984 | DA129: =SUM(CX128:DA128) -> 43479.75262 | DB129: =SUM(CY128:DB128) -> 44834.26591 | DC129: =SUM(CZ128:DC128) -> 46230.79941 | DD129: =SUM(DA128:DD128) -> 47670.65161 | DE129: =SUM(DB128:DE128) -> 49155.161 | DF129: =SUM(DC128:DF128) -> 50685.70731 | DG129: =SUM(DD128:DG128) -> 52263.71277 | DH129: =SUM(DE128:DH128) -> 53890.64341 | DI129: =SUM(DF128:DI128) -> 55568.0104 | DJ129: =SUM(DG128:DJ128) -> 57297.37145 | DK129: =SUM(DH128:DK128) -> 59080.33223 | DL129: =SUM(DI128:DL128) -> 60918.54786 | DM129: =SUM(DJ128:DM128) -> 62813.72439 | DN129: =SUM(DK128:DN128) -> 64767.62042 | DO129: =SUM(DL128:DO128) -> 66782.04864 | DP129: =SUM(DM128:DP128) -> 68858.87756 | DQ129: =SUM(DN128:DQ128) -> 71000.03319 | DR129: =SUM(DO128:DR128) -> 73207.50081 | DS129: =SUM(DP128:DS128) -> 75483.32676 | DT129: =SUM(DQ128:DT128) -> 77829.62039 | DU129: =SUM(DR128:DU128) -> 80248.5559 | DV129: =SUM(DS128:DV128) -> 82742.37441 | DW129: =SUM(DT128:DW128) -> 85313.38594 | DX129: =SUM(DU128:DX128) -> 87963.9716 | DY129: =SUM(DV128:DY128) -> 90696.58572 | DZ129: =SUM(DW128:DZ128) -> 93513.75808 | EA129: =SUM(DX128:EA128) -> 96418.0963
D131: After Tax Cash Flow | I131: =I111-I127 -> -5865.424338 | J131: =J111-J127 -> -1168.428866 | K131: -2957.428337 | L131: -4351.205488 | M131: -2142.055925 | N131: -4582.648377 | O131: -1352.628177 | P131: -4126.006845 | Q131: -2572.390896 | R131: -2250.736322 | S131: -2714.33244 | T131: -1576.694549 | U131: -2541.669726 | V131: -719.8673027 | W131: -3090.552816 | X131: -1788.839254 | Y131: -1768.774334 | Z131: -294.0934202 | AA131: -2951.11205 | AB131: -3827.999074 | AC131: 873.3045558 | AD131: -860.0592609 | AE131: 1580.572973 | AF131: 44.07224202 | AG131: 281.857386 | AH131: -1030.721681 | AI131: 889.8452058 | AJ131: 1130.508708 | AK131: 417.2747419 | AL131: 798.3007623 | AM131: 1095.726203 | AN131: -1813.304051 | AO131: 71.63356066 | AP131: 2812.002084 | AQ131: -412.709399 | AR131: 412.0947486 | AS131: 293.8595845 | AT131: 295.1013222 | AU131: 2497.06605 | AV131: 12.27861817 | AW131: 2710.95792 | AX131: 3400.124643 | AY131: -3892.56454 | AZ131: 3377.43667 | BA131: 88.32964012 | BB131: 332.5160264 | BC131: 1295.901103 | BD131: 1451.320846 | BE131: -2433.338306 | BF131: 3391.186416 | BG131: -1985.078078 | BH131: 192.7403484 | BI131: -389.7766993 | BJ131: 3320.589676 | BK131: -906.411164 | BL131: 680.9138388 | BM131: 2563.365456 | BN131: 2315.562885 | BO131: 2872.654953 | BP131: -598.1588841 | BQ131: 1073.44667 | BR131: 284.6332967 | BS131: 1394.501462 | BT131: 1246.20326 | BU131: 1288.914347 | BV131: =BV111-BV127 -> 1333.050975 | BW131: 1378.659945 | BX131: 1425.789566 | BY131: 1474.489713 | BZ131: 1524.81187 | CA131: 1576.809183 | CB131: 1630.536516 | CC131: 1686.050503 | CD131: 1743.409605 | CE131: 1802.67417 | CF131: 1863.906492 | CG131: 1927.170872 | CH131: 1992.533686 | CI131: 2060.063445 | CJ131: 2129.830871 | CK131: 2201.908961 | CL131: 2276.373062 | CM131: 2353.300946 | CN131: 2432.772888 | CO131: 2514.871745 | CP131: =CP111-CP127 -> 2599.683036 | CQ131: 2687.295032 | CR131: 2777.79884 | CS131: 2871.288492 | CT131: 2967.861042 | CU131: 3067.616661 | CV131: 3170.658733 | CW131: 3277.093962 | CX131: 3387.032473 | CY131: 3500.587925 | CZ131: 3617.877621 | DA131: 3739.022622 | DB131: 3864.147871 | DC131: 3993.382313 | DD131: 4126.859022 | DE131: 4264.715334 | DF131: 4407.092981 | DG131: 4554.138231 | DH131: 4706.002031 | DI131: 4862.840156 | DJ131: 5024.813363 | DK131: 5192.087547 | DL131: 5364.833905 | DM131: 5543.229106 | DN131: 5727.455459 | DO131: 5917.701098 | DP131: 6114.160161 | DQ131: 6317.032985 | DR131: 6526.526298 | DS131: 6742.853423 | DT131: 6966.234488 | DU131: 7196.896639 | DV131: 7435.074262 | DW131: 7681.009216 | DX131: 7934.951064 | DY131: 8197.157318 | DZ131: 8467.893692 | EA131: 8747.43436
D133: Invested Capital | I133: =I103-I104-I108+I118 -> 11204.16721 | J133: =J103-J104-J108+J118 -> 13059.89318 | K133: 16144.51376 | L133: 19870.52504 | M133: 22091.17116 | N133: 26114.35135 | O133: 27330.48772 | P133: 31373.36666 | Q133: 33710.0154 | R133: 35912.79585 | S133: 38812.00053 | T133: 41331.57222 | U133: 43384.7234 | V133: 44292.43504 | W133: 46827.31053 | X133: 48710.29892 | Y133: 49818.92096 | Z133: 50456.18057 | AA133: 53001.649 | AB133: 55849.57862 | AC133: 54632.39987 | AD133: 55448.36735 | AE133: 53702.67546 | AF133: 53775.87441 | AG133: 53348.72524 | AH133: 53594.06414 | AI133: 53663.80531 | AJ133: 53339.74779 | AK133: 53748.63644 | AL133: 53014.61956 | AM133: 53054.3953 | AN133: 54992.43384 | AO133: 55698.93311 | AP133: 54808.97732 | AQ133: 56939.52019 | AR133: 57499.50577 | AS133: 58753.4898 | AT133: 59009.8148 | AU133: 58456.02974 | AV133: 60456.68361 | AW133: 60173.31745 | AX133: 59475.43163 | AY133: 63871.6482 | AZ133: 61687.34213 | BA133: 63306.69505 | BB133: 64239.7372 | BC133: 65457.40015 | BD133: 66576.42477 | BE133: 69848.62732 | BF133: 69578.16202 | BG133: 71880.95442 | BH133: 71928.22685 | BI133: 75438.25722 | BJ133: 74633.37302 | BK133: 77421.93563 | BL133: 79979.62648 | BM133: 81501.57762 | BN133: 82811.89694 | BO133: 85113.35953 | BP133: 88167.59418 | BQ133: 89908.21917 | BR133: 93168.4616 | BS133: 95773.98793 | BT133: 98652.93532 | BU133: 101618.1934 | BV133: =BV103-BV104-BV108+BV118 -> 104672.3563 | BW133: 107818.096 | BX133: 111058.1646 | BY133: 114395.3966 | BZ133: 117832.7116 | CA133: 121373.1167 | CB133: 125019.7092 | CC133: 128775.6792 | CD133: 132644.3126 | CE133: 136628.9937 | CF133: 140733.2085 | CG133: 144960.5473 | CH133: 149314.7083 | CI133: 153799.5005 | CJ133: 158418.8474 | CK133: 163176.7899 | CL133: 168077.4903 | CM133: 173125.2357 | CN133: 178324.4418 | CO133: 183679.6569 | CP133: =CP103-CP104-CP108+CP118 -> 189195.5657 | CQ133: 194876.9933 | CR133: 200728.9098 | CS133: 206756.4344 | CT133: 212964.8398 | CU133: 219359.557 | CV133: 225946.1798 | CW133: 232730.47 | CX133: 239718.3623 | CY133: 246915.9694 | CZ133: 254329.5876 | DA133: 261965.7019 | DB133: 269830.9921 | DC133: 277932.3384 | DD133: 286276.8274 | DE133: 294871.7584 | DF133: 303724.6498 | DG133: 312843.2456 | DH133: 322235.5222 | DI133: 331909.6954 | DJ133: 341874.2275 | DK133: 352137.8348 | DL133: 362709.4951 | DM133: 373598.4559 | DN133: 384814.2419 | DO133: 396366.6638 | DP133: 408265.8269 | DQ133: 420522.1394 | DR133: 433146.3221 | DS133: 446149.4177 | DT133: 459542.8 | DU133: 473338.1844 | DV133: 487547.6377 | DW133: 502183.5891 | DX133: 517258.8405 | DY133: 532786.5783 | DZ133: 548780.3845 | EA133: 565254.2489
D134: Average for Period | I134: =AVERAGE(H133:I133) -> 11204.16721 | J134: 12132.03019 | K134: 14602.20347 | L134: 18007.5194 | M134: 20980.8481 | N134: 24102.76125 | O134: 26722.41954 | P134: 29351.92719 | Q134: 32541.69103 | R134: 34811.40563 | S134: 37362.39819 | T134: 40071.78638 | U134: 42358.14781 | V134: 43838.57922 | W134: 45559.87278 | X134: 47768.80473 | Y134: 49264.60994 | Z134: 50137.55076 | AA134: 51728.91478 | AB134: 54425.61381 | AC134: 55240.98925 | AD134: 55040.38361 | AE134: 54575.52141 | AF134: 53739.27493 | AG134: 53562.29982 | AH134: 53471.39469 | AI134: 53628.93472 | AJ134: 53501.77655 | AK134: 53544.19212 | AL134: 53381.628 | AM134: 53034.50743 | AN134: 54023.41457 | AO134: 55345.68347 | AP134: 55253.95522 | AQ134: 55874.24876 | AR134: 57219.51298 | AS134: 58126.49778 | AT134: 58881.6523 | AU134: 58732.92227 | AV134: 59456.35668 | AW134: 60315.00053 | AX134: 59824.37454 | AY134: 61673.53992 | AZ134: 62779.49516 | BA134: 62497.01859 | BB134: 63773.21613 | BC134: 64848.56868 | BD134: 66016.91246 | BE134: 68212.52604 | BF134: 69713.39467 | BG134: 70729.55822 | BH134: 71904.59063 | BI134: 73683.24203 | BJ134: 75035.81512 | BK134: 76027.65432 | BL134: 78700.78106 | BM134: 80740.60205 | BN134: 82156.73728 | BO134: 83962.62823 | BP134: 86640.47685 | BQ134: 89037.90667 | BR134: 91538.34038 | BS134: =AVERAGE(BR133:BS133) -> 94471.22476 | BT134: =AVERAGE(BS133:BT133) -> 97213.46163 | BU134: =AVERAGE(BT133:BU133) -> 100135.5643 | BV134: =AVERAGE(BU133:BV133) -> 103145.2748 | BW134: =AVERAGE(BV133:BW133) -> 106245.2261 | BX134: =AVERAGE(BW133:BX133) -> 109438.1303 | BY134: =AVERAGE(BX133:BY133) -> 112726.7806 | BZ134: =AVERAGE(BY133:BZ133) -> 116114.0541 | CA134: =AVERAGE(BZ133:CA133) -> 119602.9142 | CB134: =AVERAGE(CA133:CB133) -> 123196.413 | CC134: =AVERAGE(CB133:CC133) -> 126897.6942 | CD134: =AVERAGE(CC133:CD133) -> 130709.9959 | CE134: =AVERAGE(CD133:CE133) -> 134636.6532 | CF134: =AVERAGE(CE133:CF133) -> 138681.1011 | CG134: =AVERAGE(CF133:CG133) -> 142846.8779 | CH134: =AVERAGE(CG133:CH133) -> 147137.6278 | CI134: =AVERAGE(CH133:CI133) -> 151557.1044 | CJ134: =AVERAGE(CI133:CJ133) -> 156109.174 | CK134: =AVERAGE(CJ133:CK133) -> 160797.8187 | CL134: =AVERAGE(CK133:CL133) -> 165627.1401 | CM134: =AVERAGE(CL133:CM133) -> 170601.363 | CN134: =AVERAGE(CM133:CN133) -> 175724.8387 | CO134: =AVERAGE(CN133:CO133) -> 181002.0493 | CP134: =AVERAGE(CO133:CP133) -> 186437.6113 | CQ134: =AVERAGE(CP133:CQ133) -> 192036.2795 | CR134: =AVERAGE(CQ133:CR133) -> 197802.9516 | CS134: =AVERAGE(CR133:CS133) -> 203742.6721 | CT134: =AVERAGE(CS133:CT133) -> 209860.6371 | CU134: =AVERAGE(CT133:CU133) -> 216162.1984 | CV134: =AVERAGE(CU133:CV133) -> 222652.8684 | CW134: =AVERAGE(CV133:CW133) -> 229338.3249 | CX134: =AVERAGE(CW133:CX133) -> 236224.4161 | CY134: =AVERAGE(CX133:CY133) -> 243317.1659 | CZ134: =AVERAGE(CY133:CZ133) -> 250622.7785 | DA134: =AVERAGE(CZ133:DA133) -> 258147.6448 | DB134: =AVERAGE(DA133:DB133) -> 265898.347 | DC134: =AVERAGE(DB133:DC133) -> 273881.6653 | DD134: =AVERAGE(DC133:DD133) -> 282104.5829 | DE134: =AVERAGE(DD133:DE133) -> 290574.2929 | DF134: =AVERAGE(DE133:DF133) -> 299298.2041 | DG134: =AVERAGE(DF133:DG133) -> 308283.9477 | DH134: =AVERAGE(DG133:DH133) -> 317539.3839 | DI134: =AVERAGE(DH133:DI133) -> 327072.6088 | DJ134: =AVERAGE(DI133:DJ133) -> 336891.9614 | DK134: =AVERAGE(DJ133:DK133) -> 347006.0311 | DL134: =AVERAGE(DK133:DL133) -> 357423.6649 | DM134: =AVERAGE(DL133:DM133) -> 368153.9755 | DN134: =AVERAGE(DM133:DN133) -> 379206.3489 | DO134: =AVERAGE(DN133:DO133) -> 390590.4529 | DP134: =AVERAGE(DO133:DP133) -> 402316.2453 | DQ134: =AVERAGE(DP133:DQ133) -> 414393.9831 | DR134: =AVERAGE(DQ133:DR133) -> 426834.2308 | DS134: =AVERAGE(DR133:DS133) -> 439647.8699 | DT134: =AVERAGE(DS133:DT133) -> 452846.1089 | DU134: =AVERAGE(DT133:DU133) -> 466440.4922 | DV134: =AVERAGE(DU133:DV133) -> 480442.9111 | DW134: =AVERAGE(DV133:DW133) -> 494865.6134 | DX134: =AVERAGE(DW133:DX133) -> 509721.2148 | DY134: =AVERAGE(DX133:DY133) -> 525022.7094 | DZ134: =AVERAGE(DY133:DZ133) -> 540783.4814 | EA134: =AVERAGE(DZ133:EA133) -> 557017.3167
D135: ROIC in Period | I135: =I128/I134 -> -0.02951813619 | J135: =J128/J134 -> 0.01407748149 | K135: 0.00665884259 | L135: -0.02441109862 | M135: -0.006438923367 | N135: -0.03102893915 | O135: -0.005711459701 | P135: -0.01345741439 | Q135: 0.0003727429521 | R135: -0.003888318957 | S135: -0.009202452609 | T135: 0.007796437567 | U135: -0.003458108295 | V135: 0.003983383733 | W135: -0.01291264797 | X135: -0.01145585196 | Y135: -0.007929627201 | Z135: -0.001707562274 | AA135: -0.001304219225 | AB135: -0.009797505034 | AC135: -0.008808324118 | AD135: -0.003157277827 | AE135: 0.001015026203 | AF135: 0.006821833429 | AG135: 0.0003550724144 | AH135: -0.01080025754 | AI135: 0.01285231687 | AJ135: 0.01241549047 | AK135: 0.01685824836 | AL135: 0.008134039059 | AM135: 0.01928782817 | AN135: 0.009186806657 | AO135: 0.009015650445 | AP135: 0.03134101422 | AQ135: 0.02257344187 | AR135: 0.01754014409 | AS135: 0.02859053034 | AT135: 0.01548618728 | AU135: 0.0333035467 | AV135: 0.02683644148 | AW135: 0.03093422586 | AX135: 0.04112481716 | AY135: 0.008423048701 | AZ135: 0.02124916543 | BA135: 0.02349044411 | BB135: 0.01921360783 | BC135: 0.02776741322 | BD135: 0.03231670965 | BE135: 0.01033171826 | BF135: 0.04368556866 | BG135: 0.009125327887 | BH135: 0.01550161741 | BI135: 0.03324015273 | BJ135: 0.04176394902 | BK135: 0.02754155699 | BL135: 0.04216990902 | BM135: 0.04940803449 | BN135: 0.04624151311 | BO135: 0.05871471866 | BP135: 0.02576163071 | BQ135: 0.03577860674 | BR135: 0.04253032713 | BS135: =BS128/BS134 -> 0.04234122939 | BT135: =BT128/BT134 -> 0.04243394463 | BU135: =BU128/BU134 -> 0.04248413066 | BV135: =BV128/BV134 -> 0.04253431764 | BW135: =BW128/BW134 -> 0.04258449839 | BX135: =BX128/BX134 -> 0.04263466617 | BY135: =BY128/BY134 -> 0.04268481464 | BZ135: =BZ128/BZ134 -> 0.04273493785 | CA135: =CA128/CA134 -> 0.04278503021 | CB135: =CB128/CB134 -> 0.04283508646 | CC135: =CC128/CC134 -> 0.04288510167 | CD135: =CD128/CD134 -> 0.0429350712 | CE135: =CE128/CE134 -> 0.0429849907 | CF135: =CF128/CF134 -> 0.0430348561 | CG135: =CG128/CG134 -> 0.04308466356 | CH135: =CH128/CH134 -> 0.04313440949 | CI135: =CI128/CI134 -> 0.04318409053 | CJ135: =CJ128/CJ134 -> 0.04323370352 | CK135: =CK128/CK134 -> 0.04328324549 | CL135: =CL128/CL134 -> 0.04333271369 | CM135: =CM128/CM134 -> 0.04338210552 | CN135: =CN128/CN134 -> 0.04343141854 | CO135: =CO128/CO134 -> 0.04348065049 | CP135: 0.04352979924 | CQ135: 0.04357886281 | CR135: 0.04362783934 | CS135: 0.04367672711 | CT135: 0.0437255245 | CU135: 0.04377423 | CV135: 0.04382284222 | CW135: 0.04387135985 | CX135: 0.04391978168 | CY135: 0.04396810658 | CZ135: 0.0440163335 | DA135: 0.04406446149 | DB135: 0.04411248963 | DC135: 0.04416041712 | DD135: 0.04420824317 | DE135: 0.04425596709 | DF135: 0.04430358823 | DG135: 0.04435110599 | DH135: 0.04439851984 | DI135: 0.04444582927 | DJ135: 0.04449303384 | DK135: 0.04454013313 | DL135: 0.04458712678 | DM135: 0.04463401446 | DN135: 0.04468079586 | DO135: 0.04472747073 | DP135: 0.04477403882 | DQ135: 0.04482049994 | DR135: 0.04486685391 | DS135: 0.04491310058 | DT135: 0.04495923982 | DU135: 0.04500527154 | DV135: 0.04505119564 | DW135: 0.04509701207 | DX135: 0.04514272078 | DY135: 0.04518832176 | DZ135: 0.04523381499 | EA135: 0.04527920048
D137: Average Invested Capital for Year | I137: =AVERAGE(E133:I133) -> 11204.16721 | J137: =AVERAGE(F133:J133) -> 12132.03019 | K137: 13469.52472 | L137: =AVERAGE(E133:L133) -> 15069.7748 | M137: =AVERAGE(F133:M133) -> 16474.05407 | N137: 18080.77028 | O137: 19402.15849 | P137: 20898.55951 | Q137: 23711.79053 | R137: 26568.40337 | S137: 29401.83921 | T137: 32084.47011 | U137: 34746.16414 | V137: 37018.4246 | W137: 39455.52745 | X137: 41622.64399 | Y137: 43636.25718 | Z137: 45454.18027 | AA137: 47227.88633 | AB137: 49042.63713 | AC137: 50448.59669 | AD137: 51843.08823 | AE137: 52702.50884 | AF137: 53335.70578 | AG137: 53776.93132 | AH137: 54169.16676 | AI137: 54251.9363 | AJ137: 53938.20745 | AK137: 53827.73702 | AL137: 53523.51854 | AM137: 53442.48352 | AN137: 53594.55345 | AO137: 53888.32943 | AP137: 54040.19358 | AQ137: 54449.65794 | AR137: 54969.62769 | AS137: 55595.23436 | AT137: 56344.63376 | AU137: 57019.83807 | AV137: 57702.86929 | AW137: 58262.16733 | AX137: 58845.47412 | AY137: 59711.99012 | AZ137: 60235.46967 | BA137: 60804.62033 | BB137: 61458.36063 | BC137: 62333.53193 | BD137: 63098.49957 | BE137: 64307.91331 | BF137: 65570.7546 | BG137: 66571.91788 | BH137: 67852.02847 | BI137: 69368.47374 | BJ137: 70667.67822 | BK137: 72163.24515 | BL137: 73838.64537 | BM137: 75295.26416 | BN137: 76949.48102 | BO137: 78603.53166 | BP137: 80633.45258 | BQ137: 82442.19782 | BR137: 84759.08389 | BS137: =AVERAGE(BL133:BS133) -> 87053.09043 | BT137: =AVERAGE(BM133:BT133) -> 89387.25403 | BU137: =AVERAGE(BN133:BU133) -> 91901.831 | BV137: =AVERAGE(BO133:BV133) -> 94634.38842 | BW137: =AVERAGE(BP133:BW133) -> 97472.48048 | BX137: =AVERAGE(BQ133:BX133) -> 100333.8018 | BY137: =AVERAGE(BR133:BY133) -> 103394.699 | BZ137: =AVERAGE(BS133:BZ133) -> 106477.7302 | CA137: =AVERAGE(BT133:CA133) -> 109677.6213 | CB137: =AVERAGE(BU133:CB133) -> 112973.4681 | CC137: =AVERAGE(BV133:CC133) -> 116368.1538 | CD137: =AVERAGE(BW133:CD133) -> 119864.6483 | CE137: =AVERAGE(BX133:CE133) -> 123466.0105 | CF137: =AVERAGE(BY133:CF133) -> 127175.391 | CG137: =AVERAGE(BZ133:CG133) -> 130996.0349 | CH137: =AVERAGE(CA133:CH133) -> 134931.2844 | CI137: =AVERAGE(CB133:CI133) -> 138984.5824 | CJ137: =AVERAGE(CC133:CJ133) -> 143159.4747 | CK137: =AVERAGE(CD133:CK133) -> 147459.6135 | CL137: =AVERAGE(CE133:CL133) -> 151888.7607 | CM137: =AVERAGE(CF133:CM133) -> 156450.791 | CN137: =AVERAGE(CG133:CN133) -> 161149.6951 | CO137: =AVERAGE(CH133:CO133) -> 165989.5838 | CP137: =AVERAGE(CI133:CP133) -> 170974.691 | CQ137: =AVERAGE(CJ133:CQ133) -> 176109.3776 | CR137: =AVERAGE(CK133:CR133) -> 181398.1354 | CS137: =AVERAGE(CL133:CS133) -> 186845.591 | CT137: =AVERAGE(CM133:CT133) -> 192456.5097 | CU137: =AVERAGE(CN133:CU133) -> 198235.7998 | CV137: =AVERAGE(CO133:CV133) -> 204188.5171 | CW137: =AVERAGE(CP133:CW133) -> 210319.8687 | CX137: =AVERAGE(CQ133:CX133) -> 216635.2183 | CY137: =AVERAGE(CR133:CY133) -> 223140.0903 | CZ137: =AVERAGE(CS133:CZ133) -> 229840.175 | DA137: =AVERAGE(CT133:DA133) -> 236741.3335 | DB137: =AVERAGE(CU133:DB133) -> 243849.6025 | DC137: =AVERAGE(CV133:DC133) -> 251171.2002 | DD137: =AVERAGE(CW133:DD133) -> 258712.5311 | DE137: =AVERAGE(CX133:DE133) -> 266480.1922 | DF137: =AVERAGE(CY133:DF133) -> 274480.9781 | DG137: =AVERAGE(CZ133:DG133) -> 282721.8877 | DH137: =AVERAGE(DA133:DH133) -> 291210.1295 | DI137: =AVERAGE(DB133:DI133) -> 299953.1287 | DJ137: =AVERAGE(DC133:DJ133) -> 308958.5331 | DK137: =AVERAGE(DD133:DK133) -> 318234.2201 | DL137: =AVERAGE(DE133:DL133) -> 327788.3036 | DM137: =AVERAGE(DF133:DM133) -> 337629.1408 | DN137: =AVERAGE(DG133:DN133) -> 347765.3398 | DO137: =AVERAGE(DH133:DO133) -> 358205.7671 | DP137: =AVERAGE(DI133:DP133) -> 368959.5551 | DQ137: =AVERAGE(DJ133:DQ133) -> 380036.1106 | DR137: =AVERAGE(DK133:DR133) -> 391445.1225 | DS137: =AVERAGE(DL133:DS133) -> 403196.5703 | DT137: =AVERAGE(DM133:DT133) -> 415300.7335 | DU137: =AVERAGE(DN133:DU133) -> 427768.1995 | DV137: =AVERAGE(DO133:DV133) -> 440609.874 | DW137: =AVERAGE(DP133:DW133) -> 453836.9897 | DX137: =AVERAGE(DQ133:DX133) -> 467461.1164 | DY137: =AVERAGE(DR133:DY133) -> 481494.1712 | DZ137: =AVERAGE(DS133:DZ133) -> 495948.429 | EA137: =AVERAGE(DT133:EA133) -> 510836.5329
D138: Annual ROIC | I138: =I129/I137 -> -0.02951813619 | J138: =J129/J137 -> -0.01318309471 | K138: -0.004655244337 | L138: -0.03333077417 | M138: -0.01861443449 | N138: -0.06776960958 | O138: -0.0760319807 | P138: -0.06845458675 | Q138: -0.05412406516 | R138: -0.02525003941 | S138: -0.02931976133 | T138: -0.004819673816 | U138: -0.009015252086 | V138: -8.811009752e-05 | W138: -0.006278831209 | X138: -0.0266053289 | Y138: -0.03097321239 | Z138: -0.03545975146 | AA138: -0.02309993663 | AB138: -0.02195975002 | AC138: -0.02324930078 | AD138: -0.02432454227 | AE138: -0.02159665615 | AF138: -0.004469095342 | AG138: 0.004969355303 | AH138: -0.002519705961 | AI138: 0.009167785331 | AJ138: 0.0147394687 | AK138: 0.03118584223 | AL138: 0.05026531268 | AM138: 0.05658496013 | AN138: 0.05329072607 | AO138: 0.04550908777 | AP138: 0.06939122928 | AQ138: 0.07324690831 | AR138: 0.0817834344 | AS138: 0.1017802167 | AT138: 0.08587565449 | AU138: 0.09704294158 | AV138: 0.1061529769 | AW138: 0.1086341633 | AX138: 0.1338705497 | AY138: 0.1078701374 | AZ138: 0.1025899766 | BA138: 0.09508883148 | BB138: 0.07398321968 | BC138: 0.09349839466 | BD138: 0.1050345528 | BE138: 0.09118928385 | BF138: 0.1171917013 | BG138: 0.09807591398 | BH138: 0.08121039088 | BI138: 0.1045832347 | BJ138: 0.1039103339 | BK138: 0.1218292163 | BL138: 0.1489160435 | BM138: 0.16648791 | BN138: 0.171554257 | BO138: 0.2040230614 | BP138: 0.1854085108 | BQ138: 0.1715935107 | BR138: 0.1680132585 | BS138: =BS129/BS137 -> 0.1529048023 | BT138: =BT129/BT137 -> 0.1700912107 | BU138: =BU129/BU137 -> 0.1770640066 | BV138: =BV129/BV137 -> 0.1771720091 | BW138: =BW129/BW137 -> 0.1773930088 | BX138: =BX129/BX137 -> 0.1777231977 | BY138: =BY129/BY137 -> 0.1778543157 | BZ138: =BZ129/BZ137 -> 0.1781039697 | CA138: =CA129/CA137 -> 0.1783127755 | CB138: =CB129/CB137 -> 0.1785214906 | CC138: =CC129/CC137 -> 0.1787300909 | CD138: =CD129/CD137 -> 0.1789385536 | CE138: =CE129/CE137 -> 0.1791468574 | CF138: =CF129/CF137 -> 0.1793549823 | CG138: =CG129/CG137 -> 0.1795629096 | CH138: =CH129/CH137 -> 0.1797706216 | CI138: =CI129/CI137 -> 0.1799781017 | CJ138: =CJ129/CJ137 -> 0.1801853344 | CK138: =CK129/CK137 -> 0.1803923052 | CL138: =CL129/CL137 -> 0.1805990004 | CM138: =CM129/CM137 -> 0.1808054072 | CN138: =CN129/CN137 -> 0.1810115137 | CO138: =CO129/CO137 -> 0.1812173086 | CP138: 0.1814227813 | CQ138: 0.1816279222 | CR138: 0.1818327219 | CS138: 0.1820371718 | CT138: 0.182241264 | CU138: 0.1824449909 | CV138: 0.1826483456 | CW138: 0.1828513214 | CX138: 0.1830539124 | CY138: 0.1832561128 | CZ138: 0.1834579174 | DA138: 0.1836593212 | DB138: 0.1838603198 | DC138: 0.184060909 | DD138: 0.1842610847 | DE138: 0.1844608434 | DF138: 0.1846601818 | DG138: 0.1848590967 | DH138: 0.1850575854 | DI138: 0.1852556452 | DJ138: 0.1854532738 | DK138: 0.185650469 | DL138: 0.1858472288 | DM138: 0.1860435514 | DN138: 0.1862394351 | DO138: 0.1864348784 | DP138: 0.1866298802 | DQ138: 0.1868244391 | DR138: 0.1870185541 | DS138: 0.1872122243 | DT138: 0.1874054489 | DU138: 0.1875982272 | DV138: 0.1877905587 | DW138: 0.1879824428 | DX138: 0.1881738791 | DY138: 0.1883648674 | DZ138: 0.1885554074 | EA138: 0.188745499
A140: Debt and Cash
D141: Cash Balance - History | I141: =IF(I3,I83) -> 103.1167145 | J141: 117.7974748 | K141: 50.8462471 | L141: 91.96360396 | M141: 21.08598289 | N141: 121.1765938 | O141: 108.6727575 | P141: 136.0202369 | Q141: 62.18301984 | R141: 43.75186833 | S141: 135.2460974 | T141: 184.5768451 | U141: 72.39539969 | V141: 156.4781006 | W141: 111.6896631 | X141: 154.5274606 | Y141: 140.6985101 | Z141: 207.2789926 | AA141: 138.277348 | AB141: 72.17672239 | AC141: 205.5415494 | AD141: 60.95469748 | AE141: 174.3516086 | AF141: 138.7903515 | AG141: 245.444754 | AH141: 160.8875282 | AI141: 87.47430471 | AJ141: 228.5272496 | AK141: 160.693798 | AL141: 153.5964646 | AM141: 316.7223732 | AN141: 387.945725 | AO141: =IF(AO3,AO83) -> 208.0702627 | AP141: 205.6102403 | AQ141: 314.9543706 | AR141: 415.0919743 | AS141: 201.7401627 | AT141: 250.3822666 | AU141: 241.0153701 | AV141: 267.5054019 | AW141: 333.0715592 | AX141: 202.9395823 | AY141: 285.9874703 | AZ141: 196.0600265 | BA141: 310.4419081 | BB141: 303.5476167 | BC141: 387.7829669 | BD141: 402.7861998 | BE141: 472.9575647 | BF141: 410.7769915 | BG141: 242.110947 | BH141: 414.7380107 | BI141: 381.5708673 | BJ141: 209.5921178 | BK141: 523.6205965 | BL141: 609.3795685 | BM141: 476.321419 | BN141: 486.4892428 | BO141: 400.490207 | BP141: 758.7072418 | BQ141: 683.6012916 | BR141: 446.5583378 | BS141: FALSE | BT141: FALSE | BU141: =IF(BU3,BU83) -> FALSE | BV141: FALSE | BW141: FALSE | BX141: FALSE | BY141: FALSE | BZ141: FALSE | CA141: FALSE | CB141: FALSE | CC141: FALSE | CD141: FALSE | CE141: FALSE | CF141: FALSE | CG141: FALSE | CH141: FALSE | CI141: FALSE | CJ141: FALSE | CK141: FALSE | CL141: FALSE | CM141: FALSE | CN141: FALSE | CO141: FALSE | CP141: =IF(CP3,CP83) -> FALSE | CQ141: FALSE | CR141: FALSE | CS141: FALSE | CT141: FALSE | CU141: FALSE | CV141: FALSE | CW141: FALSE | CX141: FALSE | CY141: FALSE | CZ141: FALSE | DA141: FALSE | DB141: FALSE | DC141: FALSE | DD141: FALSE | DE141: FALSE | DF141: FALSE | DG141: FALSE | DH141: FALSE | DI141: FALSE | DJ141: FALSE | DK141: FALSE | DL141: FALSE | DM141: FALSE | DN141: FALSE | DO141: FALSE | DP141: FALSE | DQ141: FALSE | DR141: FALSE | DS141: FALSE | DT141: FALSE | DU141: FALSE | DV141: FALSE | DW141: FALSE | DX141: FALSE | DY141: FALSE | DZ141: FALSE | EA141: FALSE
D142: Debt Balance - History | I142: =IF(I3,I30) -> 6614.26174 | J142: 7646.989246 | K142: 9214.896154 | L142: 11365.355 | M142: 12528.33716 | N142: 14794.77071 | O142: 15551.12886 | P142: 17752.73767 | Q142: 19012.8075 | R142: 20231.29551 | S142: 21897.06682 | T142: 23298.69456 | U142: 24368.56126 | V142: 24891.59699 | W142: 26255.80429 | X142: 27383.33247 | Y142: 27968.94736 | Z142: 28442.68449 | AA142: 29772.8133 | AB142: 31286.74386 | AC142: 30777.53608 | AD142: 31066.85953 | AE142: 30238.37031 | AF142: 30185.86138 | AG142: 30010.26003 | AH142: 30174.56025 | AI142: 30093.18116 | AJ142: 30066.82235 | AK142: 30233.09148 | AL142: 29964.42584 | AM142: 30039.42132 | AN142: 31259.71279 | AO142: =IF(AO3,AO30) -> 31511.21429 | AP142: 31010.04377 | AQ142: 32227.51955 | AR142: 32537.27129 | AS142: 33161.29759 | AT142: 33628.59144 | AU142: 33293.0698 | AV142: 34172.28193 | AW142: 34109.8374 | AX142: 33560.65998 | AY142: 36141.91057 | AZ142: 35112.94262 | BA142: 35950.89353 | BB142: 36387.27634 | BC142: 37143.00826 | BD142: 37906.24267 | BE142: 40044.48818 | BF142: 39506.80832 | BG142: 41201.46333 | BH142: 41283.27593 | BI142: 42943.21978 | BJ142: 42346.87813 | BK142: 44282.77187 | BL142: 45617.77381 | BM142: 46519.88712 | BN142: 47146.35623 | BO142: 48473.20401 | BP142: 50770.21588 | BQ142: 51503.51191 | BR142: 52955.21283 | BS142: FALSE | BT142: FALSE | BU142: =IF(BU3,BU30) -> FALSE | BV142: FALSE | BW142: FALSE | BX142: FALSE | BY142: FALSE | BZ142: FALSE | CA142: FALSE | CB142: FALSE | CC142: FALSE | CD142: FALSE | CE142: FALSE | CF142: FALSE | CG142: FALSE | CH142: FALSE | CI142: FALSE | CJ142: FALSE | CK142: FALSE | CL142: FALSE | CM142: FALSE | CN142: FALSE | CO142: FALSE | CP142: =IF(CP3,CP30) -> FALSE | CQ142: FALSE | CR142: FALSE | CS142: FALSE | CT142: FALSE | CU142: FALSE | CV142: FALSE | CW142: FALSE | CX142: FALSE | CY142: FALSE | CZ142: FALSE | DA142: FALSE | DB142: FALSE | DC142: FALSE | DD142: FALSE | DE142: FALSE | DF142: FALSE | DG142: FALSE | DH142: FALSE | DI142: FALSE | DJ142: FALSE | DK142: FALSE | DL142: FALSE | DM142: FALSE | DN142: FALSE | DO142: FALSE | DP142: FALSE | DQ142: FALSE | DR142: FALSE | DS142: FALSE | DT142: FALSE | DU142: FALSE | DV142: FALSE | DW142: FALSE | DX142: FALSE | DY142: FALSE | DZ142: FALSE | EA142: FALSE
D143: Net Cash - History | I143: =IF(I3,I141-I142) -> -6511.145026 | J143: -7529.191771 | K143: -9164.049907 | L143: -11273.3914 | M143: -12507.25118 | N143: -14673.59412 | O143: -15442.45611 | P143: -17616.71743 | Q143: -18950.62448 | R143: -20187.54365 | S143: -21761.82072 | T143: -23114.11771 | U143: -24296.16586 | V143: -24735.11889 | W143: -26144.11462 | X143: -27228.80501 | Y143: -27828.24885 | Z143: -28235.4055 | AA143: -29634.53596 | AB143: -31214.56714 | AC143: -30571.99453 | AD143: -31005.90483 | AE143: -30064.0187 | AF143: -30047.07103 | AG143: -29764.81528 | AH143: -30013.67272 | AI143: -30005.70685 | AJ143: -29838.2951 | AK143: -30072.39768 | AL143: -29810.82938 | AM143: -29722.69894 | AN143: -30871.76707 | AO143: =IF(AO3,AO141-AO142) -> -31303.14403 | AP143: -30804.43353 | AQ143: -31912.56518 | AR143: -32122.17932 | AS143: -32959.55743 | AT143: -33378.20918 | AU143: -33052.05443 | AV143: -33904.77653 | AW143: -33776.76585 | AX143: -33357.7204 | AY143: -35855.9231 | AZ143: -34916.88259 | BA143: -35640.45162 | BB143: -36083.72872 | BC143: -36755.2253 | BD143: -37503.45647 | BE143: -39571.53061 | BF143: -39096.03133 | BG143: -40959.35238 | BH143: -40868.53791 | BI143: -42561.64891 | BJ143: -42137.28601 | BK143: -43759.15127 | BL143: -45008.39424 | BM143: -46043.5657 | BN143: -46659.86699 | BO143: -48072.7138 | BP143: -50011.50864 | BQ143: -50819.91062 | BR143: -52508.65449 | BS143: FALSE | BT143: FALSE | BU143: =IF(BU3,BU141-BU142) -> FALSE | BV143: FALSE | BW143: FALSE | BX143: FALSE | BY143: FALSE | BZ143: FALSE | CA143: FALSE | CB143: FALSE | CC143: FALSE | CD143: FALSE | CE143: FALSE | CF143: FALSE | CG143: FALSE | CH143: FALSE | CI143: FALSE | CJ143: FALSE | CK143: FALSE | CL143: FALSE | CM143: FALSE | CN143: FALSE | CO143: FALSE | CP143: =IF(CP3,CP141-CP142) -> FALSE | CQ143: =IF(CQ3,CQ141-CQ142) -> FALSE | CR143: =IF(CR3,CR141-CR142) -> FALSE | CS143: =IF(CS3,CS141-CS142) -> FALSE | CT143: =IF(CT3,CT141-CT142) -> FALSE | CU143: =IF(CU3,CU141-CU142) -> FALSE | CV143: =IF(CV3,CV141-CV142) -> FALSE | CW143: =IF(CW3,CW141-CW142) -> FALSE | CX143: =IF(CX3,CX141-CX142) -> FALSE | CY143: =IF(CY3,CY141-CY142) -> FALSE | CZ143: =IF(CZ3,CZ141-CZ142) -> FALSE | DA143: =IF(DA3,DA141-DA142) -> FALSE | DB143: =IF(DB3,DB141-DB142) -> FALSE | DC143: =IF(DC3,DC141-DC142) -> FALSE | DD143: =IF(DD3,DD141-DD142) -> FALSE | DE143: =IF(DE3,DE141-DE142) -> FALSE | DF143: =IF(DF3,DF141-DF142) -> FALSE | DG143: =IF(DG3,DG141-DG142) -> FALSE | DH143: =IF(DH3,DH141-DH142) -> FALSE | DI143: =IF(DI3,DI141-DI142) -> FALSE | DJ143: =IF(DJ3,DJ141-DJ142) -> FALSE | DK143: =IF(DK3,DK141-DK142) -> FALSE | DL143: =IF(DL3,DL141-DL142) -> FALSE | DM143: =IF(DM3,DM141-DM142) -> FALSE | DN143: =IF(DN3,DN141-DN142) -> FALSE | DO143: =IF(DO3,DO141-DO142) -> FALSE | DP143: =IF(DP3,DP141-DP142) -> FALSE | DQ143: =IF(DQ3,DQ141-DQ142) -> FALSE | DR143: =IF(DR3,DR141-DR142) -> FALSE | DS143: =IF(DS3,DS141-DS142) -> FALSE | DT143: =IF(DT3,DT141-DT142) -> FALSE | DU143: =IF(DU3,DU141-DU142) -> FALSE | DV143: =IF(DV3,DV141-DV142) -> FALSE | DW143: =IF(DW3,DW141-DW142) -> FALSE | DX143: =IF(DX3,DX141-DX142) -> FALSE | DY143: =IF(DY3,DY141-DY142) -> FALSE | DZ143: =IF(DZ3,DZ141-DZ142) -> FALSE | EA143: =IF(EA3,EA141-EA142) -> FALSE
D145: Opening Net Cash | I145: =H147 -> 0 | J145: =I147 -> -6511.145026 | K145: -7529.191771 | L145: -9164.049907 | M145: -11273.3914 | N145: -12507.25118 | O145: -14673.59412 | P145: -15442.45611 | Q145: -17616.71743 | R145: -18950.62448 | S145: -20187.54365 | T145: -21761.82072 | U145: -23114.11771 | V145: -24296.16586 | W145: -24735.11889 | X145: -26144.11462 | Y145: -27228.80501 | Z145: -27828.24885 | AA145: -28235.4055 | AB145: -29634.53596 | AC145: -31214.56714 | AD145: -30571.99453 | AE145: -31005.90483 | AF145: -30064.0187 | AG145: -30047.07103 | AH145: -29764.81528 | AI145: -30013.67272 | AJ145: -30005.70685 | AK145: -29838.2951 | AL145: -30072.39768 | AM145: -29810.82938 | AN145: -29722.69894 | AO145: -30871.76707 | AP145: -31303.14403 | AQ145: -30804.43353 | AR145: -31912.56518 | AS145: -32122.17932 | AT145: -32959.55743 | AU145: -33378.20918 | AV145: -33052.05443 | AW145: -33904.77653 | AX145: -33776.76585 | AY145: -33357.7204 | AZ145: -35855.9231 | BA145: -34916.88259 | BB145: -35640.45162 | BC145: -36083.72872 | BD145: -36755.2253 | BE145: -37503.45647 | BF145: -39571.53061 | BG145: -39096.03133 | BH145: -40959.35238 | BI145: -40868.53791 | BJ145: -42561.64891 | BK145: -42137.28601 | BL145: -43759.15127 | BM145: -45008.39424 | BN145: -46043.5657 | BO145: -46659.86699 | BP145: -48072.7138 | BQ145: -50011.50864 | BR145: -50819.91062 | BS145: -52508.65449 | BT145: -51737.91 | BU145: -51637.42689 | BV145: =BU147 -> -51491.80045 | BW145: -51298.59395 | BX145: -51055.26943 | BY145: -50759.18393 | BZ145: -50407.58555 | CA145: -49997.60945 | CB145: -49526.27364 | CC145: -48990.47464 | CD145: -48386.98303 | CE145: -47712.43879 | CF145: -46963.3465 | CG145: -46136.07039 | CH145: -45226.82915 | CI145: -44231.69068 | CJ145: -43146.56653 | CK145: -41967.20622 | CL145: -40689.19136 | CM145: -39307.92955 | CN145: -37818.64804 | CO145: -36216.38724 | CP145: =CO147 -> -34495.99396 | CQ145: =CP147 -> -32652.11442 | CR145: =CQ147 -> -30679.18702 | CS145: =CR147 -> -28571.43487 | CT145: =CS147 -> -26322.85806 | CU145: =CT147 -> -23927.22566 | CV145: =CU147 -> -21378.06748 | CW145: =CV147 -> -18668.66544 | CX145: =CW147 -> -15792.04481 | CY145: =CX147 -> -12740.96499 | CZ145: =CY147 -> -9507.910083 | DA145: =CZ147 -> -6085.079099 | DB145: =DA147 -> -2464.375833 | DC145: =DB147 -> 1362.601604 | DD145: =DC147 -> 5357.768925 | DE145: =DD147 -> 9491.646624 | DF145: =DE147 -> 13768.79601 | DG145: =DF147 -> 18193.92612 | DH145: =DG147 -> 22771.89839 | DI145: =DH147 -> 27507.73161 | DJ145: =DI147 -> 32406.6069 | DK145: =DJ147 -> 37473.87291 | DL145: =DK147 -> 42715.05123 | DM145: =DL147 -> 48135.84186 | DN145: =DM147 -> 53742.12891 | DO145: =DN147 -> 59539.98656 | DP145: =DO147 -> 65535.68504 | DQ145: =DP147 -> 71735.69695 | DR145: =DQ147 -> 78146.7037 | DS145: =DR147 -> 84775.60218 | DT145: =DS147 -> 91629.51164 | DU145: =DT147 -> 98715.78079 | DV145: =DU147 -> 106041.9951 | DW145: =DV147 -> 113615.9844 | DX145: =DW147 -> 121445.8305 | DY145: =DX147 -> 129539.8756 | DZ145: =DY147 -> 137906.7302 | EA145: =DZ147 -> 146555.2817
D146: Add: Cash Flow | I146: =I189 -> -5926.831886 | J146: =J189 -> -1257.623241 | K146: -3055.684728 | L146: -4459.192098 | M146: -2291.668885 | N146: -4734.522262 | O146: -1508.35324 | P146: -4354.784889 | Q146: -2775.814865 | R146: -2411.82807 | S146: -2887.863614 | T146: -1874.322568 | U146: -2826.785764 | V146: -909.681735 | W146: -3397.536669 | X146: -2015.706612 | Y146: -2040.270903 | Z146: -544.9343543 | AA146: -3288.085562 | AB146: -4226.281914 | AC146: 584.9144768 | AD146: -1109.905933 | AE146: 1246.584008 | AF146: -218.7508499 | AG146: 30.63677652 | AH146: -1346.079829 | AI146: 566.9381083 | AJ146: 798.8837056 | AK146: 236.356145 | AL146: 409.3137619 | AM146: 819.7121313 | AN146: -2177.171697 | AO146: -218.6181719 | AP146: 2567.767471 | AQ146: -619.2949274 | AR146: 19.18538193 | AS146: -35.81616484 | AT146: -123.3869351 | AU146: 2082.343125 | AV146: -306.059593 | AW146: 2416.350983 | AX146: 3006.657828 | AY146: -4153.355203 | AZ146: 3041.741171 | BA146: -305.5692319 | BB146: 151.9177837 | BC146: 871.3814698 | BD146: 1180.226078 | BE146: -2868.857724 | BF146: 3010.744066 | BG146: -2337.069814 | BH146: -382.5503347 | BI146: -836.0021455 | BJ146: 2959.152304 | BK146: -1305.28417 | BL146: 196.8257614 | BM146: 2058.75423 | BN146: 1872.35456 | BO146: 2289.269365 | BP146: -998.6334924 | BQ146: 597.6331299 | BR146: -237.8818773 | BS146: 770.7444942 | BT146: 100.4831045 | BU146: 145.6264432 | BV146: =BV189 -> 193.2065006 | BW146: 243.3245163 | BX146: 296.0855027 | BY146: 351.5983774 | BZ146: 409.9761005 | CA146: 471.3358163 | CB146: 535.7989998 | CC146: 603.4916083 | CD146: 674.544238 | CE146: 749.0922857 | CF146: 827.2761164 | CG146: 909.2412363 | CH146: 995.1384716 | CI146: 1085.124153 | CJ146: 1179.360308 | CK146: 1278.014856 | CL146: 1381.261815 | CM146: 1489.281511 | CN146: 1602.260797 | CO146: 1720.393277 | CP146: =CP189 -> 1843.879541 | CQ146: 1972.927403 | CR146: 2107.752153 | CS146: 2248.57681 | CT146: 2395.632391 | CU146: 2549.158185 | CV146: 2709.402035 | CW146: 2876.620633 | CX146: 3051.079822 | CY146: 3233.054907 | CZ146: 3422.830983 | DA146: 3620.703266 | DB146: 3826.977437 | DC146: 3995.167321 | DD146: 4133.877699 | DE146: 4277.149391 | DF146: 4425.130104 | DG146: 4577.972274 | DH146: 4735.833218 | DI146: 4898.875284 | DJ146: 5067.266018 | DK146: 5241.17832 | DL146: 5420.790622 | DM146: 5606.287059 | DN146: 5797.857648 | DO146: 5995.69848 | DP146: 6200.011909 | DQ146: 6411.006748 | DR146: 6628.89848 | DS146: 6853.909462 | DT146: 7086.269148 | DU146: 7326.214312 | DV146: 7573.989276 | DW146: 7829.846156 | DX146: 8094.045102 | DY146: 8366.854555 | DZ146: 8648.551508 | EA146: 8939.421779
D147: Closing Balance | I147: =IF(I3,I143,I145+I146) -> -6511.145026 | J147: -7529.191771 | K147: -9164.049907 | L147: -11273.3914 | M147: -12507.25118 | N147: -14673.59412 | O147: -15442.45611 | P147: -17616.71743 | Q147: -18950.62448 | R147: -20187.54365 | S147: -21761.82072 | T147: -23114.11771 | U147: -24296.16586 | V147: -24735.11889 | W147: -26144.11462 | X147: -27228.80501 | Y147: -27828.24885 | Z147: -28235.4055 | AA147: -29634.53596 | AB147: -31214.56714 | AC147: -30571.99453 | AD147: -31005.90483 | AE147: -30064.0187 | AF147: -30047.07103 | AG147: -29764.81528 | AH147: -30013.67272 | AI147: -30005.70685 | AJ147: -29838.2951 | AK147: -30072.39768 | AL147: -29810.82938 | AM147: -29722.69894 | AN147: -30871.76707 | AO147: =IF(AO3,AO143,AO145+AO146) -> -31303.14403 | AP147: -30804.43353 | AQ147: -31912.56518 | AR147: -32122.17932 | AS147: -32959.55743 | AT147: -33378.20918 | AU147: -33052.05443 | AV147: -33904.77653 | AW147: -33776.76585 | AX147: -33357.7204 | AY147: -35855.9231 | AZ147: -34916.88259 | BA147: -35640.45162 | BB147: -36083.72872 | BC147: -36755.2253 | BD147: -37503.45647 | BE147: -39571.53061 | BF147: -39096.03133 | BG147: -40959.35238 | BH147: -40868.53791 | BI147: -42561.64891 | BJ147: -42137.28601 | BK147: -43759.15127 | BL147: -45008.39424 | BM147: -46043.5657 | BN147: -46659.86699 | BO147: -48072.7138 | BP147: -50011.50864 | BQ147: -50819.91062 | BR147: -52508.65449 | BS147: -51737.91 | BT147: -51637.42689 | BU147: =IF(BU3,BU143,BU145+BU146) -> -51491.80045 | BV147: -51298.59395 | BW147: -51055.26943 | BX147: -50759.18393 | BY147: -50407.58555 | BZ147: -49997.60945 | CA147: -49526.27364 | CB147: -48990.47464 | CC147: -48386.98303 | CD147: -47712.43879 | CE147: -46963.3465 | CF147: -46136.07039 | CG147: -45226.82915 | CH147: -44231.69068 | CI147: -43146.56653 | CJ147: -41967.20622 | CK147: -40689.19136 | CL147: -39307.92955 | CM147: -37818.64804 | CN147: -36216.38724 | CO147: -34495.99396 | CP147: =IF(CP3,CP143,CP145+CP146) -> -32652.11442 | CQ147: =IF(CQ3,CQ143,CQ145+CQ146) -> -30679.18702 | CR147: =IF(CR3,CR143,CR145+CR146) -> -28571.43487 | CS147: =IF(CS3,CS143,CS145+CS146) -> -26322.85806 | CT147: =IF(CT3,CT143,CT145+CT146) -> -23927.22566 | CU147: =IF(CU3,CU143,CU145+CU146) -> -21378.06748 | CV147: =IF(CV3,CV143,CV145+CV146) -> -18668.66544 | CW147: =IF(CW3,CW143,CW145+CW146) -> -15792.04481 | CX147: =IF(CX3,CX143,CX145+CX146) -> -12740.96499 | CY147: =IF(CY3,CY143,CY145+CY146) -> -9507.910083 | CZ147: =IF(CZ3,CZ143,CZ145+CZ146) -> -6085.079099 | DA147: =IF(DA3,DA143,DA145+DA146) -> -2464.375833 | DB147: =IF(DB3,DB143,DB145+DB146) -> 1362.601604 | DC147: =IF(DC3,DC143,DC145+DC146) -> 5357.768925 | DD147: =IF(DD3,DD143,DD145+DD146) -> 9491.646624 | DE147: =IF(DE3,DE143,DE145+DE146) -> 13768.79601 | DF147: =IF(DF3,DF143,DF145+DF146) -> 18193.92612 | DG147: =IF(DG3,DG143,DG145+DG146) -> 22771.89839 | DH147: =IF(DH3,DH143,DH145+DH146) -> 27507.73161 | DI147: =IF(DI3,DI143,DI145+DI146) -> 32406.6069 | DJ147: =IF(DJ3,DJ143,DJ145+DJ146) -> 37473.87291 | DK147: =IF(DK3,DK143,DK145+DK146) -> 42715.05123 | DL147: =IF(DL3,DL143,DL145+DL146) -> 48135.84186 | DM147: =IF(DM3,DM143,DM145+DM146) -> 53742.12891 | DN147: =IF(DN3,DN143,DN145+DN146) -> 59539.98656 | DO147: =IF(DO3,DO143,DO145+DO146) -> 65535.68504 | DP147: =IF(DP3,DP143,DP145+DP146) -> 71735.69695 | DQ147: =IF(DQ3,DQ143,DQ145+DQ146) -> 78146.7037 | DR147: =IF(DR3,DR143,DR145+DR146) -> 84775.60218 | DS147: =IF(DS3,DS143,DS145+DS146) -> 91629.51164 | DT147: =IF(DT3,DT143,DT145+DT146) -> 98715.78079 | DU147: =IF(DU3,DU143,DU145+DU146) -> 106041.9951 | DV147: =IF(DV3,DV143,DV145+DV146) -> 113615.9844 | DW147: =IF(DW3,DW143,DW145+DW146) -> 121445.8305 | DX147: =IF(DX3,DX143,DX145+DX146) -> 129539.8756 | DY147: =IF(DY3,DY143,DY145+DY146) -> 137906.7302 | DZ147: =IF(DZ3,DZ143,DZ145+DZ146) -> 146555.2817 | EA147: =IF(EA3,EA143,EA145+EA146) -> 155494.7035
D149: Revenues | I149: =I95 -> 5000 | J149: =J95 -> 5102.150768 | K149: 5186.345187 | L149: 5283.146581 | M149: 5387.45136 | N149: 5519.251586 | O149: 5648.068344 | P149: 5787.988069 | Q149: 5886.77088 | R149: 5952.353422 | S149: 6057.076161 | T149: 6242.626001 | U149: 6342.723623 | V149: 6538.536025 | W149: 6657.753755 | X149: 6834.904916 | Y149: 6997.539322 | Z149: 7141.291474 | AA149: 7283.999885 | AB149: 7434.407212 | AC149: 7543.522901 | AD149: 7682.223836 | AE149: 8007.23169 | AF149: 8288.044259 | AG149: 8656.061939 | AH149: 9028.133886 | AI149: 9385.953937 | AJ149: 9653.208252 | AK149: 10108.40131 | AL149: 10483.95857 | AM149: 11075.4527 | AN149: 11439.37842 | AO149: 11857.77934 | AP149: 12321.06302 | AQ149: 12833.13012 | AR149: 13318.15188 | AS149: 13869.75713 | AT149: 14344.15847 | AU149: 15116.53113 | AV149: 15271.48416 | AW149: 15458.77632 | AX149: 15650.10692 | AY149: 15817.09124 | AZ149: 16002.12422 | BA149: 16653.04543 | BB149: 17316.0686 | BC149: 17763.98816 | BD149: 18592.45339 | BE149: 19416.20834 | BF149: 20244.71371 | BG149: 20929.68989 | BH149: 21721.41018 | BI149: 22326.0208 | BJ149: 23226.42631 | BK149: 24054.09911 | BL149: 24616.50688 | BM149: 25339.91163 | BN149: 26329.09454 | BO149: 27257.29431 | BP149: 28304.91409 | BQ149: 29128.49519 | BR149: 30029.92464 | BS149: 30930.82238 | BT149: 31858.74705 | BU149: 32814.50946 | BV149: =BV95 -> 33798.94474 | BW149: 34812.91308 | BX149: 35857.30048 | BY149: 36933.01949 | BZ149: 38041.01008 | CA149: 39182.24038 | CB149: 40357.70759 | CC149: 41568.43882 | CD149: 42815.49198 | CE149: 44099.95674 | CF149: 45422.95544 | CG149: 46785.64411 | CH149: 48189.21343 | CI149: 49634.88983 | CJ149: 51123.93653 | CK149: 52657.65462 | CL149: 54237.38426 | CM149: 55864.50579 | CN149: 57540.44096 | CO149: 59266.65419 | CP149: =CP95 -> 61044.65382 | CQ149: 62875.99343 | CR149: 64762.27324 | CS149: 66705.14143 | CT149: 68706.29568 | CU149: 70767.48455 | CV149: 72890.50908 | CW149: 75077.22436 | CX149: 77329.54109 | CY149: 79649.42732 | CZ149: 82038.91014 | DA149: 84500.07744 | DB149: 87035.07977 | DC149: 89646.13216 | DD149: 92335.51612 | DE149: 95105.58161 | DF149: 97958.74906 | DG149: 100897.5115 | DH149: 103924.4369 | DI149: 107042.17 | DJ149: 110253.4351 | DK149: 113561.0381 | DL149: 116967.8693 | DM149: 120476.9054 | DN149: 124091.2125 | DO149: 127813.9489 | DP149: 131648.3674 | DQ149: 135597.8184 | DR149: 139665.7529 | DS149: 143855.7255 | DT149: 148171.3973 | DU149: 152616.5392 | DV149: 157195.0354 | DW149: 161910.8864 | DX149: 166768.213 | DY149: 171771.2594 | DZ149: 176924.3972 | EA149: 182232.1291
D150: Minimum Cash % | I150: =I84 -> 0.02062334291 | J150: =J84 -> 0.02308780752 | K150: 0.009803868672 | L150: 0.01740697566 | M150: 0.00391390687 | N150: 0.02195525823 | O150: 0.01924069449 | P150: 0.02350043491 | Q150: 0.0105631799 | R150: 0.007350347875 | S150: 0.022328611 | T150: 0.02956717975 | U150: 0.01141392941 | V150: 0.02393167217 | W150: 0.01677587775 | X150: 0.02260857503 | Y150: 0.02010685523 | Z150: 0.02902542115 | AA150: 0.01898371089 | AB150: 0.009708470405 | AC150: 0.02724742168 | AD150: 0.007934512035 | AE150: 0.02177426799 | AF150: 0.01674585067 | AG150: 0.02835524466 | AH150: 0.01782068479 | AI150: 0.009319703175 | AJ150: 0.02367370967 | AK150: 0.01589705365 | AL150: 0.01465061728 | AM150: 0.02859678803 | AN150: 0.03391318225 | AO150: 0.01754715253 | AP150: 0.016687703 | AQ150: 0.02454228764 | AR150: 0.03116738554 | AS150: 0.01454532772 | AT150: 0.01745534721 | AU150: 0.01594382786 | AV150: 0.0175166604 | AW150: 0.02154579071 | AX150: 0.01296729686 | AY150: 0.01808091424 | AZ150: 0.01225212501 | BA150: 0.01864174991 | BB150: 0.01752982295 | BC150: 0.02182972447 | BD150: 0.02166396179 | BE150: 0.02435890451 | BF150: 0.02029058041 | BG150: 0.01156782295 | BH150: 0.01909351222 | BI150: 0.01709085873 | BJ150: 0.009023864238 | BK150: 0.02176845593 | BL150: 0.02475491635 | BM150: 0.01879728019 | BN150: 0.01847724927 | BO150: 0.0146929553 | BP150: 0.02680478872 | BQ150: 0.02346847261 | BR150: 0.01487044484 | BS150: 0.02 | BT150: 0.02 | BU150: 0.02 | BV150: =BV84 -> 0.02 | BW150: 0.02 | BX150: 0.02 | BY150: 0.02 | BZ150: 0.02 | CA150: 0.02 | CB150: 0.02 | CC150: 0.02 | CD150: 0.02 | CE150: 0.02 | CF150: 0.02 | CG150: 0.02 | CH150: 0.02 | CI150: 0.02 | CJ150: 0.02 | CK150: 0.02 | CL150: 0.02 | CM150: 0.02 | CN150: 0.02 | CO150: 0.02 | CP150: =CP84 -> 0.02 | CQ150: 0.02 | CR150: 0.02 | CS150: 0.02 | CT150: 0.02 | CU150: 0.02 | CV150: 0.02 | CW150: 0.02 | CX150: 0.02 | CY150: 0.02 | CZ150: 0.02 | DA150: 0.02 | DB150: 0.02 | DC150: 0.02 | DD150: 0.02 | DE150: 0.02 | DF150: 0.02 | DG150: 0.02 | DH150: 0.02 | DI150: 0.02 | DJ150: 0.02 | DK150: 0.02 | DL150: 0.02 | DM150: 0.02 | DN150: 0.02 | DO150: 0.02 | DP150: 0.02 | DQ150: 0.02 | DR150: 0.02 | DS150: 0.02 | DT150: 0.02 | DU150: 0.02 | DV150: 0.02 | DW150: 0.02 | DX150: 0.02 | DY150: 0.02 | DZ150: 0.02 | EA150: 0.02
D151: Minimum Cash | I151: =I149*I150 -> 103.1167145 | J151: =J149*J150 -> 117.7974748 | K151: 50.8462471 | L151: 91.96360396 | M151: 21.08598289 | N151: 121.1765938 | O151: 108.6727575 | P151: 136.0202369 | Q151: 62.18301984 | R151: 43.75186833 | S151: 135.2460974 | T151: 184.5768451 | U151: 72.39539969 | V151: 156.4781006 | W151: 111.6896631 | X151: 154.5274606 | Y151: 140.6985101 | Z151: 207.2789926 | AA151: 138.277348 | AB151: 72.17672239 | AC151: 205.5415494 | AD151: 60.95469748 | AE151: 174.3516086 | AF151: 138.7903515 | AG151: 245.444754 | AH151: 160.8875282 | AI151: 87.47430471 | AJ151: 228.5272496 | AK151: 160.693798 | AL151: 153.5964646 | AM151: 316.7223732 | AN151: 387.945725 | AO151: 208.0702627 | AP151: 205.6102403 | AQ151: 314.9543706 | AR151: 415.0919743 | AS151: 201.7401627 | AT151: 250.3822666 | AU151: 241.0153701 | AV151: 267.5054019 | AW151: 333.0715592 | AX151: 202.9395823 | AY151: 285.9874703 | AZ151: 196.0600265 | BA151: 310.4419081 | BB151: 303.5476167 | BC151: 387.7829669 | BD151: 402.7861998 | BE151: 472.9575647 | BF151: 410.7769915 | BG151: 242.110947 | BH151: 414.7380107 | BI151: 381.5708673 | BJ151: 209.5921178 | BK151: 523.6205965 | BL151: 609.3795685 | BM151: 476.321419 | BN151: 486.4892428 | BO151: 400.490207 | BP151: 758.7072418 | BQ151: 683.6012916 | BR151: 446.5583378 | BS151: 618.6164475 | BT151: 637.1749409 | BU151: 656.2901892 | BV151: =BV149*BV150 -> 675.9788948 | BW151: 696.2582617 | BX151: 717.1460095 | BY151: 738.6603898 | BZ151: 760.8202015 | CA151: 783.6448076 | CB151: 807.1541518 | CC151: 831.3687764 | CD151: 856.3098396 | CE151: 881.9991348 | CF151: 908.4591089 | CG151: 935.7128821 | CH151: 963.7842686 | CI151: 992.6977967 | CJ151: 1022.478731 | CK151: 1053.153092 | CL151: 1084.747685 | CM151: 1117.290116 | CN151: 1150.808819 | CO151: 1185.333084 | CP151: =CP149*CP150 -> 1220.893076 | CQ151: 1257.519869 | CR151: 1295.245465 | CS151: 1334.102829 | CT151: 1374.125914 | CU151: 1415.349691 | CV151: 1457.810182 | CW151: 1501.544487 | CX151: 1546.590822 | CY151: 1592.988546 | CZ151: 1640.778203 | DA151: 1690.001549 | DB151: 1740.701595 | DC151: 1792.922643 | DD151: 1846.710322 | DE151: 1902.111632 | DF151: 1959.174981 | DG151: 2017.950231 | DH151: 2078.488737 | DI151: 2140.8434 | DJ151: 2205.068702 | DK151: 2271.220763 | DL151: 2339.357386 | DM151: 2409.538107 | DN151: 2481.82425 | DO151: 2556.278978 | DP151: 2632.967347 | DQ151: 2711.956368 | DR151: 2793.315059 | DS151: 2877.11451 | DT151: 2963.427946 | DU151: 3052.330784 | DV151: 3143.900708 | DW151: 3238.217729 | DX151: 3335.364261 | DY151: 3435.425188 | DZ151: 3538.487944 | EA151: 3644.642582
D152: Minimum Cash Constraint | I152: =IF(NOT(I3),MAX(-I147,0)-I151) -> FALSE | J152: FALSE | K152: FALSE | L152: FALSE | M152: FALSE | N152: FALSE | O152: FALSE | P152: FALSE | Q152: FALSE | R152: FALSE | S152: FALSE | T152: FALSE | U152: FALSE | V152: FALSE | W152: FALSE | X152: FALSE | Y152: FALSE | Z152: FALSE | AA152: FALSE | AB152: FALSE | AC152: FALSE | AD152: FALSE | AE152: FALSE | AF152: FALSE | AG152: FALSE | AH152: FALSE | AI152: FALSE | AJ152: FALSE | AK152: FALSE | AL152: FALSE | AM152: FALSE | AN152: FALSE | AO152: =IF(NOT(AO3),MAX(-AO147,0)-AO151) -> FALSE | AP152: FALSE | AQ152: FALSE | AR152: FALSE | AS152: FALSE | AT152: FALSE | AU152: FALSE | AV152: FALSE | AW152: FALSE | AX152: FALSE | AY152: FALSE | AZ152: FALSE | BA152: FALSE | BB152: FALSE | BC152: FALSE | BD152: FALSE | BE152: FALSE | BF152: FALSE | BG152: FALSE | BH152: FALSE | BI152: FALSE | BJ152: FALSE | BK152: FALSE | BL152: FALSE | BM152: FALSE | BN152: FALSE | BO152: FALSE | BP152: FALSE | BQ152: FALSE | BR152: FALSE | BS152: 51119.29355 | BT152: 51000.25195 | BU152: =IF(NOT(BU3),MAX(-BU147,0)-BU151) -> 50835.51026 | BV152: 50622.61505 | BW152: 50359.01117 | BX152: 50042.03792 | BY152: 49668.92516 | BZ152: 49236.78925 | CA152: 48742.62883 | CB152: 48183.32048 | CC152: 47555.61425 | CD152: 46856.12895 | CE152: 46081.34737 | CF152: 45227.61128 | CG152: 44291.11627 | CH152: 43267.90641 | CI152: 42153.86873 | CJ152: 40944.72749 | CK152: 39636.03827 | CL152: 38223.18186 | CM152: 36701.35792 | CN152: 35065.57842 | CO152: 33310.66088 | CP152: =IF(NOT(CP3),MAX(-CP147,0)-CP151) -> 31431.22135 | CQ152: =IF(NOT(CQ3),MAX(-CQ147,0)-CQ151) -> 29421.66715 | CR152: =IF(NOT(CR3),MAX(-CR147,0)-CR151) -> 27276.1894 | CS152: =IF(NOT(CS3),MAX(-CS147,0)-CS151) -> 24988.75523 | CT152: =IF(NOT(CT3),MAX(-CT147,0)-CT151) -> 22553.09975 | CU152: =IF(NOT(CU3),MAX(-CU147,0)-CU151) -> 19962.71779 | CV152: =IF(NOT(CV3),MAX(-CV147,0)-CV151) -> 17210.85526 | CW152: =IF(NOT(CW3),MAX(-CW147,0)-CW151) -> 14290.50032 | CX152: =IF(NOT(CX3),MAX(-CX147,0)-CX151) -> 11194.37417 | CY152: =IF(NOT(CY3),MAX(-CY147,0)-CY151) -> 7914.921536 | CZ152: =IF(NOT(CZ3),MAX(-CZ147,0)-CZ151) -> 4444.300897 | DA152: =IF(NOT(DA3),MAX(-DA147,0)-DA151) -> 774.3742845 | DB152: =IF(NOT(DB3),MAX(-DB147,0)-DB151) -> -1740.701595 | DC152: =IF(NOT(DC3),MAX(-DC147,0)-DC151) -> -1792.922643 | DD152: =IF(NOT(DD3),MAX(-DD147,0)-DD151) -> -1846.710322 | DE152: =IF(NOT(DE3),MAX(-DE147,0)-DE151) -> -1902.111632 | DF152: =IF(NOT(DF3),MAX(-DF147,0)-DF151) -> -1959.174981 | DG152: =IF(NOT(DG3),MAX(-DG147,0)-DG151) -> -2017.950231 | DH152: =IF(NOT(DH3),MAX(-DH147,0)-DH151) -> -2078.488737 | DI152: =IF(NOT(DI3),MAX(-DI147,0)-DI151) -> -2140.8434 | DJ152: =IF(NOT(DJ3),MAX(-DJ147,0)-DJ151) -> -2205.068702 | DK152: =IF(NOT(DK3),MAX(-DK147,0)-DK151) -> -2271.220763 | DL152: =IF(NOT(DL3),MAX(-DL147,0)-DL151) -> -2339.357386 | DM152: =IF(NOT(DM3),MAX(-DM147,0)-DM151) -> -2409.538107 | DN152: =IF(NOT(DN3),MAX(-DN147,0)-DN151) -> -2481.82425 | DO152: =IF(NOT(DO3),MAX(-DO147,0)-DO151) -> -2556.278978 | DP152: =IF(NOT(DP3),MAX(-DP147,0)-DP151) -> -2632.967347 | DQ152: =IF(NOT(DQ3),MAX(-DQ147,0)-DQ151) -> -2711.956368 | DR152: =IF(NOT(DR3),MAX(-DR147,0)-DR151) -> -2793.315059 | DS152: =IF(NOT(DS3),MAX(-DS147,0)-DS151) -> -2877.11451 | DT152: =IF(NOT(DT3),MAX(-DT147,0)-DT151) -> -2963.427946 | DU152: =IF(NOT(DU3),MAX(-DU147,0)-DU151) -> -3052.330784 | DV152: =IF(NOT(DV3),MAX(-DV147,0)-DV151) -> -3143.900708 | DW152: =IF(NOT(DW3),MAX(-DW147,0)-DW151) -> -3238.217729 | DX152: =IF(NOT(DX3),MAX(-DX147,0)-DX151) -> -3335.364261 | DY152: =IF(NOT(DY3),MAX(-DY147,0)-DY151) -> -3435.425188 | DZ152: =IF(NOT(DZ3),MAX(-DZ147,0)-DZ151) -> -3538.487944 | EA152: =IF(NOT(EA3),MAX(-EA147,0)-EA151) -> -3644.642582
D154: Cash Balance | I154: =IF(I3,I141,MAX(I147,I152)) -> 103.1167145 | J154: 117.7974748 | K154: 50.8462471 | L154: 91.96360396 | M154: 21.08598289 | N154: 121.1765938 | O154: 108.6727575 | P154: 136.0202369 | Q154: 62.18301984 | R154: 43.75186833 | S154: 135.2460974 | T154: 184.5768451 | U154: 72.39539969 | V154: 156.4781006 | W154: 111.6896631 | X154: 154.5274606 | Y154: 140.6985101 | Z154: 207.2789926 | AA154: 138.277348 | AB154: 72.17672239 | AC154: 205.5415494 | AD154: 60.95469748 | AE154: 174.3516086 | AF154: 138.7903515 | AG154: 245.444754 | AH154: 160.8875282 | AI154: 87.47430471 | AJ154: 228.5272496 | AK154: 160.693798 | AL154: 153.5964646 | AM154: 316.7223732 | AN154: 387.945725 | AO154: =IF(AO3,AO141,MAX(AO147,AO152)) -> 208.0702627 | AP154: 205.6102403 | AQ154: 314.9543706 | AR154: 415.0919743 | AS154: 201.7401627 | AT154: 250.3822666 | AU154: 241.0153701 | AV154: 267.5054019 | AW154: 333.0715592 | AX154: 202.9395823 | AY154: 285.9874703 | AZ154: 196.0600265 | BA154: 310.4419081 | BB154: 303.5476167 | BC154: 387.7829669 | BD154: 402.7861998 | BE154: 472.9575647 | BF154: 410.7769915 | BG154: 242.110947 | BH154: 414.7380107 | BI154: 381.5708673 | BJ154: 209.5921178 | BK154: 523.6205965 | BL154: 609.3795685 | BM154: 476.321419 | BN154: 486.4892428 | BO154: 400.490207 | BP154: 758.7072418 | BQ154: 683.6012916 | BR154: 446.5583378 | BS154: 51119.29355 | BT154: 51000.25195 | BU154: =IF(BU3,BU141,MAX(BU147,BU152)) -> 50835.51026 | BV154: 50622.61505 | BW154: 50359.01117 | BX154: 50042.03792 | BY154: 49668.92516 | BZ154: 49236.78925 | CA154: 48742.62883 | CB154: 48183.32048 | CC154: 47555.61425 | CD154: 46856.12895 | CE154: 46081.34737 | CF154: 45227.61128 | CG154: 44291.11627 | CH154: 43267.90641 | CI154: 42153.86873 | CJ154: 40944.72749 | CK154: 39636.03827 | CL154: 38223.18186 | CM154: 36701.35792 | CN154: 35065.57842 | CO154: 33310.66088 | CP154: =IF(CP3,CP141,MAX(CP147,CP152)) -> 31431.22135 | CQ154: 29421.66715 | CR154: 27276.1894 | CS154: 24988.75523 | CT154: 22553.09975 | CU154: 19962.71779 | CV154: 17210.85526 | CW154: 14290.50032 | CX154: 11194.37417 | CY154: 7914.921536 | CZ154: 4444.300897 | DA154: 774.3742845 | DB154: 1362.601604 | DC154: 5357.768925 | DD154: 9491.646624 | DE154: 13768.79601 | DF154: 18193.92612 | DG154: 22771.89839 | DH154: 27507.73161 | DI154: 32406.6069 | DJ154: 37473.87291 | DK154: 42715.05123 | DL154: 48135.84186 | DM154: 53742.12891 | DN154: 59539.98656 | DO154: 65535.68504 | DP154: 71735.69695 | DQ154: 78146.7037 | DR154: 84775.60218 | DS154: 91629.51164 | DT154: 98715.78079 | DU154: 106041.9951 | DV154: 113615.9844 | DW154: 121445.8305 | DX154: 129539.8756 | DY154: 137906.7302 | DZ154: 146555.2817 | EA154: 155494.7035
D155: Debt Balace | I155: =IF(I3,I142,IF(I147<0,MAX(-I147,0)+I152))*1 -> 6614.26174 | J155: 7646.989246 | K155: 9214.896154 | L155: 11365.355 | M155: 12528.33716 | N155: 14794.77071 | O155: 15551.12886 | P155: 17752.73767 | Q155: 19012.8075 | R155: 20231.29551 | S155: 21897.06682 | T155: 23298.69456 | U155: 24368.56126 | V155: 24891.59699 | W155: 26255.80429 | X155: 27383.33247 | Y155: 27968.94736 | Z155: 28442.68449 | AA155: 29772.8133 | AB155: 31286.74386 | AC155: 30777.53608 | AD155: 31066.85953 | AE155: 30238.37031 | AF155: 30185.86138 | AG155: 30010.26003 | AH155: 30174.56025 | AI155: 30093.18116 | AJ155: 30066.82235 | AK155: 30233.09148 | AL155: 29964.42584 | AM155: 30039.42132 | AN155: 31259.71279 | AO155: =IF(AO3,AO142,IF(AO147<0,MAX(-AO147,0)+AO152))*1 -> 31511.21429 | AP155: 31010.04377 | AQ155: 32227.51955 | AR155: 32537.27129 | AS155: 33161.29759 | AT155: 33628.59144 | AU155: 33293.0698 | AV155: 34172.28193 | AW155: 34109.8374 | AX155: 33560.65998 | AY155: 36141.91057 | AZ155: 35112.94262 | BA155: 35950.89353 | BB155: 36387.27634 | BC155: 37143.00826 | BD155: 37906.24267 | BE155: 40044.48818 | BF155: 39506.80832 | BG155: 41201.46333 | BH155: 41283.27593 | BI155: 42943.21978 | BJ155: 42346.87813 | BK155: 44282.77187 | BL155: 45617.77381 | BM155: 46519.88712 | BN155: 47146.35623 | BO155: 48473.20401 | BP155: 50770.21588 | BQ155: 51503.51191 | BR155: 52955.21283 | BS155: 102857.2035 | BT155: 102637.6788 | BU155: =IF(BU3,BU142,IF(BU147<0,MAX(-BU147,0)+BU152))*1 -> 102327.3107 | BV155: 101921.209 | BW155: 101414.2806 | BX155: 100801.2219 | BY155: 100076.5107 | BZ155: 99234.3987 | CA155: 98268.90246 | CB155: 97173.79512 | CC155: 95942.59728 | CD155: 94568.56774 | CE155: 93044.69387 | CF155: 91363.68167 | CG155: 89517.94542 | CH155: 87499.59709 | CI155: 85300.43526 | CJ155: 82911.93371 | CK155: 80325.22963 | CL155: 77531.11141 | CM155: 74520.00596 | CN155: 71281.96566 | CO155: 67806.65484 | CP155: =IF(CP3,CP142,IF(CP147<0,MAX(-CP147,0)+CP152))*1 -> 64083.33577 | CQ155: 60100.85417 | CR155: 55847.62427 | CS155: 51311.61328 | CT155: 46480.32542 | CU155: 41340.78527 | CV155: 35879.52071 | CW155: 30082.54514 | CX155: 23935.33916 | CY155: 17422.83162 | CZ155: 10529.38 | DA155: 3238.750118 | DB155: 0 | DC155: 0 | DD155: 0 | DE155: 0 | DF155: 0 | DG155: 0 | DH155: 0 | DI155: 0 | DJ155: 0 | DK155: 0 | DL155: 0 | DM155: 0 | DN155: 0 | DO155: 0 | DP155: 0 | DQ155: 0 | DR155: 0 | DS155: 0 | DT155: 0 | DU155: 0 | DV155: 0 | DW155: 0 | DX155: 0 | DY155: 0 | DZ155: 0 | EA155: 0
D157: Interest Rate | I157: =I87 -> 0 | J157: 0.0206238621 | K157: 0.01964437847 | L157: 0.01790472466 | M157: 0.02010245097 | N157: 0.01853229775 | O157: 0.01609412573 | P157: 0.02248766532 | Q157: 0.01750691624 | R157: 0.01294271716 | S157: 0.01311179981 | T157: 0.02078487978 | U157: 0.01868879479 | V157: 0.01191197286 | W157: 0.01883963355 | X157: 0.01321218388 | Y157: 0.01515572513 | Z157: 0.0137154157 | AA157: 0.01810265825 | AB157: 0.0204300456 | AC157: 0.01409470615 | AD157: 0.01240058669 | AE157: 0.01643119767 | AF157: 0.01328146157 | AG157: 0.01272501824 | AH157: 0.0160597122 | AI157: 0.01634381866 | AJ157: 0.01684776519 | AK157: 0.009204190039 | AL157: 0.01966094862 | AM157: 0.0140902136 | AN157: 0.01854365629 | AO157: =AO87 -> 0.01418913796 | AP157: 0.01184923511 | AQ157: 0.01019679515 | AR157: 0.01865154148 | AS157: 0.01548952926 | AT157: 0.01929039179 | AU157: 0.01884574181 | AV157: 0.01461013973 | AW157: 0.01320088759 | AX157: 0.01762759524 | AY157: 0.01188633196 | AZ157: 0.01419860976 | BA157: 0.01715510183 | BB157: 0.007698664439 | BC157: 0.01783512048 | BD157: 0.01117474894 | BE157: 0.01758559733 | BF157: 0.01453864689 | BG157: 0.01362441374 | BH157: 0.02135269605 | BI157: 0.01653043532 | BJ157: 0.01286946368 | BK157: 0.01442802551 | BL157: 0.01672233012 | BM157: 0.01692523618 | BN157: 0.01458824958 | BO157: 0.01891506278 | BP157: 0.01267371652 | BQ157: 0.014360595 | BR157: 0.01551454354 | BS157: 0.018 | BT157: 0.018 | BU157: =BU87 -> 0.018 | BV157: 0.018 | BW157: 0.018 | BX157: 0.018 | BY157: 0.018 | BZ157: 0.018 | CA157: 0.018 | CB157: 0.018 | CC157: 0.018 | CD157: 0.018 | CE157: 0.018 | CF157: 0.018 | CG157: 0.018 | CH157: 0.018 | CI157: 0.018 | CJ157: 0.018 | CK157: 0.018 | CL157: 0.018 | CM157: 0.018 | CN157: 0.018 | CO157: 0.018 | CP157: =CP87 -> 0.018 | CQ157: 0.018 | CR157: 0.018 | CS157: 0.018 | CT157: 0.018 | CU157: 0.018 | CV157: 0.018 | CW157: 0.018 | CX157: 0.018 | CY157: 0.018 | CZ157: 0.018 | DA157: 0.018 | DB157: 0.018 | DC157: 0.018 | DD157: 0.018 | DE157: 0.018 | DF157: 0.018 | DG157: 0.018 | DH157: 0.018 | DI157: 0.018 | DJ157: 0.018 | DK157: 0.018 | DL157: 0.018 | DM157: 0.018 | DN157: 0.018 | DO157: 0.018 | DP157: 0.018 | DQ157: 0.018 | DR157: 0.018 | DS157: 0.018 | DT157: 0.018 | DU157: 0.018 | DV157: 0.018 | DW157: 0.018 | DX157: 0.018 | DY157: 0.018 | DZ157: 0.018 | EA157: 0.018
D158: Interest Expense | I158: =IF(I3,I86,I157*H155) -> 94.14565848 | J158: 136.411622 | K158: 150.2203509 | L158: 164.9901784 | M158: 228.4714916 | N158: 232.1788746 | O158: 238.1089001 | P158: 349.7085812 | Q158: 310.7956915 | R158: 246.0773898 | S158: 265.2686966 | T158: 455.1279013 | U158: 435.4245215 | V158: 290.2776403 | W158: 468.9485658 | X158: 346.8965142 | Y158: 415.01426 | Z158: 383.6057399 | AA158: 514.8881971 | AB158: 608.2599334 | AC158: 440.9774611 | AD158: 381.6595041 | AE158: 510.4657097 | AF158: 401.6097533 | AG158: 384.1156367 | AH158: 481.9561392 | AI158: 493.1675407 | AJ158: 507.00285 | AK158: 276.7407468 | AL158: 594.4112582 | AM158: 422.2051604 | AN158: 557.040704 | AO158: =IF(AO3,AO86,AO157*AN155) -> 443.5483774 | AP158: 373.3837866 | AQ158: 316.203064 | AR158: 601.0929178 | AS158: 503.9870157 | AT158: 639.6944228 | AU158: 633.7557518 | AV158: 486.4164017 | AW158: 451.1044524 | AX158: 601.2744076 | AY158: 398.9131453 | AZ158: 513.1648841 | BA158: 602.3661063 | BB158: 276.7738655 | BC158: 648.9714574 | BD158: 415.0637921 | BE158: 666.6039197 | BF158: 582.1926737 | BG158: 538.257102 | BH158: 879.7623231 | BI158: 682.4305227 | BJ158: 552.6562071 | BK158: 610.9818379 | BL158: 740.5111298 | BM158: 772.091596 | BN158: 678.6437238 | BO158: 891.7762879 | BP158: 614.3356465 | BQ158: 729.0905081 | BR158: 799.0534778 | BS158: 953.1938309 | BT158: 1851.429664 | BU158: =IF(BU3,BU86,BU157*BT155) -> 1847.478219 | BV158: 1841.891593 | BW158: 1834.581762 | BX158: 1825.457051 | BY158: 1814.421993 | BZ158: 1801.377193 | CA158: 1786.219177 | CB158: 1768.840244 | CC158: 1749.128312 | CD158: 1726.966751 | CE158: 1702.234219 | CF158: 1674.80449 | CG158: 1644.54627 | CH158: 1611.323018 | CI158: 1574.992748 | CJ158: 1535.407835 | CK158: 1492.414807 | CL158: 1445.854133 | CM158: 1395.560005 | CN158: 1341.360107 | CO158: 1283.075382 | CP158: =IF(CP3,CP86,CP157*CO155) -> 1220.519787 | CQ158: =IF(CQ3,CQ86,CQ157*CP155) -> 1153.500044 | CR158: =IF(CR3,CR86,CR157*CQ155) -> 1081.815375 | CS158: =IF(CS3,CS86,CS157*CR155) -> 1005.257237 | CT158: =IF(CT3,CT86,CT157*CS155) -> 923.6090391 | CU158: =IF(CU3,CU86,CU157*CT155) -> 836.6458575 | CV158: =IF(CV3,CV86,CV157*CU155) -> 744.1341348 | CW158: =IF(CW3,CW86,CW157*CV155) -> 645.8313727 | CX158: =IF(CX3,CX86,CX157*CW155) -> 541.4858124 | CY158: =IF(CY3,CY86,CY157*CX155) -> 430.8361048 | CZ158: =IF(CZ3,CZ86,CZ157*CY155) -> 313.6109691 | DA158: =IF(DA3,DA86,DA157*CZ155) -> 189.5288399 | DB158: =IF(DB3,DB86,DB157*DA155) -> 58.29750212 | DC158: =IF(DC3,DC86,DC157*DB155) -> 0 | DD158: =IF(DD3,DD86,DD157*DC155) -> 0 | DE158: =IF(DE3,DE86,DE157*DD155) -> 0 | DF158: =IF(DF3,DF86,DF157*DE155) -> 0 | DG158: =IF(DG3,DG86,DG157*DF155) -> 0 | DH158: =IF(DH3,DH86,DH157*DG155) -> 0 | DI158: =IF(DI3,DI86,DI157*DH155) -> 0 | DJ158: =IF(DJ3,DJ86,DJ157*DI155) -> 0 | DK158: =IF(DK3,DK86,DK157*DJ155) -> 0 | DL158: =IF(DL3,DL86,DL157*DK155) -> 0 | DM158: =IF(DM3,DM86,DM157*DL155) -> 0 | DN158: =IF(DN3,DN86,DN157*DM155) -> 0 | DO158: =IF(DO3,DO86,DO157*DN155) -> 0 | DP158: =IF(DP3,DP86,DP157*DO155) -> 0 | DQ158: =IF(DQ3,DQ86,DQ157*DP155) -> 0 | DR158: =IF(DR3,DR86,DR157*DQ155) -> 0 | DS158: =IF(DS3,DS86,DS157*DR155) -> 0 | DT158: =IF(DT3,DT86,DT157*DS155) -> 0 | DU158: =IF(DU3,DU86,DU157*DT155) -> 0 | DV158: =IF(DV3,DV86,DV157*DU155) -> 0 | DW158: =IF(DW3,DW86,DW157*DV155) -> 0 | DX158: =IF(DX3,DX86,DX157*DW155) -> 0 | DY158: =IF(DY3,DY86,DY157*DX155) -> 0 | DZ158: =IF(DZ3,DZ86,DZ157*DY155) -> 0 | EA158: =IF(EA3,EA86,EA157*DZ155) -> 0
D160: Interest Income Rate | I160: =I90 -> 0 | J160: 0.002298405479 | K160: 0.001787753441 | L160: 0.002460828157 | M160: 0.0005954446348 | N160: 0.01471821777 | O160: 0.002976740499 | P160: 0.003948788727 | Q160: 0.001652298315 | R160: 0.002183711645 | S160: 0.007670682929 | T160: 0.005426994777 | U160: 0.0007198142607 | V160: 0.006693989882 | W160: 0.001731407426 | X160: 0.004782320176 | Y160: 0.003337151134 | Z160: 0.00456637105 | AA160: 0.002049506198 | AB160: 0.00140680257 | AC160: 0.009521963662 | AD160: 0.001042137589 | AE160: 0.009168987173 | AF160: 0.002025357977 | AG160: 0.004126521753 | AH160: 0.002009896436 | AI160: 0.001116342453 | AJ160: 0.008061063958 | AK160: 0.002315472394 | AL160: 0.003347827949 | AM160: 0.005271155972 | AN160: 0.004791513442 | AO160: =AO90 -> 0.001072215199 | AP160: 0.002434346825 | AQ160: 0.003916685974 | AR160: 0.003909421091 | AS160: 0.001602683131 | AT160: 0.003871578639 | AU160: 0.002360311689 | AV160: 0.001675683687 | AW160: 0.004945204524 | AX160: 0.001686465321 | AY160: 0.003742305808 | AZ160: 0.002282168394 | BA160: 0.00506876695 | BB160: 0.003386648838 | BC160: 0.002799822225 | BD160: 0.003039458039 | BE160: 0.004192739714 | BF160: 0.002885372054 | BG160: 0.00210610313 | BH160: 0.006013510441 | BI160: 0.00282178015 | BJ160: 0.002210403493 | BK160: 0.009615901307 | BL160: 0.002760324495 | BM160: 0.002777871684 | BN160: 0.004177414332 | BO160: 0.002284259593 | BP160: 0.00730112892 | BQ160: 0.003502829242 | BR160: 0.001931517191 | BS160: 0.002 | BT160: 0.002 | BU160: =BU90 -> 0.002 | BV160: 0.002 | BW160: 0.002 | BX160: 0.002 | BY160: 0.002 | BZ160: 0.002 | CA160: 0.002 | CB160: 0.002 | CC160: 0.002 | CD160: 0.002 | CE160: 0.002 | CF160: 0.002 | CG160: 0.002 | CH160: 0.002 | CI160: 0.002 | CJ160: 0.002 | CK160: 0.002 | CL160: 0.002 | CM160: 0.002 | CN160: 0.002 | CO160: 0.002 | CP160: =CP90 -> 0.002 | CQ160: 0.002 | CR160: 0.002 | CS160: 0.002 | CT160: 0.002 | CU160: 0.002 | CV160: 0.002 | CW160: 0.002 | CX160: 0.002 | CY160: 0.002 | CZ160: 0.002 | DA160: 0.002 | DB160: 0.002 | DC160: 0.002 | DD160: 0.002 | DE160: 0.002 | DF160: 0.002 | DG160: 0.002 | DH160: 0.002 | DI160: 0.002 | DJ160: 0.002 | DK160: 0.002 | DL160: 0.002 | DM160: 0.002 | DN160: 0.002 | DO160: 0.002 | DP160: 0.002 | DQ160: 0.002 | DR160: 0.002 | DS160: 0.002 | DT160: 0.002 | DU160: 0.002 | DV160: 0.002 | DW160: 0.002 | DX160: 0.002 | DY160: 0.002 | DZ160: 0.002 | EA160: 0.002
D161: Interest Income | I161: =IF(I3,I89,I160*H154) -> 0.393676974 | J161: 0.2370040217 | K161: 0.210592841 | L161: 0.1251238765 | M161: 0.05475923457 | N161: 0.3103480881 | O161: 0.3607112743 | P161: 0.4291257597 | Q161: 0.2247460082 | R161: 0.1357897845 | S161: 0.3356067095 | T161: 0.7339798641 | U161: 0.1328610453 | V161: 0.484614073 | W161: 0.2709273454 | X161: 0.5341357291 | Y161: 0.5156814903 | Z161: 0.6424816033 | AA161: 0.42481958 | AB161: 0.1945289285 | AC161: 0.6872641279 | AD161: 0.2142025747 | AE161: 0.5588928393 | AF161: 0.3531244213 | AG161: 0.5727214045 | AH161: 0.4933185365 | AI161: 0.1796055779 | AJ161: 0.705135965 | AK161: 0.5291485376 | AL161: 0.5379751882 | AM161: 0.8096309216 | AN161: 1.517579509 | AO161: =IF(AO3,AO89,AO160*AN154) -> 0.4159613026 | AP161: 0.5065151834 | AQ161: 0.8053107443 | AR161: 1.231289259 | AS161: 0.665260905 | AT161: 0.7810529047 | AU161: 0.5909801905 | AV161: 0.403865524 | AW161: 1.322868924 | AX161: 0.561713634 | AY161: 0.7594619776 | AZ161: 0.6526715658 | BA161: 0.9937825824 | BB161: 1.051357728 | BC161: 0.8498793635 | BD161: 1.178650056 | BE161: 1.688777696 | BF161: 1.36465854 | BG161: 0.8651387076 | BH161: 1.455936708 | BI161: 1.170299486 | BJ161: 0.843425578 | BK161: 2.015417119 | BL161: 1.445362759 | BM161: 1.692778248 | BN161: 1.989791922 | BO161: 1.11126772 | BP161: 2.924030632 | BQ161: 2.657621913 | BR161: 1.320387647 | BS161: 0.8931166755 | BT161: 102.2385871 | BU161: =IF(BU3,BU89,BU160*BT154) -> 102.0005039 | BV161: 101.6710205 | BW161: 101.2452301 | BX161: 100.7180223 | BY161: 100.0840758 | BZ161: 99.33785033 | CA161: 98.4735785 | CB161: 97.48525766 | CC161: 96.36664097 | CD161: 95.1112285 | CE161: 93.7122579 | CF161: 92.16269474 | CG161: 90.45522256 | CH161: 88.58223254 | CI161: 86.53581282 | CJ161: 84.30773746 | CK161: 81.88945498 | CL161: 79.27207654 | CM161: 76.44636373 | CN161: 73.40271584 | CO161: 70.13115684 | CP161: =IF(CP3,CP89,CP160*CO154) -> 66.62132176 | CQ161: =IF(CQ3,CQ89,CQ160*CP154) -> 62.86244269 | CR161: =IF(CR3,CR89,CR160*CQ154) -> 58.8433343 | CS161: =IF(CS3,CS89,CS160*CR154) -> 54.5523788 | CT161: =IF(CT3,CT89,CT160*CS154) -> 49.97751045 | CU161: =IF(CU3,CU89,CU160*CT154) -> 45.1061995 | CV161: =IF(CV3,CV89,CV160*CU154) -> 39.92543558 | CW161: =IF(CW3,CW89,CW160*CV154) -> 34.42171053 | CX161: =IF(CX3,CX89,CX160*CW154) -> 28.58100065 | CY161: =IF(CY3,CY89,CY160*CX154) -> 22.38874834 | CZ161: =IF(CZ3,CZ89,CZ160*CY154) -> 15.82984307 | DA161: =IF(DA3,DA89,DA160*CZ154) -> 8.888601793 | DB161: =IF(DB3,DB89,DB160*DA154) -> 1.548748569 | DC161: =IF(DC3,DC89,DC160*DB154) -> 2.725203208 | DD161: =IF(DD3,DD89,DD160*DC154) -> 10.71553785 | DE161: =IF(DE3,DE89,DE160*DD154) -> 18.98329325 | DF161: =IF(DF3,DF89,DF160*DE154) -> 27.53759203 | DG161: =IF(DG3,DG89,DG160*DF154) -> 36.38785224 | DH161: =IF(DH3,DH89,DH160*DG154) -> 45.54379679 | DI161: =IF(DI3,DI89,DI160*DH154) -> 55.01546322 | DJ161: =IF(DJ3,DJ89,DJ160*DI154) -> 64.81321379 | DK161: =IF(DK3,DK89,DK160*DJ154) -> 74.94774583 | DL161: =IF(DL3,DL89,DL160*DK154) -> 85.43010247 | DM161: =IF(DM3,DM89,DM160*DL154) -> 96.27168371 | DN161: =IF(DN3,DN89,DN160*DM154) -> 107.4842578 | DO161: =IF(DO3,DO89,DO160*DN154) -> 119.0799731 | DP161: =IF(DP3,DP89,DP160*DO154) -> 131.0713701 | DQ161: =IF(DQ3,DQ89,DQ160*DP154) -> 143.4713939 | DR161: =IF(DR3,DR89,DR160*DQ154) -> 156.2934074 | DS161: =IF(DS3,DS89,DS160*DR154) -> 169.5512044 | DT161: =IF(DT3,DT89,DT160*DS154) -> 183.2590233 | DU161: =IF(DU3,DU89,DU160*DT154) -> 197.4315616 | DV161: =IF(DV3,DV89,DV160*DU154) -> 212.0839902 | DW161: =IF(DW3,DW89,DW160*DV154) -> 227.2319688 | DX161: =IF(DX3,DX89,DX160*DW154) -> 242.8916611 | DY161: =IF(DY3,DY89,DY160*DX154) -> 259.0797513 | DZ161: =IF(DZ3,DZ89,DZ160*DY154) -> 275.8134604 | EA161: =IF(EA3,EA89,EA160*DZ154) -> 293.1105634
A163: Profit and Loss
D164: Revenues | I164: =I95 -> 5000 | J164: 5102.150768 | K164: 5186.345187 | L164: 5283.146581 | M164: 5387.45136 | N164: 5519.251586 | O164: 5648.068344 | P164: 5787.988069 | Q164: 5886.77088 | R164: 5952.353422 | S164: 6057.076161 | T164: 6242.626001 | U164: 6342.723623 | V164: 6538.536025 | W164: 6657.753755 | X164: 6834.904916 | Y164: 6997.539322 | Z164: 7141.291474 | AA164: 7283.999885 | AB164: 7434.407212 | AC164: 7543.522901 | AD164: 7682.223836 | AE164: 8007.23169 | AF164: 8288.044259 | AG164: 8656.061939 | AH164: 9028.133886 | AI164: 9385.953937 | AJ164: 9653.208252 | AK164: 10108.40131 | AL164: 10483.95857 | AM164: 11075.4527 | AN164: 11439.37842 | AO164: =AO95 -> 11857.77934 | AP164: 12321.06302 | AQ164: 12833.13012 | AR164: 13318.15188 | AS164: 13869.75713 | AT164: 14344.15847 | AU164: 15116.53113 | AV164: 15271.48416 | AW164: 15458.77632 | AX164: 15650.10692 | AY164: 15817.09124 | AZ164: 16002.12422 | BA164: 16653.04543 | BB164: 17316.0686 | BC164: 17763.98816 | BD164: 18592.45339 | BE164: 19416.20834 | BF164: 20244.71371 | BG164: 20929.68989 | BH164: 21721.41018 | BI164: 22326.0208 | BJ164: 23226.42631 | BK164: 24054.09911 | BL164: 24616.50688 | BM164: 25339.91163 | BN164: 26329.09454 | BO164: 27257.29431 | BP164: 28304.91409 | BQ164: 29128.49519 | BR164: 30029.92464 | BS164: 30930.82238 | BT164: 31858.74705 | BU164: =BU95 -> 32814.50946 | BV164: 33798.94474 | BW164: 34812.91308 | BX164: 35857.30048 | BY164: 36933.01949 | BZ164: 38041.01008 | CA164: 39182.24038 | CB164: 40357.70759 | CC164: 41568.43882 | CD164: 42815.49198 | CE164: 44099.95674 | CF164: 45422.95544 | CG164: 46785.64411 | CH164: 48189.21343 | CI164: 49634.88983 | CJ164: 51123.93653 | CK164: 52657.65462 | CL164: 54237.38426 | CM164: 55864.50579 | CN164: 57540.44096 | CO164: 59266.65419 | CP164: =CP95 -> 61044.65382 | CQ164: 62875.99343 | CR164: 64762.27324 | CS164: 66705.14143 | CT164: 68706.29568 | CU164: 70767.48455 | CV164: 72890.50908 | CW164: 75077.22436 | CX164: 77329.54109 | CY164: 79649.42732 | CZ164: 82038.91014 | DA164: 84500.07744 | DB164: 87035.07977 | DC164: 89646.13216 | DD164: 92335.51612 | DE164: 95105.58161 | DF164: 97958.74906 | DG164: 100897.5115 | DH164: 103924.4369 | DI164: 107042.17 | DJ164: 110253.4351 | DK164: 113561.0381 | DL164: 116967.8693 | DM164: 120476.9054 | DN164: 124091.2125 | DO164: 127813.9489 | DP164: 131648.3674 | DQ164: 135597.8184 | DR164: 139665.7529 | DS164: 143855.7255 | DT164: 148171.3973 | DU164: 152616.5392 | DV164: 157195.0354 | DW164: 161910.8864 | DX164: 166768.213 | DY164: 171771.2594 | DZ164: 176924.3972 | EA164: 182232.1291
D165: COGS | I165: =I96 -> 3887.672226 | J165: 3103.727865 | K165: 3391.426735 | L165: 4137.513753 | M165: 3721.56244 | N165: 4534.680972 | O165: 3597.433025 | P165: 4120.51728 | Q165: 3530.178354 | R165: 3365.027691 | S165: 3704.622041 | T165: 3191.316174 | U165: 3615.341861 | V165: 3127.496979 | W165: 4634.950298 | X165: 4415.069911 | Y165: 4533.667485 | Z165: 3509.158962 | AA165: 3897.126334 | AB165: 4655.009208 | AC165: 4479.111053 | AD165: 4546.761425 | AE165: 4252.494776 | AF165: 4331.003617 | AG165: 4814.214748 | AH165: 5729.508684 | AI165: 4671.548993 | AJ165: 4895.235347 | AK165: 5335.361474 | AL165: 5572.924937 | AM165: 5550.13805 | AN165: 6086.35444 | AO165: =AO96 -> 6827.776444 | AP165: 5611.591708 | AQ165: 6807.573663 | AR165: 7460.934519 | AS165: 7635.058789 | AT165: 7485.87547 | AU165: 7317.503013 | AV165: 8083.34808 | AW165: 7978.773184 | AX165: 7196.926502 | AY165: 9857.141978 | AZ165: 7941.466664 | BA165: 8755.854521 | BB165: 10696.94745 | BC165: 9405.191159 | BD165: 9050.796574 | BE165: 10731.12806 | BF165: 9724.896252 | BG165: 12445.41793 | BH165: 12577.66347 | BI165: 12100.50176 | BJ165: 11557.59202 | BK165: 13441.09349 | BL165: 13501.29921 | BM165: 12733.90522 | BN165: 13047.46826 | BO165: 12989.54128 | BP165: 14901.05377 | BQ165: 16049.01591 | BR165: 15909.47014 | BS165: 16393.33586 | BT165: 16885.13593 | BU165: =BU96 -> 17391.69001 | BV165: 17913.44071 | BW165: 18450.84393 | BX165: 19004.36925 | BY165: 19574.50033 | BZ165: 20161.73534 | CA165: 20766.5874 | CB165: 21389.58502 | CC165: 22031.27257 | CD165: 22692.21075 | CE165: 23372.97707 | CF165: 24074.16639 | CG165: 24796.39138 | CH165: 25540.28312 | CI165: 26306.49161 | CJ165: 27095.68636 | CK165: 27908.55695 | CL165: 28745.81366 | CM165: 29608.18807 | CN165: 30496.43371 | CO165: 31411.32672 | CP165: =CP96 -> 32353.66652 | CQ165: 33324.27652 | CR165: 34324.00482 | CS165: 35353.72496 | CT165: 36414.33671 | CU165: 37506.76681 | CV165: 38631.96981 | CW165: 39790.92891 | CX165: 40984.65678 | CY165: 42214.19648 | CZ165: 43480.62237 | DA165: 44785.04104 | DB165: 46128.59228 | DC165: 47512.45004 | DD165: 48937.82355 | DE165: 50405.95825 | DF165: 51918.137 | DG165: 53475.68111 | DH165: 55079.95154 | DI165: 56732.35009 | DJ165: 58434.32059 | DK165: 60187.35021 | DL165: 61992.97072 | DM165: 63852.75984 | DN165: 65768.34263 | DO165: 67741.39291 | DP165: 69773.6347 | DQ165: 71866.84374 | DR165: 74022.84905 | DS165: 76243.53452 | DT165: 78530.84056 | DU165: 80886.76578 | DV165: 83313.36875 | DW165: 85812.76981 | DX165: 88387.15291 | DY165: 91038.76749 | DZ165: 93769.93052 | EA165: 96583.02843
D166: Margin | I166: =I164-I165 -> 1112.327774 | J166: =J164-J165 -> 1998.422902 | K166: 1794.918451 | L166: 1145.632828 | M166: 1665.88892 | N166: 984.5706138 | O166: 2050.635319 | P166: 1667.470789 | Q166: 2356.592526 | R166: 2587.325731 | S166: 2352.45412 | T166: 3051.309828 | U166: 2727.381763 | V166: 3411.039047 | W166: 2022.803456 | X166: 2419.835005 | Y166: 2463.871837 | Z166: 3632.132513 | AA166: 3386.873551 | AB166: 2779.398004 | AC166: 3064.411848 | AD166: 3135.462411 | AE166: 3754.736914 | AF166: 3957.040641 | AG166: 3841.847191 | AH166: 3298.625202 | AI166: 4714.404944 | AJ166: 4757.972904 | AK166: 4773.039838 | AL166: 4911.033634 | AM166: 5525.314652 | AN166: 5353.023976 | AO166: 5030.002896 | AP166: 6709.471314 | AQ166: 6025.556453 | AR166: 5857.217359 | AS166: 6234.698338 | AT166: 6858.283 | AU166: 7799.028113 | AV166: 7188.136085 | AW166: 7480.003137 | AX166: 8453.180417 | AY166: 5959.949264 | AZ166: 8060.657559 | BA166: 7897.190911 | BB166: 6619.121149 | BC166: 8358.796997 | BD166: 9541.656817 | BE166: 8685.080273 | BF166: 10519.81746 | BG166: 8484.271963 | BH166: 9143.746714 | BI166: 10225.51904 | BJ166: 11668.83429 | BK166: 10613.00563 | BL166: 11115.20766 | BM166: 12606.00642 | BN166: 13281.62628 | BO166: 14267.75303 | BP166: 13403.86032 | BQ166: 13079.47928 | BR166: 14120.4545 | BS166: 14537.48652 | BT166: 14973.61111 | BU166: 15422.81945 | BV166: =BV164-BV165 -> 15885.50403 | BW166: 16362.06915 | BX166: 16852.93122 | BY166: 17358.51916 | BZ166: 17879.27474 | CA166: 18415.65298 | CB166: 18968.12257 | CC166: 19537.16624 | CD166: 20123.28123 | CE166: 20726.97967 | CF166: 21348.78906 | CG166: 21989.25273 | CH166: 22648.93031 | CI166: 23328.39822 | CJ166: 24028.25017 | CK166: 24749.09767 | CL166: 25491.5706 | CM166: 26256.31772 | CN166: 27044.00725 | CO166: 27855.32747 | CP166: =CP164-CP165 -> 28690.98729 | CQ166: 29551.71691 | CR166: 30438.26842 | CS166: 31351.41647 | CT166: 32291.95897 | CU166: 33260.71774 | CV166: 34258.53927 | CW166: 35286.29545 | CX166: 36344.88431 | CY166: 37435.23084 | CZ166: 38558.28777 | DA166: 39715.0364 | DB166: 40906.48749 | DC166: 42133.68211 | DD166: 43397.69258 | DE166: 44699.62336 | DF166: 46040.61206 | DG166: 47421.83042 | DH166: 48844.48533 | DI166: 50309.81989 | DJ166: 51819.11449 | DK166: 53373.68792 | DL166: 54974.89856 | DM166: 56624.14552 | DN166: 58322.86988 | DO166: 60072.55598 | DP166: 61874.73266 | DQ166: 63730.97464 | DR166: 65642.90388 | DS166: 67612.19099 | DT166: 69640.55672 | DU166: 71729.77342 | DV166: 73881.66663 | DW166: 76098.11663 | DX166: 78381.06012 | DY166: 80732.49193 | DZ166: 83154.46669 | EA166: 85649.10069
D167: Fixed Employee Cost | I167: =I97 -> 1000 | J167: 1010.43611 | K167: 1021.245263 | L167: 1026.47279 | M167: 1034.165234 | N167: 1048.745048 | O167: 1057.047695 | P167: 1069.183832 | Q167: 1078.493141 | R167: 1086.352207 | S167: 1102.563893 | T167: 1115.028485 | U167: 1124.010038 | V167: 1130.410108 | W167: 1146.359068 | X167: 1151.686904 | Y167: 1163.256674 | Z167: 1177.860477 | AA167: 1186.979019 | AB167: 1201.708681 | AC167: 1233.621557 | AD167: 1269.803482 | AE167: 1290.139068 | AF167: 1313.732058 | AG167: 1333.318255 | AH167: 1358.465489 | AI167: 1387.268124 | AJ167: 1398.52884 | AK167: 1428.224214 | AL167: 1453.182249 | AM167: 1478.741505 | AN167: 1501.97094 | AO167: =AO97 -> 1529.00396 | AP167: 1566.206911 | AQ167: 1597.730756 | AR167: 1629.774322 | AS167: 1653.080586 | AT167: 1689.551884 | AU167: 1737.060549 | AV167: 1768.852475 | AW167: 1831.645499 | AX167: 1891.968117 | AY167: 1932.903623 | AZ167: 1971.573572 | BA167: 2019.698066 | BB167: 2072.984163 | BC167: 2132.259002 | BD167: 2158.59285 | BE167: 2242.806546 | BF167: 2334.750689 | BG167: 2381.409432 | BH167: 2424.22559 | BI167: 2510.393965 | BJ167: 2600.109318 | BK167: 2664.261258 | BL167: 2746.285846 | BM167: 2816.02174 | BN167: 2878.723535 | BO167: 2937.336255 | BP167: 2955.184372 | BQ167: 2993.397411 | BR167: 3089.307888 | BS167: 3174.263855 | BT167: 3261.556111 | BU167: =BU97 -> 3351.248904 | BV167: 3443.408249 | BW167: 3538.101976 | BX167: 3635.39978 | BY167: 3735.373274 | BZ167: 3838.096039 | CA167: 3943.64368 | CB167: 4052.093881 | CC167: 4163.526463 | CD167: 4278.023441 | CE167: 4395.669085 | CF167: 4516.549985 | CG167: 4640.75511 | CH167: 4768.375875 | CI167: 4899.506212 | CJ167: 5034.242633 | CK167: 5172.684305 | CL167: 5314.933124 | CM167: 5461.093784 | CN167: 5611.273864 | CO167: 5765.583895 | CP167: =CP97 -> 5924.137452 | CQ167: 6087.051232 | CR167: 6254.445141 | CS167: 6426.442382 | CT167: 6603.169548 | CU167: 6784.75671 | CV167: 6971.33752 | CW167: 7163.049301 | CX167: 7360.033157 | CY167: 7562.434069 | CZ167: 7770.401006 | DA167: 7984.087034 | DB167: 8203.649427 | DC167: 8429.249786 | DD167: 8661.054155 | DE167: 8899.233145 | DF167: 9143.962056 | DG167: 9395.421013 | DH167: 9653.795091 | DI167: 9919.274456 | DJ167: 10192.0545 | DK167: 10472.336 | DL167: 10760.32524 | DM167: 11056.23419 | DN167: 11360.28063 | DO167: 11672.68834 | DP167: 11993.68727 | DQ167: 12323.51367 | DR167: 12662.4103 | DS167: 13010.62658 | DT167: 13368.41881 | DU167: 13736.05033 | DV167: 14113.79171 | DW167: 14501.92099 | DX167: 14900.72381 | DY167: 15310.49372 | DZ167: 15731.5323 | EA167: 16164.14943
D168: Variable Employee and Other Cost | I168: =I98 -> 467.2531687 | J168: 483.7865034 | K168: 294.036507 | L168: 371.9328443 | M168: 332.8282353 | N168: 481.552734 | O168: 547.1539503 | P168: 444.6597828 | Q168: 414.3588513 | R168: 781.7850654 | S168: 762.1887506 | T168: 363.3276418 | U168: 643.9639217 | V168: 788.8241771 | W168: 508.7660396 | X168: 796.5633174 | Y168: 539.7037375 | Z168: 1184.481213 | AA168: 845.8975354 | AB168: 895.4366695 | AC168: 1029.186657 | AD168: 592.710901 | AE168: 852.4819359 | AF168: 565.2577172 | AG168: 972.3172705 | AH168: 1327.338496 | AI168: 794.3856813 | AJ168: 860.3732325 | AK168: 479.916036 | AL168: 1306.433743 | AM168: 1002.648833 | AN168: 1603.898978 | AO168: =AO98 -> 1247.105954 | AP168: 999.9703683 | AQ168: 986.0094465 | AR168: 1156.600455 | AS168: 491.9382126 | AT168: 2214.937883 | AU168: 1507.717505 | AV168: 1395.006936 | AW168: 1178.33872 | AX168: 1154.388289 | AY168: 1561.146261 | AZ168: 2355.903985 | BA168: 1931.128126 | BB168: 943.6597294 | BC168: 1725.773085 | BD168: 2331.432839 | BE168: 3534.45766 | BF168: 1672.186903 | BG168: 3214.776191 | BH168: 3087.526458 | BI168: 2010.778676 | BJ168: 2268.259179 | BK168: 2706.997207 | BL168: 1212.989998 | BM168: 1544.053081 | BN168: 2408.40135 | BO168: 1556.592583 | BP168: 4728.10294 | BQ168: 2862.396757 | BR168: 2682.614226 | BS168: 2783.774014 | BT168: 2867.287234 | BU168: =BU98 -> 2953.305851 | BV168: 3041.905027 | BW168: 3133.162178 | BX168: 3227.157043 | BY168: 3323.971754 | BZ168: 3423.690907 | CA168: 3526.401634 | CB168: 3632.193683 | CC168: 3741.159494 | CD168: 3853.394278 | CE168: 3968.996107 | CF168: 4088.06599 | CG168: 4210.70797 | CH168: 4337.029209 | CI168: 4467.140085 | CJ168: 4601.154288 | CK168: 4739.188916 | CL168: 4881.364584 | CM168: 5027.805521 | CN168: 5178.639687 | CO168: 5333.998877 | CP168: =CP98 -> 5494.018844 | CQ168: 5658.839409 | CR168: 5828.604591 | CS168: 6003.462729 | CT168: 6183.566611 | CU168: 6369.073609 | CV168: 6560.145818 | CW168: 6756.950192 | CX168: 6959.658698 | CY168: 7168.448459 | CZ168: 7383.501912 | DA168: 7605.00697 | DB168: 7833.157179 | DC168: 8068.151894 | DD168: 8310.196451 | DE168: 8559.502345 | DF168: 8816.287415 | DG168: 9080.776037 | DH168: 9353.199319 | DI168: 9633.795298 | DJ168: 9922.809157 | DK168: 10220.49343 | DL168: 10527.10823 | DM168: 10842.92148 | DN168: 11168.20913 | DO168: 11503.2554 | DP168: 11848.35306 | DQ168: 12203.80365 | DR168: 12569.91776 | DS168: 12947.0153 | DT168: 13335.42576 | DU168: 13735.48853 | DV168: 14147.55318 | DW168: 14571.97978 | DX168: 15009.13917 | DY168: 15459.41335 | DZ168: 15923.19575 | EA168: 16400.89162
D169: EBITDA | I169: =I166-I167-I168 -> -354.9253947 | J169: =J166-J167-J168 -> 504.2002894 | K169: 479.6366818 | L169: -252.7728066 | M169: 298.8954504 | N169: -545.7271677 | O169: 446.4336738 | P169: 153.6271741 | Q169: 863.7405337 | R169: 719.1884588 | S169: 487.7014765 | T169: 1572.953701 | U169: 959.4078031 | V169: 1491.804761 | W169: 367.6783487 | X169: 471.584784 | Y169: 760.9114263 | Z169: 1269.790823 | AA169: 1353.996997 | AB169: 682.2526532 | AC169: 801.6036342 | AD169: 1272.948028 | AE169: 1612.11591 | AF169: 2078.050866 | AG169: 1536.211666 | AH169: 612.8212165 | AI169: 2532.751139 | AJ169: 2499.070832 | AK169: 2864.899588 | AL169: 2151.417642 | AM169: 3043.924314 | AN169: 2247.154058 | AO169: 2253.892983 | AP169: 4143.294034 | AQ169: 3441.81625 | AR169: 3070.842582 | AS169: 4089.679539 | AT169: 2953.793233 | AU169: 4554.250059 | AV169: 4024.276674 | AW169: 4470.018918 | AX169: 5406.824011 | AY169: 2465.899381 | AZ169: 3733.180002 | BA169: 3946.364719 | BB169: 3602.477256 | BC169: 4500.76491 | BD169: 5051.631128 | BE169: 2907.816066 | BF169: 6512.879866 | BG169: 2888.08634 | BH169: 3631.994666 | BI169: 5704.346397 | BJ169: 6800.465795 | BK169: 5241.747161 | BL169: 7155.931816 | BM169: 8245.931597 | BN169: 7994.501396 | BO169: 9773.824194 | BP169: 5720.573007 | BQ169: 7223.685112 | BR169: 8348.532385 | BS169: 8579.448648 | BT169: 8844.767767 | BU169: 9118.26469 | BV169: =BV166-BV167-BV168 -> 9400.190753 | BW169: 9690.804996 | BX169: 9990.374401 | BY169: 10299.17413 | BZ169: 10617.48779 | CA169: 10945.60766 | CB169: 11283.835 | CC169: 11632.48029 | CD169: 11991.86351 | CE169: 12362.31448 | CF169: 12744.17308 | CG169: 13137.78965 | CH169: 13543.52523 | CI169: 13961.75192 | CJ169: 14392.85325 | CK169: 14837.22445 | CL169: 15295.2729 | CM169: 15767.41842 | CN169: 16254.0937 | CO169: 16755.7447 | CP169: =CP166-CP167-CP168 -> 17272.831 | CQ169: 17805.82627 | CR169: 18355.21869 | CS169: 18921.51136 | CT169: 19505.22281 | CU169: 20106.88742 | CV169: 20727.05593 | CW169: 21366.29595 | CX169: 22025.19246 | CY169: 22704.34831 | CZ169: 23404.38485 | DA169: 24125.94239 | DB169: 24869.68088 | DC169: 25636.28043 | DD169: 26426.44197 | DE169: 27240.88787 | DF169: 28080.36259 | DG169: 28945.63337 | DH169: 29837.49092 | DI169: 30756.75014 | DJ169: 31704.25083 | DK169: 32680.85849 | DL169: 33687.46508 | DM169: 34724.98985 | DN169: 35794.38013 | DO169: 36896.61223 | DP169: 38032.69232 | DQ169: 39203.65731 | DR169: 40410.57581 | DS169: 41654.54911 | DT169: 42936.71215 | DU169: 44258.23457 | DV169: 45620.32173 | DW169: 47024.21586 | DX169: 48471.19714 | DY169: 49962.58486 | DZ169: 51499.73864 | EA169: 53084.05963
D170: Depreciation | I170: =I124 -> 150 | J170: 243.454594 | K170: 331.1881713 | L170: 418.3467842 | M170: 505.1459437 | N170: 596.0791108 | O170: 679.4474483 | P170: 756.6822081 | Q170: 845.2219292 | R170: 925.8416625 | S170: 1012.626207 | T170: 1095.980906 | U170: 1183.039959 | V170: 1225.200359 | W170: 1265.844148 | X170: 1307.054028 | Y170: 1357.323626 | Z170: 1400.497679 | AA170: 1456.998287 | AB170: 1496.352234 | AC170: 1544.474685 | AD170: 1538.25762 | AE170: 1527.542499 | AF170: 1518.355626 | AG170: 1507.175795 | AH170: 1494.507986 | AI170: 1480.451807 | AJ170: 1484.947478 | AK170: 1486.79075 | AL170: 1488.504288 | AM170: 1482.213678 | AN170: 1489.440066 | AO170: =AO124 -> 1492.095523 | AP170: 1499.454345 | AQ170: 1516.206928 | AR170: 1538.570059 | AS170: 1552.477404 | AT170: 1561.652325 | AU170: 1567.968197 | AV170: 1588.250664 | AW170: 1621.472583 | AX170: 1650.692004 | AY170: 1672.80132 | AZ170: 1696.520646 | BA170: 1705.017051 | BB170: 1731.769523 | BC170: 1751.639714 | BD170: 1794.456484 | BE170: 1831.857898 | BF170: 1863.308432 | BG170: 1902.696401 | BH170: 1930.258095 | BI170: 1965.0453 | BJ170: 2016.050593 | BK170: 2044.922773 | BL170: 2089.054294 | BM170: 2155.497321 | BN170: 2194.422245 | BO170: 2247.347713 | BP170: 2312.939466 | BQ170: 2360.093894 | BR170: 2404.783436 | BS170: 2472.535978 | BT170: 2546.827846 | BU170: =BU124 -> 2623.344996 | BV170: 2702.154292 | BW170: 2783.324598 | BX170: 2866.926843 | BY170: 2953.03408 | BZ170: 3041.721551 | CA170: 3133.066753 | CB170: 3227.149504 | CC170: 3324.052015 | CD170: 3423.858961 | CE170: 3526.657554 | CF170: 3632.53762 | CG170: 3741.591677 | CH170: 3853.915019 | CI170: 3969.605792 | CJ170: 4088.76509 | CK170: 4211.497033 | CL170: 4337.908864 | CM170: 4468.111042 | CN170: 4602.217339 | CO170: 4740.344935 | CP170: =CP124 -> 4882.614527 | CQ170: 5029.15043 | CR170: 5180.080685 | CS170: 5335.537176 | CT170: 5495.65574 | CU170: 5660.576287 | CV170: 5830.442924 | CW170: 6005.40408 | CX170: 6185.612635 | CY170: 6371.226053 | CZ170: 6562.406522 | DA170: 6759.321095 | DB170: 6962.141834 | DC170: 7171.045962 | DD170: 7386.216018 | DE170: 7607.840014 | DF170: 7836.111606 | DG170: 8071.230253 | DH170: 8313.401401 | DI170: 8562.836656 | DJ170: 8819.753972 | DK170: 9084.377841 | DL170: 9356.939489 | DM170: 9637.677077 | DN170: 9926.83591 | DO170: 10224.66865 | DP170: 10531.43555 | DQ170: 10847.40464 | DR170: 11172.85203 | DS170: 11508.06209 | DT170: 11853.32771 | DU170: 12208.95058 | DV170: 12575.24145 | DW170: 12952.52038 | DX170: 13341.11702 | DY170: 13741.37093 | DZ170: 14153.63185 | EA170: 14578.26
D171: EBIT | I171: =I169-I170 -> -504.9253947 | J171: =J169-J170 -> 260.7456954 | K171: 148.4485105 | L171: -671.1195908 | M171: -206.2504933 | N171: -1141.806278 | O171: -233.0137745 | P171: -603.055034 | Q171: 18.51860455 | R171: -206.6532037 | S171: -524.9247308 | T171: 476.9727949 | U171: -223.6321562 | V171: 266.604402 | W171: -898.1657998 | X171: -835.4692445 | Y171: -596.4122 | Z171: -130.7068553 | AA171: -103.0012903 | AB171: -814.0995806 | AC171: -742.8710503 | AD171: -265.309592 | AE171: 84.57341108 | AF171: 559.69524 | AG171: 29.03587041 | AH171: -881.6867694 | AI171: 1052.299332 | AJ171: 1014.123354 | AK171: 1378.108838 | AL171: 662.9133545 | AM171: 1561.710636 | AN171: 757.7139918 | AO171: 761.7974593 | AP171: 2643.839689 | AQ171: 1925.609322 | AR171: 1532.272523 | AS171: 2537.202135 | AT171: 1392.140908 | AU171: 2986.281862 | AV171: 2436.02601 | AW171: 2848.546334 | AX171: 3756.132007 | AY171: 793.0980615 | AZ171: 2036.659356 | BA171: 2241.347668 | BB171: 1870.707732 | BC171: 2749.125196 | BD171: 3257.174644 | BE171: 1075.958169 | BF171: 4649.571434 | BG171: 985.3899391 | BH171: 1701.736571 | BI171: 3739.301097 | BJ171: 4784.415202 | BK171: 3196.824388 | BL171: 5066.877522 | BM171: 6090.434276 | BN171: 5800.079151 | BO171: 7526.476481 | BP171: 3407.633541 | BQ171: 4863.591219 | BR171: 5943.748949 | BS171: 6106.91267 | BT171: 6297.939921 | BU171: 6494.919694 | BV171: =BV169-BV170 -> 6698.036461 | BW171: 6907.480399 | BX171: 7123.447558 | BY171: 7346.140053 | BZ171: 7575.766239 | CA171: 7812.540911 | CB171: 8056.685499 | CC171: 8308.428272 | CD171: 8568.004551 | CE171: 8835.656922 | CF171: 9111.635464 | CG171: 9396.197974 | CH171: 9689.61021 | CI171: 9992.146132 | CJ171: 10304.08816 | CK171: 10625.72742 | CL171: 10957.36403 | CM171: 11299.30737 | CN171: 11651.87636 | CO171: 12015.39976 | CP171: =CP169-CP170 -> 12390.21647 | CQ171: 12776.67584 | CR171: 13175.138 | CS171: 13585.97419 | CT171: 14009.56707 | CU171: 14446.31113 | CV171: 14896.61301 | CW171: 15360.89187 | CX171: 15839.57982 | CY171: 16333.12226 | CZ171: 16841.97832 | DA171: 17366.6213 | DB171: 17907.53905 | DC171: 18465.23447 | DD171: 19040.22595 | DE171: 19633.04785 | DF171: 20244.25098 | DG171: 20874.40311 | DH171: 21524.08952 | DI171: 22193.91348 | DJ171: 22884.49686 | DK171: 23596.48065 | DL171: 24330.52559 | DM171: 25087.31277 | DN171: 25867.54422 | DO171: 26671.94358 | DP171: 27501.25677 | DQ171: 28356.25267 | DR171: 29237.72378 | DS171: 30146.48703 | DT171: 31083.38445 | DU171: 32049.28398 | DV171: 33045.08028 | DW171: 34071.69548 | DX171: 35130.08011 | DY171: 36221.21393 | DZ171: 37346.10679 | EA171: 38505.79963
D172: Interest Expense | I172: =I158 -> 94.14565848 | J172: =J158 -> 136.411622 | K172: 150.2203509 | L172: 164.9901784 | M172: 228.4714916 | N172: 232.1788746 | O172: 238.1089001 | P172: 349.7085812 | Q172: 310.7956915 | R172: 246.0773898 | S172: 265.2686966 | T172: 455.1279013 | U172: 435.4245215 | V172: 290.2776403 | W172: 468.9485658 | X172: 346.8965142 | Y172: 415.01426 | Z172: 383.6057399 | AA172: 514.8881971 | AB172: 608.2599334 | AC172: 440.9774611 | AD172: 381.6595041 | AE172: 510.4657097 | AF172: 401.6097533 | AG172: 384.1156367 | AH172: 481.9561392 | AI172: 493.1675407 | AJ172: 507.00285 | AK172: 276.7407468 | AL172: 594.4112582 | AM172: 422.2051604 | AN172: 557.040704 | AO172: 443.5483774 | AP172: 373.3837866 | AQ172: 316.203064 | AR172: 601.0929178 | AS172: 503.9870157 | AT172: 639.6944228 | AU172: 633.7557518 | AV172: 486.4164017 | AW172: 451.1044524 | AX172: 601.2744076 | AY172: 398.9131453 | AZ172: 513.1648841 | BA172: 602.3661063 | BB172: 276.7738655 | BC172: 648.9714574 | BD172: 415.0637921 | BE172: 666.6039197 | BF172: 582.1926737 | BG172: 538.257102 | BH172: 879.7623231 | BI172: 682.4305227 | BJ172: 552.6562071 | BK172: 610.9818379 | BL172: 740.5111298 | BM172: 772.091596 | BN172: 678.6437238 | BO172: 891.7762879 | BP172: 614.3356465 | BQ172: 729.0905081 | BR172: 799.0534778 | BS172: 953.1938309 | BT172: 1851.429664 | BU172: 1847.478219 | BV172: =BV158 -> 1841.891593 | BW172: 1834.581762 | BX172: 1825.457051 | BY172: 1814.421993 | BZ172: 1801.377193 | CA172: 1786.219177 | CB172: 1768.840244 | CC172: 1749.128312 | CD172: 1726.966751 | CE172: 1702.234219 | CF172: 1674.80449 | CG172: 1644.54627 | CH172: 1611.323018 | CI172: 1574.992748 | CJ172: 1535.407835 | CK172: 1492.414807 | CL172: 1445.854133 | CM172: 1395.560005 | CN172: 1341.360107 | CO172: 1283.075382 | CP172: =CP158 -> 1220.519787 | CQ172: 1153.500044 | CR172: 1081.815375 | CS172: 1005.257237 | CT172: 923.6090391 | CU172: 836.6458575 | CV172: 744.1341348 | CW172: 645.8313727 | CX172: 541.4858124 | CY172: 430.8361048 | CZ172: 313.6109691 | DA172: 189.5288399 | DB172: 58.29750212 | DC172: 0 | DD172: 0 | DE172: 0 | DF172: 0 | DG172: 0 | DH172: 0 | DI172: 0 | DJ172: 0 | DK172: 0 | DL172: 0 | DM172: 0 | DN172: 0 | DO172: 0 | DP172: 0 | DQ172: 0 | DR172: 0 | DS172: 0 | DT172: 0 | DU172: 0 | DV172: 0 | DW172: 0 | DX172: 0 | DY172: 0 | DZ172: 0 | EA172: 0
D173: Interest Income | I173: =I161 -> 0.393676974 | J173: =J161 -> 0.2370040217 | K173: 0.210592841 | L173: 0.1251238765 | M173: 0.05475923457 | N173: 0.3103480881 | O173: 0.3607112743 | P173: 0.4291257597 | Q173: 0.2247460082 | R173: 0.1357897845 | S173: 0.3356067095 | T173: 0.7339798641 | U173: 0.1328610453 | V173: 0.484614073 | W173: 0.2709273454 | X173: 0.5341357291 | Y173: 0.5156814903 | Z173: 0.6424816033 | AA173: 0.42481958 | AB173: 0.1945289285 | AC173: 0.6872641279 | AD173: 0.2142025747 | AE173: 0.5588928393 | AF173: 0.3531244213 | AG173: 0.5727214045 | AH173: 0.4933185365 | AI173: 0.1796055779 | AJ173: 0.705135965 | AK173: 0.5291485376 | AL173: 0.5379751882 | AM173: 0.8096309216 | AN173: 1.517579509 | AO173: 0.4159613026 | AP173: 0.5065151834 | AQ173: 0.8053107443 | AR173: 1.231289259 | AS173: 0.665260905 | AT173: 0.7810529047 | AU173: 0.5909801905 | AV173: 0.403865524 | AW173: 1.322868924 | AX173: 0.561713634 | AY173: 0.7594619776 | AZ173: 0.6526715658 | BA173: 0.9937825824 | BB173: 1.051357728 | BC173: 0.8498793635 | BD173: 1.178650056 | BE173: 1.688777696 | BF173: 1.36465854 | BG173: 0.8651387076 | BH173: 1.455936708 | BI173: 1.170299486 | BJ173: 0.843425578 | BK173: 2.015417119 | BL173: 1.445362759 | BM173: 1.692778248 | BN173: 1.989791922 | BO173: 1.11126772 | BP173: 2.924030632 | BQ173: 2.657621913 | BR173: 1.320387647 | BS173: 0.8931166755 | BT173: 102.2385871 | BU173: 102.0005039 | BV173: =BV161 -> 101.6710205 | BW173: 101.2452301 | BX173: 100.7180223 | BY173: 100.0840758 | BZ173: 99.33785033 | CA173: 98.4735785 | CB173: 97.48525766 | CC173: 96.36664097 | CD173: 95.1112285 | CE173: 93.7122579 | CF173: 92.16269474 | CG173: 90.45522256 | CH173: 88.58223254 | CI173: 86.53581282 | CJ173: 84.30773746 | CK173: 81.88945498 | CL173: 79.27207654 | CM173: 76.44636373 | CN173: 73.40271584 | CO173: 70.13115684 | CP173: =CP161 -> 66.62132176 | CQ173: 62.86244269 | CR173: 58.8433343 | CS173: 54.5523788 | CT173: 49.97751045 | CU173: 45.1061995 | CV173: 39.92543558 | CW173: 34.42171053 | CX173: 28.58100065 | CY173: 22.38874834 | CZ173: 15.82984307 | DA173: 8.888601793 | DB173: 1.548748569 | DC173: 2.725203208 | DD173: 10.71553785 | DE173: 18.98329325 | DF173: 27.53759203 | DG173: 36.38785224 | DH173: 45.54379679 | DI173: 55.01546322 | DJ173: 64.81321379 | DK173: 74.94774583 | DL173: 85.43010247 | DM173: 96.27168371 | DN173: 107.4842578 | DO173: 119.0799731 | DP173: 131.0713701 | DQ173: 143.4713939 | DR173: 156.2934074 | DS173: 169.5512044 | DT173: 183.2590233 | DU173: 197.4315616 | DV173: 212.0839902 | DW173: 227.2319688 | DX173: 242.8916611 | DY173: 259.0797513 | DZ173: 275.8134604 | EA173: 293.1105634
D174: EBT | I174: =I171-I172+I173 -> -598.6773762 | J174: =J171-J172+J173 -> 124.5710774 | K174: -1.561247563 | L174: -835.9846453 | M174: -434.6672257 | N174: -1373.674805 | O174: -470.7619633 | P174: -952.3344895 | Q174: -292.0523409 | R174: -452.5948038 | S174: -789.8578208 | T174: 22.57887342 | U174: -658.9238166 | V174: -23.18862422 | W174: -1366.843438 | X174: -1181.831623 | Y174: -1010.910779 | Z174: -513.6701136 | AA174: -617.4646678 | AB174: -1422.164985 | AC174: -1183.161247 | AD174: -646.7548936 | AE174: -425.3334058 | AF174: 158.4386111 | AG174: -354.5070449 | AH174: -1363.14959 | AI174: 559.3113968 | AJ174: 507.82564 | AK174: 1101.89724 | AL174: 69.04007153 | AM174: 1140.315106 | AN174: 202.1908673 | AO174: 318.6650431 | AP174: 2270.962417 | AQ174: 1610.211569 | AR174: 932.4108941 | AS174: 2033.88038 | AT174: 753.2275381 | AU174: 2353.11709 | AV174: 1950.013474 | AW174: 2398.764751 | AX174: 3155.419313 | AY174: 394.9443782 | AZ174: 1524.147144 | BA174: 1639.975344 | BB174: 1594.985225 | BC174: 2101.003618 | BD174: 2843.289502 | BE174: 411.0430268 | BF174: 4068.743419 | BG174: 447.9979758 | BH174: 823.430185 | BI174: 3058.040874 | BJ174: 4232.602421 | BK174: 2587.857968 | BL174: 4327.811755 | BM174: 5320.035458 | BN174: 5123.425219 | BO174: 6635.811461 | BP174: 2796.221925 | BQ174: 4137.158332 | BR174: 5146.015858 | BS174: 5154.611956 | BT174: 4548.748844 | BU174: 4749.441979 | BV174: =BV171-BV172+BV173 -> 4957.815889 | BW174: 5174.143867 | BX174: 5398.70853 | BY174: 5631.802135 | BZ174: 5873.726896 | CA174: 6124.795313 | CB174: 6385.330512 | CC174: 6655.666601 | CD174: 6936.149029 | CE174: 7227.134961 | CF174: 7528.993669 | CG174: 7842.106926 | CH174: 8166.869425 | CI174: 8503.689197 | CJ174: 8852.988061 | CK174: 9215.202068 | CL174: 9590.781976 | CM174: 9980.193732 | CN174: 10383.91897 | CO174: 10802.45554 | CP174: =CP171-CP172+CP173 -> 11236.31801 | CQ174: 11686.03824 | CR174: 12152.16596 | CS174: 12635.26933 | CT174: 13135.93554 | CU174: 13654.77147 | CV174: 14192.40431 | CW174: 14749.48221 | CX174: 15326.67501 | CY174: 15924.6749 | CZ174: 16544.1972 | DA174: 17185.98106 | DB174: 17850.7903 | DC174: 18467.95968 | DD174: 19050.94149 | DE174: 19652.03115 | DF174: 20271.78857 | DG174: 20910.79097 | DH174: 21569.63332 | DI174: 22248.92894 | DJ174: 22949.31007 | DK174: 23671.42839 | DL174: 24415.9557 | DM174: 25183.58446 | DN174: 25975.02848 | DO174: 26791.02355 | DP174: 27632.32814 | DQ174: 28499.72406 | DR174: 29394.01719 | DS174: 30316.03823 | DT174: 31266.64347 | DU174: 32246.71554 | DV174: 33257.16427 | DW174: 34298.92745 | DX174: 35372.97178 | DY174: 36480.29368 | DZ174: 37621.92025 | EA174: 38798.91019
D175: Taxes | I175: =I174*I126 -> -206.5436948 | J175: 42.9770217 | K175: -0.5386304091 | L175: -288.4147026 | M175: -149.9601929 | N175: -473.9178077 | O175: -162.4128773 | P175: -328.5553989 | Q175: -100.7580576 | R175: -156.1452073 | S175: -272.5009482 | T175: 7.78971133 | U175: -227.3287167 | V175: -8.000075357 | W175: -471.5609862 | X175: -407.7319099 | Y175: -348.7642186 | Z175: -177.2161892 | AA175: -213.0253104 | AB175: -490.6469198 | AC175: -408.1906303 | AD175: -223.1304383 | AE175: -146.740025 | AF175: 54.66132082 | AG175: -122.3049305 | AH175: -470.2866086 | AI175: 192.9624319 | AJ175: 175.1998458 | AK175: 380.1545477 | AL175: 23.81882468 | AM175: 393.4087117 | AN175: 69.75584922 | AO175: =AO174*AO126 -> 109.9394399 | AP175: 783.482034 | AQ175: 555.5229913 | AR175: 321.6817585 | AS175: 701.6887311 | AT175: 259.8635006 | AU175: 811.8253962 | AV175: 672.7546485 | AW175: 827.573839 | AX175: 1088.619663 | AY175: 136.2558105 | AZ175: 525.8307645 | BA175: 565.7914937 | BB175: 550.2699025 | BC175: 724.8462481 | BD175: 980.9348783 | BE175: 141.8098443 | BF175: 1403.716479 | BG175: 154.5593016 | BH175: 284.0834138 | BI175: 1055.024101 | BJ175: 1460.247835 | BK175: 892.8109989 | BL175: 1493.095055 | BM175: 1835.412233 | BN175: 1767.5817 | BO175: 2289.354954 | BP175: 964.6965642 | BQ175: 1427.319625 | BR175: 1775.375471 | BS175: 1778.341125 | BT175: 1569.318351 | BU175: =BU174*BU126 -> 1638.557483 | BV175: 1710.446482 | BW175: 1785.079634 | BX175: 1862.554443 | BY175: 1942.971737 | BZ175: 2026.435779 | CA175: 2113.054383 | CB175: 2202.939027 | CC175: 2296.204977 | CD175: 2392.971415 | CE175: 2493.361562 | CF175: 2597.502816 | CG175: 2705.52689 | CH175: 2817.569951 | CI175: 2933.772773 | CJ175: 3054.280881 | CK175: 3179.244713 | CL175: 3308.819782 | CM175: 3443.166838 | CN175: 3582.452046 | CO175: 3726.847161 | CP175: =CP174*CP126 -> 3876.529712 | CQ175: =CQ174*CQ126 -> 4031.683193 | CR175: =CR174*CR126 -> 4192.497257 | CS175: =CS174*CS126 -> 4359.167918 | CT175: =CT174*CT126 -> 4531.897762 | CU175: =CU174*CU126 -> 4710.896158 | CV175: =CV174*CV126 -> 4896.379486 | CW175: =CW174*CW126 -> 5088.571363 | CX175: =CX174*CX126 -> 5287.702878 | CY175: =CY174*CY126 -> 5494.012842 | CZ175: =CZ174*CZ126 -> 5707.748033 | DA175: =DA174*DA126 -> 5929.163466 | DB175: =DB174*DB126 -> 6158.522652 | DC175: =DC174*DC126 -> 6371.446088 | DD175: =DD174*DD126 -> 6572.574815 | DE175: =DE174*DE126 -> 6779.950745 | DF175: =DF174*DF126 -> 6993.767057 | DG175: =DG174*DG126 -> 7214.222884 | DH175: =DH174*DH126 -> 7441.523495 | DI175: =DI174*DI126 -> 7675.880486 | DJ175: =DJ174*DJ126 -> 7917.511974 | DK175: =DK174*DK126 -> 8166.642795 | DL175: =DL174*DL126 -> 8423.504715 | DM175: =DM174*DM126 -> 8688.336637 | DN175: =DN174*DN126 -> 8961.384825 | DO175: =DO174*DO126 -> 9242.903126 | DP175: =DP174*DP126 -> 9533.15321 | DQ175: =DQ174*DQ126 -> 9832.4048 | DR175: =DR174*DR126 -> 10140.93593 | DS175: =DS174*DS126 -> 10459.03319 | DT175: =DT174*DT126 -> 10786.992 | DU175: =DU174*DU126 -> 11125.11686 | DV175: =DV174*DV126 -> 11473.72167 | DW175: =DW174*DW126 -> 11833.12997 | DX175: =DX174*DX126 -> 12203.67526 | DY175: =DY174*DY126 -> 12585.70132 | DZ175: =DZ174*DZ126 -> 12979.56249 | EA175: =EA174*EA126 -> 13385.62402
D176: Earnings | I176: =I174-I175 -> -392.1336814 | J176: =J174-J175 -> 81.59405568 | K176: -1.022617153 | L176: -547.5699427 | M176: -284.7070328 | N176: -899.7569972 | O176: -308.3490859 | P176: -623.7790906 | Q176: -191.2942833 | R176: -296.4495965 | S176: -517.3568726 | T176: 14.78916209 | U176: -431.5950999 | V176: -15.18854887 | W176: -895.2824521 | X176: -774.0997131 | Y176: -662.1465599 | Z176: -336.4539244 | AA176: -404.4393574 | AB176: -931.5180652 | AC176: -774.9706169 | AD176: -423.6244553 | AE176: -278.5933808 | AF176: 103.7772903 | AG176: -232.2021144 | AH176: -892.8629815 | AI176: 366.3489649 | AJ176: 332.6257942 | AK176: 721.7426919 | AL176: 45.22124685 | AM176: 746.9063946 | AN176: 132.4350181 | AO176: 208.7256033 | AP176: 1487.480383 | AQ176: 1054.688578 | AR176: 610.7291357 | AS176: 1332.191649 | AT176: 493.3640375 | AU176: 1541.291694 | AV176: 1277.258825 | AW176: 1571.190912 | AX176: 2066.79965 | AY176: 258.6885677 | AZ176: 998.3163791 | BA176: 1074.18385 | BB176: 1044.715322 | BC176: 1376.157369 | BD176: 1862.354624 | BE176: 269.2331826 | BF176: 2665.026939 | BG176: 293.4386741 | BH176: 539.3467712 | BI176: 2003.016772 | BJ176: 2772.354586 | BK176: 1695.046969 | BL176: 2834.716699 | BM176: 3484.623225 | BN176: 3355.843518 | BO176: 4346.456507 | BP176: 1831.525361 | BQ176: 2709.838708 | BR176: 3370.640387 | BS176: 3376.270831 | BT176: 2979.430493 | BU176: 3110.884496 | BV176: =BV174-BV175 -> 3247.369407 | BW176: 3389.064233 | BX176: 3536.154087 | BY176: 3688.830399 | BZ176: 3847.291117 | CA176: 4011.74093 | CB176: 4182.391485 | CC176: 4359.461624 | CD176: 4543.177614 | CE176: 4733.7734 | CF176: 4931.490853 | CG176: 5136.580037 | CH176: 5349.299473 | CI176: 5569.916424 | CJ176: 5798.70718 | CK176: 6035.957354 | CL176: 6281.962194 | CM176: 6537.026894 | CN176: 6801.466927 | CO176: 7075.608378 | CP176: =CP174-CP175 -> 7359.788294 | CQ176: 7654.355048 | CR176: 7959.668706 | CS176: 8276.10141 | CT176: 8604.037779 | CU176: 8943.875315 | CV176: 9296.024822 | CW176: 9660.910849 | CX176: 10038.97213 | CY176: 10430.66206 | CZ176: 10836.44916 | DA176: 11256.8176 | DB176: 11692.26764 | DC176: 12096.51359 | DD176: 12478.36668 | DE176: 12872.0804 | DF176: 13278.02151 | DG176: 13696.56808 | DH176: 14128.10982 | DI176: 14573.04846 | DJ176: 15031.7981 | DK176: 15504.7856 | DL176: 15992.45098 | DM176: 16495.24782 | DN176: 17013.64365 | DO176: 17548.12043 | DP176: 18099.17493 | DQ176: 18667.31926 | DR176: 19253.08126 | DS176: 19857.00504 | DT176: 20479.65147 | DU176: 21121.59868 | DV176: 21783.44259 | DW176: 22465.79748 | DX176: 23169.29651 | DY176: 23894.59236 | DZ176: 24642.35776 | EA176: 25413.28618
A178: Cash Flow
D179: EBITDA | I179: =I169 -> -354.9253947 | J179: =J169 -> 504.2002894 | K179: 479.6366818 | L179: -252.7728066 | M179: 298.8954504 | N179: -545.7271677 | O179: 446.4336738 | P179: 153.6271741 | Q179: 863.7405337 | R179: 719.1884588 | S179: 487.7014765 | T179: 1572.953701 | U179: 959.4078031 | V179: 1491.804761 | W179: 367.6783487 | X179: 471.584784 | Y179: 760.9114263 | Z179: 1269.790823 | AA179: 1353.996997 | AB179: 682.2526532 | AC179: 801.6036342 | AD179: 1272.948028 | AE179: 1612.11591 | AF179: 2078.050866 | AG179: 1536.211666 | AH179: 612.8212165 | AI179: 2532.751139 | AJ179: 2499.070832 | AK179: 2864.899588 | AL179: 2151.417642 | AM179: 3043.924314 | AN179: 2247.154058 | AO179: 2253.892983 | AP179: 4143.294034 | AQ179: 3441.81625 | AR179: 3070.842582 | AS179: 4089.679539 | AT179: 2953.793233 | AU179: 4554.250059 | AV179: 4024.276674 | AW179: 4470.018918 | AX179: 5406.824011 | AY179: 2465.899381 | AZ179: 3733.180002 | BA179: 3946.364719 | BB179: 3602.477256 | BC179: 4500.76491 | BD179: 5051.631128 | BE179: 2907.816066 | BF179: 6512.879866 | BG179: 2888.08634 | BH179: 3631.994666 | BI179: 5704.346397 | BJ179: 6800.465795 | BK179: 5241.747161 | BL179: 7155.931816 | BM179: 8245.931597 | BN179: 7994.501396 | BO179: 9773.824194 | BP179: 5720.573007 | BQ179: 7223.685112 | BR179: 8348.532385 | BS179: 8579.448648 | BT179: 8844.767767 | BU179: 9118.26469 | BV179: =BV169 -> 9400.190753 | BW179: 9690.804996 | BX179: 9990.374401 | BY179: 10299.17413 | BZ179: 10617.48779 | CA179: 10945.60766 | CB179: 11283.835 | CC179: 11632.48029 | CD179: 11991.86351 | CE179: 12362.31448 | CF179: 12744.17308 | CG179: 13137.78965 | CH179: 13543.52523 | CI179: 13961.75192 | CJ179: 14392.85325 | CK179: 14837.22445 | CL179: 15295.2729 | CM179: 15767.41842 | CN179: 16254.0937 | CO179: 16755.7447 | CP179: =CP169 -> 17272.831 | CQ179: 17805.82627 | CR179: 18355.21869 | CS179: 18921.51136 | CT179: 19505.22281 | CU179: 20106.88742 | CV179: 20727.05593 | CW179: 21366.29595 | CX179: 22025.19246 | CY179: 22704.34831 | CZ179: 23404.38485 | DA179: 24125.94239 | DB179: 24869.68088 | DC179: 25636.28043 | DD179: 26426.44197 | DE179: 27240.88787 | DF179: 28080.36259 | DG179: 28945.63337 | DH179: 29837.49092 | DI179: 30756.75014 | DJ179: 31704.25083 | DK179: 32680.85849 | DL179: 33687.46508 | DM179: 34724.98985 | DN179: 35794.38013 | DO179: 36896.61223 | DP179: 38032.69232 | DQ179: 39203.65731 | DR179: 40410.57581 | DS179: 41654.54911 | DT179: 42936.71215 | DU179: 44258.23457 | DV179: 45620.32173 | DW179: 47024.21586 | DX179: 48471.19714 | DY179: 49962.58486 | DZ179: 51499.73864 | EA179: 53084.05963
D180: Less: Taxes | I180: =I175 -> -206.5436948 | J180: =J175 -> 42.9770217 | K180: -0.5386304091 | L180: -288.4147026 | M180: -149.9601929 | N180: -473.9178077 | O180: -162.4128773 | P180: -328.5553989 | Q180: -100.7580576 | R180: -156.1452073 | S180: -272.5009482 | T180: 7.78971133 | U180: -227.3287167 | V180: -8.000075357 | W180: -471.5609862 | X180: -407.7319099 | Y180: -348.7642186 | Z180: -177.2161892 | AA180: -213.0253104 | AB180: -490.6469198 | AC180: -408.1906303 | AD180: -223.1304383 | AE180: -146.740025 | AF180: 54.66132082 | AG180: -122.3049305 | AH180: -470.2866086 | AI180: 192.9624319 | AJ180: 175.1998458 | AK180: 380.1545477 | AL180: 23.81882468 | AM180: 393.4087117 | AN180: 69.75584922 | AO180: 109.9394399 | AP180: 783.482034 | AQ180: 555.5229913 | AR180: 321.6817585 | AS180: 701.6887311 | AT180: 259.8635006 | AU180: 811.8253962 | AV180: 672.7546485 | AW180: 827.573839 | AX180: 1088.619663 | AY180: 136.2558105 | AZ180: 525.8307645 | BA180: 565.7914937 | BB180: 550.2699025 | BC180: 724.8462481 | BD180: 980.9348783 | BE180: 141.8098443 | BF180: 1403.716479 | BG180: 154.5593016 | BH180: 284.0834138 | BI180: 1055.024101 | BJ180: 1460.247835 | BK180: 892.8109989 | BL180: 1493.095055 | BM180: 1835.412233 | BN180: 1767.5817 | BO180: 2289.354954 | BP180: 964.6965642 | BQ180: 1427.319625 | BR180: 1775.375471 | BS180: 1778.341125 | BT180: 1569.318351 | BU180: 1638.557483 | BV180: =BV175 -> 1710.446482 | BW180: 1785.079634 | BX180: 1862.554443 | BY180: 1942.971737 | BZ180: 2026.435779 | CA180: 2113.054383 | CB180: 2202.939027 | CC180: 2296.204977 | CD180: 2392.971415 | CE180: 2493.361562 | CF180: 2597.502816 | CG180: 2705.52689 | CH180: 2817.569951 | CI180: 2933.772773 | CJ180: 3054.280881 | CK180: 3179.244713 | CL180: 3308.819782 | CM180: 3443.166838 | CN180: 3582.452046 | CO180: 3726.847161 | CP180: =CP175 -> 3876.529712 | CQ180: 4031.683193 | CR180: 4192.497257 | CS180: 4359.167918 | CT180: 4531.897762 | CU180: 4710.896158 | CV180: 4896.379486 | CW180: 5088.571363 | CX180: 5287.702878 | CY180: 5494.012842 | CZ180: 5707.748033 | DA180: 5929.163466 | DB180: 6158.522652 | DC180: 6371.446088 | DD180: 6572.574815 | DE180: 6779.950745 | DF180: 6993.767057 | DG180: 7214.222884 | DH180: 7441.523495 | DI180: 7675.880486 | DJ180: 7917.511974 | DK180: 8166.642795 | DL180: 8423.504715 | DM180: 8688.336637 | DN180: 8961.384825 | DO180: 9242.903126 | DP180: 9533.15321 | DQ180: 9832.4048 | DR180: 10140.93593 | DS180: 10459.03319 | DT180: 10786.992 | DU180: 11125.11686 | DV180: 11473.72167 | DW180: 11833.12997 | DX180: 12203.67526 | DY180: 12585.70132 | DZ180: 12979.56249 | EA180: 13385.62402
